Workbook

Sheet Inleiding

Sheet Voorspellingen groepsfase
C2: Voorspellingen groepsfase
X3: 3e teams
C4: Groep | D4: Teams | E4: Algemene prestatieaanpassing | F4: Gespeelde wedstrijden | G4: Gewonnen | H4: Gelijkspel | I4: Verloren | J4: Goals mee | K4: Goals tegen | L4: +/- | M4: Punten | N4: Vergelijkingsrang | O4: Rang in groep (rang 1 en 2 kwalificeren zich) | P4: Rangorde binnen derden (de beste vier kwalificeren zich) | Q4: Punten (indien als derde gerangschikt) | X4: 3e teams | Y4: Ronde van 16
C5: A | D5: Frankrijk | E5: 0% | F5: =COUNTIF('De wedstrijden van dit seizoen'!$E$5:$G$41, D5) -> 3 | G5: =COUNTIF('De wedstrijden van dit seizoen'!I:I, D5) -> 3 | H5: =COUNTIFS('De wedstrijden van dit seizoen'!E:E, D5, 'De wedstrijden van dit seizoen'!I:I, "Tekenen")+COUNTIFS('De wedstrijden van dit seizoen'!G:G, D5, 'De wedstrijden van dit seizoen'!I:I, "Tekenen") -> 0 | I5: =F5-SUM(G5:H5) -> 0 | J5: =SUM(SUMIF('De wedstrijden van dit seizoen'!E:E, D5,'De wedstrijden van dit seizoen'!L:L), SUMIF('De wedstrijden van dit seizoen'!G:G,D5,'De wedstrijden van dit seizoen'!M:M)) -> 6.98 | K5: =SUM(SUMIFS('De wedstrijden van dit seizoen'!M:M,'De wedstrijden van dit seizoen'!E:E,D5), SUMIFS('De wedstrijden van dit seizoen'!L:L, 'De wedstrijden van dit seizoen'!G:G,D5)) -> 3.18 | L5: =J5-K5 -> 3.80 | M5: =(G5*3)+(H5*1) -> 9 | N5: =M5+(L5*0.001)+(J5*0.0001) -> 9.00 | O5: =RANK(N5,N$5:N$8) -> 1 | P5: =IF(Q5:Q28=0,"",RANK(Q5:Q28,Q5:Q28)) ->  | Q5: =IF('Voorspellingen groepsfase'!$O$5:$O$28=3,'Voorspellingen groepsfase'!$N$5:$N$28,0) -> 0.00 | X5: A | Y5: =SUM(Rank3A)<=4 -> TRUE
C6: A | D6: Zuid-Korea | E6: 0% | F6: =COUNTIF('De wedstrijden van dit seizoen'!$E$5:$G$41, D6) -> 3 | G6: =COUNTIF('De wedstrijden van dit seizoen'!I:I, D6) -> 2 | H6: =COUNTIFS('De wedstrijden van dit seizoen'!E:E, D6, 'De wedstrijden van dit seizoen'!I:I, "Tekenen")+COUNTIFS('De wedstrijden van dit seizoen'!G:G, D6, 'De wedstrijden van dit seizoen'!I:I, "Tekenen") -> 0 | I6: 1 | J6: =SUM(SUMIF('De wedstrijden van dit seizoen'!E:E, D6,'De wedstrijden van dit seizoen'!L:L), SUMIF('De wedstrijden van dit seizoen'!G:G,D6,'De wedstrijden van dit seizoen'!M:M)) -> 5.74 | K6: =SUM(SUMIFS('De wedstrijden van dit seizoen'!M:M,'De wedstrijden van dit seizoen'!E:E,D6), SUMIFS('De wedstrijden van dit seizoen'!L:L, 'De wedstrijden van dit seizoen'!G:G,D6)) -> 3.48 | L6: =J6-K6 -> 2.26 | M6: 6 | N6: =M6+(L6*0.001)+(J6*0.0001) -> 6.00 | O6: =RANK(N6,N$5:N$8) -> 2 | Q6: 0.00 | X6: B | Y6: =SUM(Rank3B)<=4 -> TRUE
C7: A | D7: Nigeria | E7: 0% | F7: =COUNTIF('De wedstrijden van dit seizoen'!$E$5:$G$41, D7) -> 3 | G7: =COUNTIF('De wedstrijden van dit seizoen'!I:I, D7) -> 0 | H7: =COUNTIFS('De wedstrijden van dit seizoen'!E:E, D7, 'De wedstrijden van dit seizoen'!I:I, "Tekenen")+COUNTIFS('De wedstrijden van dit seizoen'!G:G, D7, 'De wedstrijden van dit seizoen'!I:I, "Tekenen") -> 0 | I7: 3 | J7: =SUM(SUMIF('De wedstrijden van dit seizoen'!E:E, D7,'De wedstrijden van dit seizoen'!L:L), SUMIF('De wedstrijden van dit seizoen'!G:G,D7,'De wedstrijden van dit seizoen'!M:M)) -> 2.00 | K7: =SUM(SUMIFS('De wedstrijden van dit seizoen'!M:M,'De wedstrijden van dit seizoen'!E:E,D7), SUMIFS('De wedstrijden van dit seizoen'!L:L, 'De wedstrijden van dit seizoen'!G:G,D7)) -> 9.78 | L7: -7.78 | M7: 0 | N7: -0.01 | O7: =RANK(N7,N$5:N$8) -> 4 | Q7: 0.00 | X7: C | Y7: =SUM(Rank3C)<=4 -> FALSE
C8: A | D8: Noorwegen | E8: 0% | F8: =COUNTIF('De wedstrijden van dit seizoen'!$E$5:$G$41, D8) -> 3 | G8: =COUNTIF('De wedstrijden van dit seizoen'!I:I, D8) -> 1 | H8: =COUNTIFS('De wedstrijden van dit seizoen'!E:E, D8, 'De wedstrijden van dit seizoen'!I:I, "Tekenen")+COUNTIFS('De wedstrijden van dit seizoen'!G:G, D8, 'De wedstrijden van dit seizoen'!I:I, "Tekenen") -> 0 | I8: 2 | J8: =SUM(SUMIF('De wedstrijden van dit seizoen'!E:E, D8,'De wedstrijden van dit seizoen'!L:L), SUMIF('De wedstrijden van dit seizoen'!G:G,D8,'De wedstrijden van dit seizoen'!M:M)) -> 5.52 | K8: =SUM(SUMIFS('De wedstrijden van dit seizoen'!M:M,'De wedstrijden van dit seizoen'!E:E,D8), SUMIFS('De wedstrijden van dit seizoen'!L:L, 'De wedstrijden van dit seizoen'!G:G,D8)) -> 3.80 | L8: 1.72 | M8: 3 | N8: 3.00 | O8: =RANK(N8,N$5:N$8) -> 3 | P8: 2 | Q8: 3.00 | X8: D | Y8: =SUM(Rank3D)<=4 -> TRUE
C9: B | D9: Volksrepubliek China | E9: 0% | F9: =COUNTIF('De wedstrijden van dit seizoen'!$E$5:$G$41, D9) -> 3 | G9: =COUNTIF('De wedstrijden van dit seizoen'!I:I, D9) -> 1 | H9: =COUNTIFS('De wedstrijden van dit seizoen'!E:E, D9, 'De wedstrijden van dit seizoen'!I:I, "Tekenen")+COUNTIFS('De wedstrijden van dit seizoen'!G:G, D9, 'De wedstrijden van dit seizoen'!I:I, "Tekenen") -> 0 | I9: 2 | J9: =SUM(SUMIF('De wedstrijden van dit seizoen'!E:E, D9,'De wedstrijden van dit seizoen'!L:L), SUMIF('De wedstrijden van dit seizoen'!G:G,D9,'De wedstrijden van dit seizoen'!M:M)) -> 5.66 | K9: =SUM(SUMIFS('De wedstrijden van dit seizoen'!M:M,'De wedstrijden van dit seizoen'!E:E,D9), SUMIFS('De wedstrijden van dit seizoen'!L:L, 'De wedstrijden van dit seizoen'!G:G,D9)) -> 3.48 | L9: 2.18 | M9: 3 | N9: 3.00 | O9: =RANK(N9,$N$9:$N$12) -> 3 | P9: 1 | Q9: 3.00 | X9: E | Y9: =SUM(Rank3E)<=4 -> TRUE
C10: B | D10: Duitsland | E10: 0% | F10: =COUNTIF('De wedstrijden van dit seizoen'!$E$5:$G$41, D10) -> 3 | G10: =COUNTIF('De wedstrijden van dit seizoen'!I:I, D10) -> 3 | H10: =COUNTIFS('De wedstrijden van dit seizoen'!E:E, D10, 'De wedstrijden van dit seizoen'!I:I, "Tekenen")+COUNTIFS('De wedstrijden van dit seizoen'!G:G, D10, 'De wedstrijden van dit seizoen'!I:I, "Tekenen") -> 0 | I10: 0 | J10: =SUM(SUMIF('De wedstrijden van dit seizoen'!E:E, D10,'De wedstrijden van dit seizoen'!L:L), SUMIF('De wedstrijden van dit seizoen'!G:G,D10,'De wedstrijden van dit seizoen'!M:M)) -> 6.14 | K10: =SUM(SUMIFS('De wedstrijden van dit seizoen'!M:M,'De wedstrijden van dit seizoen'!E:E,D10), SUMIFS('De wedstrijden van dit seizoen'!L:L, 'De wedstrijden van dit seizoen'!G:G,D10)) -> 2.66 | L10: =J10-K10 -> 3.48 | M10: 9 | N10: 9.00 | O10: =RANK(N10,$N$9:$N$12) -> 1 | Q10: 0.00 | X10: F | Y10: =SUM(Rank3F)<=4 -> FALSE
C11: B | D11: Zuid-Afrika | E11: 0% | F11: =COUNTIF('De wedstrijden van dit seizoen'!$E$5:$G$41, D11) -> 3 | G11: =COUNTIF('De wedstrijden van dit seizoen'!I:I, D11) -> 0 | H11: =COUNTIFS('De wedstrijden van dit seizoen'!E:E, D11, 'De wedstrijden van dit seizoen'!I:I, "Tekenen")+COUNTIFS('De wedstrijden van dit seizoen'!G:G, D11, 'De wedstrijden van dit seizoen'!I:I, "Tekenen") -> 0 | I11: 3 | J11: =SUM(SUMIF('De wedstrijden van dit seizoen'!E:E, D11,'De wedstrijden van dit seizoen'!L:L), SUMIF('De wedstrijden van dit seizoen'!G:G,D11,'De wedstrijden van dit seizoen'!M:M)) -> 1.18 | K11: =SUM(SUMIFS('De wedstrijden van dit seizoen'!M:M,'De wedstrijden van dit seizoen'!E:E,D11), SUMIFS('De wedstrijden van dit seizoen'!L:L, 'De wedstrijden van dit seizoen'!G:G,D11)) -> 8.90 | L11: =J11-K11 -> -7.72 | M11: 0 | N11: -0.01 | O11: =RANK(N11,$N$9:$N$12) -> 4 | Q11: 0.00
C12: B | D12: Spanje | E12: 0% | F12: =COUNTIF('De wedstrijden van dit seizoen'!$E$5:$G$41, D12) -> 3 | G12: =COUNTIF('De wedstrijden van dit seizoen'!I:I, D12) -> 2 | H12: =COUNTIFS('De wedstrijden van dit seizoen'!E:E, D12, 'De wedstrijden van dit seizoen'!I:I, "Tekenen")+COUNTIFS('De wedstrijden van dit seizoen'!G:G, D12, 'De wedstrijden van dit seizoen'!I:I, "Tekenen") -> 0 | I12: 1 | J12: =SUM(SUMIF('De wedstrijden van dit seizoen'!E:E, D12,'De wedstrijden van dit seizoen'!L:L), SUMIF('De wedstrijden van dit seizoen'!G:G,D12,'De wedstrijden van dit seizoen'!M:M)) -> 5.64 | K12: =SUM(SUMIFS('De wedstrijden van dit seizoen'!M:M,'De wedstrijden van dit seizoen'!E:E,D12), SUMIFS('De wedstrijden van dit seizoen'!L:L, 'De wedstrijden van dit seizoen'!G:G,D12)) -> 3.58 | L12: =J12-K12 -> 2.06 | M12: 6 | N12: 6.00 | O12: =RANK(N12,$N$9:$N$12) -> 2 | Q12: 0.00 | X12: Transactie | Y12: =Y10*1+Y9*10+Y8*100+Y7*1000+Y6*10000+Y5*100000 -> 110110
C13: C | D13: Australië | E13: 0% | F13: =COUNTIF('De wedstrijden van dit seizoen'!$E$5:$G$41, D13) -> 3 | G13: =COUNTIF('De wedstrijden van dit seizoen'!I:I, D13) -> 3 | H13: =COUNTIFS('De wedstrijden van dit seizoen'!E:E, D13, 'De wedstrijden van dit seizoen'!I:I, "Tekenen")+COUNTIFS('De wedstrijden van dit seizoen'!G:G, D13, 'De wedstrijden van dit seizoen'!I:I, "Tekenen") -> 0 | I13: 0 | J13: =SUM(SUMIF('De wedstrijden van dit seizoen'!E:E, D13,'De wedstrijden van dit seizoen'!L:L), SUMIF('De wedstrijden van dit seizoen'!G:G,D13,'De wedstrijden van dit seizoen'!M:M)) -> 8.42 | K13: =SUM(SUMIFS('De wedstrijden van dit seizoen'!M:M,'De wedstrijden van dit seizoen'!E:E,D13), SUMIFS('De wedstrijden van dit seizoen'!L:L, 'De wedstrijden van dit seizoen'!G:G,D13)) -> 2.02 | L13: 6.40 | M13: =(G13*3)+(H13*1) -> 9 | N13: 9.01 | O13: =RANK(N13, N$13:N$16) -> 1 | Q13: 0.00
C14: C | D14: Brazilië | E14: 0% | F14: =COUNTIF('De wedstrijden van dit seizoen'!$E$5:$G$41, D14) -> 3 | G14: =COUNTIF('De wedstrijden van dit seizoen'!I:I, D14) -> 2 | H14: =COUNTIFS('De wedstrijden van dit seizoen'!E:E, D14, 'De wedstrijden van dit seizoen'!I:I, "Tekenen")+COUNTIFS('De wedstrijden van dit seizoen'!G:G, D14, 'De wedstrijden van dit seizoen'!I:I, "Tekenen") -> 0 | I14: 1 | J14: =SUM(SUMIF('De wedstrijden van dit seizoen'!E:E, D14,'De wedstrijden van dit seizoen'!L:L), SUMIF('De wedstrijden van dit seizoen'!G:G,D14,'De wedstrijden van dit seizoen'!M:M)) -> 8.80 | K14: =SUM(SUMIFS('De wedstrijden van dit seizoen'!M:M,'De wedstrijden van dit seizoen'!E:E,D14), SUMIFS('De wedstrijden van dit seizoen'!L:L, 'De wedstrijden van dit seizoen'!G:G,D14)) -> 2.98 | L14: 5.82 | M14: 6 | N14: 6.01 | O14: =RANK(N14, N$13:N$16) -> 2 | Q14: 0.00
C15: C | D15: Italië | E15: 0% | F15: =COUNTIF('De wedstrijden van dit seizoen'!$E$5:$G$41, D15) -> 3 | G15: =COUNTIF('De wedstrijden van dit seizoen'!I:I, D15) -> 1 | H15: =COUNTIFS('De wedstrijden van dit seizoen'!E:E, D15, 'De wedstrijden van dit seizoen'!I:I, "Tekenen")+COUNTIFS('De wedstrijden van dit seizoen'!G:G, D15, 'De wedstrijden van dit seizoen'!I:I, "Tekenen") -> 0 | I15: 2 | J15: =SUM(SUMIF('De wedstrijden van dit seizoen'!E:E, D15,'De wedstrijden van dit seizoen'!L:L), SUMIF('De wedstrijden van dit seizoen'!G:G,D15,'De wedstrijden van dit seizoen'!M:M)) -> 3.52 | K15: =SUM(SUMIFS('De wedstrijden van dit seizoen'!M:M,'De wedstrijden van dit seizoen'!E:E,D15), SUMIFS('De wedstrijden van dit seizoen'!L:L, 'De wedstrijden van dit seizoen'!G:G,D15)) -> 5.06 | L15: -1.54 | M15: 3 | N15: 3.00 | O15: =RANK(N15, N$13:N$16) -> 3 | P15: 5 | Q15: 3.00
C16: C | D16: Jamaica | E16: 0% | F16: =COUNTIF('De wedstrijden van dit seizoen'!$E$5:$G$41, D16) -> 3 | G16: =COUNTIF('De wedstrijden van dit seizoen'!I:I, D16) -> 0 | H16: =COUNTIFS('De wedstrijden van dit seizoen'!E:E, D16, 'De wedstrijden van dit seizoen'!I:I, "Tekenen")+COUNTIFS('De wedstrijden van dit seizoen'!G:G, D16, 'De wedstrijden van dit seizoen'!I:I, "Tekenen") -> 0 | I16: 3 | J16: =SUM(SUMIF('De wedstrijden van dit seizoen'!E:E, D16,'De wedstrijden van dit seizoen'!L:L), SUMIF('De wedstrijden van dit seizoen'!G:G,D16,'De wedstrijden van dit seizoen'!M:M)) -> 1.66 | K16: =SUM(SUMIFS('De wedstrijden van dit seizoen'!M:M,'De wedstrijden van dit seizoen'!E:E,D16), SUMIFS('De wedstrijden van dit seizoen'!L:L, 'De wedstrijden van dit seizoen'!G:G,D16)) -> 12.34 | L16: -10.68 | M16: 0 | N16: -0.01 | O16: =RANK(N16, N$13:N$16) -> 4 | Q16: 0.00
C17: D | D17: Argentinië | E17: 0% | F17: =COUNTIF('De wedstrijden van dit seizoen'!$E$5:$G$41, D17) -> 3 | G17: =COUNTIF('De wedstrijden van dit seizoen'!I:I, D17) -> 0 | H17: =COUNTIFS('De wedstrijden van dit seizoen'!E:E, D17, 'De wedstrijden van dit seizoen'!I:I, "Tekenen")+COUNTIFS('De wedstrijden van dit seizoen'!G:G, D17, 'De wedstrijden van dit seizoen'!I:I, "Tekenen") -> 0 | I17: 3 | J17: =SUM(SUMIF('De wedstrijden van dit seizoen'!E:E, D17,'De wedstrijden van dit seizoen'!L:L), SUMIF('De wedstrijden van dit seizoen'!G:G,D17,'De wedstrijden van dit seizoen'!M:M)) -> 1.94 | K17: =SUM(SUMIFS('De wedstrijden van dit seizoen'!M:M,'De wedstrijden van dit seizoen'!E:E,D17), SUMIFS('De wedstrijden van dit seizoen'!L:L, 'De wedstrijden van dit seizoen'!G:G,D17)) -> 9.74 | L17: -7.80 | M17: 0 | N17: -0.01 | O17: =RANK(N17, N$17:N$20) -> 4 | Q17: 0.00
C18: D | D18: Verenigd Koninkrijk | E18: 0% | F18: =COUNTIF('De wedstrijden van dit seizoen'!$E$5:$G$41, D18) -> 3 | G18: =COUNTIF('De wedstrijden van dit seizoen'!I:I, D18) -> 3 | H18: =COUNTIFS('De wedstrijden van dit seizoen'!E:E, D18, 'De wedstrijden van dit seizoen'!I:I, "Tekenen")+COUNTIFS('De wedstrijden van dit seizoen'!G:G, D18, 'De wedstrijden van dit seizoen'!I:I, "Tekenen") -> 0 | I18: 0 | J18: =SUM(SUMIF('De wedstrijden van dit seizoen'!E:E, D18,'De wedstrijden van dit seizoen'!L:L), SUMIF('De wedstrijden van dit seizoen'!G:G,D18,'De wedstrijden van dit seizoen'!M:M)) -> 6.52 | K18: =SUM(SUMIFS('De wedstrijden van dit seizoen'!M:M,'De wedstrijden van dit seizoen'!E:E,D18), SUMIFS('De wedstrijden van dit seizoen'!L:L, 'De wedstrijden van dit seizoen'!G:G,D18)) -> 3.16 | L18: 3.36 | M18: 9 | N18: 9.00 | O18: =RANK(N18, N$17:N$20) -> 1 | Q18: 0.00
C19: D | D19: Japan | E19: 0% | F19: =COUNTIF('De wedstrijden van dit seizoen'!$E$5:$G$41, D19) -> 3 | G19: =COUNTIF('De wedstrijden van dit seizoen'!I:I, D19) -> 2 | H19: =COUNTIFS('De wedstrijden van dit seizoen'!E:E, D19, 'De wedstrijden van dit seizoen'!I:I, "Tekenen")+COUNTIFS('De wedstrijden van dit seizoen'!G:G, D19, 'De wedstrijden van dit seizoen'!I:I, "Tekenen") -> 0 | I19: 1 | J19: =SUM(SUMIF('De wedstrijden van dit seizoen'!E:E, D19,'De wedstrijden van dit seizoen'!L:L), SUMIF('De wedstrijden van dit seizoen'!G:G,D19,'De wedstrijden van dit seizoen'!M:M)) -> 7.08 | K19: =SUM(SUMIFS('De wedstrijden van dit seizoen'!M:M,'De wedstrijden van dit seizoen'!E:E,D19), SUMIFS('De wedstrijden van dit seizoen'!L:L, 'De wedstrijden van dit seizoen'!G:G,D19)) -> 3.78 | L19: 3.30 | M19: 6 | N19: 6.00 | O19: =RANK(N19, N$17:N$20) -> 2 | Q19: 0.00
C20: D | D20: Schotland | E20: 0% | F20: =COUNTIF('De wedstrijden van dit seizoen'!$E$5:$G$41, D20) -> 3 | G20: =COUNTIF('De wedstrijden van dit seizoen'!I:I, D20) -> 1 | H20: =COUNTIFS('De wedstrijden van dit seizoen'!E:E, D20, 'De wedstrijden van dit seizoen'!I:I, "Tekenen")+COUNTIFS('De wedstrijden van dit seizoen'!G:G, D20, 'De wedstrijden van dit seizoen'!I:I, "Tekenen") -> 0 | I20: 2 | J20: =SUM(SUMIF('De wedstrijden van dit seizoen'!E:E, D20,'De wedstrijden van dit seizoen'!L:L), SUMIF('De wedstrijden van dit seizoen'!G:G,D20,'De wedstrijden van dit seizoen'!M:M)) -> 5.46 | K20: =SUM(SUMIFS('De wedstrijden van dit seizoen'!M:M,'De wedstrijden van dit seizoen'!E:E,D20), SUMIFS('De wedstrijden van dit seizoen'!L:L, 'De wedstrijden van dit seizoen'!G:G,D20)) -> 4.32 | L20: 1.14 | M20: 3 | N20: 3.00 | O20: =RANK(N20, N$17:N$20) -> 3 | P20: 4 | Q20: 3.00
C21: E | D21: Kameroen | E21: 0% | F21: =COUNTIF('De wedstrijden van dit seizoen'!$E$5:$G$41, D21) -> 3 | G21: =COUNTIF('De wedstrijden van dit seizoen'!I:I, D21) -> 0 | H21: =COUNTIFS('De wedstrijden van dit seizoen'!E:E, D21, 'De wedstrijden van dit seizoen'!I:I, "Tekenen")+COUNTIFS('De wedstrijden van dit seizoen'!G:G, D21, 'De wedstrijden van dit seizoen'!I:I, "Tekenen") -> 0 | I21: 3 | J21: =SUM(SUMIF('De wedstrijden van dit seizoen'!E:E, D21,'De wedstrijden van dit seizoen'!L:L), SUMIF('De wedstrijden van dit seizoen'!G:G,D21,'De wedstrijden van dit seizoen'!M:M)) -> 0.88 | K21: =SUM(SUMIFS('De wedstrijden van dit seizoen'!M:M,'De wedstrijden van dit seizoen'!E:E,D21), SUMIFS('De wedstrijden van dit seizoen'!L:L, 'De wedstrijden van dit seizoen'!G:G,D21)) -> 7.78 | L21: -6.90 | M21: =(G21*3)+(H21*1) -> 0 | N21: -0.01 | O21: =RANK(N21, N$21:N$24) -> 4 | Q21: 0.00
C22: E | D22: Canada | E22: 0% | F22: =COUNTIF('De wedstrijden van dit seizoen'!$E$5:$G$41, D22) -> 3 | G22: =COUNTIF('De wedstrijden van dit seizoen'!I:I, D22) -> 3 | H22: =COUNTIFS('De wedstrijden van dit seizoen'!E:E, D22, 'De wedstrijden van dit seizoen'!I:I, "Tekenen")+COUNTIFS('De wedstrijden van dit seizoen'!G:G, D22, 'De wedstrijden van dit seizoen'!I:I, "Tekenen") -> 0 | I22: 0 | J22: =SUM(SUMIF('De wedstrijden van dit seizoen'!E:E, D22,'De wedstrijden van dit seizoen'!L:L), SUMIF('De wedstrijden van dit seizoen'!G:G,D22,'De wedstrijden van dit seizoen'!M:M)) -> 5.60 | K22: =SUM(SUMIFS('De wedstrijden van dit seizoen'!M:M,'De wedstrijden van dit seizoen'!E:E,D22), SUMIFS('De wedstrijden van dit seizoen'!L:L, 'De wedstrijden van dit seizoen'!G:G,D22)) -> 2.64 | L22: 2.96 | M22: 9 | N22: 9.00 | O22: =RANK(N22, N$21:N$24) -> 1 | Q22: 0.00
C23: E | D23: Nederland | E23: 0% | F23: =COUNTIF('De wedstrijden van dit seizoen'!$E$5:$G$41, D23) -> 3 | G23: =COUNTIF('De wedstrijden van dit seizoen'!I:I, D23) -> 2 | H23: =COUNTIFS('De wedstrijden van dit seizoen'!E:E, D23, 'De wedstrijden van dit seizoen'!I:I, "Tekenen")+COUNTIFS('De wedstrijden van dit seizoen'!G:G, D23, 'De wedstrijden van dit seizoen'!I:I, "Tekenen") -> 0 | I23: 1 | J23: =SUM(SUMIF('De wedstrijden van dit seizoen'!E:E, D23,'De wedstrijden van dit seizoen'!L:L), SUMIF('De wedstrijden van dit seizoen'!G:G,D23,'De wedstrijden van dit seizoen'!M:M)) -> 5.80 | K23: =SUM(SUMIFS('De wedstrijden van dit seizoen'!M:M,'De wedstrijden van dit seizoen'!E:E,D23), SUMIFS('De wedstrijden van dit seizoen'!L:L, 'De wedstrijden van dit seizoen'!G:G,D23)) -> 3.30 | L23: 2.50 | M23: 6 | N23: 6.00 | O23: =RANK(N23, N$21:N$24) -> 2 | Q23: 0.00
C24: E | D24: Nieuw-Zeeland | E24: 0% | F24: =COUNTIF('De wedstrijden van dit seizoen'!$E$5:$G$41, D24) -> 3 | G24: =COUNTIF('De wedstrijden van dit seizoen'!I:I, D24) -> 1 | H24: =COUNTIFS('De wedstrijden van dit seizoen'!E:E, D24, 'De wedstrijden van dit seizoen'!I:I, "Tekenen")+COUNTIFS('De wedstrijden van dit seizoen'!G:G, D24, 'De wedstrijden van dit seizoen'!I:I, "Tekenen") -> 0 | I24: 2 | J24: =SUM(SUMIF('De wedstrijden van dit seizoen'!E:E, D24,'De wedstrijden van dit seizoen'!L:L), SUMIF('De wedstrijden van dit seizoen'!G:G,D24,'De wedstrijden van dit seizoen'!M:M)) -> 4.90 | K24: =SUM(SUMIFS('De wedstrijden van dit seizoen'!M:M,'De wedstrijden van dit seizoen'!E:E,D24), SUMIFS('De wedstrijden van dit seizoen'!L:L, 'De wedstrijden van dit seizoen'!G:G,D24)) -> 3.46 | L24: 1.44 | M24: 3 | N24: 3.00 | O24: =RANK(N24, N$21:N$24) -> 3 | P24: 3 | Q24: 3.00
C25: F | D25: Chili | E25: 0% | F25: =COUNTIF('De wedstrijden van dit seizoen'!$E$5:$G$41, D25) -> 3 | G25: =COUNTIF('De wedstrijden van dit seizoen'!I:I, D25) -> 0 | H25: =COUNTIFS('De wedstrijden van dit seizoen'!E:E, D25, 'De wedstrijden van dit seizoen'!I:I, "Tekenen")+COUNTIFS('De wedstrijden van dit seizoen'!G:G, D25, 'De wedstrijden van dit seizoen'!I:I, "Tekenen") -> 0 | I25: 3 | J25: =SUM(SUMIF('De wedstrijden van dit seizoen'!E:E, D25,'De wedstrijden van dit seizoen'!L:L), SUMIF('De wedstrijden van dit seizoen'!G:G,D25,'De wedstrijden van dit seizoen'!M:M)) -> 2.90 | K25: =SUM(SUMIFS('De wedstrijden van dit seizoen'!M:M,'De wedstrijden van dit seizoen'!E:E,D25), SUMIFS('De wedstrijden van dit seizoen'!L:L, 'De wedstrijden van dit seizoen'!G:G,D25)) -> 8.60 | L25: -5.70 | M25: 0 | N25: -0.01 | O25: =RANK(N25, N$25:N$28) -> 4 | Q25: 0.00
C26: F | D26: Zweden | E26: 0% | F26: =COUNTIF('De wedstrijden van dit seizoen'!$E$5:$G$41, D26) -> 3 | G26: =COUNTIF('De wedstrijden van dit seizoen'!I:I, D26) -> 3 | H26: =COUNTIFS('De wedstrijden van dit seizoen'!E:E, D26, 'De wedstrijden van dit seizoen'!I:I, "Tekenen")+COUNTIFS('De wedstrijden van dit seizoen'!G:G, D26, 'De wedstrijden van dit seizoen'!I:I, "Tekenen") -> 0 | I26: 0 | J26: =SUM(SUMIF('De wedstrijden van dit seizoen'!E:E, D26,'De wedstrijden van dit seizoen'!L:L), SUMIF('De wedstrijden van dit seizoen'!G:G,D26,'De wedstrijden van dit seizoen'!M:M)) -> 8.76 | K26: =SUM(SUMIFS('De wedstrijden van dit seizoen'!M:M,'De wedstrijden van dit seizoen'!E:E,D26), SUMIFS('De wedstrijden van dit seizoen'!L:L, 'De wedstrijden van dit seizoen'!G:G,D26)) -> 2.64 | L26: 6.12 | M26: 9 | N26: 9.01 | O26: =RANK(N26, N$25:N$28) -> 1 | Q26: 0.00
C27: F | D27: Thailand | E27: 0% | F27: =COUNTIF('De wedstrijden van dit seizoen'!$E$5:$G$41, D27) -> 3 | G27: =COUNTIF('De wedstrijden van dit seizoen'!I:I, D27) -> 1 | H27: =COUNTIFS('De wedstrijden van dit seizoen'!E:E, D27, 'De wedstrijden van dit seizoen'!I:I, "Tekenen")+COUNTIFS('De wedstrijden van dit seizoen'!G:G, D27, 'De wedstrijden van dit seizoen'!I:I, "Tekenen") -> 0 | I27: 2 | J27: =SUM(SUMIF('De wedstrijden van dit seizoen'!E:E, D27,'De wedstrijden van dit seizoen'!L:L), SUMIF('De wedstrijden van dit seizoen'!G:G,D27,'De wedstrijden van dit seizoen'!M:M)) -> 2.50 | K27: =SUM(SUMIFS('De wedstrijden van dit seizoen'!M:M,'De wedstrijden van dit seizoen'!E:E,D27), SUMIFS('De wedstrijden van dit seizoen'!L:L, 'De wedstrijden van dit seizoen'!G:G,D27)) -> 7.98 | L27: -5.48 | M27: 3 | N27: 2.99 | O27: =RANK(N27, N$25:N$28) -> 3 | P27: 6 | Q27: 2.99
C28: F | D28: Verenigde Staten | E28: 0% | F28: =COUNTIF('De wedstrijden van dit seizoen'!$E$5:$G$41, D28) -> 3 | G28: =COUNTIF('De wedstrijden van dit seizoen'!I:I, D28) -> 2 | H28: =COUNTIFS('De wedstrijden van dit seizoen'!E:E, D28, 'De wedstrijden van dit seizoen'!I:I, "Tekenen")+COUNTIFS('De wedstrijden van dit seizoen'!G:G, D28, 'De wedstrijden van dit seizoen'!I:I, "Tekenen") -> 0 | I28: 1 | J28: =SUM(SUMIF('De wedstrijden van dit seizoen'!E:E, D28,'De wedstrijden van dit seizoen'!L:L), SUMIF('De wedstrijden van dit seizoen'!G:G,D28,'De wedstrijden van dit seizoen'!M:M)) -> 8.10 | K28: =SUM(SUMIFS('De wedstrijden van dit seizoen'!M:M,'De wedstrijden van dit seizoen'!E:E,D28), SUMIFS('De wedstrijden van dit seizoen'!L:L, 'De wedstrijden van dit seizoen'!G:G,D28)) -> 3.04 | L28: 5.06 | M28: 6 | N28: 6.01 | O28: =RANK(N28, N$25:N$28) -> 2 | Q28: 0.00

Sheet De wedstrijden van dit seizoen
C2: De wedstrijden van dit seizoen | P2: =_xlfn.POISSON.DIST({0,1,2,3,4,5,6,7,8,9},$O6, TRUE) -> 0.1685937746 | Q2: =_xlfn.POISSON.DIST(2,2, TRUE) -> 0.6766764162
C4: Wedstrijden 2019 | J4: Uw aanpassingen | L4: Verborgen kolom A | M4: Verborgen kolom B | O4: Invoer uit de vorige stappen | Q4: Simulatie resultaten->
C5: Datum | D5: Groep | E5: Team A | F5: Voorspelde Score A | G5: Team B | H5: Voorspelde Score B | I5: Winnaar | J5: Voorspellingen team A | K5: Voorspellingen team B | L5: Kolom1 | M5: Kolom2 | N5: Kolom3 | O5: Team A gemiddeld aantal gescoorde doelpunten | P5: Team B gemiddeld aantal gescoorde doelpunten | Q5: Team A iteratie 1 | R5: Team A iteratie 2 | S5: Team A iteratie 3 | T5: Team A iteratie 4 | U5: Team A iteratie 5 | V5: Team A iteratie 6 | W5: Team A iteratie 7 | X5: Team A iteratie 8 | Y5: Team A iteratie 9 | Z5: Team A iteratie 10 | AA5: Team A iteratie 11 | AB5: Team A iteratie 12 | AC5: Team A iteratie 13 | AD5: Team A iteratie 14 | AE5: Team A iteratie 15 | AF5: Team A iteratie 16 | AG5: Team A iteratie 17 | AH5: Team A iteratie 18 | AI5: Team A iteratie 19 | AJ5: Team A iteratie 20 | AK5: Team A iteratie 21 | AL5: Team A iteratie 22 | AM5: Team A iteratie 23 | AN5: Team A iteratie 24 | AO5: Team A iteratie 25 | AP5: Team A iteratie 26 | AQ5: Team A iteratie 27 | AR5: Team A iteratie 28 | AS5: Team A iteratie 29 | AT5: Team A iteratie 30 | AU5: Team A iteratie 31 | AV5: Team A iteratie 32 | AW5: Team A iteratie 33 | AX5: Team A iteratie 34 | AY5: Team A iteratie 35 | AZ5: Team A iteratie 36 | BA5: Team A iteratie 37 | BB5: Team A iteratie 38 | BC5: Team A iteratie 39 | BD5: Team A iteratie 40 | BE5: Team A iteratie 41 | BF5: Team A iteratie 42 | BG5: Team A iteratie 43 | BH5: Team A iteratie 44 | BI5: Team A iteratie 45 | BJ5: Team A iteratie 46 | BK5: Team A iteratie 47 | BL5: Team A iteratie 48 | BM5: Team A iteratie 49 | BN5: Team A iteratie 50 | BP5: Team B iteratie 1 | BQ5: Team B iteratie 2 | BR5: Team B iteratie 3 | BS5: Team B iteratie 4 | BT5: Team B iteratie 5 | BU5: Team B iteratie 6 | BV5: Team B iteratie 7 | BW5: Team B iteratie 8 | BX5: Team B iteratie 9 | BY5: Team B iteratie 10 | BZ5: Team B iteratie 11 | CA5: Team B iteratie 12 | CB5: Team B iteratie 13 | CC5: Team B iteratie 14 | CD5: Team B iteratie 15 | CE5: Team B iteratie 16 | CF5: Team B iteratie 17 | CG5: Team B iteratie 18 | CH5: Team B iteratie 19 | CI5: Team B iteratie 20 | CJ5: Team B iteratie 21 | CK5: Team B iteratie 22 | CL5: Team B iteratie 23 | CM5: Team B iteratie 24 | CN5: Team B iteratie 25 | CO5: Team B iteratie 26 | CP5: Team B iteratie 27 | CQ5: Team B iteratie 28 | CR5: Team B iteratie 29 | CS5: Team B iteratie 30 | CT5: Team B iteratie 31 | CU5: Team B iteratie 32 | CV5: Team B iteratie 33 | CW5: Team B iteratie 34 | CX5: Team B iteratie 35 | CY5: Team B iteratie 36 | CZ5: Team B iteratie 37 | DA5: Team B iteratie 38 | DB5: Team B iteratie 39 | DC5: Team B iteratie 40 | DD5: Team B iteratie 41 | DE5: Team B iteratie 42 | DF5: Team B iteratie 43 | DG5: Team B iteratie 44 | DH5: Team B iteratie 45 | DI5: Team B iteratie 46 | DJ5: Team B iteratie 47 | DK5: Team B iteratie 48 | DL5: Team B iteratie 49 | DM5: Team B iteratie 50
C6: 2019-06-07 | D6: A | E6: Frankrijk | F6: =(AVERAGE(Q6:BN6))*(1+INDEX('Voorspellingen groepsfase'!$C$4:$O$28, MATCH('De wedstrijden van dit seizoen'!E6,'Voorspellingen groepsfase'!$D$4:$D$28,0),3)) -> 1.78 | G6: Zuid-Korea | H6: =(AVERAGE(BP6:DM6))*(1+INDEX('Voorspellingen groepsfase'!$C$4:$O$28, MATCH('De wedstrijden van dit seizoen'!G6,'Voorspellingen groepsfase'!$D$4:$D$28,0),3)) -> 1.26 | I6: =IF(L6>M6,E6,IF(L6=M6,"Tekenen",G6)) -> Frankrijk | L6: =IF(ISBLANK(J6), F6,J6) -> 1.78 | M6: =IF(ISBLANK(K6), H6,K6) -> 1.26 | N6: =IF(L6>M6,E6,IF(L6=M6,"Tekenen",G6)) -> Frankrijk | O6: =(OFFSET('Bijlage 3 - Goals per groep'!$D$14,(INDEX('Bijlage 1 - Teamgegevens'!$C$13:$F$112,MATCH(G6,'Bijlage 1 - Teamgegevens'!$C$13:$C$112,0),4)/10),(INDEX('Bijlage 1 - Teamgegevens'!$C$13:$F$112,MATCH(E6,'Bijlage 1 - Teamgegevens'!$C$13:$C$112,0),4)/10))) -> 1.78 | P6: =OFFSET('Bijlage 3 - Goals per groep'!$D$14,(INDEX('Bijlage 1 - Teamgegevens'!$C$13:$F$112, MATCH(E6,'Bijlage 1 - Teamgegevens'!$C$13:$C$112,0),4)/10), (INDEX('Bijlage 1 - Teamgegevens'!$C$13:$F$112, MATCH(G6, 'Bijlage 1 - Teamgegevens'!$C$13:$C$112,0),4)/10)) -> 1.07 | Q6: =_xlfn.IFNA(MATCH(RAND(), _xlfn.POISSON.DIST({0,1,2,3,4,5,6,7,8,9},$O6, TRUE),1), 0) -> 1 | R6: =_xlfn.IFNA(MATCH(RAND(), _xlfn.POISSON.DIST({0,1,2,3,4,5,6,7,8,9},$O6, TRUE),1), 0) -> 1 | S6: =_xlfn.IFNA(MATCH(RAND(), _xlfn.POISSON.DIST({0,1,2,3,4,5,6,7,8,9},$O6, TRUE),1), 0) -> 3 | T6: =_xlfn.IFNA(MATCH(RAND(), _xlfn.POISSON.DIST({0,1,2,3,4,5,6,7,8,9},$O6, TRUE),1), 0) -> 0 | U6: =_xlfn.IFNA(MATCH(RAND(), _xlfn.POISSON.DIST({0,1,2,3,4,5,6,7,8,9},$O6, TRUE),1), 0) -> 0 | V6: =_xlfn.IFNA(MATCH(RAND(), _xlfn.POISSON.DIST({0,1,2,3,4,5,6,7,8,9},$O6, TRUE),1), 0) -> 3 | W6: =_xlfn.IFNA(MATCH(RAND(), _xlfn.POISSON.DIST({0,1,2,3,4,5,6,7,8,9},$O6, TRUE),1), 0) -> 0 | X6: =_xlfn.IFNA(MATCH(RAND(), _xlfn.POISSON.DIST({0,1,2,3,4,5,6,7,8,9},$O6, TRUE),1), 0) -> 4 | Y6: =_xlfn.IFNA(MATCH(RAND(), _xlfn.POISSON.DIST({0,1,2,3,4,5,6,7,8,9},$O6, TRUE),1), 0) -> 4 | Z6: =_xlfn.IFNA(MATCH(RAND(), _xlfn.POISSON.DIST({0,1,2,3,4,5,6,7,8,9},$O6, TRUE),1), 0) -> 2 | AA6: =_xlfn.IFNA(MATCH(RAND(), _xlfn.POISSON.DIST({0,1,2,3,4,5,6,7,8,9},$O6, TRUE),1), 0) -> 3 | AB6: =_xlfn.IFNA(MATCH(RAND(), _xlfn.POISSON.DIST({0,1,2,3,4,5,6,7,8,9},$O6, TRUE),1), 0) -> 1 | AC6: =_xlfn.IFNA(MATCH(RAND(), _xlfn.POISSON.DIST({0,1,2,3,4,5,6,7,8,9},$O6, TRUE),1), 0) -> 2 | AD6: =_xlfn.IFNA(MATCH(RAND(), _xlfn.POISSON.DIST({0,1,2,3,4,5,6,7,8,9},$O6, TRUE),1), 0) -> 1 | AE6: =_xlfn.IFNA(MATCH(RAND(), _xlfn.POISSON.DIST({0,1,2,3,4,5,6,7,8,9},$O6, TRUE),1), 0) -> 1 | AF6: =_xlfn.IFNA(MATCH(RAND(), _xlfn.POISSON.DIST({0,1,2,3,4,5,6,7,8,9},$O6, TRUE),1), 0) -> 1 | AG6: =_xlfn.IFNA(MATCH(RAND(), _xlfn.POISSON.DIST({0,1,2,3,4,5,6,7,8,9},$O6, TRUE),1), 0) -> 1 | AH6: =_xlfn.IFNA(MATCH(RAND(), _xlfn.POISSON.DIST({0,1,2,3,4,5,6,7,8,9},$O6, TRUE),1), 0) -> 3 | AI6: =_xlfn.IFNA(MATCH(RAND(), _xlfn.POISSON.DIST({0,1,2,3,4,5,6,7,8,9},$O6, TRUE),1), 0) -> 1 | AJ6: =_xlfn.IFNA(MATCH(RAND(), _xlfn.POISSON.DIST({0,1,2,3,4,5,6,7,8,9},$O6, TRUE),1), 0) -> 1 | AK6: =_xlfn.IFNA(MATCH(RAND(), _xlfn.POISSON.DIST({0,1,2,3,4,5,6,7,8,9},$O6, TRUE),1), 0) -> 2 | AL6: =_xlfn.IFNA(MATCH(RAND(), _xlfn.POISSON.DIST({0,1,2,3,4,5,6,7,8,9},$O6, TRUE),1), 0) -> 3 | AM6: =_xlfn.IFNA(MATCH(RAND(), _xlfn.POISSON.DIST({0,1,2,3,4,5,6,7,8,9},$O6, TRUE),1), 0) -> 1 | AN6: =_xlfn.IFNA(MATCH(RAND(), _xlfn.POISSON.DIST({0,1,2,3,4,5,6,7,8,9},$O6, TRUE),1), 0) -> 3 | AO6: =_xlfn.IFNA(MATCH(RAND(), _xlfn.POISSON.DIST({0,1,2,3,4,5,6,7,8,9},$O6, TRUE),1), 0) -> 2 | AP6: =_xlfn.IFNA(MATCH(RAND(), _xlfn.POISSON.DIST({0,1,2,3,4,5,6,7,8,9},$O6, TRUE),1), 0) -> 3 | AQ6: =_xlfn.IFNA(MATCH(RAND(), _xlfn.POISSON.DIST({0,1,2,3,4,5,6,7,8,9},$O6, TRUE),1), 0) -> 1 | AR6: =_xlfn.IFNA(MATCH(RAND(), _xlfn.POISSON.DIST({0,1,2,3,4,5,6,7,8,9},$O6, TRUE),1), 0) -> 5 | AS6: =_xlfn.IFNA(MATCH(RAND(), _xlfn.POISSON.DIST({0,1,2,3,4,5,6,7,8,9},$O6, TRUE),1), 0) -> 3 | AT6: =_xlfn.IFNA(MATCH(RAND(), _xlfn.POISSON.DIST({0,1,2,3,4,5,6,7,8,9},$O6, TRUE),1), 0) -> 1 | AU6: =_xlfn.IFNA(MATCH(RAND(), _xlfn.POISSON.DIST({0,1,2,3,4,5,6,7,8,9},$O6, TRUE),1), 0) -> 1 | AV6: =_xlfn.IFNA(MATCH(RAND(), _xlfn.POISSON.DIST({0,1,2,3,4,5,6,7,8,9},$O6, TRUE),1), 0) -> 1 | AW6: =_xlfn.IFNA(MATCH(RAND(), _xlfn.POISSON.DIST({0,1,2,3,4,5,6,7,8,9},$O6, TRUE),1), 0) -> 0 | AX6: =_xlfn.IFNA(MATCH(RAND(), _xlfn.POISSON.DIST({0,1,2,3,4,5,6,7,8,9},$O6, TRUE),1), 0) -> 2 | AY6: =_xlfn.IFNA(MATCH(RAND(), _xlfn.POISSON.DIST({0,1,2,3,4,5,6,7,8,9},$O6, TRUE),1), 0) -> 1 | AZ6: =_xlfn.IFNA(MATCH(RAND(), _xlfn.POISSON.DIST({0,1,2,3,4,5,6,7,8,9},$O6, TRUE),1), 0) -> 1 | BA6: =_xlfn.IFNA(MATCH(RAND(), _xlfn.POISSON.DIST({0,1,2,3,4,5,6,7,8,9},$O6, TRUE),1), 0) -> 1 | BB6: =_xlfn.IFNA(MATCH(RAND(), _xlfn.POISSON.DIST({0,1,2,3,4,5,6,7,8,9},$O6, TRUE),1), 0) -> 4 | BC6: =_xlfn.IFNA(MATCH(RAND(), _xlfn.POISSON.DIST({0,1,2,3,4,5,6,7,8,9},$O6, TRUE),1), 0) -> 0 | BD6: =_xlfn.IFNA(MATCH(RAND(), _xlfn.POISSON.DIST({0,1,2,3,4,5,6,7,8,9},$O6, TRUE),1), 0) -> 2 | BE6: =_xlfn.IFNA(MATCH(RAND(), _xlfn.POISSON.DIST({0,1,2,3,4,5,6,7,8,9},$O6, TRUE),1), 0) -> 5 | BF6: =_xlfn.IFNA(MATCH(RAND(), _xlfn.POISSON.DIST({0,1,2,3,4,5,6,7,8,9},$O6, TRUE),1), 0) -> 2 | BG6: =_xlfn.IFNA(MATCH(RAND(), _xlfn.POISSON.DIST({0,1,2,3,4,5,6,7,8,9},$O6, TRUE),1), 0) -> 1 | BH6: =_xlfn.IFNA(MATCH(RAND(), _xlfn.POISSON.DIST({0,1,2,3,4,5,6,7,8,9},$O6, TRUE),1), 0) -> 2 | BI6: =_xlfn.IFNA(MATCH(RAND(), _xlfn.POISSON.DIST({0,1,2,3,4,5,6,7,8,9},$O6, TRUE),1), 0) -> 4 | BJ6: =_xlfn.IFNA(MATCH(RAND(), _xlfn.POISSON.DIST({0,1,2,3,4,5,6,7,8,9},$O6, TRUE),1), 0) -> 0 | BK6: =_xlfn.IFNA(MATCH(RAND(), _xlfn.POISSON.DIST({0,1,2,3,4,5,6,7,8,9},$O6, TRUE),1), 0) -> 1 | BL6: =_xlfn.IFNA(MATCH(RAND(), _xlfn.POISSON.DIST({0,1,2,3,4,5,6,7,8,9},$O6, TRUE),1), 0) -> 1 | BM6: =_xlfn.IFNA(MATCH(RAND(), _xlfn.POISSON.DIST({0,1,2,3,4,5,6,7,8,9},$O6, TRUE),1), 0) -> 3 | BN6: =_xlfn.IFNA(MATCH(RAND(), _xlfn.POISSON.DIST({0,1,2,3,4,5,6,7,8,9},$O6, TRUE),1), 0) -> 0 | BP6: =_xlfn.IFNA(MATCH(RAND(), _xlfn.POISSON.DIST({0,1,2,3,4,5,6,7,8,9},$P6, TRUE),1), 0) -> 1 | BQ6: =_xlfn.IFNA(MATCH(RAND(), _xlfn.POISSON.DIST({0,1,2,3,4,5,6,7,8,9},$P6, TRUE),1), 0) -> 1 | BR6: =_xlfn.IFNA(MATCH(RAND(), _xlfn.POISSON.DIST({0,1,2,3,4,5,6,7,8,9},$P6, TRUE),1), 0) -> 0 | BS6: =_xlfn.IFNA(MATCH(RAND(), _xlfn.POISSON.DIST({0,1,2,3,4,5,6,7,8,9},$P6, TRUE),1), 0) -> 2 | BT6: =_xlfn.IFNA(MATCH(RAND(), _xlfn.POISSON.DIST({0,1,2,3,4,5,6,7,8,9},$P6, TRUE),1), 0) -> 0 | BU6: =_xlfn.IFNA(MATCH(RAND(), _xlfn.POISSON.DIST({0,1,2,3,4,5,6,7,8,9},$P6, TRUE),1), 0) -> 0 | BV6: =_xlfn.IFNA(MATCH(RAND(), _xlfn.POISSON.DIST({0,1,2,3,4,5,6,7,8,9},$P6, TRUE),1), 0) -> 1 | BW6: =_xlfn.IFNA(MATCH(RAND(), _xlfn.POISSON.DIST({0,1,2,3,4,5,6,7,8,9},$P6, TRUE),1), 0) -> 1 | BX6: =_xlfn.IFNA(MATCH(RAND(), _xlfn.POISSON.DIST({0,1,2,3,4,5,6,7,8,9},$P6, TRUE),1), 0) -> 1 | BY6: =_xlfn.IFNA(MATCH(RAND(), _xlfn.POISSON.DIST({0,1,2,3,4,5,6,7,8,9},$P6, TRUE),1), 0) -> 0 | BZ6: =_xlfn.IFNA(MATCH(RAND(), _xlfn.POISSON.DIST({0,1,2,3,4,5,6,7,8,9},$P6, TRUE),1), 0) -> 2 | CA6: =_xlfn.IFNA(MATCH(RAND(), _xlfn.POISSON.DIST({0,1,2,3,4,5,6,7,8,9},$P6, TRUE),1), 0) -> 2 | CB6: =_xlfn.IFNA(MATCH(RAND(), _xlfn.POISSON.DIST({0,1,2,3,4,5,6,7,8,9},$P6, TRUE),1), 0) -> 3 | CC6: =_xlfn.IFNA(MATCH(RAND(), _xlfn.POISSON.DIST({0,1,2,3,4,5,6,7,8,9},$P6, TRUE),1), 0) -> 2 | CD6: =_xlfn.IFNA(MATCH(RAND(), _xlfn.POISSON.DIST({0,1,2,3,4,5,6,7,8,9},$P6, TRUE),1), 0) -> 0 | CE6: =_xlfn.IFNA(MATCH(RAND(), _xlfn.POISSON.DIST({0,1,2,3,4,5,6,7,8,9},$P6, TRUE),1), 0) -> 0 | CF6: =_xlfn.IFNA(MATCH(RAND(), _xlfn.POISSON.DIST({0,1,2,3,4,5,6,7,8,9},$P6, TRUE),1), 0) -> 2 | CG6: =_xlfn.IFNA(MATCH(RAND(), _xlfn.POISSON.DIST({0,1,2,3,4,5,6,7,8,9},$P6, TRUE),1), 0) -> 2 | CH6: =_xlfn.IFNA(MATCH(RAND(), _xlfn.POISSON.DIST({0,1,2,3,4,5,6,7,8,9},$P6, TRUE),1), 0) -> 1 | CI6: =_xlfn.IFNA(MATCH(RAND(), _xlfn.POISSON.DIST({0,1,2,3,4,5,6,7,8,9},$P6, TRUE),1), 0) -> 1 | CJ6: =_xlfn.IFNA(MATCH(RAND(), _xlfn.POISSON.DIST({0,1,2,3,4,5,6,7,8,9},$P6, TRUE),1), 0) -> 1 | CK6: =_xlfn.IFNA(MATCH(RAND(), _xlfn.POISSON.DIST({0,1,2,3,4,5,6,7,8,9},$P6, TRUE),1), 0) -> 2 | CL6: =_xlfn.IFNA(MATCH(RAND(), _xlfn.POISSON.DIST({0,1,2,3,4,5,6,7,8,9},$P6, TRUE),1), 0) -> 0 | CM6: =_xlfn.IFNA(MATCH(RAND(), _xlfn.POISSON.DIST({0,1,2,3,4,5,6,7,8,9},$P6, TRUE),1), 0) -> 3 | CN6: =_xlfn.IFNA(MATCH(RAND(), _xlfn.POISSON.DIST({0,1,2,3,4,5,6,7,8,9},$P6, TRUE),1), 0) -> 2 | CO6: =_xlfn.IFNA(MATCH(RAND(), _xlfn.POISSON.DIST({0,1,2,3,4,5,6,7,8,9},$P6, TRUE),1), 0) -> 2 | CP6: =_xlfn.IFNA(MATCH(RAND(), _xlfn.POISSON.DIST({0,1,2,3,4,5,6,7,8,9},$P6, TRUE),1), 0) -> 0 | CQ6: =_xlfn.IFNA(MATCH(RAND(), _xlfn.POISSON.DIST({0,1,2,3,4,5,6,7,8,9},$P6, TRUE),1), 0) -> 1 | CR6: =_xlfn.IFNA(MATCH(RAND(), _xlfn.POISSON.DIST({0,1,2,3,4,5,6,7,8,9},$P6, TRUE),1), 0) -> 3 | CS6: =_xlfn.IFNA(MATCH(RAND(), _xlfn.POISSON.DIST({0,1,2,3,4,5,6,7,8,9},$P6, TRUE),1), 0) -> 2 | CT6: =_xlfn.IFNA(MATCH(RAND(), _xlfn.POISSON.DIST({0,1,2,3,4,5,6,7,8,9},$P6, TRUE),1), 0) -> 2 | CU6: =_xlfn.IFNA(MATCH(RAND(), _xlfn.POISSON.DIST({0,1,2,3,4,5,6,7,8,9},$P6, TRUE),1), 0) -> 2 | CV6: =_xlfn.IFNA(MATCH(RAND(), _xlfn.POISSON.DIST({0,1,2,3,4,5,6,7,8,9},$P6, TRUE),1), 0) -> 2 | CW6: =_xlfn.IFNA(MATCH(RAND(), _xlfn.POISSON.DIST({0,1,2,3,4,5,6,7,8,9},$P6, TRUE),1), 0) -> 0 | CX6: =_xlfn.IFNA(MATCH(RAND(), _xlfn.POISSON.DIST({0,1,2,3,4,5,6,7,8,9},$P6, TRUE),1), 0) -> 2 | CY6: =_xlfn.IFNA(MATCH(RAND(), _xlfn.POISSON.DIST({0,1,2,3,4,5,6,7,8,9},$P6, TRUE),1), 0) -> 0 | CZ6: =_xlfn.IFNA(MATCH(RAND(), _xlfn.POISSON.DIST({0,1,2,3,4,5,6,7,8,9},$P6, TRUE),1), 0) -> 1 | DA6: =_xlfn.IFNA(MATCH(RAND(), _xlfn.POISSON.DIST({0,1,2,3,4,5,6,7,8,9},$P6, TRUE),1), 0) -> 1 | DB6: =_xlfn.IFNA(MATCH(RAND(), _xlfn.POISSON.DIST({0,1,2,3,4,5,6,7,8,9},$P6, TRUE),1), 0) -> 2 | DC6: =_xlfn.IFNA(MATCH(RAND(), _xlfn.POISSON.DIST({0,1,2,3,4,5,6,7,8,9},$P6, TRUE),1), 0) -> 1 | DD6: =_xlfn.IFNA(MATCH(RAND(), _xlfn.POISSON.DIST({0,1,2,3,4,5,6,7,8,9},$P6, TRUE),1), 0) -> 0 | DE6: =_xlfn.IFNA(MATCH(RAND(), _xlfn.POISSON.DIST({0,1,2,3,4,5,6,7,8,9},$P6, TRUE),1), 0) -> 2 | DF6: =_xlfn.IFNA(MATCH(RAND(), _xlfn.POISSON.DIST({0,1,2,3,4,5,6,7,8,9},$P6, TRUE),1), 0) -> 1 | DG6: =_xlfn.IFNA(MATCH(RAND(), _xlfn.POISSON.DIST({0,1,2,3,4,5,6,7,8,9},$P6, TRUE),1), 0) -> 0 | DH6: =_xlfn.IFNA(MATCH(RAND(), _xlfn.POISSON.DIST({0,1,2,3,4,5,6,7,8,9},$P6, TRUE),1), 0) -> 3 | DI6: =_xlfn.IFNA(MATCH(RAND(), _xlfn.POISSON.DIST({0,1,2,3,4,5,6,7,8,9},$P6, TRUE),1), 0) -> 1 | DJ6: =_xlfn.IFNA(MATCH(RAND(), _xlfn.POISSON.DIST({0,1,2,3,4,5,6,7,8,9},$P6, TRUE),1), 0) -> 3 | DK6: =_xlfn.IFNA(MATCH(RAND(), _xlfn.POISSON.DIST({0,1,2,3,4,5,6,7,8,9},$P6, TRUE),1), 0) -> 0 | DL6: =_xlfn.IFNA(MATCH(RAND(), _xlfn.POISSON.DIST({0,1,2,3,4,5,6,7,8,9},$P6, TRUE),1), 0) -> 1 | DM6: =_xlfn.IFNA(MATCH(RAND(), _xlfn.POISSON.DIST({0,1,2,3,4,5,6,7,8,9},$P6, TRUE),1), 0) -> 1
C7: 2019-06-08 | D7: B | E7: Duitsland | F7: =(AVERAGE(Q7:BN7))*(1+INDEX('Voorspellingen groepsfase'!$C$4:$O$28, MATCH('De wedstrijden van dit seizoen'!E7,'Voorspellingen groepsfase'!$D$4:$D$28,0),3)) -> 1.66 | G7: Volksrepubliek China | H7: =(AVERAGE(BP7:DM7))*(1+INDEX('Voorspellingen groepsfase'!$C$4:$O$28, MATCH('De wedstrijden van dit seizoen'!G7,'Voorspellingen groepsfase'!$D$4:$D$28,0),3)) -> 1.16 | I7: Duitsland | L7: 1.66 | M7: 1.16 | N7: Duitsland | O7: =(OFFSET('Bijlage 3 - Goals per groep'!$D$14,(INDEX('Bijlage 1 - Teamgegevens'!$C$13:$F$112,MATCH(G7,'Bijlage 1 - Teamgegevens'!$C$13:$C$112,0),4)/10),(INDEX('Bijlage 1 - Teamgegevens'!$C$13:$F$112,MATCH(E7,'Bijlage 1 - Teamgegevens'!$C$13:$C$112,0),4)/10))) -> 1.78 | P7: =OFFSET('Bijlage 3 - Goals per groep'!$D$14,(INDEX('Bijlage 1 - Teamgegevens'!$C$13:$F$112, MATCH(E7,'Bijlage 1 - Teamgegevens'!$C$13:$C$112,0),4)/10), (INDEX('Bijlage 1 - Teamgegevens'!$C$13:$F$112, MATCH(G7, 'Bijlage 1 - Teamgegevens'!$C$13:$C$112,0),4)/10)) -> 1.07 | Q7: =_xlfn.IFNA(MATCH(RAND(), _xlfn.POISSON.DIST({0,1,2,3,4,5,6,7,8,9},$O7, TRUE),1), 0) -> 1 | R7: =_xlfn.IFNA(MATCH(RAND(), _xlfn.POISSON.DIST({0,1,2,3,4,5,6,7,8,9},$O7, TRUE),1), 0) -> 2 | S7: =_xlfn.IFNA(MATCH(RAND(), _xlfn.POISSON.DIST({0,1,2,3,4,5,6,7,8,9},$O7, TRUE),1), 0) -> 4 | T7: =_xlfn.IFNA(MATCH(RAND(), _xlfn.POISSON.DIST({0,1,2,3,4,5,6,7,8,9},$O7, TRUE),1), 0) -> 0 | U7: =_xlfn.IFNA(MATCH(RAND(), _xlfn.POISSON.DIST({0,1,2,3,4,5,6,7,8,9},$O7, TRUE),1), 0) -> 0 | V7: =_xlfn.IFNA(MATCH(RAND(), _xlfn.POISSON.DIST({0,1,2,3,4,5,6,7,8,9},$O7, TRUE),1), 0) -> 1 | W7: =_xlfn.IFNA(MATCH(RAND(), _xlfn.POISSON.DIST({0,1,2,3,4,5,6,7,8,9},$O7, TRUE),1), 0) -> 3 | X7: =_xlfn.IFNA(MATCH(RAND(), _xlfn.POISSON.DIST({0,1,2,3,4,5,6,7,8,9},$O7, TRUE),1), 0) -> 4 | Y7: =_xlfn.IFNA(MATCH(RAND(), _xlfn.POISSON.DIST({0,1,2,3,4,5,6,7,8,9},$O7, TRUE),1), 0) -> 1 | Z7: =_xlfn.IFNA(MATCH(RAND(), _xlfn.POISSON.DIST({0,1,2,3,4,5,6,7,8,9},$O7, TRUE),1), 0) -> 0 | AA7: =_xlfn.IFNA(MATCH(RAND(), _xlfn.POISSON.DIST({0,1,2,3,4,5,6,7,8,9},$O7, TRUE),1), 0) -> 5 | AB7: =_xlfn.IFNA(MATCH(RAND(), _xlfn.POISSON.DIST({0,1,2,3,4,5,6,7,8,9},$O7, TRUE),1), 0) -> 3 | AC7: =_xlfn.IFNA(MATCH(RAND(), _xlfn.POISSON.DIST({0,1,2,3,4,5,6,7,8,9},$O7, TRUE),1), 0) -> 2 | AD7: =_xlfn.IFNA(MATCH(RAND(), _xlfn.POISSON.DIST({0,1,2,3,4,5,6,7,8,9},$O7, TRUE),1), 0) -> 0 | AE7: =_xlfn.IFNA(MATCH(RAND(), _xlfn.POISSON.DIST({0,1,2,3,4,5,6,7,8,9},$O7, TRUE),1), 0) -> 2 | AF7: =_xlfn.IFNA(MATCH(RAND(), _xlfn.POISSON.DIST({0,1,2,3,4,5,6,7,8,9},$O7, TRUE),1), 0) -> 1 | AG7: =_xlfn.IFNA(MATCH(RAND(), _xlfn.POISSON.DIST({0,1,2,3,4,5,6,7,8,9},$O7, TRUE),1), 0) -> 2 | AH7: =_xlfn.IFNA(MATCH(RAND(), _xlfn.POISSON.DIST({0,1,2,3,4,5,6,7,8,9},$O7, TRUE),1), 0) -> 2 | AI7: =_xlfn.IFNA(MATCH(RAND(), _xlfn.POISSON.DIST({0,1,2,3,4,5,6,7,8,9},$O7, TRUE),1), 0) -> 4 | AJ7: =_xlfn.IFNA(MATCH(RAND(), _xlfn.POISSON.DIST({0,1,2,3,4,5,6,7,8,9},$O7, TRUE),1), 0) -> 1 | AK7: =_xlfn.IFNA(MATCH(RAND(), _xlfn.POISSON.DIST({0,1,2,3,4,5,6,7,8,9},$O7, TRUE),1), 0) -> 1 | AL7: =_xlfn.IFNA(MATCH(RAND(), _xlfn.POISSON.DIST({0,1,2,3,4,5,6,7,8,9},$O7, TRUE),1), 0) -> 3 | AM7: =_xlfn.IFNA(MATCH(RAND(), _xlfn.POISSON.DIST({0,1,2,3,4,5,6,7,8,9},$O7, TRUE),1), 0) -> 4 | AN7: =_xlfn.IFNA(MATCH(RAND(), _xlfn.POISSON.DIST({0,1,2,3,4,5,6,7,8,9},$O7, TRUE),1), 0) -> 1 | AO7: =_xlfn.IFNA(MATCH(RAND(), _xlfn.POISSON.DIST({0,1,2,3,4,5,6,7,8,9},$O7, TRUE),1), 0) -> 1 | AP7: =_xlfn.IFNA(MATCH(RAND(), _xlfn.POISSON.DIST({0,1,2,3,4,5,6,7,8,9},$O7, TRUE),1), 0) -> 4 | AQ7: =_xlfn.IFNA(MATCH(RAND(), _xlfn.POISSON.DIST({0,1,2,3,4,5,6,7,8,9},$O7, TRUE),1), 0) -> 1 | AR7: =_xlfn.IFNA(MATCH(RAND(), _xlfn.POISSON.DIST({0,1,2,3,4,5,6,7,8,9},$O7, TRUE),1), 0) -> 3 | AS7: =_xlfn.IFNA(MATCH(RAND(), _xlfn.POISSON.DIST({0,1,2,3,4,5,6,7,8,9},$O7, TRUE),1), 0) -> 0 | AT7: =_xlfn.IFNA(MATCH(RAND(), _xlfn.POISSON.DIST({0,1,2,3,4,5,6,7,8,9},$O7, TRUE),1), 0) -> 1 | AU7: =_xlfn.IFNA(MATCH(RAND(), _xlfn.POISSON.DIST({0,1,2,3,4,5,6,7,8,9},$O7, TRUE),1), 0) -> 1 | AV7: =_xlfn.IFNA(MATCH(RAND(), _xlfn.POISSON.DIST({0,1,2,3,4,5,6,7,8,9},$O7, TRUE),1), 0) -> 2 | AW7: =_xlfn.IFNA(MATCH(RAND(), _xlfn.POISSON.DIST({0,1,2,3,4,5,6,7,8,9},$O7, TRUE),1), 0) -> 0 | AX7: =_xlfn.IFNA(MATCH(RAND(), _xlfn.POISSON.DIST({0,1,2,3,4,5,6,7,8,9},$O7, TRUE),1), 0) -> 0 | AY7: =_xlfn.IFNA(MATCH(RAND(), _xlfn.POISSON.DIST({0,1,2,3,4,5,6,7,8,9},$O7, TRUE),1), 0) -> 1 | AZ7: =_xlfn.IFNA(MATCH(RAND(), _xlfn.POISSON.DIST({0,1,2,3,4,5,6,7,8,9},$O7, TRUE),1), 0) -> 1 | BA7: =_xlfn.IFNA(MATCH(RAND(), _xlfn.POISSON.DIST({0,1,2,3,4,5,6,7,8,9},$O7, TRUE),1), 0) -> 0 | BB7: =_xlfn.IFNA(MATCH(RAND(), _xlfn.POISSON.DIST({0,1,2,3,4,5,6,7,8,9},$O7, TRUE),1), 0) -> 0 | BC7: =_xlfn.IFNA(MATCH(RAND(), _xlfn.POISSON.DIST({0,1,2,3,4,5,6,7,8,9},$O7, TRUE),1), 0) -> 5 | BD7: =_xlfn.IFNA(MATCH(RAND(), _xlfn.POISSON.DIST({0,1,2,3,4,5,6,7,8,9},$O7, TRUE),1), 0) -> 0 | BE7: =_xlfn.IFNA(MATCH(RAND(), _xlfn.POISSON.DIST({0,1,2,3,4,5,6,7,8,9},$O7, TRUE),1), 0) -> 2 | BF7: =_xlfn.IFNA(MATCH(RAND(), _xlfn.POISSON.DIST({0,1,2,3,4,5,6,7,8,9},$O7, TRUE),1), 0) -> 0 | BG7: =_xlfn.IFNA(MATCH(RAND(), _xlfn.POISSON.DIST({0,1,2,3,4,5,6,7,8,9},$O7, TRUE),1), 0) -> 2 | BH7: =_xlfn.IFNA(MATCH(RAND(), _xlfn.POISSON.DIST({0,1,2,3,4,5,6,7,8,9},$O7, TRUE),1), 0) -> 1 | BI7: =_xlfn.IFNA(MATCH(RAND(), _xlfn.POISSON.DIST({0,1,2,3,4,5,6,7,8,9},$O7, TRUE),1), 0) -> 2 | BJ7: =_xlfn.IFNA(MATCH(RAND(), _xlfn.POISSON.DIST({0,1,2,3,4,5,6,7,8,9},$O7, TRUE),1), 0) -> 2 | BK7: =_xlfn.IFNA(MATCH(RAND(), _xlfn.POISSON.DIST({0,1,2,3,4,5,6,7,8,9},$O7, TRUE),1), 0) -> 1 | BL7: =_xlfn.IFNA(MATCH(RAND(), _xlfn.POISSON.DIST({0,1,2,3,4,5,6,7,8,9},$O7, TRUE),1), 0) -> 1 | BM7: =_xlfn.IFNA(MATCH(RAND(), _xlfn.POISSON.DIST({0,1,2,3,4,5,6,7,8,9},$O7, TRUE),1), 0) -> 4 | BN7: =_xlfn.IFNA(MATCH(RAND(), _xlfn.POISSON.DIST({0,1,2,3,4,5,6,7,8,9},$O7, TRUE),1), 0) -> 1 | BP7: =_xlfn.IFNA(MATCH(RAND(), _xlfn.POISSON.DIST({0,1,2,3,4,5,6,7,8,9},$P7, TRUE),1), 0) -> 1 | BQ7: =_xlfn.IFNA(MATCH(RAND(), _xlfn.POISSON.DIST({0,1,2,3,4,5,6,7,8,9},$P7, TRUE),1), 0) -> 1 | BR7: =_xlfn.IFNA(MATCH(RAND(), _xlfn.POISSON.DIST({0,1,2,3,4,5,6,7,8,9},$P7, TRUE),1), 0) -> 1 | BS7: =_xlfn.IFNA(MATCH(RAND(), _xlfn.POISSON.DIST({0,1,2,3,4,5,6,7,8,9},$P7, TRUE),1), 0) -> 1 | BT7: =_xlfn.IFNA(MATCH(RAND(), _xlfn.POISSON.DIST({0,1,2,3,4,5,6,7,8,9},$P7, TRUE),1), 0) -> 1 | BU7: =_xlfn.IFNA(MATCH(RAND(), _xlfn.POISSON.DIST({0,1,2,3,4,5,6,7,8,9},$P7, TRUE),1), 0) -> 1 | BV7: =_xlfn.IFNA(MATCH(RAND(), _xlfn.POISSON.DIST({0,1,2,3,4,5,6,7,8,9},$P7, TRUE),1), 0) -> 1 | BW7: =_xlfn.IFNA(MATCH(RAND(), _xlfn.POISSON.DIST({0,1,2,3,4,5,6,7,8,9},$P7, TRUE),1), 0) -> 2 | BX7: =_xlfn.IFNA(MATCH(RAND(), _xlfn.POISSON.DIST({0,1,2,3,4,5,6,7,8,9},$P7, TRUE),1), 0) -> 1 | BY7: =_xlfn.IFNA(MATCH(RAND(), _xlfn.POISSON.DIST({0,1,2,3,4,5,6,7,8,9},$P7, TRUE),1), 0) -> 2 | BZ7: =_xlfn.IFNA(MATCH(RAND(), _xlfn.POISSON.DIST({0,1,2,3,4,5,6,7,8,9},$P7, TRUE),1), 0) -> 0 | CA7: =_xlfn.IFNA(MATCH(RAND(), _xlfn.POISSON.DIST({0,1,2,3,4,5,6,7,8,9},$P7, TRUE),1), 0) -> 1 | CB7: =_xlfn.IFNA(MATCH(RAND(), _xlfn.POISSON.DIST({0,1,2,3,4,5,6,7,8,9},$P7, TRUE),1), 0) -> 1 | CC7: =_xlfn.IFNA(MATCH(RAND(), _xlfn.POISSON.DIST({0,1,2,3,4,5,6,7,8,9},$P7, TRUE),1), 0) -> 1 | CD7: =_xlfn.IFNA(MATCH(RAND(), _xlfn.POISSON.DIST({0,1,2,3,4,5,6,7,8,9},$P7, TRUE),1), 0) -> 0 | CE7: =_xlfn.IFNA(MATCH(RAND(), _xlfn.POISSON.DIST({0,1,2,3,4,5,6,7,8,9},$P7, TRUE),1), 0) -> 0 | CF7: =_xlfn.IFNA(MATCH(RAND(), _xlfn.POISSON.DIST({0,1,2,3,4,5,6,7,8,9},$P7, TRUE),1), 0) -> 0 | CG7: =_xlfn.IFNA(MATCH(RAND(), _xlfn.POISSON.DIST({0,1,2,3,4,5,6,7,8,9},$P7, TRUE),1), 0) -> 0 | CH7: =_xlfn.IFNA(MATCH(RAND(), _xlfn.POISSON.DIST({0,1,2,3,4,5,6,7,8,9},$P7, TRUE),1), 0) -> 1 | CI7: =_xlfn.IFNA(MATCH(RAND(), _xlfn.POISSON.DIST({0,1,2,3,4,5,6,7,8,9},$P7, TRUE),1), 0) -> 1 | CJ7: =_xlfn.IFNA(MATCH(RAND(), _xlfn.POISSON.DIST({0,1,2,3,4,5,6,7,8,9},$P7, TRUE),1), 0) -> 1 | CK7: =_xlfn.IFNA(MATCH(RAND(), _xlfn.POISSON.DIST({0,1,2,3,4,5,6,7,8,9},$P7, TRUE),1), 0) -> 0 | CL7: =_xlfn.IFNA(MATCH(RAND(), _xlfn.POISSON.DIST({0,1,2,3,4,5,6,7,8,9},$P7, TRUE),1), 0) -> 0 | CM7: =_xlfn.IFNA(MATCH(RAND(), _xlfn.POISSON.DIST({0,1,2,3,4,5,6,7,8,9},$P7, TRUE),1), 0) -> 2 | CN7: =_xlfn.IFNA(MATCH(RAND(), _xlfn.POISSON.DIST({0,1,2,3,4,5,6,7,8,9},$P7, TRUE),1), 0) -> 0 | CO7: =_xlfn.IFNA(MATCH(RAND(), _xlfn.POISSON.DIST({0,1,2,3,4,5,6,7,8,9},$P7, TRUE),1), 0) -> 2 | CP7: =_xlfn.IFNA(MATCH(RAND(), _xlfn.POISSON.DIST({0,1,2,3,4,5,6,7,8,9},$P7, TRUE),1), 0) -> 2 | CQ7: =_xlfn.IFNA(MATCH(RAND(), _xlfn.POISSON.DIST({0,1,2,3,4,5,6,7,8,9},$P7, TRUE),1), 0) -> 0 | CR7: =_xlfn.IFNA(MATCH(RAND(), _xlfn.POISSON.DIST({0,1,2,3,4,5,6,7,8,9},$P7, TRUE),1), 0) -> 6 | CS7: =_xlfn.IFNA(MATCH(RAND(), _xlfn.POISSON.DIST({0,1,2,3,4,5,6,7,8,9},$P7, TRUE),1), 0) -> 3 | CT7: =_xlfn.IFNA(MATCH(RAND(), _xlfn.POISSON.DIST({0,1,2,3,4,5,6,7,8,9},$P7, TRUE),1), 0) -> 0 | CU7: =_xlfn.IFNA(MATCH(RAND(), _xlfn.POISSON.DIST({0,1,2,3,4,5,6,7,8,9},$P7, TRUE),1), 0) -> 2 | CV7: =_xlfn.IFNA(MATCH(RAND(), _xlfn.POISSON.DIST({0,1,2,3,4,5,6,7,8,9},$P7, TRUE),1), 0) -> 0 | CW7: =_xlfn.IFNA(MATCH(RAND(), _xlfn.POISSON.DIST({0,1,2,3,4,5,6,7,8,9},$P7, TRUE),1), 0) -> 1 | CX7: =_xlfn.IFNA(MATCH(RAND(), _xlfn.POISSON.DIST({0,1,2,3,4,5,6,7,8,9},$P7, TRUE),1), 0) -> 2 | CY7: =_xlfn.IFNA(MATCH(RAND(), _xlfn.POISSON.DIST({0,1,2,3,4,5,6,7,8,9},$P7, TRUE),1), 0) -> 1 | CZ7: =_xlfn.IFNA(MATCH(RAND(), _xlfn.POISSON.DIST({0,1,2,3,4,5,6,7,8,9},$P7, TRUE),1), 0) -> 0 | DA7: =_xlfn.IFNA(MATCH(RAND(), _xlfn.POISSON.DIST({0,1,2,3,4,5,6,7,8,9},$P7, TRUE),1), 0) -> 2 | DB7: =_xlfn.IFNA(MATCH(RAND(), _xlfn.POISSON.DIST({0,1,2,3,4,5,6,7,8,9},$P7, TRUE),1), 0) -> 1 | DC7: =_xlfn.IFNA(MATCH(RAND(), _xlfn.POISSON.DIST({0,1,2,3,4,5,6,7,8,9},$P7, TRUE),1), 0) -> 0 | DD7: =_xlfn.IFNA(MATCH(RAND(), _xlfn.POISSON.DIST({0,1,2,3,4,5,6,7,8,9},$P7, TRUE),1), 0) -> 1 | DE7: =_xlfn.IFNA(MATCH(RAND(), _xlfn.POISSON.DIST({0,1,2,3,4,5,6,7,8,9},$P7, TRUE),1), 0) -> 2 | DF7: =_xlfn.IFNA(MATCH(RAND(), _xlfn.POISSON.DIST({0,1,2,3,4,5,6,7,8,9},$P7, TRUE),1), 0) -> 1 | DG7: =_xlfn.IFNA(MATCH(RAND(), _xlfn.POISSON.DIST({0,1,2,3,4,5,6,7,8,9},$P7, TRUE),1), 0) -> 3 | DH7: =_xlfn.IFNA(MATCH(RAND(), _xlfn.POISSON.DIST({0,1,2,3,4,5,6,7,8,9},$P7, TRUE),1), 0) -> 2 | DI7: =_xlfn.IFNA(MATCH(RAND(), _xlfn.POISSON.DIST({0,1,2,3,4,5,6,7,8,9},$P7, TRUE),1), 0) -> 2 | DJ7: =_xlfn.IFNA(MATCH(RAND(), _xlfn.POISSON.DIST({0,1,2,3,4,5,6,7,8,9},$P7, TRUE),1), 0) -> 2 | DK7: =_xlfn.IFNA(MATCH(RAND(), _xlfn.POISSON.DIST({0,1,2,3,4,5,6,7,8,9},$P7, TRUE),1), 0) -> 0 | DL7: =_xlfn.IFNA(MATCH(RAND(), _xlfn.POISSON.DIST({0,1,2,3,4,5,6,7,8,9},$P7, TRUE),1), 0) -> 2 | DM7: =_xlfn.IFNA(MATCH(RAND(), _xlfn.POISSON.DIST({0,1,2,3,4,5,6,7,8,9},$P7, TRUE),1), 0) -> 1
C8: 2019-06-08 | D8: B | E8: Spanje | F8: =(AVERAGE(Q8:BN8))*(1+INDEX('Voorspellingen groepsfase'!$C$4:$O$28, MATCH('De wedstrijden van dit seizoen'!E8,'Voorspellingen groepsfase'!$D$4:$D$28,0),3)) -> 3.04 | G8: Zuid-Afrika | H8: =(AVERAGE(BP8:DM8))*(1+INDEX('Voorspellingen groepsfase'!$C$4:$O$28, MATCH('De wedstrijden van dit seizoen'!G8,'Voorspellingen groepsfase'!$D$4:$D$28,0),3)) -> 0.46 | I8: Spanje | L8: 3.04 | M8: 0.46 | N8: Spanje | O8: =(OFFSET('Bijlage 3 - Goals per groep'!$D$14,(INDEX('Bijlage 1 - Teamgegevens'!$C$13:$F$112,MATCH(G8,'Bijlage 1 - Teamgegevens'!$C$13:$C$112,0),4)/10),(INDEX('Bijlage 1 - Teamgegevens'!$C$13:$F$112,MATCH(E8,'Bijlage 1 - Teamgegevens'!$C$13:$C$112,0),4)/10))) -> 2.94 | P8: =OFFSET('Bijlage 3 - Goals per groep'!$D$14,(INDEX('Bijlage 1 - Teamgegevens'!$C$13:$F$112, MATCH(E8,'Bijlage 1 - Teamgegevens'!$C$13:$C$112,0),4)/10), (INDEX('Bijlage 1 - Teamgegevens'!$C$13:$F$112, MATCH(G8, 'Bijlage 1 - Teamgegevens'!$C$13:$C$112,0),4)/10)) -> 0.38 | Q8: =_xlfn.IFNA(MATCH(RAND(), _xlfn.POISSON.DIST({0,1,2,3,4,5,6,7,8,9},$O8, TRUE),1), 0) -> 1 | R8: =_xlfn.IFNA(MATCH(RAND(), _xlfn.POISSON.DIST({0,1,2,3,4,5,6,7,8,9},$O8, TRUE),1), 0) -> 2 | S8: =_xlfn.IFNA(MATCH(RAND(), _xlfn.POISSON.DIST({0,1,2,3,4,5,6,7,8,9},$O8, TRUE),1), 0) -> 1 | T8: =_xlfn.IFNA(MATCH(RAND(), _xlfn.POISSON.DIST({0,1,2,3,4,5,6,7,8,9},$O8, TRUE),1), 0) -> 4 | U8: =_xlfn.IFNA(MATCH(RAND(), _xlfn.POISSON.DIST({0,1,2,3,4,5,6,7,8,9},$O8, TRUE),1), 0) -> 3 | V8: =_xlfn.IFNA(MATCH(RAND(), _xlfn.POISSON.DIST({0,1,2,3,4,5,6,7,8,9},$O8, TRUE),1), 0) -> 2 | W8: =_xlfn.IFNA(MATCH(RAND(), _xlfn.POISSON.DIST({0,1,2,3,4,5,6,7,8,9},$O8, TRUE),1), 0) -> 2 | X8: =_xlfn.IFNA(MATCH(RAND(), _xlfn.POISSON.DIST({0,1,2,3,4,5,6,7,8,9},$O8, TRUE),1), 0) -> 3 | Y8: =_xlfn.IFNA(MATCH(RAND(), _xlfn.POISSON.DIST({0,1,2,3,4,5,6,7,8,9},$O8, TRUE),1), 0) -> 4 | Z8: =_xlfn.IFNA(MATCH(RAND(), _xlfn.POISSON.DIST({0,1,2,3,4,5,6,7,8,9},$O8, TRUE),1), 0) -> 5 | AA8: =_xlfn.IFNA(MATCH(RAND(), _xlfn.POISSON.DIST({0,1,2,3,4,5,6,7,8,9},$O8, TRUE),1), 0) -> 5 | AB8: =_xlfn.IFNA(MATCH(RAND(), _xlfn.POISSON.DIST({0,1,2,3,4,5,6,7,8,9},$O8, TRUE),1), 0) -> 6 | AC8: =_xlfn.IFNA(MATCH(RAND(), _xlfn.POISSON.DIST({0,1,2,3,4,5,6,7,8,9},$O8, TRUE),1), 0) -> 3 | AD8: =_xlfn.IFNA(MATCH(RAND(), _xlfn.POISSON.DIST({0,1,2,3,4,5,6,7,8,9},$O8, TRUE),1), 0) -> 4 | AE8: =_xlfn.IFNA(MATCH(RAND(), _xlfn.POISSON.DIST({0,1,2,3,4,5,6,7,8,9},$O8, TRUE),1), 0) -> 3 | AF8: =_xlfn.IFNA(MATCH(RAND(), _xlfn.POISSON.DIST({0,1,2,3,4,5,6,7,8,9},$O8, TRUE),1), 0) -> 2 | AG8: =_xlfn.IFNA(MATCH(RAND(), _xlfn.POISSON.DIST({0,1,2,3,4,5,6,7,8,9},$O8, TRUE),1), 0) -> 4 | AH8: =_xlfn.IFNA(MATCH(RAND(), _xlfn.POISSON.DIST({0,1,2,3,4,5,6,7,8,9},$O8, TRUE),1), 0) -> 4 | AI8: =_xlfn.IFNA(MATCH(RAND(), _xlfn.POISSON.DIST({0,1,2,3,4,5,6,7,8,9},$O8, TRUE),1), 0) -> 3 | AJ8: =_xlfn.IFNA(MATCH(RAND(), _xlfn.POISSON.DIST({0,1,2,3,4,5,6,7,8,9},$O8, TRUE),1), 0) -> 6 | AK8: =_xlfn.IFNA(MATCH(RAND(), _xlfn.POISSON.DIST({0,1,2,3,4,5,6,7,8,9},$O8, TRUE),1), 0) -> 3 | AL8: =_xlfn.IFNA(MATCH(RAND(), _xlfn.POISSON.DIST({0,1,2,3,4,5,6,7,8,9},$O8, TRUE),1), 0) -> 2 | AM8: =_xlfn.IFNA(MATCH(RAND(), _xlfn.POISSON.DIST({0,1,2,3,4,5,6,7,8,9},$O8, TRUE),1), 0) -> 3 | AN8: =_xlfn.IFNA(MATCH(RAND(), _xlfn.POISSON.DIST({0,1,2,3,4,5,6,7,8,9},$O8, TRUE),1), 0) -> 0 | AO8: =_xlfn.IFNA(MATCH(RAND(), _xlfn.POISSON.DIST({0,1,2,3,4,5,6,7,8,9},$O8, TRUE),1), 0) -> 4 | AP8: =_xlfn.IFNA(MATCH(RAND(), _xlfn.POISSON.DIST({0,1,2,3,4,5,6,7,8,9},$O8, TRUE),1), 0) -> 2 | AQ8: =_xlfn.IFNA(MATCH(RAND(), _xlfn.POISSON.DIST({0,1,2,3,4,5,6,7,8,9},$O8, TRUE),1), 0) -> 4 | AR8: =_xlfn.IFNA(MATCH(RAND(), _xlfn.POISSON.DIST({0,1,2,3,4,5,6,7,8,9},$O8, TRUE),1), 0) -> 2 | AS8: =_xlfn.IFNA(MATCH(RAND(), _xlfn.POISSON.DIST({0,1,2,3,4,5,6,7,8,9},$O8, TRUE),1), 0) -> 1 | AT8: =_xlfn.IFNA(MATCH(RAND(), _xlfn.POISSON.DIST({0,1,2,3,4,5,6,7,8,9},$O8, TRUE),1), 0) -> 3 | AU8: =_xlfn.IFNA(MATCH(RAND(), _xlfn.POISSON.DIST({0,1,2,3,4,5,6,7,8,9},$O8, TRUE),1), 0) -> 2 | AV8: =_xlfn.IFNA(MATCH(RAND(), _xlfn.POISSON.DIST({0,1,2,3,4,5,6,7,8,9},$O8, TRUE),1), 0) -> 1 | AW8: =_xlfn.IFNA(MATCH(RAND(), _xlfn.POISSON.DIST({0,1,2,3,4,5,6,7,8,9},$O8, TRUE),1), 0) -> 3 | AX8: =_xlfn.IFNA(MATCH(RAND(), _xlfn.POISSON.DIST({0,1,2,3,4,5,6,7,8,9},$O8, TRUE),1), 0) -> 1 | AY8: =_xlfn.IFNA(MATCH(RAND(), _xlfn.POISSON.DIST({0,1,2,3,4,5,6,7,8,9},$O8, TRUE),1), 0) -> 2 | AZ8: =_xlfn.IFNA(MATCH(RAND(), _xlfn.POISSON.DIST({0,1,2,3,4,5,6,7,8,9},$O8, TRUE),1), 0) -> 4 | BA8: =_xlfn.IFNA(MATCH(RAND(), _xlfn.POISSON.DIST({0,1,2,3,4,5,6,7,8,9},$O8, TRUE),1), 0) -> 6 | BB8: =_xlfn.IFNA(MATCH(RAND(), _xlfn.POISSON.DIST({0,1,2,3,4,5,6,7,8,9},$O8, TRUE),1), 0) -> 1 | BC8: =_xlfn.IFNA(MATCH(RAND(), _xlfn.POISSON.DIST({0,1,2,3,4,5,6,7,8,9},$O8, TRUE),1), 0) -> 2 | BD8: =_xlfn.IFNA(MATCH(RAND(), _xlfn.POISSON.DIST({0,1,2,3,4,5,6,7,8,9},$O8, TRUE),1), 0) -> 8 | BE8: =_xlfn.IFNA(MATCH(RAND(), _xlfn.POISSON.DIST({0,1,2,3,4,5,6,7,8,9},$O8, TRUE),1), 0) -> 2 | BF8: =_xlfn.IFNA(MATCH(RAND(), _xlfn.POISSON.DIST({0,1,2,3,4,5,6,7,8,9},$O8, TRUE),1), 0) -> 4 | BG8: =_xlfn.IFNA(MATCH(RAND(), _xlfn.POISSON.DIST({0,1,2,3,4,5,6,7,8,9},$O8, TRUE),1), 0) -> 2 | BH8: =_xlfn.IFNA(MATCH(RAND(), _xlfn.POISSON.DIST({0,1,2,3,4,5,6,7,8,9},$O8, TRUE),1), 0) -> 2 | BI8: =_xlfn.IFNA(MATCH(RAND(), _xlfn.POISSON.DIST({0,1,2,3,4,5,6,7,8,9},$O8, TRUE),1), 0) -> 3 | BJ8: =_xlfn.IFNA(MATCH(RAND(), _xlfn.POISSON.DIST({0,1,2,3,4,5,6,7,8,9},$O8, TRUE),1), 0) -> 2 | BK8: =_xlfn.IFNA(MATCH(RAND(), _xlfn.POISSON.DIST({0,1,2,3,4,5,6,7,8,9},$O8, TRUE),1), 0) -> 1 | BL8: =_xlfn.IFNA(MATCH(RAND(), _xlfn.POISSON.DIST({0,1,2,3,4,5,6,7,8,9},$O8, TRUE),1), 0) -> 7 | BM8: =_xlfn.IFNA(MATCH(RAND(), _xlfn.POISSON.DIST({0,1,2,3,4,5,6,7,8,9},$O8, TRUE),1), 0) -> 5 | BN8: =_xlfn.IFNA(MATCH(RAND(), _xlfn.POISSON.DIST({0,1,2,3,4,5,6,7,8,9},$O8, TRUE),1), 0) -> 3 | BP8: =_xlfn.IFNA(MATCH(RAND(), _xlfn.POISSON.DIST({0,1,2,3,4,5,6,7,8,9},$P8, TRUE),1), 0) -> 0 | BQ8: =_xlfn.IFNA(MATCH(RAND(), _xlfn.POISSON.DIST({0,1,2,3,4,5,6,7,8,9},$P8, TRUE),1), 0) -> 1 | BR8: =_xlfn.IFNA(MATCH(RAND(), _xlfn.POISSON.DIST({0,1,2,3,4,5,6,7,8,9},$P8, TRUE),1), 0) -> 0 | BS8: =_xlfn.IFNA(MATCH(RAND(), _xlfn.POISSON.DIST({0,1,2,3,4,5,6,7,8,9},$P8, TRUE),1), 0) -> 1 | BT8: =_xlfn.IFNA(MATCH(RAND(), _xlfn.POISSON.DIST({0,1,2,3,4,5,6,7,8,9},$P8, TRUE),1), 0) -> 1 | BU8: =_xlfn.IFNA(MATCH(RAND(), _xlfn.POISSON.DIST({0,1,2,3,4,5,6,7,8,9},$P8, TRUE),1), 0) -> 1 | BV8: =_xlfn.IFNA(MATCH(RAND(), _xlfn.POISSON.DIST({0,1,2,3,4,5,6,7,8,9},$P8, TRUE),1), 0) -> 1 | BW8: =_xlfn.IFNA(MATCH(RAND(), _xlfn.POISSON.DIST({0,1,2,3,4,5,6,7,8,9},$P8, TRUE),1), 0) -> 0 | BX8: =_xlfn.IFNA(MATCH(RAND(), _xlfn.POISSON.DIST({0,1,2,3,4,5,6,7,8,9},$P8, TRUE),1), 0) -> 1 | BY8: =_xlfn.IFNA(MATCH(RAND(), _xlfn.POISSON.DIST({0,1,2,3,4,5,6,7,8,9},$P8, TRUE),1), 0) -> 0 | BZ8: =_xlfn.IFNA(MATCH(RAND(), _xlfn.POISSON.DIST({0,1,2,3,4,5,6,7,8,9},$P8, TRUE),1), 0) -> 0 | CA8: =_xlfn.IFNA(MATCH(RAND(), _xlfn.POISSON.DIST({0,1,2,3,4,5,6,7,8,9},$P8, TRUE),1), 0) -> 0 | CB8: =_xlfn.IFNA(MATCH(RAND(), _xlfn.POISSON.DIST({0,1,2,3,4,5,6,7,8,9},$P8, TRUE),1), 0) -> 0 | CC8: =_xlfn.IFNA(MATCH(RAND(), _xlfn.POISSON.DIST({0,1,2,3,4,5,6,7,8,9},$P8, TRUE),1), 0) -> 0 | CD8: =_xlfn.IFNA(MATCH(RAND(), _xlfn.POISSON.DIST({0,1,2,3,4,5,6,7,8,9},$P8, TRUE),1), 0) -> 0 | CE8: =_xlfn.IFNA(MATCH(RAND(), _xlfn.POISSON.DIST({0,1,2,3,4,5,6,7,8,9},$P8, TRUE),1), 0) -> 0 | CF8: =_xlfn.IFNA(MATCH(RAND(), _xlfn.POISSON.DIST({0,1,2,3,4,5,6,7,8,9},$P8, TRUE),1), 0) -> 0 | CG8: =_xlfn.IFNA(MATCH(RAND(), _xlfn.POISSON.DIST({0,1,2,3,4,5,6,7,8,9},$P8, TRUE),1), 0) -> 0 | CH8: =_xlfn.IFNA(MATCH(RAND(), _xlfn.POISSON.DIST({0,1,2,3,4,5,6,7,8,9},$P8, TRUE),1), 0) -> 0 | CI8: =_xlfn.IFNA(MATCH(RAND(), _xlfn.POISSON.DIST({0,1,2,3,4,5,6,7,8,9},$P8, TRUE),1), 0) -> 1 | CJ8: =_xlfn.IFNA(MATCH(RAND(), _xlfn.POISSON.DIST({0,1,2,3,4,5,6,7,8,9},$P8, TRUE),1), 0) -> 0 | CK8: =_xlfn.IFNA(MATCH(RAND(), _xlfn.POISSON.DIST({0,1,2,3,4,5,6,7,8,9},$P8, TRUE),1), 0) -> 1 | CL8: =_xlfn.IFNA(MATCH(RAND(), _xlfn.POISSON.DIST({0,1,2,3,4,5,6,7,8,9},$P8, TRUE),1), 0) -> 0 | CM8: =_xlfn.IFNA(MATCH(RAND(), _xlfn.POISSON.DIST({0,1,2,3,4,5,6,7,8,9},$P8, TRUE),1), 0) -> 0 | CN8: =_xlfn.IFNA(MATCH(RAND(), _xlfn.POISSON.DIST({0,1,2,3,4,5,6,7,8,9},$P8, TRUE),1), 0) -> 0 | CO8: =_xlfn.IFNA(MATCH(RAND(), _xlfn.POISSON.DIST({0,1,2,3,4,5,6,7,8,9},$P8, TRUE),1), 0) -> 0 | CP8: =_xlfn.IFNA(MATCH(RAND(), _xlfn.POISSON.DIST({0,1,2,3,4,5,6,7,8,9},$P8, TRUE),1), 0) -> 1 | CQ8: =_xlfn.IFNA(MATCH(RAND(), _xlfn.POISSON.DIST({0,1,2,3,4,5,6,7,8,9},$P8, TRUE),1), 0) -> 0 | CR8: =_xlfn.IFNA(MATCH(RAND(), _xlfn.POISSON.DIST({0,1,2,3,4,5,6,7,8,9},$P8, TRUE),1), 0) -> 1 | CS8: =_xlfn.IFNA(MATCH(RAND(), _xlfn.POISSON.DIST({0,1,2,3,4,5,6,7,8,9},$P8, TRUE),1), 0) -> 0 | CT8: =_xlfn.IFNA(MATCH(RAND(), _xlfn.POISSON.DIST({0,1,2,3,4,5,6,7,8,9},$P8, TRUE),1), 0) -> 0 | CU8: =_xlfn.IFNA(MATCH(RAND(), _xlfn.POISSON.DIST({0,1,2,3,4,5,6,7,8,9},$P8, TRUE),1), 0) -> 1 | CV8: =_xlfn.IFNA(MATCH(RAND(), _xlfn.POISSON.DIST({0,1,2,3,4,5,6,7,8,9},$P8, TRUE),1), 0) -> 1 | CW8: =_xlfn.IFNA(MATCH(RAND(), _xlfn.POISSON.DIST({0,1,2,3,4,5,6,7,8,9},$P8, TRUE),1), 0) -> 0 | CX8: =_xlfn.IFNA(MATCH(RAND(), _xlfn.POISSON.DIST({0,1,2,3,4,5,6,7,8,9},$P8, TRUE),1), 0) -> 2 | CY8: =_xlfn.IFNA(MATCH(RAND(), _xlfn.POISSON.DIST({0,1,2,3,4,5,6,7,8,9},$P8, TRUE),1), 0) -> 1 | CZ8: =_xlfn.IFNA(MATCH(RAND(), _xlfn.POISSON.DIST({0,1,2,3,4,5,6,7,8,9},$P8, TRUE),1), 0) -> 0 | DA8: =_xlfn.IFNA(MATCH(RAND(), _xlfn.POISSON.DIST({0,1,2,3,4,5,6,7,8,9},$P8, TRUE),1), 0) -> 0 | DB8: =_xlfn.IFNA(MATCH(RAND(), _xlfn.POISSON.DIST({0,1,2,3,4,5,6,7,8,9},$P8, TRUE),1), 0) -> 2 | DC8: =_xlfn.IFNA(MATCH(RAND(), _xlfn.POISSON.DIST({0,1,2,3,4,5,6,7,8,9},$P8, TRUE),1), 0) -> 0 | DD8: =_xlfn.IFNA(MATCH(RAND(), _xlfn.POISSON.DIST({0,1,2,3,4,5,6,7,8,9},$P8, TRUE),1), 0) -> 0 | DE8: =_xlfn.IFNA(MATCH(RAND(), _xlfn.POISSON.DIST({0,1,2,3,4,5,6,7,8,9},$P8, TRUE),1), 0) -> 0 | DF8: =_xlfn.IFNA(MATCH(RAND(), _xlfn.POISSON.DIST({0,1,2,3,4,5,6,7,8,9},$P8, TRUE),1), 0) -> 1 | DG8: =_xlfn.IFNA(MATCH(RAND(), _xlfn.POISSON.DIST({0,1,2,3,4,5,6,7,8,9},$P8, TRUE),1), 0) -> 2 | DH8: =_xlfn.IFNA(MATCH(RAND(), _xlfn.POISSON.DIST({0,1,2,3,4,5,6,7,8,9},$P8, TRUE),1), 0) -> 2 | DI8: =_xlfn.IFNA(MATCH(RAND(), _xlfn.POISSON.DIST({0,1,2,3,4,5,6,7,8,9},$P8, TRUE),1), 0) -> 0 | DJ8: =_xlfn.IFNA(MATCH(RAND(), _xlfn.POISSON.DIST({0,1,2,3,4,5,6,7,8,9},$P8, TRUE),1), 0) -> 1 | DK8: =_xlfn.IFNA(MATCH(RAND(), _xlfn.POISSON.DIST({0,1,2,3,4,5,6,7,8,9},$P8, TRUE),1), 0) -> 0 | DL8: =_xlfn.IFNA(MATCH(RAND(), _xlfn.POISSON.DIST({0,1,2,3,4,5,6,7,8,9},$P8, TRUE),1), 0) -> 0 | DM8: =_xlfn.IFNA(MATCH(RAND(), _xlfn.POISSON.DIST({0,1,2,3,4,5,6,7,8,9},$P8, TRUE),1), 0) -> 0
C9: 2019-06-08 | D9: A | E9: Noorwegen | F9: =(AVERAGE(Q9:BN9))*(1+INDEX('Voorspellingen groepsfase'!$C$4:$O$28, MATCH('De wedstrijden van dit seizoen'!E9,'Voorspellingen groepsfase'!$D$4:$D$28,0),3)) -> 3.20 | G9: Nigeria | H9: =(AVERAGE(BP9:DM9))*(1+INDEX('Voorspellingen groepsfase'!$C$4:$O$28, MATCH('De wedstrijden van dit seizoen'!G9,'Voorspellingen groepsfase'!$D$4:$D$28,0),3)) -> 0.70 | I9: Noorwegen | L9: 3.2 | M9: 0.7 | N9: Noorwegen | O9: =(OFFSET('Bijlage 3 - Goals per groep'!$D$14,(INDEX('Bijlage 1 - Teamgegevens'!$C$13:$F$112,MATCH(G9,'Bijlage 1 - Teamgegevens'!$C$13:$C$112,0),4)/10),(INDEX('Bijlage 1 - Teamgegevens'!$C$13:$F$112,MATCH(E9,'Bijlage 1 - Teamgegevens'!$C$13:$C$112,0),4)/10))) -> 3.11 | P9: =OFFSET('Bijlage 3 - Goals per groep'!$D$14,(INDEX('Bijlage 1 - Teamgegevens'!$C$13:$F$112, MATCH(E9,'Bijlage 1 - Teamgegevens'!$C$13:$C$112,0),4)/10), (INDEX('Bijlage 1 - Teamgegevens'!$C$13:$F$112, MATCH(G9, 'Bijlage 1 - Teamgegevens'!$C$13:$C$112,0),4)/10)) -> 0.54 | Q9: =_xlfn.IFNA(MATCH(RAND(), _xlfn.POISSON.DIST({0,1,2,3,4,5,6,7,8,9},$O9, TRUE),1), 0) -> 0 | R9: =_xlfn.IFNA(MATCH(RAND(), _xlfn.POISSON.DIST({0,1,2,3,4,5,6,7,8,9},$O9, TRUE),1), 0) -> 3 | S9: =_xlfn.IFNA(MATCH(RAND(), _xlfn.POISSON.DIST({0,1,2,3,4,5,6,7,8,9},$O9, TRUE),1), 0) -> 5 | T9: =_xlfn.IFNA(MATCH(RAND(), _xlfn.POISSON.DIST({0,1,2,3,4,5,6,7,8,9},$O9, TRUE),1), 0) -> 3 | U9: =_xlfn.IFNA(MATCH(RAND(), _xlfn.POISSON.DIST({0,1,2,3,4,5,6,7,8,9},$O9, TRUE),1), 0) -> 1 | V9: =_xlfn.IFNA(MATCH(RAND(), _xlfn.POISSON.DIST({0,1,2,3,4,5,6,7,8,9},$O9, TRUE),1), 0) -> 2 | W9: =_xlfn.IFNA(MATCH(RAND(), _xlfn.POISSON.DIST({0,1,2,3,4,5,6,7,8,9},$O9, TRUE),1), 0) -> 1 | X9: =_xlfn.IFNA(MATCH(RAND(), _xlfn.POISSON.DIST({0,1,2,3,4,5,6,7,8,9},$O9, TRUE),1), 0) -> 3 | Y9: =_xlfn.IFNA(MATCH(RAND(), _xlfn.POISSON.DIST({0,1,2,3,4,5,6,7,8,9},$O9, TRUE),1), 0) -> 2 | Z9: =_xlfn.IFNA(MATCH(RAND(), _xlfn.POISSON.DIST({0,1,2,3,4,5,6,7,8,9},$O9, TRUE),1), 0) -> 5 | AA9: =_xlfn.IFNA(MATCH(RAND(), _xlfn.POISSON.DIST({0,1,2,3,4,5,6,7,8,9},$O9, TRUE),1), 0) -> 5 | AB9: =_xlfn.IFNA(MATCH(RAND(), _xlfn.POISSON.DIST({0,1,2,3,4,5,6,7,8,9},$O9, TRUE),1), 0) -> 3 | AC9: =_xlfn.IFNA(MATCH(RAND(), _xlfn.POISSON.DIST({0,1,2,3,4,5,6,7,8,9},$O9, TRUE),1), 0) -> 2 | AD9: =_xlfn.IFNA(MATCH(RAND(), _xlfn.POISSON.DIST({0,1,2,3,4,5,6,7,8,9},$O9, TRUE),1), 0) -> 1 | AE9: =_xlfn.IFNA(MATCH(RAND(), _xlfn.POISSON.DIST({0,1,2,3,4,5,6,7,8,9},$O9, TRUE),1), 0) -> 6 | AF9: =_xlfn.IFNA(MATCH(RAND(), _xlfn.POISSON.DIST({0,1,2,3,4,5,6,7,8,9},$O9, TRUE),1), 0) -> 4 | AG9: =_xlfn.IFNA(MATCH(RAND(), _xlfn.POISSON.DIST({0,1,2,3,4,5,6,7,8,9},$O9, TRUE),1), 0) -> 8 | AH9: =_xlfn.IFNA(MATCH(RAND(), _xlfn.POISSON.DIST({0,1,2,3,4,5,6,7,8,9},$O9, TRUE),1), 0) -> 5 | AI9: =_xlfn.IFNA(MATCH(RAND(), _xlfn.POISSON.DIST({0,1,2,3,4,5,6,7,8,9},$O9, TRUE),1), 0) -> 3 | AJ9: =_xlfn.IFNA(MATCH(RAND(), _xlfn.POISSON.DIST({0,1,2,3,4,5,6,7,8,9},$O9, TRUE),1), 0) -> 3 | AK9: =_xlfn.IFNA(MATCH(RAND(), _xlfn.POISSON.DIST({0,1,2,3,4,5,6,7,8,9},$O9, TRUE),1), 0) -> 1 | AL9: =_xlfn.IFNA(MATCH(RAND(), _xlfn.POISSON.DIST({0,1,2,3,4,5,6,7,8,9},$O9, TRUE),1), 0) -> 3 | AM9: =_xlfn.IFNA(MATCH(RAND(), _xlfn.POISSON.DIST({0,1,2,3,4,5,6,7,8,9},$O9, TRUE),1), 0) -> 2 | AN9: =_xlfn.IFNA(MATCH(RAND(), _xlfn.POISSON.DIST({0,1,2,3,4,5,6,7,8,9},$O9, TRUE),1), 0) -> 1 | AO9: =_xlfn.IFNA(MATCH(RAND(), _xlfn.POISSON.DIST({0,1,2,3,4,5,6,7,8,9},$O9, TRUE),1), 0) -> 6 | AP9: =_xlfn.IFNA(MATCH(RAND(), _xlfn.POISSON.DIST({0,1,2,3,4,5,6,7,8,9},$O9, TRUE),1), 0) -> 6 | AQ9: =_xlfn.IFNA(MATCH(RAND(), _xlfn.POISSON.DIST({0,1,2,3,4,5,6,7,8,9},$O9, TRUE),1), 0) -> 5 | AR9: =_xlfn.IFNA(MATCH(RAND(), _xlfn.POISSON.DIST({0,1,2,3,4,5,6,7,8,9},$O9, TRUE),1), 0) -> 4 | AS9: =_xlfn.IFNA(MATCH(RAND(), _xlfn.POISSON.DIST({0,1,2,3,4,5,6,7,8,9},$O9, TRUE),1), 0) -> 3 | AT9: =_xlfn.IFNA(MATCH(RAND(), _xlfn.POISSON.DIST({0,1,2,3,4,5,6,7,8,9},$O9, TRUE),1), 0) -> 1 | AU9: =_xlfn.IFNA(MATCH(RAND(), _xlfn.POISSON.DIST({0,1,2,3,4,5,6,7,8,9},$O9, TRUE),1), 0) -> 5 | AV9: =_xlfn.IFNA(MATCH(RAND(), _xlfn.POISSON.DIST({0,1,2,3,4,5,6,7,8,9},$O9, TRUE),1), 0) -> 7 | AW9: =_xlfn.IFNA(MATCH(RAND(), _xlfn.POISSON.DIST({0,1,2,3,4,5,6,7,8,9},$O9, TRUE),1), 0) -> 2 | AX9: =_xlfn.IFNA(MATCH(RAND(), _xlfn.POISSON.DIST({0,1,2,3,4,5,6,7,8,9},$O9, TRUE),1), 0) -> 5 | AY9: =_xlfn.IFNA(MATCH(RAND(), _xlfn.POISSON.DIST({0,1,2,3,4,5,6,7,8,9},$O9, TRUE),1), 0) -> 1 | AZ9: =_xlfn.IFNA(MATCH(RAND(), _xlfn.POISSON.DIST({0,1,2,3,4,5,6,7,8,9},$O9, TRUE),1), 0) -> 1 | BA9: =_xlfn.IFNA(MATCH(RAND(), _xlfn.POISSON.DIST({0,1,2,3,4,5,6,7,8,9},$O9, TRUE),1), 0) -> 0 | BB9: =_xlfn.IFNA(MATCH(RAND(), _xlfn.POISSON.DIST({0,1,2,3,4,5,6,7,8,9},$O9, TRUE),1), 0) -> 3 | BC9: =_xlfn.IFNA(MATCH(RAND(), _xlfn.POISSON.DIST({0,1,2,3,4,5,6,7,8,9},$O9, TRUE),1), 0) -> 1 | BD9: =_xlfn.IFNA(MATCH(RAND(), _xlfn.POISSON.DIST({0,1,2,3,4,5,6,7,8,9},$O9, TRUE),1), 0) -> 2 | BE9: =_xlfn.IFNA(MATCH(RAND(), _xlfn.POISSON.DIST({0,1,2,3,4,5,6,7,8,9},$O9, TRUE),1), 0) -> 5 | BF9: =_xlfn.IFNA(MATCH(RAND(), _xlfn.POISSON.DIST({0,1,2,3,4,5,6,7,8,9},$O9, TRUE),1), 0) -> 2 | BG9: =_xlfn.IFNA(MATCH(RAND(), _xlfn.POISSON.DIST({0,1,2,3,4,5,6,7,8,9},$O9, TRUE),1), 0) -> 2 | BH9: =_xlfn.IFNA(MATCH(RAND(), _xlfn.POISSON.DIST({0,1,2,3,4,5,6,7,8,9},$O9, TRUE),1), 0) -> 4 | BI9: =_xlfn.IFNA(MATCH(RAND(), _xlfn.POISSON.DIST({0,1,2,3,4,5,6,7,8,9},$O9, TRUE),1), 0) -> 6 | BJ9: =_xlfn.IFNA(MATCH(RAND(), _xlfn.POISSON.DIST({0,1,2,3,4,5,6,7,8,9},$O9, TRUE),1), 0) -> 1 | BK9: =_xlfn.IFNA(MATCH(RAND(), _xlfn.POISSON.DIST({0,1,2,3,4,5,6,7,8,9},$O9, TRUE),1), 0) -> 6 | BL9: =_xlfn.IFNA(MATCH(RAND(), _xlfn.POISSON.DIST({0,1,2,3,4,5,6,7,8,9},$O9, TRUE),1), 0) -> 4 | BM9: =_xlfn.IFNA(MATCH(RAND(), _xlfn.POISSON.DIST({0,1,2,3,4,5,6,7,8,9},$O9, TRUE),1), 0) -> 1 | BN9: =_xlfn.IFNA(MATCH(RAND(), _xlfn.POISSON.DIST({0,1,2,3,4,5,6,7,8,9},$O9, TRUE),1), 0) -> 5 | BP9: =_xlfn.IFNA(MATCH(RAND(), _xlfn.POISSON.DIST({0,1,2,3,4,5,6,7,8,9},$P9, TRUE),1), 0) -> 0 | BQ9: =_xlfn.IFNA(MATCH(RAND(), _xlfn.POISSON.DIST({0,1,2,3,4,5,6,7,8,9},$P9, TRUE),1), 0) -> 3 | BR9: =_xlfn.IFNA(MATCH(RAND(), _xlfn.POISSON.DIST({0,1,2,3,4,5,6,7,8,9},$P9, TRUE),1), 0) -> 1 | BS9: =_xlfn.IFNA(MATCH(RAND(), _xlfn.POISSON.DIST({0,1,2,3,4,5,6,7,8,9},$P9, TRUE),1), 0) -> 0 | BT9: =_xlfn.IFNA(MATCH(RAND(), _xlfn.POISSON.DIST({0,1,2,3,4,5,6,7,8,9},$P9, TRUE),1), 0) -> 1 | BU9: =_xlfn.IFNA(MATCH(RAND(), _xlfn.POISSON.DIST({0,1,2,3,4,5,6,7,8,9},$P9, TRUE),1), 0) -> 1 | BV9: =_xlfn.IFNA(MATCH(RAND(), _xlfn.POISSON.DIST({0,1,2,3,4,5,6,7,8,9},$P9, TRUE),1), 0) -> 0 | BW9: =_xlfn.IFNA(MATCH(RAND(), _xlfn.POISSON.DIST({0,1,2,3,4,5,6,7,8,9},$P9, TRUE),1), 0) -> 1 | BX9: =_xlfn.IFNA(MATCH(RAND(), _xlfn.POISSON.DIST({0,1,2,3,4,5,6,7,8,9},$P9, TRUE),1), 0) -> 0 | BY9: =_xlfn.IFNA(MATCH(RAND(), _xlfn.POISSON.DIST({0,1,2,3,4,5,6,7,8,9},$P9, TRUE),1), 0) -> 0 | BZ9: =_xlfn.IFNA(MATCH(RAND(), _xlfn.POISSON.DIST({0,1,2,3,4,5,6,7,8,9},$P9, TRUE),1), 0) -> 1 | CA9: =_xlfn.IFNA(MATCH(RAND(), _xlfn.POISSON.DIST({0,1,2,3,4,5,6,7,8,9},$P9, TRUE),1), 0) -> 0 | CB9: =_xlfn.IFNA(MATCH(RAND(), _xlfn.POISSON.DIST({0,1,2,3,4,5,6,7,8,9},$P9, TRUE),1), 0) -> 1 | CC9: =_xlfn.IFNA(MATCH(RAND(), _xlfn.POISSON.DIST({0,1,2,3,4,5,6,7,8,9},$P9, TRUE),1), 0) -> 0 | CD9: =_xlfn.IFNA(MATCH(RAND(), _xlfn.POISSON.DIST({0,1,2,3,4,5,6,7,8,9},$P9, TRUE),1), 0) -> 1 | CE9: =_xlfn.IFNA(MATCH(RAND(), _xlfn.POISSON.DIST({0,1,2,3,4,5,6,7,8,9},$P9, TRUE),1), 0) -> 2 | CF9: =_xlfn.IFNA(MATCH(RAND(), _xlfn.POISSON.DIST({0,1,2,3,4,5,6,7,8,9},$P9, TRUE),1), 0) -> 0 | CG9: =_xlfn.IFNA(MATCH(RAND(), _xlfn.POISSON.DIST({0,1,2,3,4,5,6,7,8,9},$P9, TRUE),1), 0) -> 1 | CH9: =_xlfn.IFNA(MATCH(RAND(), _xlfn.POISSON.DIST({0,1,2,3,4,5,6,7,8,9},$P9, TRUE),1), 0) -> 2 | CI9: =_xlfn.IFNA(MATCH(RAND(), _xlfn.POISSON.DIST({0,1,2,3,4,5,6,7,8,9},$P9, TRUE),1), 0) -> 2 | CJ9: =_xlfn.IFNA(MATCH(RAND(), _xlfn.POISSON.DIST({0,1,2,3,4,5,6,7,8,9},$P9, TRUE),1), 0) -> 1 | CK9: =_xlfn.IFNA(MATCH(RAND(), _xlfn.POISSON.DIST({0,1,2,3,4,5,6,7,8,9},$P9, TRUE),1), 0) -> 1 | CL9: =_xlfn.IFNA(MATCH(RAND(), _xlfn.POISSON.DIST({0,1,2,3,4,5,6,7,8,9},$P9, TRUE),1), 0) -> 0 | CM9: =_xlfn.IFNA(MATCH(RAND(), _xlfn.POISSON.DIST({0,1,2,3,4,5,6,7,8,9},$P9, TRUE),1), 0) -> 0 | CN9: =_xlfn.IFNA(MATCH(RAND(), _xlfn.POISSON.DIST({0,1,2,3,4,5,6,7,8,9},$P9, TRUE),1), 0) -> 0 | CO9: =_xlfn.IFNA(MATCH(RAND(), _xlfn.POISSON.DIST({0,1,2,3,4,5,6,7,8,9},$P9, TRUE),1), 0) -> 0 | CP9: =_xlfn.IFNA(MATCH(RAND(), _xlfn.POISSON.DIST({0,1,2,3,4,5,6,7,8,9},$P9, TRUE),1), 0) -> 0 | CQ9: =_xlfn.IFNA(MATCH(RAND(), _xlfn.POISSON.DIST({0,1,2,3,4,5,6,7,8,9},$P9, TRUE),1), 0) -> 1 | CR9: =_xlfn.IFNA(MATCH(RAND(), _xlfn.POISSON.DIST({0,1,2,3,4,5,6,7,8,9},$P9, TRUE),1), 0) -> 0 | CS9: =_xlfn.IFNA(MATCH(RAND(), _xlfn.POISSON.DIST({0,1,2,3,4,5,6,7,8,9},$P9, TRUE),1), 0) -> 1 | CT9: =_xlfn.IFNA(MATCH(RAND(), _xlfn.POISSON.DIST({0,1,2,3,4,5,6,7,8,9},$P9, TRUE),1), 0) -> 0 | CU9: =_xlfn.IFNA(MATCH(RAND(), _xlfn.POISSON.DIST({0,1,2,3,4,5,6,7,8,9},$P9, TRUE),1), 0) -> 1 | CV9: =_xlfn.IFNA(MATCH(RAND(), _xlfn.POISSON.DIST({0,1,2,3,4,5,6,7,8,9},$P9, TRUE),1), 0) -> 1 | CW9: =_xlfn.IFNA(MATCH(RAND(), _xlfn.POISSON.DIST({0,1,2,3,4,5,6,7,8,9},$P9, TRUE),1), 0) -> 0 | CX9: =_xlfn.IFNA(MATCH(RAND(), _xlfn.POISSON.DIST({0,1,2,3,4,5,6,7,8,9},$P9, TRUE),1), 0) -> 2 | CY9: =_xlfn.IFNA(MATCH(RAND(), _xlfn.POISSON.DIST({0,1,2,3,4,5,6,7,8,9},$P9, TRUE),1), 0) -> 0 | CZ9: =_xlfn.IFNA(MATCH(RAND(), _xlfn.POISSON.DIST({0,1,2,3,4,5,6,7,8,9},$P9, TRUE),1), 0) -> 0 | DA9: =_xlfn.IFNA(MATCH(RAND(), _xlfn.POISSON.DIST({0,1,2,3,4,5,6,7,8,9},$P9, TRUE),1), 0) -> 2 | DB9: =_xlfn.IFNA(MATCH(RAND(), _xlfn.POISSON.DIST({0,1,2,3,4,5,6,7,8,9},$P9, TRUE),1), 0) -> 0 | DC9: =_xlfn.IFNA(MATCH(RAND(), _xlfn.POISSON.DIST({0,1,2,3,4,5,6,7,8,9},$P9, TRUE),1), 0) -> 0 | DD9: =_xlfn.IFNA(MATCH(RAND(), _xlfn.POISSON.DIST({0,1,2,3,4,5,6,7,8,9},$P9, TRUE),1), 0) -> 0 | DE9: =_xlfn.IFNA(MATCH(RAND(), _xlfn.POISSON.DIST({0,1,2,3,4,5,6,7,8,9},$P9, TRUE),1), 0) -> 1 | DF9: =_xlfn.IFNA(MATCH(RAND(), _xlfn.POISSON.DIST({0,1,2,3,4,5,6,7,8,9},$P9, TRUE),1), 0) -> 0 | DG9: =_xlfn.IFNA(MATCH(RAND(), _xlfn.POISSON.DIST({0,1,2,3,4,5,6,7,8,9},$P9, TRUE),1), 0) -> 2 | DH9: =_xlfn.IFNA(MATCH(RAND(), _xlfn.POISSON.DIST({0,1,2,3,4,5,6,7,8,9},$P9, TRUE),1), 0) -> 0 | DI9: =_xlfn.IFNA(MATCH(RAND(), _xlfn.POISSON.DIST({0,1,2,3,4,5,6,7,8,9},$P9, TRUE),1), 0) -> 0 | DJ9: =_xlfn.IFNA(MATCH(RAND(), _xlfn.POISSON.DIST({0,1,2,3,4,5,6,7,8,9},$P9, TRUE),1), 0) -> 0 | DK9: =_xlfn.IFNA(MATCH(RAND(), _xlfn.POISSON.DIST({0,1,2,3,4,5,6,7,8,9},$P9, TRUE),1), 0) -> 2 | DL9: =_xlfn.IFNA(MATCH(RAND(), _xlfn.POISSON.DIST({0,1,2,3,4,5,6,7,8,9},$P9, TRUE),1), 0) -> 3 | DM9: =_xlfn.IFNA(MATCH(RAND(), _xlfn.POISSON.DIST({0,1,2,3,4,5,6,7,8,9},$P9, TRUE),1), 0) -> 0
C10: 2019-06-09 | D10: C | E10: Australië | F10: =(AVERAGE(Q10:BN10))*(1+INDEX('Voorspellingen groepsfase'!$C$4:$O$28, MATCH('De wedstrijden van dit seizoen'!E10,'Voorspellingen groepsfase'!$D$4:$D$28,0),3)) -> 1.68 | G10: Italië | H10: =(AVERAGE(BP10:DM10))*(1+INDEX('Voorspellingen groepsfase'!$C$4:$O$28, MATCH('De wedstrijden van dit seizoen'!G10,'Voorspellingen groepsfase'!$D$4:$D$28,0),3)) -> 0.72 | I10: Australië | L10: 1.68 | M10: 0.72 | N10: Australië | O10: =(OFFSET('Bijlage 3 - Goals per groep'!$D$14,(INDEX('Bijlage 1 - Teamgegevens'!$C$13:$F$112,MATCH(G10,'Bijlage 1 - Teamgegevens'!$C$13:$C$112,0),4)/10),(INDEX('Bijlage 1 - Teamgegevens'!$C$13:$F$112,MATCH(E10,'Bijlage 1 - Teamgegevens'!$C$13:$C$112,0),4)/10))) -> 1.78 | P10: =OFFSET('Bijlage 3 - Goals per groep'!$D$14,(INDEX('Bijlage 1 - Teamgegevens'!$C$13:$F$112, MATCH(E10,'Bijlage 1 - Teamgegevens'!$C$13:$C$112,0),4)/10), (INDEX('Bijlage 1 - Teamgegevens'!$C$13:$F$112, MATCH(G10, 'Bijlage 1 - Teamgegevens'!$C$13:$C$112,0),4)/10)) -> 1.07 | Q10: =_xlfn.IFNA(MATCH(RAND(), _xlfn.POISSON.DIST({0,1,2,3,4,5,6,7,8,9},$O10, TRUE),1), 0) -> 1 | R10: =_xlfn.IFNA(MATCH(RAND(), _xlfn.POISSON.DIST({0,1,2,3,4,5,6,7,8,9},$O10, TRUE),1), 0) -> 3 | S10: =_xlfn.IFNA(MATCH(RAND(), _xlfn.POISSON.DIST({0,1,2,3,4,5,6,7,8,9},$O10, TRUE),1), 0) -> 0 | T10: =_xlfn.IFNA(MATCH(RAND(), _xlfn.POISSON.DIST({0,1,2,3,4,5,6,7,8,9},$O10, TRUE),1), 0) -> 1 | U10: =_xlfn.IFNA(MATCH(RAND(), _xlfn.POISSON.DIST({0,1,2,3,4,5,6,7,8,9},$O10, TRUE),1), 0) -> 0 | V10: =_xlfn.IFNA(MATCH(RAND(), _xlfn.POISSON.DIST({0,1,2,3,4,5,6,7,8,9},$O10, TRUE),1), 0) -> 3 | W10: =_xlfn.IFNA(MATCH(RAND(), _xlfn.POISSON.DIST({0,1,2,3,4,5,6,7,8,9},$O10, TRUE),1), 0) -> 3 | X10: =_xlfn.IFNA(MATCH(RAND(), _xlfn.POISSON.DIST({0,1,2,3,4,5,6,7,8,9},$O10, TRUE),1), 0) -> 0 | Y10: =_xlfn.IFNA(MATCH(RAND(), _xlfn.POISSON.DIST({0,1,2,3,4,5,6,7,8,9},$O10, TRUE),1), 0) -> 1 | Z10: =_xlfn.IFNA(MATCH(RAND(), _xlfn.POISSON.DIST({0,1,2,3,4,5,6,7,8,9},$O10, TRUE),1), 0) -> 3 | AA10: =_xlfn.IFNA(MATCH(RAND(), _xlfn.POISSON.DIST({0,1,2,3,4,5,6,7,8,9},$O10, TRUE),1), 0) -> 5 | AB10: =_xlfn.IFNA(MATCH(RAND(), _xlfn.POISSON.DIST({0,1,2,3,4,5,6,7,8,9},$O10, TRUE),1), 0) -> 3 | AC10: =_xlfn.IFNA(MATCH(RAND(), _xlfn.POISSON.DIST({0,1,2,3,4,5,6,7,8,9},$O10, TRUE),1), 0) -> 3 | AD10: =_xlfn.IFNA(MATCH(RAND(), _xlfn.POISSON.DIST({0,1,2,3,4,5,6,7,8,9},$O10, TRUE),1), 0) -> 2 | AE10: =_xlfn.IFNA(MATCH(RAND(), _xlfn.POISSON.DIST({0,1,2,3,4,5,6,7,8,9},$O10, TRUE),1), 0) -> 2 | AF10: =_xlfn.IFNA(MATCH(RAND(), _xlfn.POISSON.DIST({0,1,2,3,4,5,6,7,8,9},$O10, TRUE),1), 0) -> 2 | AG10: =_xlfn.IFNA(MATCH(RAND(), _xlfn.POISSON.DIST({0,1,2,3,4,5,6,7,8,9},$O10, TRUE),1), 0) -> 1 | AH10: =_xlfn.IFNA(MATCH(RAND(), _xlfn.POISSON.DIST({0,1,2,3,4,5,6,7,8,9},$O10, TRUE),1), 0) -> 2 | AI10: =_xlfn.IFNA(MATCH(RAND(), _xlfn.POISSON.DIST({0,1,2,3,4,5,6,7,8,9},$O10, TRUE),1), 0) -> 2 | AJ10: =_xlfn.IFNA(MATCH(RAND(), _xlfn.POISSON.DIST({0,1,2,3,4,5,6,7,8,9},$O10, TRUE),1), 0) -> 2 | AK10: =_xlfn.IFNA(MATCH(RAND(), _xlfn.POISSON.DIST({0,1,2,3,4,5,6,7,8,9},$O10, TRUE),1), 0) -> 2 | AL10: =_xlfn.IFNA(MATCH(RAND(), _xlfn.POISSON.DIST({0,1,2,3,4,5,6,7,8,9},$O10, TRUE),1), 0) -> 3 | AM10: =_xlfn.IFNA(MATCH(RAND(), _xlfn.POISSON.DIST({0,1,2,3,4,5,6,7,8,9},$O10, TRUE),1), 0) -> 0 | AN10: =_xlfn.IFNA(MATCH(RAND(), _xlfn.POISSON.DIST({0,1,2,3,4,5,6,7,8,9},$O10, TRUE),1), 0) -> 0 | AO10: =_xlfn.IFNA(MATCH(RAND(), _xlfn.POISSON.DIST({0,1,2,3,4,5,6,7,8,9},$O10, TRUE),1), 0) -> 0 | AP10: =_xlfn.IFNA(MATCH(RAND(), _xlfn.POISSON.DIST({0,1,2,3,4,5,6,7,8,9},$O10, TRUE),1), 0) -> 2 | AQ10: =_xlfn.IFNA(MATCH(RAND(), _xlfn.POISSON.DIST({0,1,2,3,4,5,6,7,8,9},$O10, TRUE),1), 0) -> 4 | AR10: =_xlfn.IFNA(MATCH(RAND(), _xlfn.POISSON.DIST({0,1,2,3,4,5,6,7,8,9},$O10, TRUE),1), 0) -> 1 | AS10: =_xlfn.IFNA(MATCH(RAND(), _xlfn.POISSON.DIST({0,1,2,3,4,5,6,7,8,9},$O10, TRUE),1), 0) -> 3 | AT10: =_xlfn.IFNA(MATCH(RAND(), _xlfn.POISSON.DIST({0,1,2,3,4,5,6,7,8,9},$O10, TRUE),1), 0) -> 3 | AU10: =_xlfn.IFNA(MATCH(RAND(), _xlfn.POISSON.DIST({0,1,2,3,4,5,6,7,8,9},$O10, TRUE),1), 0) -> 3 | AV10: =_xlfn.IFNA(MATCH(RAND(), _xlfn.POISSON.DIST({0,1,2,3,4,5,6,7,8,9},$O10, TRUE),1), 0) -> 0 | AW10: =_xlfn.IFNA(MATCH(RAND(), _xlfn.POISSON.DIST({0,1,2,3,4,5,6,7,8,9},$O10, TRUE),1), 0) -> 1 | AX10: =_xlfn.IFNA(MATCH(RAND(), _xlfn.POISSON.DIST({0,1,2,3,4,5,6,7,8,9},$O10, TRUE),1), 0) -> 1 | AY10: =_xlfn.IFNA(MATCH(RAND(), _xlfn.POISSON.DIST({0,1,2,3,4,5,6,7,8,9},$O10, TRUE),1), 0) -> 3 | AZ10: =_xlfn.IFNA(MATCH(RAND(), _xlfn.POISSON.DIST({0,1,2,3,4,5,6,7,8,9},$O10, TRUE),1), 0) -> 0 | BA10: =_xlfn.IFNA(MATCH(RAND(), _xlfn.POISSON.DIST({0,1,2,3,4,5,6,7,8,9},$O10, TRUE),1), 0) -> 1 | BB10: =_xlfn.IFNA(MATCH(RAND(), _xlfn.POISSON.DIST({0,1,2,3,4,5,6,7,8,9},$O10, TRUE),1), 0) -> 2 | BC10: =_xlfn.IFNA(MATCH(RAND(), _xlfn.POISSON.DIST({0,1,2,3,4,5,6,7,8,9},$O10, TRUE),1), 0) -> 2 | BD10: =_xlfn.IFNA(MATCH(RAND(), _xlfn.POISSON.DIST({0,1,2,3,4,5,6,7,8,9},$O10, TRUE),1), 0) -> 2 | BE10: =_xlfn.IFNA(MATCH(RAND(), _xlfn.POISSON.DIST({0,1,2,3,4,5,6,7,8,9},$O10, TRUE),1), 0) -> 0 | BF10: =_xlfn.IFNA(MATCH(RAND(), _xlfn.POISSON.DIST({0,1,2,3,4,5,6,7,8,9},$O10, TRUE),1), 0) -> 2 | BG10: =_xlfn.IFNA(MATCH(RAND(), _xlfn.POISSON.DIST({0,1,2,3,4,5,6,7,8,9},$O10, TRUE),1), 0) -> 0 | BH10: =_xlfn.IFNA(MATCH(RAND(), _xlfn.POISSON.DIST({0,1,2,3,4,5,6,7,8,9},$O10, TRUE),1), 0) -> 2 | BI10: =_xlfn.IFNA(MATCH(RAND(), _xlfn.POISSON.DIST({0,1,2,3,4,5,6,7,8,9},$O10, TRUE),1), 0) -> 1 | BJ10: =_xlfn.IFNA(MATCH(RAND(), _xlfn.POISSON.DIST({0,1,2,3,4,5,6,7,8,9},$O10, TRUE),1), 0) -> 2 | BK10: =_xlfn.IFNA(MATCH(RAND(), _xlfn.POISSON.DIST({0,1,2,3,4,5,6,7,8,9},$O10, TRUE),1), 0) -> 3 | BL10: =_xlfn.IFNA(MATCH(RAND(), _xlfn.POISSON.DIST({0,1,2,3,4,5,6,7,8,9},$O10, TRUE),1), 0) -> 0 | BM10: =_xlfn.IFNA(MATCH(RAND(), _xlfn.POISSON.DIST({0,1,2,3,4,5,6,7,8,9},$O10, TRUE),1), 0) -> 0 | BN10: =_xlfn.IFNA(MATCH(RAND(), _xlfn.POISSON.DIST({0,1,2,3,4,5,6,7,8,9},$O10, TRUE),1), 0) -> 2 | BP10: =_xlfn.IFNA(MATCH(RAND(), _xlfn.POISSON.DIST({0,1,2,3,4,5,6,7,8,9},$P10, TRUE),1), 0) -> 1 | BQ10: =_xlfn.IFNA(MATCH(RAND(), _xlfn.POISSON.DIST({0,1,2,3,4,5,6,7,8,9},$P10, TRUE),1), 0) -> 0 | BR10: =_xlfn.IFNA(MATCH(RAND(), _xlfn.POISSON.DIST({0,1,2,3,4,5,6,7,8,9},$P10, TRUE),1), 0) -> 0 | BS10: =_xlfn.IFNA(MATCH(RAND(), _xlfn.POISSON.DIST({0,1,2,3,4,5,6,7,8,9},$P10, TRUE),1), 0) -> 1 | BT10: =_xlfn.IFNA(MATCH(RAND(), _xlfn.POISSON.DIST({0,1,2,3,4,5,6,7,8,9},$P10, TRUE),1), 0) -> 0 | BU10: =_xlfn.IFNA(MATCH(RAND(), _xlfn.POISSON.DIST({0,1,2,3,4,5,6,7,8,9},$P10, TRUE),1), 0) -> 0 | BV10: =_xlfn.IFNA(MATCH(RAND(), _xlfn.POISSON.DIST({0,1,2,3,4,5,6,7,8,9},$P10, TRUE),1), 0) -> 1 | BW10: =_xlfn.IFNA(MATCH(RAND(), _xlfn.POISSON.DIST({0,1,2,3,4,5,6,7,8,9},$P10, TRUE),1), 0) -> 0 | BX10: =_xlfn.IFNA(MATCH(RAND(), _xlfn.POISSON.DIST({0,1,2,3,4,5,6,7,8,9},$P10, TRUE),1), 0) -> 1 | BY10: =_xlfn.IFNA(MATCH(RAND(), _xlfn.POISSON.DIST({0,1,2,3,4,5,6,7,8,9},$P10, TRUE),1), 0) -> 2 | BZ10: =_xlfn.IFNA(MATCH(RAND(), _xlfn.POISSON.DIST({0,1,2,3,4,5,6,7,8,9},$P10, TRUE),1), 0) -> 0 | CA10: =_xlfn.IFNA(MATCH(RAND(), _xlfn.POISSON.DIST({0,1,2,3,4,5,6,7,8,9},$P10, TRUE),1), 0) -> 1 | CB10: =_xlfn.IFNA(MATCH(RAND(), _xlfn.POISSON.DIST({0,1,2,3,4,5,6,7,8,9},$P10, TRUE),1), 0) -> 1 | CC10: =_xlfn.IFNA(MATCH(RAND(), _xlfn.POISSON.DIST({0,1,2,3,4,5,6,7,8,9},$P10, TRUE),1), 0) -> 0 | CD10: =_xlfn.IFNA(MATCH(RAND(), _xlfn.POISSON.DIST({0,1,2,3,4,5,6,7,8,9},$P10, TRUE),1), 0) -> 1 | CE10: =_xlfn.IFNA(MATCH(RAND(), _xlfn.POISSON.DIST({0,1,2,3,4,5,6,7,8,9},$P10, TRUE),1), 0) -> 0 | CF10: =_xlfn.IFNA(MATCH(RAND(), _xlfn.POISSON.DIST({0,1,2,3,4,5,6,7,8,9},$P10, TRUE),1), 0) -> 2 | CG10: =_xlfn.IFNA(MATCH(RAND(), _xlfn.POISSON.DIST({0,1,2,3,4,5,6,7,8,9},$P10, TRUE),1), 0) -> 0 | CH10: =_xlfn.IFNA(MATCH(RAND(), _xlfn.POISSON.DIST({0,1,2,3,4,5,6,7,8,9},$P10, TRUE),1), 0) -> 2 | CI10: =_xlfn.IFNA(MATCH(RAND(), _xlfn.POISSON.DIST({0,1,2,3,4,5,6,7,8,9},$P10, TRUE),1), 0) -> 1 | CJ10: =_xlfn.IFNA(MATCH(RAND(), _xlfn.POISSON.DIST({0,1,2,3,4,5,6,7,8,9},$P10, TRUE),1), 0) -> 2 | CK10: =_xlfn.IFNA(MATCH(RAND(), _xlfn.POISSON.DIST({0,1,2,3,4,5,6,7,8,9},$P10, TRUE),1), 0) -> 0 | CL10: =_xlfn.IFNA(MATCH(RAND(), _xlfn.POISSON.DIST({0,1,2,3,4,5,6,7,8,9},$P10, TRUE),1), 0) -> 0 | CM10: =_xlfn.IFNA(MATCH(RAND(), _xlfn.POISSON.DIST({0,1,2,3,4,5,6,7,8,9},$P10, TRUE),1), 0) -> 1 | CN10: =_xlfn.IFNA(MATCH(RAND(), _xlfn.POISSON.DIST({0,1,2,3,4,5,6,7,8,9},$P10, TRUE),1), 0) -> 0 | CO10: =_xlfn.IFNA(MATCH(RAND(), _xlfn.POISSON.DIST({0,1,2,3,4,5,6,7,8,9},$P10, TRUE),1), 0) -> 1 | CP10: =_xlfn.IFNA(MATCH(RAND(), _xlfn.POISSON.DIST({0,1,2,3,4,5,6,7,8,9},$P10, TRUE),1), 0) -> 0 | CQ10: =_xlfn.IFNA(MATCH(RAND(), _xlfn.POISSON.DIST({0,1,2,3,4,5,6,7,8,9},$P10, TRUE),1), 0) -> 0 | CR10: =_xlfn.IFNA(MATCH(RAND(), _xlfn.POISSON.DIST({0,1,2,3,4,5,6,7,8,9},$P10, TRUE),1), 0) -> 1 | CS10: =_xlfn.IFNA(MATCH(RAND(), _xlfn.POISSON.DIST({0,1,2,3,4,5,6,7,8,9},$P10, TRUE),1), 0) -> 2 | CT10: =_xlfn.IFNA(MATCH(RAND(), _xlfn.POISSON.DIST({0,1,2,3,4,5,6,7,8,9},$P10, TRUE),1), 0) -> 3 | CU10: =_xlfn.IFNA(MATCH(RAND(), _xlfn.POISSON.DIST({0,1,2,3,4,5,6,7,8,9},$P10, TRUE),1), 0) -> 0 | CV10: =_xlfn.IFNA(MATCH(RAND(), _xlfn.POISSON.DIST({0,1,2,3,4,5,6,7,8,9},$P10, TRUE),1), 0) -> 0 | CW10: =_xlfn.IFNA(MATCH(RAND(), _xlfn.POISSON.DIST({0,1,2,3,4,5,6,7,8,9},$P10, TRUE),1), 0) -> 2 | CX10: =_xlfn.IFNA(MATCH(RAND(), _xlfn.POISSON.DIST({0,1,2,3,4,5,6,7,8,9},$P10, TRUE),1), 0) -> 0 | CY10: =_xlfn.IFNA(MATCH(RAND(), _xlfn.POISSON.DIST({0,1,2,3,4,5,6,7,8,9},$P10, TRUE),1), 0) -> 0 | CZ10: =_xlfn.IFNA(MATCH(RAND(), _xlfn.POISSON.DIST({0,1,2,3,4,5,6,7,8,9},$P10, TRUE),1), 0) -> 0 | DA10: =_xlfn.IFNA(MATCH(RAND(), _xlfn.POISSON.DIST({0,1,2,3,4,5,6,7,8,9},$P10, TRUE),1), 0) -> 3 | DB10: =_xlfn.IFNA(MATCH(RAND(), _xlfn.POISSON.DIST({0,1,2,3,4,5,6,7,8,9},$P10, TRUE),1), 0) -> 1 | DC10: =_xlfn.IFNA(MATCH(RAND(), _xlfn.POISSON.DIST({0,1,2,3,4,5,6,7,8,9},$P10, TRUE),1), 0) -> 0 | DD10: =_xlfn.IFNA(MATCH(RAND(), _xlfn.POISSON.DIST({0,1,2,3,4,5,6,7,8,9},$P10, TRUE),1), 0) -> 0 | DE10: =_xlfn.IFNA(MATCH(RAND(), _xlfn.POISSON.DIST({0,1,2,3,4,5,6,7,8,9},$P10, TRUE),1), 0) -> 1 | DF10: =_xlfn.IFNA(MATCH(RAND(), _xlfn.POISSON.DIST({0,1,2,3,4,5,6,7,8,9},$P10, TRUE),1), 0) -> 1 | DG10: =_xlfn.IFNA(MATCH(RAND(), _xlfn.POISSON.DIST({0,1,2,3,4,5,6,7,8,9},$P10, TRUE),1), 0) -> 0 | DH10: =_xlfn.IFNA(MATCH(RAND(), _xlfn.POISSON.DIST({0,1,2,3,4,5,6,7,8,9},$P10, TRUE),1), 0) -> 1 | DI10: =_xlfn.IFNA(MATCH(RAND(), _xlfn.POISSON.DIST({0,1,2,3,4,5,6,7,8,9},$P10, TRUE),1), 0) -> 1 | DJ10: =_xlfn.IFNA(MATCH(RAND(), _xlfn.POISSON.DIST({0,1,2,3,4,5,6,7,8,9},$P10, TRUE),1), 0) -> 0 | DK10: =_xlfn.IFNA(MATCH(RAND(), _xlfn.POISSON.DIST({0,1,2,3,4,5,6,7,8,9},$P10, TRUE),1), 0) -> 0 | DL10: =_xlfn.IFNA(MATCH(RAND(), _xlfn.POISSON.DIST({0,1,2,3,4,5,6,7,8,9},$P10, TRUE),1), 0) -> 1 | DM10: =_xlfn.IFNA(MATCH(RAND(), _xlfn.POISSON.DIST({0,1,2,3,4,5,6,7,8,9},$P10, TRUE),1), 0) -> 1
C11: 2019-06-09 | D11: C | E11: Brazilië | F11: =(AVERAGE(Q11:BN11))*(1+INDEX('Voorspellingen groepsfase'!$C$4:$O$28, MATCH('De wedstrijden van dit seizoen'!E11,'Voorspellingen groepsfase'!$D$4:$D$28,0),3)) -> 5.56 | G11: Jamaica | H11: =(AVERAGE(BP11:DM11))*(1+INDEX('Voorspellingen groepsfase'!$C$4:$O$28, MATCH('De wedstrijden van dit seizoen'!G11,'Voorspellingen groepsfase'!$D$4:$D$28,0),3)) -> 0.22 | I11: Brazilië | L11: 5.56 | M11: 0.22 | N11: Brazilië | O11: =(OFFSET('Bijlage 3 - Goals per groep'!$D$14,(INDEX('Bijlage 1 - Teamgegevens'!$C$13:$F$112,MATCH(G11,'Bijlage 1 - Teamgegevens'!$C$13:$C$112,0),4)/10),(INDEX('Bijlage 1 - Teamgegevens'!$C$13:$F$112,MATCH(E11,'Bijlage 1 - Teamgegevens'!$C$13:$C$112,0),4)/10))) -> 5.67 | P11: =OFFSET('Bijlage 3 - Goals per groep'!$D$14,(INDEX('Bijlage 1 - Teamgegevens'!$C$13:$F$112, MATCH(E11,'Bijlage 1 - Teamgegevens'!$C$13:$C$112,0),4)/10), (INDEX('Bijlage 1 - Teamgegevens'!$C$13:$F$112, MATCH(G11, 'Bijlage 1 - Teamgegevens'!$C$13:$C$112,0),4)/10)) -> 0.17 | Q11: =_xlfn.IFNA(MATCH(RAND(), _xlfn.POISSON.DIST({0,1,2,3,4,5,6,7,8,9},$O11, TRUE),1), 0) -> 3 | R11: =_xlfn.IFNA(MATCH(RAND(), _xlfn.POISSON.DIST({0,1,2,3,4,5,6,7,8,9},$O11, TRUE),1), 0) -> 5 | S11: =_xlfn.IFNA(MATCH(RAND(), _xlfn.POISSON.DIST({0,1,2,3,4,5,6,7,8,9},$O11, TRUE),1), 0) -> 5 | T11: =_xlfn.IFNA(MATCH(RAND(), _xlfn.POISSON.DIST({0,1,2,3,4,5,6,7,8,9},$O11, TRUE),1), 0) -> 8 | U11: =_xlfn.IFNA(MATCH(RAND(), _xlfn.POISSON.DIST({0,1,2,3,4,5,6,7,8,9},$O11, TRUE),1), 0) -> 3 | V11: =_xlfn.IFNA(MATCH(RAND(), _xlfn.POISSON.DIST({0,1,2,3,4,5,6,7,8,9},$O11, TRUE),1), 0) -> 5 | W11: =_xlfn.IFNA(MATCH(RAND(), _xlfn.POISSON.DIST({0,1,2,3,4,5,6,7,8,9},$O11, TRUE),1), 0) -> 5 | X11: =_xlfn.IFNA(MATCH(RAND(), _xlfn.POISSON.DIST({0,1,2,3,4,5,6,7,8,9},$O11, TRUE),1), 0) -> 10 | Y11: =_xlfn.IFNA(MATCH(RAND(), _xlfn.POISSON.DIST({0,1,2,3,4,5,6,7,8,9},$O11, TRUE),1), 0) -> 6 | Z11: =_xlfn.IFNA(MATCH(RAND(), _xlfn.POISSON.DIST({0,1,2,3,4,5,6,7,8,9},$O11, TRUE),1), 0) -> 6 | AA11: =_xlfn.IFNA(MATCH(RAND(), _xlfn.POISSON.DIST({0,1,2,3,4,5,6,7,8,9},$O11, TRUE),1), 0) -> 6 | AB11: =_xlfn.IFNA(MATCH(RAND(), _xlfn.POISSON.DIST({0,1,2,3,4,5,6,7,8,9},$O11, TRUE),1), 0) -> 10 | AC11: =_xlfn.IFNA(MATCH(RAND(), _xlfn.POISSON.DIST({0,1,2,3,4,5,6,7,8,9},$O11, TRUE),1), 0) -> 4 | AD11: =_xlfn.IFNA(MATCH(RAND(), _xlfn.POISSON.DIST({0,1,2,3,4,5,6,7,8,9},$O11, TRUE),1), 0) -> 4 | AE11: =_xlfn.IFNA(MATCH(RAND(), _xlfn.POISSON.DIST({0,1,2,3,4,5,6,7,8,9},$O11, TRUE),1), 0) -> 5 | AF11: =_xlfn.IFNA(MATCH(RAND(), _xlfn.POISSON.DIST({0,1,2,3,4,5,6,7,8,9},$O11, TRUE),1), 0) -> 4 | AG11: =_xlfn.IFNA(MATCH(RAND(), _xlfn.POISSON.DIST({0,1,2,3,4,5,6,7,8,9},$O11, TRUE),1), 0) -> 6 | AH11: =_xlfn.IFNA(MATCH(RAND(), _xlfn.POISSON.DIST({0,1,2,3,4,5,6,7,8,9},$O11, TRUE),1), 0) -> 9 | AI11: =_xlfn.IFNA(MATCH(RAND(), _xlfn.POISSON.DIST({0,1,2,3,4,5,6,7,8,9},$O11, TRUE),1), 0) -> 7 | AJ11: =_xlfn.IFNA(MATCH(RAND(), _xlfn.POISSON.DIST({0,1,2,3,4,5,6,7,8,9},$O11, TRUE),1), 0) -> 5 | AK11: =_xlfn.IFNA(MATCH(RAND(), _xlfn.POISSON.DIST({0,1,2,3,4,5,6,7,8,9},$O11, TRUE),1), 0) -> 8 | AL11: =_xlfn.IFNA(MATCH(RAND(), _xlfn.POISSON.DIST({0,1,2,3,4,5,6,7,8,9},$O11, TRUE),1), 0) -> 10 | AM11: =_xlfn.IFNA(MATCH(RAND(), _xlfn.POISSON.DIST({0,1,2,3,4,5,6,7,8,9},$O11, TRUE),1), 0) -> 5 | AN11: =_xlfn.IFNA(MATCH(RAND(), _xlfn.POISSON.DIST({0,1,2,3,4,5,6,7,8,9},$O11, TRUE),1), 0) -> 9 | AO11: =_xlfn.IFNA(MATCH(RAND(), _xlfn.POISSON.DIST({0,1,2,3,4,5,6,7,8,9},$O11, TRUE),1), 0) -> 8 | AP11: =_xlfn.IFNA(MATCH(RAND(), _xlfn.POISSON.DIST({0,1,2,3,4,5,6,7,8,9},$O11, TRUE),1), 0) -> 1 | AQ11: =_xlfn.IFNA(MATCH(RAND(), _xlfn.POISSON.DIST({0,1,2,3,4,5,6,7,8,9},$O11, TRUE),1), 0) -> 6 | AR11: =_xlfn.IFNA(MATCH(RAND(), _xlfn.POISSON.DIST({0,1,2,3,4,5,6,7,8,9},$O11, TRUE),1), 0) -> 4 | AS11: =_xlfn.IFNA(MATCH(RAND(), _xlfn.POISSON.DIST({0,1,2,3,4,5,6,7,8,9},$O11, TRUE),1), 0) -> 5 | AT11: =_xlfn.IFNA(MATCH(RAND(), _xlfn.POISSON.DIST({0,1,2,3,4,5,6,7,8,9},$O11, TRUE),1), 0) -> 5 | AU11: =_xlfn.IFNA(MATCH(RAND(), _xlfn.POISSON.DIST({0,1,2,3,4,5,6,7,8,9},$O11, TRUE),1), 0) -> 6 | AV11: =_xlfn.IFNA(MATCH(RAND(), _xlfn.POISSON.DIST({0,1,2,3,4,5,6,7,8,9},$O11, TRUE),1), 0) -> 5 | AW11: =_xlfn.IFNA(MATCH(RAND(), _xlfn.POISSON.DIST({0,1,2,3,4,5,6,7,8,9},$O11, TRUE),1), 0) -> 3 | AX11: =_xlfn.IFNA(MATCH(RAND(), _xlfn.POISSON.DIST({0,1,2,3,4,5,6,7,8,9},$O11, TRUE),1), 0) -> 5 | AY11: =_xlfn.IFNA(MATCH(RAND(), _xlfn.POISSON.DIST({0,1,2,3,4,5,6,7,8,9},$O11, TRUE),1), 0) -> 4 | AZ11: =_xlfn.IFNA(MATCH(RAND(), _xlfn.POISSON.DIST({0,1,2,3,4,5,6,7,8,9},$O11, TRUE),1), 0) -> 8 | BA11: =_xlfn.IFNA(MATCH(RAND(), _xlfn.POISSON.DIST({0,1,2,3,4,5,6,7,8,9},$O11, TRUE),1), 0) -> 4 | BB11: =_xlfn.IFNA(MATCH(RAND(), _xlfn.POISSON.DIST({0,1,2,3,4,5,6,7,8,9},$O11, TRUE),1), 0) -> 7 | BC11: =_xlfn.IFNA(MATCH(RAND(), _xlfn.POISSON.DIST({0,1,2,3,4,5,6,7,8,9},$O11, TRUE),1), 0) -> 2 | BD11: =_xlfn.IFNA(MATCH(RAND(), _xlfn.POISSON.DIST({0,1,2,3,4,5,6,7,8,9},$O11, TRUE),1), 0) -> 7 | BE11: =_xlfn.IFNA(MATCH(RAND(), _xlfn.POISSON.DIST({0,1,2,3,4,5,6,7,8,9},$O11, TRUE),1), 0) -> 2 | BF11: =_xlfn.IFNA(MATCH(RAND(), _xlfn.POISSON.DIST({0,1,2,3,4,5,6,7,8,9},$O11, TRUE),1), 0) -> 7 | BG11: =_xlfn.IFNA(MATCH(RAND(), _xlfn.POISSON.DIST({0,1,2,3,4,5,6,7,8,9},$O11, TRUE),1), 0) -> 5 | BH11: =_xlfn.IFNA(MATCH(RAND(), _xlfn.POISSON.DIST({0,1,2,3,4,5,6,7,8,9},$O11, TRUE),1), 0) -> 4 | BI11: =_xlfn.IFNA(MATCH(RAND(), _xlfn.POISSON.DIST({0,1,2,3,4,5,6,7,8,9},$O11, TRUE),1), 0) -> 9 | BJ11: =_xlfn.IFNA(MATCH(RAND(), _xlfn.POISSON.DIST({0,1,2,3,4,5,6,7,8,9},$O11, TRUE),1), 0) -> 8 | BK11: =_xlfn.IFNA(MATCH(RAND(), _xlfn.POISSON.DIST({0,1,2,3,4,5,6,7,8,9},$O11, TRUE),1), 0) -> 2 | BL11: =_xlfn.IFNA(MATCH(RAND(), _xlfn.POISSON.DIST({0,1,2,3,4,5,6,7,8,9},$O11, TRUE),1), 0) -> 5 | BM11: =_xlfn.IFNA(MATCH(RAND(), _xlfn.POISSON.DIST({0,1,2,3,4,5,6,7,8,9},$O11, TRUE),1), 0) -> 1 | BN11: =_xlfn.IFNA(MATCH(RAND(), _xlfn.POISSON.DIST({0,1,2,3,4,5,6,7,8,9},$O11, TRUE),1), 0) -> 7 | BP11: =_xlfn.IFNA(MATCH(RAND(), _xlfn.POISSON.DIST({0,1,2,3,4,5,6,7,8,9},$P11, TRUE),1), 0) -> 0 | BQ11: =_xlfn.IFNA(MATCH(RAND(), _xlfn.POISSON.DIST({0,1,2,3,4,5,6,7,8,9},$P11, TRUE),1), 0) -> 0 | BR11: =_xlfn.IFNA(MATCH(RAND(), _xlfn.POISSON.DIST({0,1,2,3,4,5,6,7,8,9},$P11, TRUE),1), 0) -> 0 | BS11: =_xlfn.IFNA(MATCH(RAND(), _xlfn.POISSON.DIST({0,1,2,3,4,5,6,7,8,9},$P11, TRUE),1), 0) -> 0 | BT11: =_xlfn.IFNA(MATCH(RAND(), _xlfn.POISSON.DIST({0,1,2,3,4,5,6,7,8,9},$P11, TRUE),1), 0) -> 0 | BU11: =_xlfn.IFNA(MATCH(RAND(), _xlfn.POISSON.DIST({0,1,2,3,4,5,6,7,8,9},$P11, TRUE),1), 0) -> 0 | BV11: =_xlfn.IFNA(MATCH(RAND(), _xlfn.POISSON.DIST({0,1,2,3,4,5,6,7,8,9},$P11, TRUE),1), 0) -> 0 | BW11: =_xlfn.IFNA(MATCH(RAND(), _xlfn.POISSON.DIST({0,1,2,3,4,5,6,7,8,9},$P11, TRUE),1), 0) -> 0 | BX11: =_xlfn.IFNA(MATCH(RAND(), _xlfn.POISSON.DIST({0,1,2,3,4,5,6,7,8,9},$P11, TRUE),1), 0) -> 1 | BY11: =_xlfn.IFNA(MATCH(RAND(), _xlfn.POISSON.DIST({0,1,2,3,4,5,6,7,8,9},$P11, TRUE),1), 0) -> 0 | BZ11: =_xlfn.IFNA(MATCH(RAND(), _xlfn.POISSON.DIST({0,1,2,3,4,5,6,7,8,9},$P11, TRUE),1), 0) -> 0 | CA11: =_xlfn.IFNA(MATCH(RAND(), _xlfn.POISSON.DIST({0,1,2,3,4,5,6,7,8,9},$P11, TRUE),1), 0) -> 0 | CB11: =_xlfn.IFNA(MATCH(RAND(), _xlfn.POISSON.DIST({0,1,2,3,4,5,6,7,8,9},$P11, TRUE),1), 0) -> 0 | CC11: =_xlfn.IFNA(MATCH(RAND(), _xlfn.POISSON.DIST({0,1,2,3,4,5,6,7,8,9},$P11, TRUE),1), 0) -> 0 | CD11: =_xlfn.IFNA(MATCH(RAND(), _xlfn.POISSON.DIST({0,1,2,3,4,5,6,7,8,9},$P11, TRUE),1), 0) -> 1 | CE11: =_xlfn.IFNA(MATCH(RAND(), _xlfn.POISSON.DIST({0,1,2,3,4,5,6,7,8,9},$P11, TRUE),1), 0) -> 0 | CF11: =_xlfn.IFNA(MATCH(RAND(), _xlfn.POISSON.DIST({0,1,2,3,4,5,6,7,8,9},$P11, TRUE),1), 0) -> 0 | CG11: =_xlfn.IFNA(MATCH(RAND(), _xlfn.POISSON.DIST({0,1,2,3,4,5,6,7,8,9},$P11, TRUE),1), 0) -> 0 | CH11: =_xlfn.IFNA(MATCH(RAND(), _xlfn.POISSON.DIST({0,1,2,3,4,5,6,7,8,9},$P11, TRUE),1), 0) -> 0 | CI11: =_xlfn.IFNA(MATCH(RAND(), _xlfn.POISSON.DIST({0,1,2,3,4,5,6,7,8,9},$P11, TRUE),1), 0) -> 0 | CJ11: =_xlfn.IFNA(MATCH(RAND(), _xlfn.POISSON.DIST({0,1,2,3,4,5,6,7,8,9},$P11, TRUE),1), 0) -> 0 | CK11: =_xlfn.IFNA(MATCH(RAND(), _xlfn.POISSON.DIST({0,1,2,3,4,5,6,7,8,9},$P11, TRUE),1), 0) -> 0 | CL11: =_xlfn.IFNA(MATCH(RAND(), _xlfn.POISSON.DIST({0,1,2,3,4,5,6,7,8,9},$P11, TRUE),1), 0) -> 0 | CM11: =_xlfn.IFNA(MATCH(RAND(), _xlfn.POISSON.DIST({0,1,2,3,4,5,6,7,8,9},$P11, TRUE),1), 0) -> 0 | CN11: =_xlfn.IFNA(MATCH(RAND(), _xlfn.POISSON.DIST({0,1,2,3,4,5,6,7,8,9},$P11, TRUE),1), 0) -> 0 | CO11: =_xlfn.IFNA(MATCH(RAND(), _xlfn.POISSON.DIST({0,1,2,3,4,5,6,7,8,9},$P11, TRUE),1), 0) -> 0 | CP11: =_xlfn.IFNA(MATCH(RAND(), _xlfn.POISSON.DIST({0,1,2,3,4,5,6,7,8,9},$P11, TRUE),1), 0) -> 1 | CQ11: =_xlfn.IFNA(MATCH(RAND(), _xlfn.POISSON.DIST({0,1,2,3,4,5,6,7,8,9},$P11, TRUE),1), 0) -> 0 | CR11: =_xlfn.IFNA(MATCH(RAND(), _xlfn.POISSON.DIST({0,1,2,3,4,5,6,7,8,9},$P11, TRUE),1), 0) -> 0 | CS11: =_xlfn.IFNA(MATCH(RAND(), _xlfn.POISSON.DIST({0,1,2,3,4,5,6,7,8,9},$P11, TRUE),1), 0) -> 1 | CT11: =_xlfn.IFNA(MATCH(RAND(), _xlfn.POISSON.DIST({0,1,2,3,4,5,6,7,8,9},$P11, TRUE),1), 0) -> 0 | CU11: =_xlfn.IFNA(MATCH(RAND(), _xlfn.POISSON.DIST({0,1,2,3,4,5,6,7,8,9},$P11, TRUE),1), 0) -> 1 | CV11: =_xlfn.IFNA(MATCH(RAND(), _xlfn.POISSON.DIST({0,1,2,3,4,5,6,7,8,9},$P11, TRUE),1), 0) -> 1 | CW11: =_xlfn.IFNA(MATCH(RAND(), _xlfn.POISSON.DIST({0,1,2,3,4,5,6,7,8,9},$P11, TRUE),1), 0) -> 0 | CX11: =_xlfn.IFNA(MATCH(RAND(), _xlfn.POISSON.DIST({0,1,2,3,4,5,6,7,8,9},$P11, TRUE),1), 0) -> 0 | CY11: =_xlfn.IFNA(MATCH(RAND(), _xlfn.POISSON.DIST({0,1,2,3,4,5,6,7,8,9},$P11, TRUE),1), 0) -> 1 | CZ11: =_xlfn.IFNA(MATCH(RAND(), _xlfn.POISSON.DIST({0,1,2,3,4,5,6,7,8,9},$P11, TRUE),1), 0) -> 0 | DA11: =_xlfn.IFNA(MATCH(RAND(), _xlfn.POISSON.DIST({0,1,2,3,4,5,6,7,8,9},$P11, TRUE),1), 0) -> 1 | DB11: =_xlfn.IFNA(MATCH(RAND(), _xlfn.POISSON.DIST({0,1,2,3,4,5,6,7,8,9},$P11, TRUE),1), 0) -> 0 | DC11: =_xlfn.IFNA(MATCH(RAND(), _xlfn.POISSON.DIST({0,1,2,3,4,5,6,7,8,9},$P11, TRUE),1), 0) -> 1 | DD11: =_xlfn.IFNA(MATCH(RAND(), _xlfn.POISSON.DIST({0,1,2,3,4,5,6,7,8,9},$P11, TRUE),1), 0) -> 0 | DE11: =_xlfn.IFNA(MATCH(RAND(), _xlfn.POISSON.DIST({0,1,2,3,4,5,6,7,8,9},$P11, TRUE),1), 0) -> 0 | DF11: =_xlfn.IFNA(MATCH(RAND(), _xlfn.POISSON.DIST({0,1,2,3,4,5,6,7,8,9},$P11, TRUE),1), 0) -> 0 | DG11: =_xlfn.IFNA(MATCH(RAND(), _xlfn.POISSON.DIST({0,1,2,3,4,5,6,7,8,9},$P11, TRUE),1), 0) -> 0 | DH11: =_xlfn.IFNA(MATCH(RAND(), _xlfn.POISSON.DIST({0,1,2,3,4,5,6,7,8,9},$P11, TRUE),1), 0) -> 0 | DI11: =_xlfn.IFNA(MATCH(RAND(), _xlfn.POISSON.DIST({0,1,2,3,4,5,6,7,8,9},$P11, TRUE),1), 0) -> 0 | DJ11: =_xlfn.IFNA(MATCH(RAND(), _xlfn.POISSON.DIST({0,1,2,3,4,5,6,7,8,9},$P11, TRUE),1), 0) -> 0 | DK11: =_xlfn.IFNA(MATCH(RAND(), _xlfn.POISSON.DIST({0,1,2,3,4,5,6,7,8,9},$P11, TRUE),1), 0) -> 1 | DL11: =_xlfn.IFNA(MATCH(RAND(), _xlfn.POISSON.DIST({0,1,2,3,4,5,6,7,8,9},$P11, TRUE),1), 0) -> 1 | DM11: =_xlfn.IFNA(MATCH(RAND(), _xlfn.POISSON.DIST({0,1,2,3,4,5,6,7,8,9},$P11, TRUE),1), 0) -> 0
C12: 2019-06-09 | D12: D | E12: Verenigd Koninkrijk | F12: =(AVERAGE(Q12:BN12))*(1+INDEX('Voorspellingen groepsfase'!$C$4:$O$28, MATCH('De wedstrijden van dit seizoen'!E12,'Voorspellingen groepsfase'!$D$4:$D$28,0),3)) -> 1.80 | G12: Schotland | H12: =(AVERAGE(BP12:DM12))*(1+INDEX('Voorspellingen groepsfase'!$C$4:$O$28, MATCH('De wedstrijden van dit seizoen'!G12,'Voorspellingen groepsfase'!$D$4:$D$28,0),3)) -> 0.84 | I12: Verenigd Koninkrijk | L12: 1.8 | M12: 0.84 | N12: Verenigd Koninkrijk | O12: =(OFFSET('Bijlage 3 - Goals per groep'!$D$14,(INDEX('Bijlage 1 - Teamgegevens'!$C$13:$F$112,MATCH(G12,'Bijlage 1 - Teamgegevens'!$C$13:$C$112,0),4)/10),(INDEX('Bijlage 1 - Teamgegevens'!$C$13:$F$112,MATCH(E12,'Bijlage 1 - Teamgegevens'!$C$13:$C$112,0),4)/10))) -> 1.78 | P12: =OFFSET('Bijlage 3 - Goals per groep'!$D$14,(INDEX('Bijlage 1 - Teamgegevens'!$C$13:$F$112, MATCH(E12,'Bijlage 1 - Teamgegevens'!$C$13:$C$112,0),4)/10), (INDEX('Bijlage 1 - Teamgegevens'!$C$13:$F$112, MATCH(G12, 'Bijlage 1 - Teamgegevens'!$C$13:$C$112,0),4)/10)) -> 1.07 | Q12: =_xlfn.IFNA(MATCH(RAND(), _xlfn.POISSON.DIST({0,1,2,3,4,5,6,7,8,9},$O12, TRUE),1), 0) -> 0 | R12: =_xlfn.IFNA(MATCH(RAND(), _xlfn.POISSON.DIST({0,1,2,3,4,5,6,7,8,9},$O12, TRUE),1), 0) -> 1 | S12: =_xlfn.IFNA(MATCH(RAND(), _xlfn.POISSON.DIST({0,1,2,3,4,5,6,7,8,9},$O12, TRUE),1), 0) -> 4 | T12: =_xlfn.IFNA(MATCH(RAND(), _xlfn.POISSON.DIST({0,1,2,3,4,5,6,7,8,9},$O12, TRUE),1), 0) -> 1 | U12: =_xlfn.IFNA(MATCH(RAND(), _xlfn.POISSON.DIST({0,1,2,3,4,5,6,7,8,9},$O12, TRUE),1), 0) -> 1 | V12: =_xlfn.IFNA(MATCH(RAND(), _xlfn.POISSON.DIST({0,1,2,3,4,5,6,7,8,9},$O12, TRUE),1), 0) -> 1 | W12: =_xlfn.IFNA(MATCH(RAND(), _xlfn.POISSON.DIST({0,1,2,3,4,5,6,7,8,9},$O12, TRUE),1), 0) -> 0 | X12: =_xlfn.IFNA(MATCH(RAND(), _xlfn.POISSON.DIST({0,1,2,3,4,5,6,7,8,9},$O12, TRUE),1), 0) -> 2 | Y12: =_xlfn.IFNA(MATCH(RAND(), _xlfn.POISSON.DIST({0,1,2,3,4,5,6,7,8,9},$O12, TRUE),1), 0) -> 2 | Z12: =_xlfn.IFNA(MATCH(RAND(), _xlfn.POISSON.DIST({0,1,2,3,4,5,6,7,8,9},$O12, TRUE),1), 0) -> 1 | AA12: =_xlfn.IFNA(MATCH(RAND(), _xlfn.POISSON.DIST({0,1,2,3,4,5,6,7,8,9},$O12, TRUE),1), 0) -> 3 | AB12: =_xlfn.IFNA(MATCH(RAND(), _xlfn.POISSON.DIST({0,1,2,3,4,5,6,7,8,9},$O12, TRUE),1), 0) -> 2 | AC12: =_xlfn.IFNA(MATCH(RAND(), _xlfn.POISSON.DIST({0,1,2,3,4,5,6,7,8,9},$O12, TRUE),1), 0) -> 2 | AD12: =_xlfn.IFNA(MATCH(RAND(), _xlfn.POISSON.DIST({0,1,2,3,4,5,6,7,8,9},$O12, TRUE),1), 0) -> 2 | AE12: =_xlfn.IFNA(MATCH(RAND(), _xlfn.POISSON.DIST({0,1,2,3,4,5,6,7,8,9},$O12, TRUE),1), 0) -> 3 | AF12: =_xlfn.IFNA(MATCH(RAND(), _xlfn.POISSON.DIST({0,1,2,3,4,5,6,7,8,9},$O12, TRUE),1), 0) -> 0 | AG12: =_xlfn.IFNA(MATCH(RAND(), _xlfn.POISSON.DIST({0,1,2,3,4,5,6,7,8,9},$O12, TRUE),1), 0) -> 3 | AH12: =_xlfn.IFNA(MATCH(RAND(), _xlfn.POISSON.DIST({0,1,2,3,4,5,6,7,8,9},$O12, TRUE),1), 0) -> 2 | AI12: =_xlfn.IFNA(MATCH(RAND(), _xlfn.POISSON.DIST({0,1,2,3,4,5,6,7,8,9},$O12, TRUE),1), 0) -> 2 | AJ12: =_xlfn.IFNA(MATCH(RAND(), _xlfn.POISSON.DIST({0,1,2,3,4,5,6,7,8,9},$O12, TRUE),1), 0) -> 1 | AK12: =_xlfn.IFNA(MATCH(RAND(), _xlfn.POISSON.DIST({0,1,2,3,4,5,6,7,8,9},$O12, TRUE),1), 0) -> 5 | AL12: =_xlfn.IFNA(MATCH(RAND(), _xlfn.POISSON.DIST({0,1,2,3,4,5,6,7,8,9},$O12, TRUE),1), 0) -> 1 | AM12: =_xlfn.IFNA(MATCH(RAND(), _xlfn.POISSON.DIST({0,1,2,3,4,5,6,7,8,9},$O12, TRUE),1), 0) -> 5 | AN12: =_xlfn.IFNA(MATCH(RAND(), _xlfn.POISSON.DIST({0,1,2,3,4,5,6,7,8,9},$O12, TRUE),1), 0) -> 2 | AO12: =_xlfn.IFNA(MATCH(RAND(), _xlfn.POISSON.DIST({0,1,2,3,4,5,6,7,8,9},$O12, TRUE),1), 0) -> 2 | AP12: =_xlfn.IFNA(MATCH(RAND(), _xlfn.POISSON.DIST({0,1,2,3,4,5,6,7,8,9},$O12, TRUE),1), 0) -> 3 | AQ12: =_xlfn.IFNA(MATCH(RAND(), _xlfn.POISSON.DIST({0,1,2,3,4,5,6,7,8,9},$O12, TRUE),1), 0) -> 3 | AR12: =_xlfn.IFNA(MATCH(RAND(), _xlfn.POISSON.DIST({0,1,2,3,4,5,6,7,8,9},$O12, TRUE),1), 0) -> 2 | AS12: =_xlfn.IFNA(MATCH(RAND(), _xlfn.POISSON.DIST({0,1,2,3,4,5,6,7,8,9},$O12, TRUE),1), 0) -> 2 | AT12: =_xlfn.IFNA(MATCH(RAND(), _xlfn.POISSON.DIST({0,1,2,3,4,5,6,7,8,9},$O12, TRUE),1), 0) -> 0 | AU12: =_xlfn.IFNA(MATCH(RAND(), _xlfn.POISSON.DIST({0,1,2,3,4,5,6,7,8,9},$O12, TRUE),1), 0) -> 0 | AV12: =_xlfn.IFNA(MATCH(RAND(), _xlfn.POISSON.DIST({0,1,2,3,4,5,6,7,8,9},$O12, TRUE),1), 0) -> 1 | AW12: =_xlfn.IFNA(MATCH(RAND(), _xlfn.POISSON.DIST({0,1,2,3,4,5,6,7,8,9},$O12, TRUE),1), 0) -> 1 | AX12: =_xlfn.IFNA(MATCH(RAND(), _xlfn.POISSON.DIST({0,1,2,3,4,5,6,7,8,9},$O12, TRUE),1), 0) -> 2 | AY12: =_xlfn.IFNA(MATCH(RAND(), _xlfn.POISSON.DIST({0,1,2,3,4,5,6,7,8,9},$O12, TRUE),1), 0) -> 1 | AZ12: =_xlfn.IFNA(MATCH(RAND(), _xlfn.POISSON.DIST({0,1,2,3,4,5,6,7,8,9},$O12, TRUE),1), 0) -> 4 | BA12: =_xlfn.IFNA(MATCH(RAND(), _xlfn.POISSON.DIST({0,1,2,3,4,5,6,7,8,9},$O12, TRUE),1), 0) -> 2 | BB12: =_xlfn.IFNA(MATCH(RAND(), _xlfn.POISSON.DIST({0,1,2,3,4,5,6,7,8,9},$O12, TRUE),1), 0) -> 1 | BC12: =_xlfn.IFNA(MATCH(RAND(), _xlfn.POISSON.DIST({0,1,2,3,4,5,6,7,8,9},$O12, TRUE),1), 0) -> 1 | BD12: =_xlfn.IFNA(MATCH(RAND(), _xlfn.POISSON.DIST({0,1,2,3,4,5,6,7,8,9},$O12, TRUE),1), 0) -> 3 | BE12: =_xlfn.IFNA(MATCH(RAND(), _xlfn.POISSON.DIST({0,1,2,3,4,5,6,7,8,9},$O12, TRUE),1), 0) -> 3 | BF12: =_xlfn.IFNA(MATCH(RAND(), _xlfn.POISSON.DIST({0,1,2,3,4,5,6,7,8,9},$O12, TRUE),1), 0) -> 0 | BG12: =_xlfn.IFNA(MATCH(RAND(), _xlfn.POISSON.DIST({0,1,2,3,4,5,6,7,8,9},$O12, TRUE),1), 0) -> 1 | BH12: =_xlfn.IFNA(MATCH(RAND(), _xlfn.POISSON.DIST({0,1,2,3,4,5,6,7,8,9},$O12, TRUE),1), 0) -> 1 | BI12: =_xlfn.IFNA(MATCH(RAND(), _xlfn.POISSON.DIST({0,1,2,3,4,5,6,7,8,9},$O12, TRUE),1), 0) -> 1 | BJ12: =_xlfn.IFNA(MATCH(RAND(), _xlfn.POISSON.DIST({0,1,2,3,4,5,6,7,8,9},$O12, TRUE),1), 0) -> 2 | BK12: =_xlfn.IFNA(MATCH(RAND(), _xlfn.POISSON.DIST({0,1,2,3,4,5,6,7,8,9},$O12, TRUE),1), 0) -> 2 | BL12: =_xlfn.IFNA(MATCH(RAND(), _xlfn.POISSON.DIST({0,1,2,3,4,5,6,7,8,9},$O12, TRUE),1), 0) -> 2 | BM12: =_xlfn.IFNA(MATCH(RAND(), _xlfn.POISSON.DIST({0,1,2,3,4,5,6,7,8,9},$O12, TRUE),1), 0) -> 0 | BN12: =_xlfn.IFNA(MATCH(RAND(), _xlfn.POISSON.DIST({0,1,2,3,4,5,6,7,8,9},$O12, TRUE),1), 0) -> 4 | BP12: =_xlfn.IFNA(MATCH(RAND(), _xlfn.POISSON.DIST({0,1,2,3,4,5,6,7,8,9},$P12, TRUE),1), 0) -> 1 | BQ12: =_xlfn.IFNA(MATCH(RAND(), _xlfn.POISSON.DIST({0,1,2,3,4,5,6,7,8,9},$P12, TRUE),1), 0) -> 0 | BR12: =_xlfn.IFNA(MATCH(RAND(), _xlfn.POISSON.DIST({0,1,2,3,4,5,6,7,8,9},$P12, TRUE),1), 0) -> 0 | BS12: =_xlfn.IFNA(MATCH(RAND(), _xlfn.POISSON.DIST({0,1,2,3,4,5,6,7,8,9},$P12, TRUE),1), 0) -> 1 | BT12: =_xlfn.IFNA(MATCH(RAND(), _xlfn.POISSON.DIST({0,1,2,3,4,5,6,7,8,9},$P12, TRUE),1), 0) -> 1 | BU12: =_xlfn.IFNA(MATCH(RAND(), _xlfn.POISSON.DIST({0,1,2,3,4,5,6,7,8,9},$P12, TRUE),1), 0) -> 0 | BV12: =_xlfn.IFNA(MATCH(RAND(), _xlfn.POISSON.DIST({0,1,2,3,4,5,6,7,8,9},$P12, TRUE),1), 0) -> 2 | BW12: =_xlfn.IFNA(MATCH(RAND(), _xlfn.POISSON.DIST({0,1,2,3,4,5,6,7,8,9},$P12, TRUE),1), 0) -> 0 | BX12: =_xlfn.IFNA(MATCH(RAND(), _xlfn.POISSON.DIST({0,1,2,3,4,5,6,7,8,9},$P12, TRUE),1), 0) -> 2 | BY12: =_xlfn.IFNA(MATCH(RAND(), _xlfn.POISSON.DIST({0,1,2,3,4,5,6,7,8,9},$P12, TRUE),1), 0) -> 0 | BZ12: =_xlfn.IFNA(MATCH(RAND(), _xlfn.POISSON.DIST({0,1,2,3,4,5,6,7,8,9},$P12, TRUE),1), 0) -> 0 | CA12: =_xlfn.IFNA(MATCH(RAND(), _xlfn.POISSON.DIST({0,1,2,3,4,5,6,7,8,9},$P12, TRUE),1), 0) -> 2 | CB12: =_xlfn.IFNA(MATCH(RAND(), _xlfn.POISSON.DIST({0,1,2,3,4,5,6,7,8,9},$P12, TRUE),1), 0) -> 0 | CC12: =_xlfn.IFNA(MATCH(RAND(), _xlfn.POISSON.DIST({0,1,2,3,4,5,6,7,8,9},$P12, TRUE),1), 0) -> 2 | CD12: =_xlfn.IFNA(MATCH(RAND(), _xlfn.POISSON.DIST({0,1,2,3,4,5,6,7,8,9},$P12, TRUE),1), 0) -> 1 | CE12: =_xlfn.IFNA(MATCH(RAND(), _xlfn.POISSON.DIST({0,1,2,3,4,5,6,7,8,9},$P12, TRUE),1), 0) -> 1 | CF12: =_xlfn.IFNA(MATCH(RAND(), _xlfn.POISSON.DIST({0,1,2,3,4,5,6,7,8,9},$P12, TRUE),1), 0) -> 2 | CG12: =_xlfn.IFNA(MATCH(RAND(), _xlfn.POISSON.DIST({0,1,2,3,4,5,6,7,8,9},$P12, TRUE),1), 0) -> 1 | CH12: =_xlfn.IFNA(MATCH(RAND(), _xlfn.POISSON.DIST({0,1,2,3,4,5,6,7,8,9},$P12, TRUE),1), 0) -> 0 | CI12: =_xlfn.IFNA(MATCH(RAND(), _xlfn.POISSON.DIST({0,1,2,3,4,5,6,7,8,9},$P12, TRUE),1), 0) -> 1 | CJ12: =_xlfn.IFNA(MATCH(RAND(), _xlfn.POISSON.DIST({0,1,2,3,4,5,6,7,8,9},$P12, TRUE),1), 0) -> 3 | CK12: =_xlfn.IFNA(MATCH(RAND(), _xlfn.POISSON.DIST({0,1,2,3,4,5,6,7,8,9},$P12, TRUE),1), 0) -> 0 | CL12: =_xlfn.IFNA(MATCH(RAND(), _xlfn.POISSON.DIST({0,1,2,3,4,5,6,7,8,9},$P12, TRUE),1), 0) -> 0 | CM12: =_xlfn.IFNA(MATCH(RAND(), _xlfn.POISSON.DIST({0,1,2,3,4,5,6,7,8,9},$P12, TRUE),1), 0) -> 3 | CN12: =_xlfn.IFNA(MATCH(RAND(), _xlfn.POISSON.DIST({0,1,2,3,4,5,6,7,8,9},$P12, TRUE),1), 0) -> 0 | CO12: =_xlfn.IFNA(MATCH(RAND(), _xlfn.POISSON.DIST({0,1,2,3,4,5,6,7,8,9},$P12, TRUE),1), 0) -> 0 | CP12: =_xlfn.IFNA(MATCH(RAND(), _xlfn.POISSON.DIST({0,1,2,3,4,5,6,7,8,9},$P12, TRUE),1), 0) -> 2 | CQ12: =_xlfn.IFNA(MATCH(RAND(), _xlfn.POISSON.DIST({0,1,2,3,4,5,6,7,8,9},$P12, TRUE),1), 0) -> 0 | CR12: =_xlfn.IFNA(MATCH(RAND(), _xlfn.POISSON.DIST({0,1,2,3,4,5,6,7,8,9},$P12, TRUE),1), 0) -> 0 | CS12: =_xlfn.IFNA(MATCH(RAND(), _xlfn.POISSON.DIST({0,1,2,3,4,5,6,7,8,9},$P12, TRUE),1), 0) -> 2 | CT12: =_xlfn.IFNA(MATCH(RAND(), _xlfn.POISSON.DIST({0,1,2,3,4,5,6,7,8,9},$P12, TRUE),1), 0) -> 1 | CU12: =_xlfn.IFNA(MATCH(RAND(), _xlfn.POISSON.DIST({0,1,2,3,4,5,6,7,8,9},$P12, TRUE),1), 0) -> 1 | CV12: =_xlfn.IFNA(MATCH(RAND(), _xlfn.POISSON.DIST({0,1,2,3,4,5,6,7,8,9},$P12, TRUE),1), 0) -> 0 | CW12: =_xlfn.IFNA(MATCH(RAND(), _xlfn.POISSON.DIST({0,1,2,3,4,5,6,7,8,9},$P12, TRUE),1), 0) -> 1 | CX12: =_xlfn.IFNA(MATCH(RAND(), _xlfn.POISSON.DIST({0,1,2,3,4,5,6,7,8,9},$P12, TRUE),1), 0) -> 1 | CY12: =_xlfn.IFNA(MATCH(RAND(), _xlfn.POISSON.DIST({0,1,2,3,4,5,6,7,8,9},$P12, TRUE),1), 0) -> 0 | CZ12: =_xlfn.IFNA(MATCH(RAND(), _xlfn.POISSON.DIST({0,1,2,3,4,5,6,7,8,9},$P12, TRUE),1), 0) -> 0 | DA12: =_xlfn.IFNA(MATCH(RAND(), _xlfn.POISSON.DIST({0,1,2,3,4,5,6,7,8,9},$P12, TRUE),1), 0) -> 0 | DB12: =_xlfn.IFNA(MATCH(RAND(), _xlfn.POISSON.DIST({0,1,2,3,4,5,6,7,8,9},$P12, TRUE),1), 0) -> 1 | DC12: =_xlfn.IFNA(MATCH(RAND(), _xlfn.POISSON.DIST({0,1,2,3,4,5,6,7,8,9},$P12, TRUE),1), 0) -> 3 | DD12: =_xlfn.IFNA(MATCH(RAND(), _xlfn.POISSON.DIST({0,1,2,3,4,5,6,7,8,9},$P12, TRUE),1), 0) -> 1 | DE12: =_xlfn.IFNA(MATCH(RAND(), _xlfn.POISSON.DIST({0,1,2,3,4,5,6,7,8,9},$P12, TRUE),1), 0) -> 0 | DF12: =_xlfn.IFNA(MATCH(RAND(), _xlfn.POISSON.DIST({0,1,2,3,4,5,6,7,8,9},$P12, TRUE),1), 0) -> 0 | DG12: =_xlfn.IFNA(MATCH(RAND(), _xlfn.POISSON.DIST({0,1,2,3,4,5,6,7,8,9},$P12, TRUE),1), 0) -> 0 | DH12: =_xlfn.IFNA(MATCH(RAND(), _xlfn.POISSON.DIST({0,1,2,3,4,5,6,7,8,9},$P12, TRUE),1), 0) -> 1 | DI12: =_xlfn.IFNA(MATCH(RAND(), _xlfn.POISSON.DIST({0,1,2,3,4,5,6,7,8,9},$P12, TRUE),1), 0) -> 2 | DJ12: =_xlfn.IFNA(MATCH(RAND(), _xlfn.POISSON.DIST({0,1,2,3,4,5,6,7,8,9},$P12, TRUE),1), 0) -> 0 | DK12: =_xlfn.IFNA(MATCH(RAND(), _xlfn.POISSON.DIST({0,1,2,3,4,5,6,7,8,9},$P12, TRUE),1), 0) -> 0 | DL12: =_xlfn.IFNA(MATCH(RAND(), _xlfn.POISSON.DIST({0,1,2,3,4,5,6,7,8,9},$P12, TRUE),1), 0) -> 1 | DM12: =_xlfn.IFNA(MATCH(RAND(), _xlfn.POISSON.DIST({0,1,2,3,4,5,6,7,8,9},$P12, TRUE),1), 0) -> 2
C13: 2019-06-10 | D13: D | E13: Argentinië | F13: =(AVERAGE(Q13:BN13))*(1+INDEX('Voorspellingen groepsfase'!$C$4:$O$28, MATCH('De wedstrijden van dit seizoen'!E13,'Voorspellingen groepsfase'!$D$4:$D$28,0),3)) -> 0.64 | G13: Japan | H13: =(AVERAGE(BP13:DM13))*(1+INDEX('Voorspellingen groepsfase'!$C$4:$O$28, MATCH('De wedstrijden van dit seizoen'!G13,'Voorspellingen groepsfase'!$D$4:$D$28,0),3)) -> 3.54 | I13: Japan | L13: 0.64 | M13: 3.54 | N13: Japan | O13: =(OFFSET('Bijlage 3 - Goals per groep'!$D$14,(INDEX('Bijlage 1 - Teamgegevens'!$C$13:$F$112,MATCH(G13,'Bijlage 1 - Teamgegevens'!$C$13:$C$112,0),4)/10),(INDEX('Bijlage 1 - Teamgegevens'!$C$13:$F$112,MATCH(E13,'Bijlage 1 - Teamgegevens'!$C$13:$C$112,0),4)/10))) -> 0.59 | P13: =OFFSET('Bijlage 3 - Goals per groep'!$D$14,(INDEX('Bijlage 1 - Teamgegevens'!$C$13:$F$112, MATCH(E13,'Bijlage 1 - Teamgegevens'!$C$13:$C$112,0),4)/10), (INDEX('Bijlage 1 - Teamgegevens'!$C$13:$F$112, MATCH(G13, 'Bijlage 1 - Teamgegevens'!$C$13:$C$112,0),4)/10)) -> 3.38 | Q13: =_xlfn.IFNA(MATCH(RAND(), _xlfn.POISSON.DIST({0,1,2,3,4,5,6,7,8,9},$O13, TRUE),1), 0) -> 1 | R13: =_xlfn.IFNA(MATCH(RAND(), _xlfn.POISSON.DIST({0,1,2,3,4,5,6,7,8,9},$O13, TRUE),1), 0) -> 0 | S13: =_xlfn.IFNA(MATCH(RAND(), _xlfn.POISSON.DIST({0,1,2,3,4,5,6,7,8,9},$O13, TRUE),1), 0) -> 0 | T13: =_xlfn.IFNA(MATCH(RAND(), _xlfn.POISSON.DIST({0,1,2,3,4,5,6,7,8,9},$O13, TRUE),1), 0) -> 1 | U13: =_xlfn.IFNA(MATCH(RAND(), _xlfn.POISSON.DIST({0,1,2,3,4,5,6,7,8,9},$O13, TRUE),1), 0) -> 4 | V13: =_xlfn.IFNA(MATCH(RAND(), _xlfn.POISSON.DIST({0,1,2,3,4,5,6,7,8,9},$O13, TRUE),1), 0) -> 0 | W13: =_xlfn.IFNA(MATCH(RAND(), _xlfn.POISSON.DIST({0,1,2,3,4,5,6,7,8,9},$O13, TRUE),1), 0) -> 1 | X13: =_xlfn.IFNA(MATCH(RAND(), _xlfn.POISSON.DIST({0,1,2,3,4,5,6,7,8,9},$O13, TRUE),1), 0) -> 1 | Y13: =_xlfn.IFNA(MATCH(RAND(), _xlfn.POISSON.DIST({0,1,2,3,4,5,6,7,8,9},$O13, TRUE),1), 0) -> 1 | Z13: =_xlfn.IFNA(MATCH(RAND(), _xlfn.POISSON.DIST({0,1,2,3,4,5,6,7,8,9},$O13, TRUE),1), 0) -> 0 | AA13: =_xlfn.IFNA(MATCH(RAND(), _xlfn.POISSON.DIST({0,1,2,3,4,5,6,7,8,9},$O13, TRUE),1), 0) -> 0 | AB13: =_xlfn.IFNA(MATCH(RAND(), _xlfn.POISSON.DIST({0,1,2,3,4,5,6,7,8,9},$O13, TRUE),1), 0) -> 0 | AC13: =_xlfn.IFNA(MATCH(RAND(), _xlfn.POISSON.DIST({0,1,2,3,4,5,6,7,8,9},$O13, TRUE),1), 0) -> 0 | AD13: =_xlfn.IFNA(MATCH(RAND(), _xlfn.POISSON.DIST({0,1,2,3,4,5,6,7,8,9},$O13, TRUE),1), 0) -> 0 | AE13: =_xlfn.IFNA(MATCH(RAND(), _xlfn.POISSON.DIST({0,1,2,3,4,5,6,7,8,9},$O13, TRUE),1), 0) -> 0 | AF13: =_xlfn.IFNA(MATCH(RAND(), _xlfn.POISSON.DIST({0,1,2,3,4,5,6,7,8,9},$O13, TRUE),1), 0) -> 2 | AG13: =_xlfn.IFNA(MATCH(RAND(), _xlfn.POISSON.DIST({0,1,2,3,4,5,6,7,8,9},$O13, TRUE),1), 0) -> 2 | AH13: =_xlfn.IFNA(MATCH(RAND(), _xlfn.POISSON.DIST({0,1,2,3,4,5,6,7,8,9},$O13, TRUE),1), 0) -> 0 | AI13: =_xlfn.IFNA(MATCH(RAND(), _xlfn.POISSON.DIST({0,1,2,3,4,5,6,7,8,9},$O13, TRUE),1), 0) -> 2 | AJ13: =_xlfn.IFNA(MATCH(RAND(), _xlfn.POISSON.DIST({0,1,2,3,4,5,6,7,8,9},$O13, TRUE),1), 0) -> 0 | AK13: =_xlfn.IFNA(MATCH(RAND(), _xlfn.POISSON.DIST({0,1,2,3,4,5,6,7,8,9},$O13, TRUE),1), 0) -> 0 | AL13: =_xlfn.IFNA(MATCH(RAND(), _xlfn.POISSON.DIST({0,1,2,3,4,5,6,7,8,9},$O13, TRUE),1), 0) -> 0 | AM13: =_xlfn.IFNA(MATCH(RAND(), _xlfn.POISSON.DIST({0,1,2,3,4,5,6,7,8,9},$O13, TRUE),1), 0) -> 1 | AN13: =_xlfn.IFNA(MATCH(RAND(), _xlfn.POISSON.DIST({0,1,2,3,4,5,6,7,8,9},$O13, TRUE),1), 0) -> 1 | AO13: =_xlfn.IFNA(MATCH(RAND(), _xlfn.POISSON.DIST({0,1,2,3,4,5,6,7,8,9},$O13, TRUE),1), 0) -> 0 | AP13: =_xlfn.IFNA(MATCH(RAND(), _xlfn.POISSON.DIST({0,1,2,3,4,5,6,7,8,9},$O13, TRUE),1), 0) -> 1 | AQ13: =_xlfn.IFNA(MATCH(RAND(), _xlfn.POISSON.DIST({0,1,2,3,4,5,6,7,8,9},$O13, TRUE),1), 0) -> 1 | AR13: =_xlfn.IFNA(MATCH(RAND(), _xlfn.POISSON.DIST({0,1,2,3,4,5,6,7,8,9},$O13, TRUE),1), 0) -> 1 | AS13: =_xlfn.IFNA(MATCH(RAND(), _xlfn.POISSON.DIST({0,1,2,3,4,5,6,7,8,9},$O13, TRUE),1), 0) -> 0 | AT13: =_xlfn.IFNA(MATCH(RAND(), _xlfn.POISSON.DIST({0,1,2,3,4,5,6,7,8,9},$O13, TRUE),1), 0) -> 1 | AU13: =_xlfn.IFNA(MATCH(RAND(), _xlfn.POISSON.DIST({0,1,2,3,4,5,6,7,8,9},$O13, TRUE),1), 0) -> 0 | AV13: =_xlfn.IFNA(MATCH(RAND(), _xlfn.POISSON.DIST({0,1,2,3,4,5,6,7,8,9},$O13, TRUE),1), 0) -> 0 | AW13: =_xlfn.IFNA(MATCH(RAND(), _xlfn.POISSON.DIST({0,1,2,3,4,5,6,7,8,9},$O13, TRUE),1), 0) -> 1 | AX13: =_xlfn.IFNA(MATCH(RAND(), _xlfn.POISSON.DIST({0,1,2,3,4,5,6,7,8,9},$O13, TRUE),1), 0) -> 1 | AY13: =_xlfn.IFNA(MATCH(RAND(), _xlfn.POISSON.DIST({0,1,2,3,4,5,6,7,8,9},$O13, TRUE),1), 0) -> 0 | AZ13: =_xlfn.IFNA(MATCH(RAND(), _xlfn.POISSON.DIST({0,1,2,3,4,5,6,7,8,9},$O13, TRUE),1), 0) -> 1 | BA13: =_xlfn.IFNA(MATCH(RAND(), _xlfn.POISSON.DIST({0,1,2,3,4,5,6,7,8,9},$O13, TRUE),1), 0) -> 1 | BB13: =_xlfn.IFNA(MATCH(RAND(), _xlfn.POISSON.DIST({0,1,2,3,4,5,6,7,8,9},$O13, TRUE),1), 0) -> 0 | BC13: =_xlfn.IFNA(MATCH(RAND(), _xlfn.POISSON.DIST({0,1,2,3,4,5,6,7,8,9},$O13, TRUE),1), 0) -> 0 | BD13: =_xlfn.IFNA(MATCH(RAND(), _xlfn.POISSON.DIST({0,1,2,3,4,5,6,7,8,9},$O13, TRUE),1), 0) -> 1 | BE13: =_xlfn.IFNA(MATCH(RAND(), _xlfn.POISSON.DIST({0,1,2,3,4,5,6,7,8,9},$O13, TRUE),1), 0) -> 0 | BF13: =_xlfn.IFNA(MATCH(RAND(), _xlfn.POISSON.DIST({0,1,2,3,4,5,6,7,8,9},$O13, TRUE),1), 0) -> 2 | BG13: =_xlfn.IFNA(MATCH(RAND(), _xlfn.POISSON.DIST({0,1,2,3,4,5,6,7,8,9},$O13, TRUE),1), 0) -> 0 | BH13: =_xlfn.IFNA(MATCH(RAND(), _xlfn.POISSON.DIST({0,1,2,3,4,5,6,7,8,9},$O13, TRUE),1), 0) -> 1 | BI13: =_xlfn.IFNA(MATCH(RAND(), _xlfn.POISSON.DIST({0,1,2,3,4,5,6,7,8,9},$O13, TRUE),1), 0) -> 0 | BJ13: =_xlfn.IFNA(MATCH(RAND(), _xlfn.POISSON.DIST({0,1,2,3,4,5,6,7,8,9},$O13, TRUE),1), 0) -> 0 | BK13: =_xlfn.IFNA(MATCH(RAND(), _xlfn.POISSON.DIST({0,1,2,3,4,5,6,7,8,9},$O13, TRUE),1), 0) -> 1 | BL13: =_xlfn.IFNA(MATCH(RAND(), _xlfn.POISSON.DIST({0,1,2,3,4,5,6,7,8,9},$O13, TRUE),1), 0) -> 0 | BM13: =_xlfn.IFNA(MATCH(RAND(), _xlfn.POISSON.DIST({0,1,2,3,4,5,6,7,8,9},$O13, TRUE),1), 0) -> 1 | BN13: =_xlfn.IFNA(MATCH(RAND(), _xlfn.POISSON.DIST({0,1,2,3,4,5,6,7,8,9},$O13, TRUE),1), 0) -> 1 | BP13: =_xlfn.IFNA(MATCH(RAND(), _xlfn.POISSON.DIST({0,1,2,3,4,5,6,7,8,9},$P13, TRUE),1), 0) -> 6 | BQ13: =_xlfn.IFNA(MATCH(RAND(), _xlfn.POISSON.DIST({0,1,2,3,4,5,6,7,8,9},$P13, TRUE),1), 0) -> 2 | BR13: =_xlfn.IFNA(MATCH(RAND(), _xlfn.POISSON.DIST({0,1,2,3,4,5,6,7,8,9},$P13, TRUE),1), 0) -> 2 | BS13: =_xlfn.IFNA(MATCH(RAND(), _xlfn.POISSON.DIST({0,1,2,3,4,5,6,7,8,9},$P13, TRUE),1), 0) -> 5 | BT13: =_xlfn.IFNA(MATCH(RAND(), _xlfn.POISSON.DIST({0,1,2,3,4,5,6,7,8,9},$P13, TRUE),1), 0) -> 2 | BU13: =_xlfn.IFNA(MATCH(RAND(), _xlfn.POISSON.DIST({0,1,2,3,4,5,6,7,8,9},$P13, TRUE),1), 0) -> 8 | BV13: =_xlfn.IFNA(MATCH(RAND(), _xlfn.POISSON.DIST({0,1,2,3,4,5,6,7,8,9},$P13, TRUE),1), 0) -> 3 | BW13: =_xlfn.IFNA(MATCH(RAND(), _xlfn.POISSON.DIST({0,1,2,3,4,5,6,7,8,9},$P13, TRUE),1), 0) -> 4 | BX13: =_xlfn.IFNA(MATCH(RAND(), _xlfn.POISSON.DIST({0,1,2,3,4,5,6,7,8,9},$P13, TRUE),1), 0) -> 4 | BY13: =_xlfn.IFNA(MATCH(RAND(), _xlfn.POISSON.DIST({0,1,2,3,4,5,6,7,8,9},$P13, TRUE),1), 0) -> 1 | BZ13: =_xlfn.IFNA(MATCH(RAND(), _xlfn.POISSON.DIST({0,1,2,3,4,5,6,7,8,9},$P13, TRUE),1), 0) -> 9 | CA13: =_xlfn.IFNA(MATCH(RAND(), _xlfn.POISSON.DIST({0,1,2,3,4,5,6,7,8,9},$P13, TRUE),1), 0) -> 2 | CB13: =_xlfn.IFNA(MATCH(RAND(), _xlfn.POISSON.DIST({0,1,2,3,4,5,6,7,8,9},$P13, TRUE),1), 0) -> 4 | CC13: =_xlfn.IFNA(MATCH(RAND(), _xlfn.POISSON.DIST({0,1,2,3,4,5,6,7,8,9},$P13, TRUE),1), 0) -> 2 | CD13: =_xlfn.IFNA(MATCH(RAND(), _xlfn.POISSON.DIST({0,1,2,3,4,5,6,7,8,9},$P13, TRUE),1), 0) -> 2 | CE13: =_xlfn.IFNA(MATCH(RAND(), _xlfn.POISSON.DIST({0,1,2,3,4,5,6,7,8,9},$P13, TRUE),1), 0) -> 4 | CF13: =_xlfn.IFNA(MATCH(RAND(), _xlfn.POISSON.DIST({0,1,2,3,4,5,6,7,8,9},$P13, TRUE),1), 0) -> 0 | CG13: =_xlfn.IFNA(MATCH(RAND(), _xlfn.POISSON.DIST({0,1,2,3,4,5,6,7,8,9},$P13, TRUE),1), 0) -> 3 | CH13: =_xlfn.IFNA(MATCH(RAND(), _xlfn.POISSON.DIST({0,1,2,3,4,5,6,7,8,9},$P13, TRUE),1), 0) -> 7 | CI13: =_xlfn.IFNA(MATCH(RAND(), _xlfn.POISSON.DIST({0,1,2,3,4,5,6,7,8,9},$P13, TRUE),1), 0) -> 4 | CJ13: =_xlfn.IFNA(MATCH(RAND(), _xlfn.POISSON.DIST({0,1,2,3,4,5,6,7,8,9},$P13, TRUE),1), 0) -> 5 | CK13: =_xlfn.IFNA(MATCH(RAND(), _xlfn.POISSON.DIST({0,1,2,3,4,5,6,7,8,9},$P13, TRUE),1), 0) -> 1 | CL13: =_xlfn.IFNA(MATCH(RAND(), _xlfn.POISSON.DIST({0,1,2,3,4,5,6,7,8,9},$P13, TRUE),1), 0) -> 6 | CM13: =_xlfn.IFNA(MATCH(RAND(), _xlfn.POISSON.DIST({0,1,2,3,4,5,6,7,8,9},$P13, TRUE),1), 0) -> 4 | CN13: =_xlfn.IFNA(MATCH(RAND(), _xlfn.POISSON.DIST({0,1,2,3,4,5,6,7,8,9},$P13, TRUE),1), 0) -> 4 | CO13: =_xlfn.IFNA(MATCH(RAND(), _xlfn.POISSON.DIST({0,1,2,3,4,5,6,7,8,9},$P13, TRUE),1), 0) -> 2 | CP13: =_xlfn.IFNA(MATCH(RAND(), _xlfn.POISSON.DIST({0,1,2,3,4,5,6,7,8,9},$P13, TRUE),1), 0) -> 6 | CQ13: =_xlfn.IFNA(MATCH(RAND(), _xlfn.POISSON.DIST({0,1,2,3,4,5,6,7,8,9},$P13, TRUE),1), 0) -> 3 | CR13: =_xlfn.IFNA(MATCH(RAND(), _xlfn.POISSON.DIST({0,1,2,3,4,5,6,7,8,9},$P13, TRUE),1), 0) -> 4 | CS13: =_xlfn.IFNA(MATCH(RAND(), _xlfn.POISSON.DIST({0,1,2,3,4,5,6,7,8,9},$P13, TRUE),1), 0) -> 1 | CT13: =_xlfn.IFNA(MATCH(RAND(), _xlfn.POISSON.DIST({0,1,2,3,4,5,6,7,8,9},$P13, TRUE),1), 0) -> 4 | CU13: =_xlfn.IFNA(MATCH(RAND(), _xlfn.POISSON.DIST({0,1,2,3,4,5,6,7,8,9},$P13, TRUE),1), 0) -> 3 | CV13: =_xlfn.IFNA(MATCH(RAND(), _xlfn.POISSON.DIST({0,1,2,3,4,5,6,7,8,9},$P13, TRUE),1), 0) -> 4 | CW13: =_xlfn.IFNA(MATCH(RAND(), _xlfn.POISSON.DIST({0,1,2,3,4,5,6,7,8,9},$P13, TRUE),1), 0) -> 4 | CX13: =_xlfn.IFNA(MATCH(RAND(), _xlfn.POISSON.DIST({0,1,2,3,4,5,6,7,8,9},$P13, TRUE),1), 0) -> 5 | CY13: =_xlfn.IFNA(MATCH(RAND(), _xlfn.POISSON.DIST({0,1,2,3,4,5,6,7,8,9},$P13, TRUE),1), 0) -> 3 | CZ13: =_xlfn.IFNA(MATCH(RAND(), _xlfn.POISSON.DIST({0,1,2,3,4,5,6,7,8,9},$P13, TRUE),1), 0) -> 2 | DA13: =_xlfn.IFNA(MATCH(RAND(), _xlfn.POISSON.DIST({0,1,2,3,4,5,6,7,8,9},$P13, TRUE),1), 0) -> 3 | DB13: =_xlfn.IFNA(MATCH(RAND(), _xlfn.POISSON.DIST({0,1,2,3,4,5,6,7,8,9},$P13, TRUE),1), 0) -> 4 | DC13: =_xlfn.IFNA(MATCH(RAND(), _xlfn.POISSON.DIST({0,1,2,3,4,5,6,7,8,9},$P13, TRUE),1), 0) -> 3 | DD13: =_xlfn.IFNA(MATCH(RAND(), _xlfn.POISSON.DIST({0,1,2,3,4,5,6,7,8,9},$P13, TRUE),1), 0) -> 2 | DE13: =_xlfn.IFNA(MATCH(RAND(), _xlfn.POISSON.DIST({0,1,2,3,4,5,6,7,8,9},$P13, TRUE),1), 0) -> 4 | DF13: =_xlfn.IFNA(MATCH(RAND(), _xlfn.POISSON.DIST({0,1,2,3,4,5,6,7,8,9},$P13, TRUE),1), 0) -> 6 | DG13: =_xlfn.IFNA(MATCH(RAND(), _xlfn.POISSON.DIST({0,1,2,3,4,5,6,7,8,9},$P13, TRUE),1), 0) -> 4 | DH13: =_xlfn.IFNA(MATCH(RAND(), _xlfn.POISSON.DIST({0,1,2,3,4,5,6,7,8,9},$P13, TRUE),1), 0) -> 6 | DI13: =_xlfn.IFNA(MATCH(RAND(), _xlfn.POISSON.DIST({0,1,2,3,4,5,6,7,8,9},$P13, TRUE),1), 0) -> 3 | DJ13: =_xlfn.IFNA(MATCH(RAND(), _xlfn.POISSON.DIST({0,1,2,3,4,5,6,7,8,9},$P13, TRUE),1), 0) -> 3 | DK13: =_xlfn.IFNA(MATCH(RAND(), _xlfn.POISSON.DIST({0,1,2,3,4,5,6,7,8,9},$P13, TRUE),1), 0) -> 4 | DL13: =_xlfn.IFNA(MATCH(RAND(), _xlfn.POISSON.DIST({0,1,2,3,4,5,6,7,8,9},$P13, TRUE),1), 0) -> 0 | DM13: =_xlfn.IFNA(MATCH(RAND(), _xlfn.POISSON.DIST({0,1,2,3,4,5,6,7,8,9},$P13, TRUE),1), 0) -> 0
C14: 2019-06-10 | D14: E | E14: Canada | F14: =(AVERAGE(Q14:BN14))*(1+INDEX('Voorspellingen groepsfase'!$C$4:$O$28, MATCH('De wedstrijden van dit seizoen'!E14,'Voorspellingen groepsfase'!$D$4:$D$28,0),3)) -> 2.50 | G14: Kameroen | H14: =(AVERAGE(BP14:DM14))*(1+INDEX('Voorspellingen groepsfase'!$C$4:$O$28, MATCH('De wedstrijden van dit seizoen'!G14,'Voorspellingen groepsfase'!$D$4:$D$28,0),3)) -> 0.20 | I14: Canada | L14: 2.5 | M14: 0.2 | N14: Canada | O14: =(OFFSET('Bijlage 3 - Goals per groep'!$D$14,(INDEX('Bijlage 1 - Teamgegevens'!$C$13:$F$112,MATCH(G14,'Bijlage 1 - Teamgegevens'!$C$13:$C$112,0),4)/10),(INDEX('Bijlage 1 - Teamgegevens'!$C$13:$F$112,MATCH(E14,'Bijlage 1 - Teamgegevens'!$C$13:$C$112,0),4)/10))) -> 2.46 | P14: =OFFSET('Bijlage 3 - Goals per groep'!$D$14,(INDEX('Bijlage 1 - Teamgegevens'!$C$13:$F$112, MATCH(E14,'Bijlage 1 - Teamgegevens'!$C$13:$C$112,0),4)/10), (INDEX('Bijlage 1 - Teamgegevens'!$C$13:$F$112, MATCH(G14, 'Bijlage 1 - Teamgegevens'!$C$13:$C$112,0),4)/10)) -> 0.38 | Q14: =_xlfn.IFNA(MATCH(RAND(), _xlfn.POISSON.DIST({0,1,2,3,4,5,6,7,8,9},$O14, TRUE),1), 0) -> 3 | R14: =_xlfn.IFNA(MATCH(RAND(), _xlfn.POISSON.DIST({0,1,2,3,4,5,6,7,8,9},$O14, TRUE),1), 0) -> 2 | S14: =_xlfn.IFNA(MATCH(RAND(), _xlfn.POISSON.DIST({0,1,2,3,4,5,6,7,8,9},$O14, TRUE),1), 0) -> 0 | T14: =_xlfn.IFNA(MATCH(RAND(), _xlfn.POISSON.DIST({0,1,2,3,4,5,6,7,8,9},$O14, TRUE),1), 0) -> 0 | U14: =_xlfn.IFNA(MATCH(RAND(), _xlfn.POISSON.DIST({0,1,2,3,4,5,6,7,8,9},$O14, TRUE),1), 0) -> 5 | V14: =_xlfn.IFNA(MATCH(RAND(), _xlfn.POISSON.DIST({0,1,2,3,4,5,6,7,8,9},$O14, TRUE),1), 0) -> 1 | W14: =_xlfn.IFNA(MATCH(RAND(), _xlfn.POISSON.DIST({0,1,2,3,4,5,6,7,8,9},$O14, TRUE),1), 0) -> 2 | X14: =_xlfn.IFNA(MATCH(RAND(), _xlfn.POISSON.DIST({0,1,2,3,4,5,6,7,8,9},$O14, TRUE),1), 0) -> 4 | Y14: =_xlfn.IFNA(MATCH(RAND(), _xlfn.POISSON.DIST({0,1,2,3,4,5,6,7,8,9},$O14, TRUE),1), 0) -> 1 | Z14: =_xlfn.IFNA(MATCH(RAND(), _xlfn.POISSON.DIST({0,1,2,3,4,5,6,7,8,9},$O14, TRUE),1), 0) -> 5 | AA14: =_xlfn.IFNA(MATCH(RAND(), _xlfn.POISSON.DIST({0,1,2,3,4,5,6,7,8,9},$O14, TRUE),1), 0) -> 2 | AB14: =_xlfn.IFNA(MATCH(RAND(), _xlfn.POISSON.DIST({0,1,2,3,4,5,6,7,8,9},$O14, TRUE),1), 0) -> 1 | AC14: =_xlfn.IFNA(MATCH(RAND(), _xlfn.POISSON.DIST({0,1,2,3,4,5,6,7,8,9},$O14, TRUE),1), 0) -> 1 | AD14: =_xlfn.IFNA(MATCH(RAND(), _xlfn.POISSON.DIST({0,1,2,3,4,5,6,7,8,9},$O14, TRUE),1), 0) -> 2 | AE14: =_xlfn.IFNA(MATCH(RAND(), _xlfn.POISSON.DIST({0,1,2,3,4,5,6,7,8,9},$O14, TRUE),1), 0) -> 0 | AF14: =_xlfn.IFNA(MATCH(RAND(), _xlfn.POISSON.DIST({0,1,2,3,4,5,6,7,8,9},$O14, TRUE),1), 0) -> 5 | AG14: =_xlfn.IFNA(MATCH(RAND(), _xlfn.POISSON.DIST({0,1,2,3,4,5,6,7,8,9},$O14, TRUE),1), 0) -> 3 | AH14: =_xlfn.IFNA(MATCH(RAND(), _xlfn.POISSON.DIST({0,1,2,3,4,5,6,7,8,9},$O14, TRUE),1), 0) -> 4 | AI14: =_xlfn.IFNA(MATCH(RAND(), _xlfn.POISSON.DIST({0,1,2,3,4,5,6,7,8,9},$O14, TRUE),1), 0) -> 5 | AJ14: =_xlfn.IFNA(MATCH(RAND(), _xlfn.POISSON.DIST({0,1,2,3,4,5,6,7,8,9},$O14, TRUE),1), 0) -> 3 | AK14: =_xlfn.IFNA(MATCH(RAND(), _xlfn.POISSON.DIST({0,1,2,3,4,5,6,7,8,9},$O14, TRUE),1), 0) -> 2 | AL14: =_xlfn.IFNA(MATCH(RAND(), _xlfn.POISSON.DIST({0,1,2,3,4,5,6,7,8,9},$O14, TRUE),1), 0) -> 3 | AM14: =_xlfn.IFNA(MATCH(RAND(), _xlfn.POISSON.DIST({0,1,2,3,4,5,6,7,8,9},$O14, TRUE),1), 0) -> 1 | AN14: =_xlfn.IFNA(MATCH(RAND(), _xlfn.POISSON.DIST({0,1,2,3,4,5,6,7,8,9},$O14, TRUE),1), 0) -> 5 | AO14: =_xlfn.IFNA(MATCH(RAND(), _xlfn.POISSON.DIST({0,1,2,3,4,5,6,7,8,9},$O14, TRUE),1), 0) -> 1 | AP14: =_xlfn.IFNA(MATCH(RAND(), _xlfn.POISSON.DIST({0,1,2,3,4,5,6,7,8,9},$O14, TRUE),1), 0) -> 2 | AQ14: =_xlfn.IFNA(MATCH(RAND(), _xlfn.POISSON.DIST({0,1,2,3,4,5,6,7,8,9},$O14, TRUE),1), 0) -> 3 | AR14: =_xlfn.IFNA(MATCH(RAND(), _xlfn.POISSON.DIST({0,1,2,3,4,5,6,7,8,9},$O14, TRUE),1), 0) -> 2 | AS14: =_xlfn.IFNA(MATCH(RAND(), _xlfn.POISSON.DIST({0,1,2,3,4,5,6,7,8,9},$O14, TRUE),1), 0) -> 1 | AT14: =_xlfn.IFNA(MATCH(RAND(), _xlfn.POISSON.DIST({0,1,2,3,4,5,6,7,8,9},$O14, TRUE),1), 0) -> 2 | AU14: =_xlfn.IFNA(MATCH(RAND(), _xlfn.POISSON.DIST({0,1,2,3,4,5,6,7,8,9},$O14, TRUE),1), 0) -> 3 | AV14: =_xlfn.IFNA(MATCH(RAND(), _xlfn.POISSON.DIST({0,1,2,3,4,5,6,7,8,9},$O14, TRUE),1), 0) -> 5 | AW14: =_xlfn.IFNA(MATCH(RAND(), _xlfn.POISSON.DIST({0,1,2,3,4,5,6,7,8,9},$O14, TRUE),1), 0) -> 0 | AX14: =_xlfn.IFNA(MATCH(RAND(), _xlfn.POISSON.DIST({0,1,2,3,4,5,6,7,8,9},$O14, TRUE),1), 0) -> 2 | AY14: =_xlfn.IFNA(MATCH(RAND(), _xlfn.POISSON.DIST({0,1,2,3,4,5,6,7,8,9},$O14, TRUE),1), 0) -> 3 | AZ14: =_xlfn.IFNA(MATCH(RAND(), _xlfn.POISSON.DIST({0,1,2,3,4,5,6,7,8,9},$O14, TRUE),1), 0) -> 5 | BA14: =_xlfn.IFNA(MATCH(RAND(), _xlfn.POISSON.DIST({0,1,2,3,4,5,6,7,8,9},$O14, TRUE),1), 0) -> 2 | BB14: =_xlfn.IFNA(MATCH(RAND(), _xlfn.POISSON.DIST({0,1,2,3,4,5,6,7,8,9},$O14, TRUE),1), 0) -> 5 | BC14: =_xlfn.IFNA(MATCH(RAND(), _xlfn.POISSON.DIST({0,1,2,3,4,5,6,7,8,9},$O14, TRUE),1), 0) -> 2 | BD14: =_xlfn.IFNA(MATCH(RAND(), _xlfn.POISSON.DIST({0,1,2,3,4,5,6,7,8,9},$O14, TRUE),1), 0) -> 1 | BE14: =_xlfn.IFNA(MATCH(RAND(), _xlfn.POISSON.DIST({0,1,2,3,4,5,6,7,8,9},$O14, TRUE),1), 0) -> 3 | BF14: =_xlfn.IFNA(MATCH(RAND(), _xlfn.POISSON.DIST({0,1,2,3,4,5,6,7,8,9},$O14, TRUE),1), 0) -> 1 | BG14: =_xlfn.IFNA(MATCH(RAND(), _xlfn.POISSON.DIST({0,1,2,3,4,5,6,7,8,9},$O14, TRUE),1), 0) -> 2 | BH14: =_xlfn.IFNA(MATCH(RAND(), _xlfn.POISSON.DIST({0,1,2,3,4,5,6,7,8,9},$O14, TRUE),1), 0) -> 2 | BI14: =_xlfn.IFNA(MATCH(RAND(), _xlfn.POISSON.DIST({0,1,2,3,4,5,6,7,8,9},$O14, TRUE),1), 0) -> 4 | BJ14: =_xlfn.IFNA(MATCH(RAND(), _xlfn.POISSON.DIST({0,1,2,3,4,5,6,7,8,9},$O14, TRUE),1), 0) -> 1 | BK14: =_xlfn.IFNA(MATCH(RAND(), _xlfn.POISSON.DIST({0,1,2,3,4,5,6,7,8,9},$O14, TRUE),1), 0) -> 1 | BL14: =_xlfn.IFNA(MATCH(RAND(), _xlfn.POISSON.DIST({0,1,2,3,4,5,6,7,8,9},$O14, TRUE),1), 0) -> 2 | BM14: =_xlfn.IFNA(MATCH(RAND(), _xlfn.POISSON.DIST({0,1,2,3,4,5,6,7,8,9},$O14, TRUE),1), 0) -> 4 | BN14: =_xlfn.IFNA(MATCH(RAND(), _xlfn.POISSON.DIST({0,1,2,3,4,5,6,7,8,9},$O14, TRUE),1), 0) -> 6 | BP14: =_xlfn.IFNA(MATCH(RAND(), _xlfn.POISSON.DIST({0,1,2,3,4,5,6,7,8,9},$P14, TRUE),1), 0) -> 0 | BQ14: =_xlfn.IFNA(MATCH(RAND(), _xlfn.POISSON.DIST({0,1,2,3,4,5,6,7,8,9},$P14, TRUE),1), 0) -> 1 | BR14: =_xlfn.IFNA(MATCH(RAND(), _xlfn.POISSON.DIST({0,1,2,3,4,5,6,7,8,9},$P14, TRUE),1), 0) -> 0 | BS14: =_xlfn.IFNA(MATCH(RAND(), _xlfn.POISSON.DIST({0,1,2,3,4,5,6,7,8,9},$P14, TRUE),1), 0) -> 0 | BT14: =_xlfn.IFNA(MATCH(RAND(), _xlfn.POISSON.DIST({0,1,2,3,4,5,6,7,8,9},$P14, TRUE),1), 0) -> 1 | BU14: =_xlfn.IFNA(MATCH(RAND(), _xlfn.POISSON.DIST({0,1,2,3,4,5,6,7,8,9},$P14, TRUE),1), 0) -> 0 | BV14: =_xlfn.IFNA(MATCH(RAND(), _xlfn.POISSON.DIST({0,1,2,3,4,5,6,7,8,9},$P14, TRUE),1), 0) -> 0 | BW14: =_xlfn.IFNA(MATCH(RAND(), _xlfn.POISSON.DIST({0,1,2,3,4,5,6,7,8,9},$P14, TRUE),1), 0) -> 0 | BX14: =_xlfn.IFNA(MATCH(RAND(), _xlfn.POISSON.DIST({0,1,2,3,4,5,6,7,8,9},$P14, TRUE),1), 0) -> 0 | BY14: =_xlfn.IFNA(MATCH(RAND(), _xlfn.POISSON.DIST({0,1,2,3,4,5,6,7,8,9},$P14, TRUE),1), 0) -> 0 | BZ14: =_xlfn.IFNA(MATCH(RAND(), _xlfn.POISSON.DIST({0,1,2,3,4,5,6,7,8,9},$P14, TRUE),1), 0) -> 0 | CA14: =_xlfn.IFNA(MATCH(RAND(), _xlfn.POISSON.DIST({0,1,2,3,4,5,6,7,8,9},$P14, TRUE),1), 0) -> 0 | CB14: =_xlfn.IFNA(MATCH(RAND(), _xlfn.POISSON.DIST({0,1,2,3,4,5,6,7,8,9},$P14, TRUE),1), 0) -> 0 | CC14: =_xlfn.IFNA(MATCH(RAND(), _xlfn.POISSON.DIST({0,1,2,3,4,5,6,7,8,9},$P14, TRUE),1), 0) -> 0 | CD14: =_xlfn.IFNA(MATCH(RAND(), _xlfn.POISSON.DIST({0,1,2,3,4,5,6,7,8,9},$P14, TRUE),1), 0) -> 0 | CE14: =_xlfn.IFNA(MATCH(RAND(), _xlfn.POISSON.DIST({0,1,2,3,4,5,6,7,8,9},$P14, TRUE),1), 0) -> 0 | CF14: =_xlfn.IFNA(MATCH(RAND(), _xlfn.POISSON.DIST({0,1,2,3,4,5,6,7,8,9},$P14, TRUE),1), 0) -> 0 | CG14: =_xlfn.IFNA(MATCH(RAND(), _xlfn.POISSON.DIST({0,1,2,3,4,5,6,7,8,9},$P14, TRUE),1), 0) -> 0 | CH14: =_xlfn.IFNA(MATCH(RAND(), _xlfn.POISSON.DIST({0,1,2,3,4,5,6,7,8,9},$P14, TRUE),1), 0) -> 0 | CI14: =_xlfn.IFNA(MATCH(RAND(), _xlfn.POISSON.DIST({0,1,2,3,4,5,6,7,8,9},$P14, TRUE),1), 0) -> 0 | CJ14: =_xlfn.IFNA(MATCH(RAND(), _xlfn.POISSON.DIST({0,1,2,3,4,5,6,7,8,9},$P14, TRUE),1), 0) -> 0 | CK14: =_xlfn.IFNA(MATCH(RAND(), _xlfn.POISSON.DIST({0,1,2,3,4,5,6,7,8,9},$P14, TRUE),1), 0) -> 0 | CL14: =_xlfn.IFNA(MATCH(RAND(), _xlfn.POISSON.DIST({0,1,2,3,4,5,6,7,8,9},$P14, TRUE),1), 0) -> 0 | CM14: =_xlfn.IFNA(MATCH(RAND(), _xlfn.POISSON.DIST({0,1,2,3,4,5,6,7,8,9},$P14, TRUE),1), 0) -> 0 | CN14: =_xlfn.IFNA(MATCH(RAND(), _xlfn.POISSON.DIST({0,1,2,3,4,5,6,7,8,9},$P14, TRUE),1), 0) -> 0 | CO14: =_xlfn.IFNA(MATCH(RAND(), _xlfn.POISSON.DIST({0,1,2,3,4,5,6,7,8,9},$P14, TRUE),1), 0) -> 0 | CP14: =_xlfn.IFNA(MATCH(RAND(), _xlfn.POISSON.DIST({0,1,2,3,4,5,6,7,8,9},$P14, TRUE),1), 0) -> 0 | CQ14: =_xlfn.IFNA(MATCH(RAND(), _xlfn.POISSON.DIST({0,1,2,3,4,5,6,7,8,9},$P14, TRUE),1), 0) -> 1 | CR14: =_xlfn.IFNA(MATCH(RAND(), _xlfn.POISSON.DIST({0,1,2,3,4,5,6,7,8,9},$P14, TRUE),1), 0) -> 0 | CS14: =_xlfn.IFNA(MATCH(RAND(), _xlfn.POISSON.DIST({0,1,2,3,4,5,6,7,8,9},$P14, TRUE),1), 0) -> 0 | CT14: =_xlfn.IFNA(MATCH(RAND(), _xlfn.POISSON.DIST({0,1,2,3,4,5,6,7,8,9},$P14, TRUE),1), 0) -> 2 | CU14: =_xlfn.IFNA(MATCH(RAND(), _xlfn.POISSON.DIST({0,1,2,3,4,5,6,7,8,9},$P14, TRUE),1), 0) -> 0 | CV14: =_xlfn.IFNA(MATCH(RAND(), _xlfn.POISSON.DIST({0,1,2,3,4,5,6,7,8,9},$P14, TRUE),1), 0) -> 0 | CW14: =_xlfn.IFNA(MATCH(RAND(), _xlfn.POISSON.DIST({0,1,2,3,4,5,6,7,8,9},$P14, TRUE),1), 0) -> 0 | CX14: =_xlfn.IFNA(MATCH(RAND(), _xlfn.POISSON.DIST({0,1,2,3,4,5,6,7,8,9},$P14, TRUE),1), 0) -> 0 | CY14: =_xlfn.IFNA(MATCH(RAND(), _xlfn.POISSON.DIST({0,1,2,3,4,5,6,7,8,9},$P14, TRUE),1), 0) -> 0 | CZ14: =_xlfn.IFNA(MATCH(RAND(), _xlfn.POISSON.DIST({0,1,2,3,4,5,6,7,8,9},$P14, TRUE),1), 0) -> 1 | DA14: =_xlfn.IFNA(MATCH(RAND(), _xlfn.POISSON.DIST({0,1,2,3,4,5,6,7,8,9},$P14, TRUE),1), 0) -> 0 | DB14: =_xlfn.IFNA(MATCH(RAND(), _xlfn.POISSON.DIST({0,1,2,3,4,5,6,7,8,9},$P14, TRUE),1), 0) -> 0 | DC14: =_xlfn.IFNA(MATCH(RAND(), _xlfn.POISSON.DIST({0,1,2,3,4,5,6,7,8,9},$P14, TRUE),1), 0) -> 0 | DD14: =_xlfn.IFNA(MATCH(RAND(), _xlfn.POISSON.DIST({0,1,2,3,4,5,6,7,8,9},$P14, TRUE),1), 0) -> 0 | DE14: =_xlfn.IFNA(MATCH(RAND(), _xlfn.POISSON.DIST({0,1,2,3,4,5,6,7,8,9},$P14, TRUE),1), 0) -> 1 | DF14: =_xlfn.IFNA(MATCH(RAND(), _xlfn.POISSON.DIST({0,1,2,3,4,5,6,7,8,9},$P14, TRUE),1), 0) -> 0 | DG14: =_xlfn.IFNA(MATCH(RAND(), _xlfn.POISSON.DIST({0,1,2,3,4,5,6,7,8,9},$P14, TRUE),1), 0) -> 0 | DH14: =_xlfn.IFNA(MATCH(RAND(), _xlfn.POISSON.DIST({0,1,2,3,4,5,6,7,8,9},$P14, TRUE),1), 0) -> 0 | DI14: =_xlfn.IFNA(MATCH(RAND(), _xlfn.POISSON.DIST({0,1,2,3,4,5,6,7,8,9},$P14, TRUE),1), 0) -> 0 | DJ14: =_xlfn.IFNA(MATCH(RAND(), _xlfn.POISSON.DIST({0,1,2,3,4,5,6,7,8,9},$P14, TRUE),1), 0) -> 0 | DK14: =_xlfn.IFNA(MATCH(RAND(), _xlfn.POISSON.DIST({0,1,2,3,4,5,6,7,8,9},$P14, TRUE),1), 0) -> 1 | DL14: =_xlfn.IFNA(MATCH(RAND(), _xlfn.POISSON.DIST({0,1,2,3,4,5,6,7,8,9},$P14, TRUE),1), 0) -> 0 | DM14: =_xlfn.IFNA(MATCH(RAND(), _xlfn.POISSON.DIST({0,1,2,3,4,5,6,7,8,9},$P14, TRUE),1), 0) -> 2
C15: 2019-06-11 | D15: E | E15: Nieuw-Zeeland | F15: =(AVERAGE(Q15:BN15))*(1+INDEX('Voorspellingen groepsfase'!$C$4:$O$28, MATCH('De wedstrijden van dit seizoen'!E15,'Voorspellingen groepsfase'!$D$4:$D$28,0),3)) -> 1.12 | G15: Nederland | H15: =(AVERAGE(BP15:DM15))*(1+INDEX('Voorspellingen groepsfase'!$C$4:$O$28, MATCH('De wedstrijden van dit seizoen'!G15,'Voorspellingen groepsfase'!$D$4:$D$28,0),3)) -> 1.86 | I15: Nederland | L15: 1.12 | M15: 1.86 | N15: Nederland | O15: =(OFFSET('Bijlage 3 - Goals per groep'!$D$14,(INDEX('Bijlage 1 - Teamgegevens'!$C$13:$F$112,MATCH(G15,'Bijlage 1 - Teamgegevens'!$C$13:$C$112,0),4)/10),(INDEX('Bijlage 1 - Teamgegevens'!$C$13:$F$112,MATCH(E15,'Bijlage 1 - Teamgegevens'!$C$13:$C$112,0),4)/10))) -> 1.07 | P15: =OFFSET('Bijlage 3 - Goals per groep'!$D$14,(INDEX('Bijlage 1 - Teamgegevens'!$C$13:$F$112, MATCH(E15,'Bijlage 1 - Teamgegevens'!$C$13:$C$112,0),4)/10), (INDEX('Bijlage 1 - Teamgegevens'!$C$13:$F$112, MATCH(G15, 'Bijlage 1 - Teamgegevens'!$C$13:$C$112,0),4)/10)) -> 1.78 | Q15: =_xlfn.IFNA(MATCH(RAND(), _xlfn.POISSON.DIST({0,1,2,3,4,5,6,7,8,9},$O15, TRUE),1), 0) -> 0 | R15: =_xlfn.IFNA(MATCH(RAND(), _xlfn.POISSON.DIST({0,1,2,3,4,5,6,7,8,9},$O15, TRUE),1), 0) -> 1 | S15: =_xlfn.IFNA(MATCH(RAND(), _xlfn.POISSON.DIST({0,1,2,3,4,5,6,7,8,9},$O15, TRUE),1), 0) -> 1 | T15: =_xlfn.IFNA(MATCH(RAND(), _xlfn.POISSON.DIST({0,1,2,3,4,5,6,7,8,9},$O15, TRUE),1), 0) -> 1 | U15: =_xlfn.IFNA(MATCH(RAND(), _xlfn.POISSON.DIST({0,1,2,3,4,5,6,7,8,9},$O15, TRUE),1), 0) -> 1 | V15: =_xlfn.IFNA(MATCH(RAND(), _xlfn.POISSON.DIST({0,1,2,3,4,5,6,7,8,9},$O15, TRUE),1), 0) -> 0 | W15: =_xlfn.IFNA(MATCH(RAND(), _xlfn.POISSON.DIST({0,1,2,3,4,5,6,7,8,9},$O15, TRUE),1), 0) -> 4 | X15: =_xlfn.IFNA(MATCH(RAND(), _xlfn.POISSON.DIST({0,1,2,3,4,5,6,7,8,9},$O15, TRUE),1), 0) -> 0 | Y15: =_xlfn.IFNA(MATCH(RAND(), _xlfn.POISSON.DIST({0,1,2,3,4,5,6,7,8,9},$O15, TRUE),1), 0) -> 0 | Z15: =_xlfn.IFNA(MATCH(RAND(), _xlfn.POISSON.DIST({0,1,2,3,4,5,6,7,8,9},$O15, TRUE),1), 0) -> 1 | AA15: =_xlfn.IFNA(MATCH(RAND(), _xlfn.POISSON.DIST({0,1,2,3,4,5,6,7,8,9},$O15, TRUE),1), 0) -> 2 | AB15: =_xlfn.IFNA(MATCH(RAND(), _xlfn.POISSON.DIST({0,1,2,3,4,5,6,7,8,9},$O15, TRUE),1), 0) -> 2 | AC15: =_xlfn.IFNA(MATCH(RAND(), _xlfn.POISSON.DIST({0,1,2,3,4,5,6,7,8,9},$O15, TRUE),1), 0) -> 0 | AD15: =_xlfn.IFNA(MATCH(RAND(), _xlfn.POISSON.DIST({0,1,2,3,4,5,6,7,8,9},$O15, TRUE),1), 0) -> 1 | AE15: =_xlfn.IFNA(MATCH(RAND(), _xlfn.POISSON.DIST({0,1,2,3,4,5,6,7,8,9},$O15, TRUE),1), 0) -> 1 | AF15: =_xlfn.IFNA(MATCH(RAND(), _xlfn.POISSON.DIST({0,1,2,3,4,5,6,7,8,9},$O15, TRUE),1), 0) -> 1 | AG15: =_xlfn.IFNA(MATCH(RAND(), _xlfn.POISSON.DIST({0,1,2,3,4,5,6,7,8,9},$O15, TRUE),1), 0) -> 1 | AH15: =_xlfn.IFNA(MATCH(RAND(), _xlfn.POISSON.DIST({0,1,2,3,4,5,6,7,8,9},$O15, TRUE),1), 0) -> 1 | AI15: =_xlfn.IFNA(MATCH(RAND(), _xlfn.POISSON.DIST({0,1,2,3,4,5,6,7,8,9},$O15, TRUE),1), 0) -> 1 | AJ15: =_xlfn.IFNA(MATCH(RAND(), _xlfn.POISSON.DIST({0,1,2,3,4,5,6,7,8,9},$O15, TRUE),1), 0) -> 0 | AK15: =_xlfn.IFNA(MATCH(RAND(), _xlfn.POISSON.DIST({0,1,2,3,4,5,6,7,8,9},$O15, TRUE),1), 0) -> 3 | AL15: =_xlfn.IFNA(MATCH(RAND(), _xlfn.POISSON.DIST({0,1,2,3,4,5,6,7,8,9},$O15, TRUE),1), 0) -> 1 | AM15: =_xlfn.IFNA(MATCH(RAND(), _xlfn.POISSON.DIST({0,1,2,3,4,5,6,7,8,9},$O15, TRUE),1), 0) -> 1 | AN15: =_xlfn.IFNA(MATCH(RAND(), _xlfn.POISSON.DIST({0,1,2,3,4,5,6,7,8,9},$O15, TRUE),1), 0) -> 0 | AO15: =_xlfn.IFNA(MATCH(RAND(), _xlfn.POISSON.DIST({0,1,2,3,4,5,6,7,8,9},$O15, TRUE),1), 0) -> 1 | AP15: =_xlfn.IFNA(MATCH(RAND(), _xlfn.POISSON.DIST({0,1,2,3,4,5,6,7,8,9},$O15, TRUE),1), 0) -> 0 | AQ15: =_xlfn.IFNA(MATCH(RAND(), _xlfn.POISSON.DIST({0,1,2,3,4,5,6,7,8,9},$O15, TRUE),1), 0) -> 0 | AR15: =_xlfn.IFNA(MATCH(RAND(), _xlfn.POISSON.DIST({0,1,2,3,4,5,6,7,8,9},$O15, TRUE),1), 0) -> 1 | AS15: =_xlfn.IFNA(MATCH(RAND(), _xlfn.POISSON.DIST({0,1,2,3,4,5,6,7,8,9},$O15, TRUE),1), 0) -> 2 | AT15: =_xlfn.IFNA(MATCH(RAND(), _xlfn.POISSON.DIST({0,1,2,3,4,5,6,7,8,9},$O15, TRUE),1), 0) -> 1 | AU15: =_xlfn.IFNA(MATCH(RAND(), _xlfn.POISSON.DIST({0,1,2,3,4,5,6,7,8,9},$O15, TRUE),1), 0) -> 1 | AV15: =_xlfn.IFNA(MATCH(RAND(), _xlfn.POISSON.DIST({0,1,2,3,4,5,6,7,8,9},$O15, TRUE),1), 0) -> 1 | AW15: =_xlfn.IFNA(MATCH(RAND(), _xlfn.POISSON.DIST({0,1,2,3,4,5,6,7,8,9},$O15, TRUE),1), 0) -> 2 | AX15: =_xlfn.IFNA(MATCH(RAND(), _xlfn.POISSON.DIST({0,1,2,3,4,5,6,7,8,9},$O15, TRUE),1), 0) -> 1 | AY15: =_xlfn.IFNA(MATCH(RAND(), _xlfn.POISSON.DIST({0,1,2,3,4,5,6,7,8,9},$O15, TRUE),1), 0) -> 3 | AZ15: =_xlfn.IFNA(MATCH(RAND(), _xlfn.POISSON.DIST({0,1,2,3,4,5,6,7,8,9},$O15, TRUE),1), 0) -> 0 | BA15: =_xlfn.IFNA(MATCH(RAND(), _xlfn.POISSON.DIST({0,1,2,3,4,5,6,7,8,9},$O15, TRUE),1), 0) -> 1 | BB15: =_xlfn.IFNA(MATCH(RAND(), _xlfn.POISSON.DIST({0,1,2,3,4,5,6,7,8,9},$O15, TRUE),1), 0) -> 1 | BC15: =_xlfn.IFNA(MATCH(RAND(), _xlfn.POISSON.DIST({0,1,2,3,4,5,6,7,8,9},$O15, TRUE),1), 0) -> 3 | BD15: =_xlfn.IFNA(MATCH(RAND(), _xlfn.POISSON.DIST({0,1,2,3,4,5,6,7,8,9},$O15, TRUE),1), 0) -> 2 | BE15: =_xlfn.IFNA(MATCH(RAND(), _xlfn.POISSON.DIST({0,1,2,3,4,5,6,7,8,9},$O15, TRUE),1), 0) -> 2 | BF15: =_xlfn.IFNA(MATCH(RAND(), _xlfn.POISSON.DIST({0,1,2,3,4,5,6,7,8,9},$O15, TRUE),1), 0) -> 0 | BG15: =_xlfn.IFNA(MATCH(RAND(), _xlfn.POISSON.DIST({0,1,2,3,4,5,6,7,8,9},$O15, TRUE),1), 0) -> 0 | BH15: =_xlfn.IFNA(MATCH(RAND(), _xlfn.POISSON.DIST({0,1,2,3,4,5,6,7,8,9},$O15, TRUE),1), 0) -> 1 | BI15: =_xlfn.IFNA(MATCH(RAND(), _xlfn.POISSON.DIST({0,1,2,3,4,5,6,7,8,9},$O15, TRUE),1), 0) -> 2 | BJ15: =_xlfn.IFNA(MATCH(RAND(), _xlfn.POISSON.DIST({0,1,2,3,4,5,6,7,8,9},$O15, TRUE),1), 0) -> 1 | BK15: =_xlfn.IFNA(MATCH(RAND(), _xlfn.POISSON.DIST({0,1,2,3,4,5,6,7,8,9},$O15, TRUE),1), 0) -> 3 | BL15: =_xlfn.IFNA(MATCH(RAND(), _xlfn.POISSON.DIST({0,1,2,3,4,5,6,7,8,9},$O15, TRUE),1), 0) -> 2 | BM15: =_xlfn.IFNA(MATCH(RAND(), _xlfn.POISSON.DIST({0,1,2,3,4,5,6,7,8,9},$O15, TRUE),1), 0) -> 0 | BN15: =_xlfn.IFNA(MATCH(RAND(), _xlfn.POISSON.DIST({0,1,2,3,4,5,6,7,8,9},$O15, TRUE),1), 0) -> 1 | BP15: =_xlfn.IFNA(MATCH(RAND(), _xlfn.POISSON.DIST({0,1,2,3,4,5,6,7,8,9},$P15, TRUE),1), 0) -> 2 | BQ15: =_xlfn.IFNA(MATCH(RAND(), _xlfn.POISSON.DIST({0,1,2,3,4,5,6,7,8,9},$P15, TRUE),1), 0) -> 1 | BR15: =_xlfn.IFNA(MATCH(RAND(), _xlfn.POISSON.DIST({0,1,2,3,4,5,6,7,8,9},$P15, TRUE),1), 0) -> 1 | BS15: =_xlfn.IFNA(MATCH(RAND(), _xlfn.POISSON.DIST({0,1,2,3,4,5,6,7,8,9},$P15, TRUE),1), 0) -> 2 | BT15: =_xlfn.IFNA(MATCH(RAND(), _xlfn.POISSON.DIST({0,1,2,3,4,5,6,7,8,9},$P15, TRUE),1), 0) -> 1 | BU15: =_xlfn.IFNA(MATCH(RAND(), _xlfn.POISSON.DIST({0,1,2,3,4,5,6,7,8,9},$P15, TRUE),1), 0) -> 4 | BV15: =_xlfn.IFNA(MATCH(RAND(), _xlfn.POISSON.DIST({0,1,2,3,4,5,6,7,8,9},$P15, TRUE),1), 0) -> 2 | BW15: =_xlfn.IFNA(MATCH(RAND(), _xlfn.POISSON.DIST({0,1,2,3,4,5,6,7,8,9},$P15, TRUE),1), 0) -> 2 | BX15: =_xlfn.IFNA(MATCH(RAND(), _xlfn.POISSON.DIST({0,1,2,3,4,5,6,7,8,9},$P15, TRUE),1), 0) -> 1 | BY15: =_xlfn.IFNA(MATCH(RAND(), _xlfn.POISSON.DIST({0,1,2,3,4,5,6,7,8,9},$P15, TRUE),1), 0) -> 1 | BZ15: =_xlfn.IFNA(MATCH(RAND(), _xlfn.POISSON.DIST({0,1,2,3,4,5,6,7,8,9},$P15, TRUE),1), 0) -> 1 | CA15: =_xlfn.IFNA(MATCH(RAND(), _xlfn.POISSON.DIST({0,1,2,3,4,5,6,7,8,9},$P15, TRUE),1), 0) -> 3 | CB15: =_xlfn.IFNA(MATCH(RAND(), _xlfn.POISSON.DIST({0,1,2,3,4,5,6,7,8,9},$P15, TRUE),1), 0) -> 1 | CC15: =_xlfn.IFNA(MATCH(RAND(), _xlfn.POISSON.DIST({0,1,2,3,4,5,6,7,8,9},$P15, TRUE),1), 0) -> 2 | CD15: =_xlfn.IFNA(MATCH(RAND(), _xlfn.POISSON.DIST({0,1,2,3,4,5,6,7,8,9},$P15, TRUE),1), 0) -> 6 | CE15: =_xlfn.IFNA(MATCH(RAND(), _xlfn.POISSON.DIST({0,1,2,3,4,5,6,7,8,9},$P15, TRUE),1), 0) -> 1 | CF15: =_xlfn.IFNA(MATCH(RAND(), _xlfn.POISSON.DIST({0,1,2,3,4,5,6,7,8,9},$P15, TRUE),1), 0) -> 2 | CG15: =_xlfn.IFNA(MATCH(RAND(), _xlfn.POISSON.DIST({0,1,2,3,4,5,6,7,8,9},$P15, TRUE),1), 0) -> 3 | CH15: =_xlfn.IFNA(MATCH(RAND(), _xlfn.POISSON.DIST({0,1,2,3,4,5,6,7,8,9},$P15, TRUE),1), 0) -> 0 | CI15: =_xlfn.IFNA(MATCH(RAND(), _xlfn.POISSON.DIST({0,1,2,3,4,5,6,7,8,9},$P15, TRUE),1), 0) -> 0 | CJ15: =_xlfn.IFNA(MATCH(RAND(), _xlfn.POISSON.DIST({0,1,2,3,4,5,6,7,8,9},$P15, TRUE),1), 0) -> 3 | CK15: =_xlfn.IFNA(MATCH(RAND(), _xlfn.POISSON.DIST({0,1,2,3,4,5,6,7,8,9},$P15, TRUE),1), 0) -> 0 | CL15: =_xlfn.IFNA(MATCH(RAND(), _xlfn.POISSON.DIST({0,1,2,3,4,5,6,7,8,9},$P15, TRUE),1), 0) -> 3 | CM15: =_xlfn.IFNA(MATCH(RAND(), _xlfn.POISSON.DIST({0,1,2,3,4,5,6,7,8,9},$P15, TRUE),1), 0) -> 2 | CN15: =_xlfn.IFNA(MATCH(RAND(), _xlfn.POISSON.DIST({0,1,2,3,4,5,6,7,8,9},$P15, TRUE),1), 0) -> 3 | CO15: =_xlfn.IFNA(MATCH(RAND(), _xlfn.POISSON.DIST({0,1,2,3,4,5,6,7,8,9},$P15, TRUE),1), 0) -> 1 | CP15: =_xlfn.IFNA(MATCH(RAND(), _xlfn.POISSON.DIST({0,1,2,3,4,5,6,7,8,9},$P15, TRUE),1), 0) -> 4 | CQ15: =_xlfn.IFNA(MATCH(RAND(), _xlfn.POISSON.DIST({0,1,2,3,4,5,6,7,8,9},$P15, TRUE),1), 0) -> 2 | CR15: =_xlfn.IFNA(MATCH(RAND(), _xlfn.POISSON.DIST({0,1,2,3,4,5,6,7,8,9},$P15, TRUE),1), 0) -> 1 | CS15: =_xlfn.IFNA(MATCH(RAND(), _xlfn.POISSON.DIST({0,1,2,3,4,5,6,7,8,9},$P15, TRUE),1), 0) -> 2 | CT15: =_xlfn.IFNA(MATCH(RAND(), _xlfn.POISSON.DIST({0,1,2,3,4,5,6,7,8,9},$P15, TRUE),1), 0) -> 2 | CU15: =_xlfn.IFNA(MATCH(RAND(), _xlfn.POISSON.DIST({0,1,2,3,4,5,6,7,8,9},$P15, TRUE),1), 0) -> 0 | CV15: =_xlfn.IFNA(MATCH(RAND(), _xlfn.POISSON.DIST({0,1,2,3,4,5,6,7,8,9},$P15, TRUE),1), 0) -> 3 | CW15: =_xlfn.IFNA(MATCH(RAND(), _xlfn.POISSON.DIST({0,1,2,3,4,5,6,7,8,9},$P15, TRUE),1), 0) -> 1 | CX15: =_xlfn.IFNA(MATCH(RAND(), _xlfn.POISSON.DIST({0,1,2,3,4,5,6,7,8,9},$P15, TRUE),1), 0) -> 1 | CY15: =_xlfn.IFNA(MATCH(RAND(), _xlfn.POISSON.DIST({0,1,2,3,4,5,6,7,8,9},$P15, TRUE),1), 0) -> 2 | CZ15: =_xlfn.IFNA(MATCH(RAND(), _xlfn.POISSON.DIST({0,1,2,3,4,5,6,7,8,9},$P15, TRUE),1), 0) -> 3 | DA15: =_xlfn.IFNA(MATCH(RAND(), _xlfn.POISSON.DIST({0,1,2,3,4,5,6,7,8,9},$P15, TRUE),1), 0) -> 2 | DB15: =_xlfn.IFNA(MATCH(RAND(), _xlfn.POISSON.DIST({0,1,2,3,4,5,6,7,8,9},$P15, TRUE),1), 0) -> 2 | DC15: =_xlfn.IFNA(MATCH(RAND(), _xlfn.POISSON.DIST({0,1,2,3,4,5,6,7,8,9},$P15, TRUE),1), 0) -> 1 | DD15: =_xlfn.IFNA(MATCH(RAND(), _xlfn.POISSON.DIST({0,1,2,3,4,5,6,7,8,9},$P15, TRUE),1), 0) -> 1 | DE15: =_xlfn.IFNA(MATCH(RAND(), _xlfn.POISSON.DIST({0,1,2,3,4,5,6,7,8,9},$P15, TRUE),1), 0) -> 3 | DF15: =_xlfn.IFNA(MATCH(RAND(), _xlfn.POISSON.DIST({0,1,2,3,4,5,6,7,8,9},$P15, TRUE),1), 0) -> 3 | DG15: =_xlfn.IFNA(MATCH(RAND(), _xlfn.POISSON.DIST({0,1,2,3,4,5,6,7,8,9},$P15, TRUE),1), 0) -> 2 | DH15: =_xlfn.IFNA(MATCH(RAND(), _xlfn.POISSON.DIST({0,1,2,3,4,5,6,7,8,9},$P15, TRUE),1), 0) -> 2 | DI15: =_xlfn.IFNA(MATCH(RAND(), _xlfn.POISSON.DIST({0,1,2,3,4,5,6,7,8,9},$P15, TRUE),1), 0) -> 4 | DJ15: =_xlfn.IFNA(MATCH(RAND(), _xlfn.POISSON.DIST({0,1,2,3,4,5,6,7,8,9},$P15, TRUE),1), 0) -> 0 | DK15: =_xlfn.IFNA(MATCH(RAND(), _xlfn.POISSON.DIST({0,1,2,3,4,5,6,7,8,9},$P15, TRUE),1), 0) -> 2 | DL15: =_xlfn.IFNA(MATCH(RAND(), _xlfn.POISSON.DIST({0,1,2,3,4,5,6,7,8,9},$P15, TRUE),1), 0) -> 2 | DM15: =_xlfn.IFNA(MATCH(RAND(), _xlfn.POISSON.DIST({0,1,2,3,4,5,6,7,8,9},$P15, TRUE),1), 0) -> 0
C16: 2019-06-11 | D16: F | E16: Chili | F16: =(AVERAGE(Q16:BN16))*(1+INDEX('Voorspellingen groepsfase'!$C$4:$O$28, MATCH('De wedstrijden van dit seizoen'!E16,'Voorspellingen groepsfase'!$D$4:$D$28,0),3)) -> 0.64 | G16: Zweden | H16: =(AVERAGE(BP16:DM16))*(1+INDEX('Voorspellingen groepsfase'!$C$4:$O$28, MATCH('De wedstrijden van dit seizoen'!G16,'Voorspellingen groepsfase'!$D$4:$D$28,0),3)) -> 3.82 | I16: Zweden | L16: 0.64 | M16: 3.82 | N16: Zweden | O16: =(OFFSET('Bijlage 3 - Goals per groep'!$D$14,(INDEX('Bijlage 1 - Teamgegevens'!$C$13:$F$112,MATCH(G16,'Bijlage 1 - Teamgegevens'!$C$13:$C$112,0),4)/10),(INDEX('Bijlage 1 - Teamgegevens'!$C$13:$F$112,MATCH(E16,'Bijlage 1 - Teamgegevens'!$C$13:$C$112,0),4)/10))) -> 0.59 | P16: =OFFSET('Bijlage 3 - Goals per groep'!$D$14,(INDEX('Bijlage 1 - Teamgegevens'!$C$13:$F$112, MATCH(E16,'Bijlage 1 - Teamgegevens'!$C$13:$C$112,0),4)/10), (INDEX('Bijlage 1 - Teamgegevens'!$C$13:$F$112, MATCH(G16, 'Bijlage 1 - Teamgegevens'!$C$13:$C$112,0),4)/10)) -> 3.38 | Q16: =_xlfn.IFNA(MATCH(RAND(), _xlfn.POISSON.DIST({0,1,2,3,4,5,6,7,8,9},$O16, TRUE),1), 0) -> 0 | R16: =_xlfn.IFNA(MATCH(RAND(), _xlfn.POISSON.DIST({0,1,2,3,4,5,6,7,8,9},$O16, TRUE),1), 0) -> 0 | S16: =_xlfn.IFNA(MATCH(RAND(), _xlfn.POISSON.DIST({0,1,2,3,4,5,6,7,8,9},$O16, TRUE),1), 0) -> 0 | T16: =_xlfn.IFNA(MATCH(RAND(), _xlfn.POISSON.DIST({0,1,2,3,4,5,6,7,8,9},$O16, TRUE),1), 0) -> 1 | U16: =_xlfn.IFNA(MATCH(RAND(), _xlfn.POISSON.DIST({0,1,2,3,4,5,6,7,8,9},$O16, TRUE),1), 0) -> 0 | V16: =_xlfn.IFNA(MATCH(RAND(), _xlfn.POISSON.DIST({0,1,2,3,4,5,6,7,8,9},$O16, TRUE),1), 0) -> 0 | W16: =_xlfn.IFNA(MATCH(RAND(), _xlfn.POISSON.DIST({0,1,2,3,4,5,6,7,8,9},$O16, TRUE),1), 0) -> 2 | X16: =_xlfn.IFNA(MATCH(RAND(), _xlfn.POISSON.DIST({0,1,2,3,4,5,6,7,8,9},$O16, TRUE),1), 0) -> 1 | Y16: =_xlfn.IFNA(MATCH(RAND(), _xlfn.POISSON.DIST({0,1,2,3,4,5,6,7,8,9},$O16, TRUE),1), 0) -> 0 | Z16: =_xlfn.IFNA(MATCH(RAND(), _xlfn.POISSON.DIST({0,1,2,3,4,5,6,7,8,9},$O16, TRUE),1), 0) -> 1 | AA16: =_xlfn.IFNA(MATCH(RAND(), _xlfn.POISSON.DIST({0,1,2,3,4,5,6,7,8,9},$O16, TRUE),1), 0) -> 0 | AB16: =_xlfn.IFNA(MATCH(RAND(), _xlfn.POISSON.DIST({0,1,2,3,4,5,6,7,8,9},$O16, TRUE),1), 0) -> 1 | AC16: =_xlfn.IFNA(MATCH(RAND(), _xlfn.POISSON.DIST({0,1,2,3,4,5,6,7,8,9},$O16, TRUE),1), 0) -> 1 | AD16: =_xlfn.IFNA(MATCH(RAND(), _xlfn.POISSON.DIST({0,1,2,3,4,5,6,7,8,9},$O16, TRUE),1), 0) -> 0 | AE16: =_xlfn.IFNA(MATCH(RAND(), _xlfn.POISSON.DIST({0,1,2,3,4,5,6,7,8,9},$O16, TRUE),1), 0) -> 0 | AF16: =_xlfn.IFNA(MATCH(RAND(), _xlfn.POISSON.DIST({0,1,2,3,4,5,6,7,8,9},$O16, TRUE),1), 0) -> 0 | AG16: =_xlfn.IFNA(MATCH(RAND(), _xlfn.POISSON.DIST({0,1,2,3,4,5,6,7,8,9},$O16, TRUE),1), 0) -> 0 | AH16: =_xlfn.IFNA(MATCH(RAND(), _xlfn.POISSON.DIST({0,1,2,3,4,5,6,7,8,9},$O16, TRUE),1), 0) -> 2 | AI16: =_xlfn.IFNA(MATCH(RAND(), _xlfn.POISSON.DIST({0,1,2,3,4,5,6,7,8,9},$O16, TRUE),1), 0) -> 0 | AJ16: =_xlfn.IFNA(MATCH(RAND(), _xlfn.POISSON.DIST({0,1,2,3,4,5,6,7,8,9},$O16, TRUE),1), 0) -> 1 | AK16: =_xlfn.IFNA(MATCH(RAND(), _xlfn.POISSON.DIST({0,1,2,3,4,5,6,7,8,9},$O16, TRUE),1), 0) -> 0 | AL16: =_xlfn.IFNA(MATCH(RAND(), _xlfn.POISSON.DIST({0,1,2,3,4,5,6,7,8,9},$O16, TRUE),1), 0) -> 1 | AM16: =_xlfn.IFNA(MATCH(RAND(), _xlfn.POISSON.DIST({0,1,2,3,4,5,6,7,8,9},$O16, TRUE),1), 0) -> 2 | AN16: =_xlfn.IFNA(MATCH(RAND(), _xlfn.POISSON.DIST({0,1,2,3,4,5,6,7,8,9},$O16, TRUE),1), 0) -> 0 | AO16: =_xlfn.IFNA(MATCH(RAND(), _xlfn.POISSON.DIST({0,1,2,3,4,5,6,7,8,9},$O16, TRUE),1), 0) -> 1 | AP16: =_xlfn.IFNA(MATCH(RAND(), _xlfn.POISSON.DIST({0,1,2,3,4,5,6,7,8,9},$O16, TRUE),1), 0) -> 0 | AQ16: =_xlfn.IFNA(MATCH(RAND(), _xlfn.POISSON.DIST({0,1,2,3,4,5,6,7,8,9},$O16, TRUE),1), 0) -> 0 | AR16: =_xlfn.IFNA(MATCH(RAND(), _xlfn.POISSON.DIST({0,1,2,3,4,5,6,7,8,9},$O16, TRUE),1), 0) -> 1 | AS16: =_xlfn.IFNA(MATCH(RAND(), _xlfn.POISSON.DIST({0,1,2,3,4,5,6,7,8,9},$O16, TRUE),1), 0) -> 3 | AT16: =_xlfn.IFNA(MATCH(RAND(), _xlfn.POISSON.DIST({0,1,2,3,4,5,6,7,8,9},$O16, TRUE),1), 0) -> 2 | AU16: =_xlfn.IFNA(MATCH(RAND(), _xlfn.POISSON.DIST({0,1,2,3,4,5,6,7,8,9},$O16, TRUE),1), 0) -> 0 | AV16: =_xlfn.IFNA(MATCH(RAND(), _xlfn.POISSON.DIST({0,1,2,3,4,5,6,7,8,9},$O16, TRUE),1), 0) -> 1 | AW16: =_xlfn.IFNA(MATCH(RAND(), _xlfn.POISSON.DIST({0,1,2,3,4,5,6,7,8,9},$O16, TRUE),1), 0) -> 0 | AX16: =_xlfn.IFNA(MATCH(RAND(), _xlfn.POISSON.DIST({0,1,2,3,4,5,6,7,8,9},$O16, TRUE),1), 0) -> 1 | AY16: =_xlfn.IFNA(MATCH(RAND(), _xlfn.POISSON.DIST({0,1,2,3,4,5,6,7,8,9},$O16, TRUE),1), 0) -> 3 | AZ16: =_xlfn.IFNA(MATCH(RAND(), _xlfn.POISSON.DIST({0,1,2,3,4,5,6,7,8,9},$O16, TRUE),1), 0) -> 0 | BA16: =_xlfn.IFNA(MATCH(RAND(), _xlfn.POISSON.DIST({0,1,2,3,4,5,6,7,8,9},$O16, TRUE),1), 0) -> 0 | BB16: =_xlfn.IFNA(MATCH(RAND(), _xlfn.POISSON.DIST({0,1,2,3,4,5,6,7,8,9},$O16, TRUE),1), 0) -> 0 | BC16: =_xlfn.IFNA(MATCH(RAND(), _xlfn.POISSON.DIST({0,1,2,3,4,5,6,7,8,9},$O16, TRUE),1), 0) -> 0 | BD16: =_xlfn.IFNA(MATCH(RAND(), _xlfn.POISSON.DIST({0,1,2,3,4,5,6,7,8,9},$O16, TRUE),1), 0) -> 0 | BE16: =_xlfn.IFNA(MATCH(RAND(), _xlfn.POISSON.DIST({0,1,2,3,4,5,6,7,8,9},$O16, TRUE),1), 0) -> 0 | BF16: =_xlfn.IFNA(MATCH(RAND(), _xlfn.POISSON.DIST({0,1,2,3,4,5,6,7,8,9},$O16, TRUE),1), 0) -> 2 | BG16: =_xlfn.IFNA(MATCH(RAND(), _xlfn.POISSON.DIST({0,1,2,3,4,5,6,7,8,9},$O16, TRUE),1), 0) -> 0 | BH16: =_xlfn.IFNA(MATCH(RAND(), _xlfn.POISSON.DIST({0,1,2,3,4,5,6,7,8,9},$O16, TRUE),1), 0) -> 1 | BI16: =_xlfn.IFNA(MATCH(RAND(), _xlfn.POISSON.DIST({0,1,2,3,4,5,6,7,8,9},$O16, TRUE),1), 0) -> 1 | BJ16: =_xlfn.IFNA(MATCH(RAND(), _xlfn.POISSON.DIST({0,1,2,3,4,5,6,7,8,9},$O16, TRUE),1), 0) -> 1 | BK16: =_xlfn.IFNA(MATCH(RAND(), _xlfn.POISSON.DIST({0,1,2,3,4,5,6,7,8,9},$O16, TRUE),1), 0) -> 1 | BL16: =_xlfn.IFNA(MATCH(RAND(), _xlfn.POISSON.DIST({0,1,2,3,4,5,6,7,8,9},$O16, TRUE),1), 0) -> 1 | BM16: =_xlfn.IFNA(MATCH(RAND(), _xlfn.POISSON.DIST({0,1,2,3,4,5,6,7,8,9},$O16, TRUE),1), 0) -> 0 | BN16: =_xlfn.IFNA(MATCH(RAND(), _xlfn.POISSON.DIST({0,1,2,3,4,5,6,7,8,9},$O16, TRUE),1), 0) -> 0 | BP16: =_xlfn.IFNA(MATCH(RAND(), _xlfn.POISSON.DIST({0,1,2,3,4,5,6,7,8,9},$P16, TRUE),1), 0) -> 2 | BQ16: =_xlfn.IFNA(MATCH(RAND(), _xlfn.POISSON.DIST({0,1,2,3,4,5,6,7,8,9},$P16, TRUE),1), 0) -> 5 | BR16: =_xlfn.IFNA(MATCH(RAND(), _xlfn.POISSON.DIST({0,1,2,3,4,5,6,7,8,9},$P16, TRUE),1), 0) -> 6 | BS16: =_xlfn.IFNA(MATCH(RAND(), _xlfn.POISSON.DIST({0,1,2,3,4,5,6,7,8,9},$P16, TRUE),1), 0) -> 6 | BT16: =_xlfn.IFNA(MATCH(RAND(), _xlfn.POISSON.DIST({0,1,2,3,4,5,6,7,8,9},$P16, TRUE),1), 0) -> 0 | BU16: =_xlfn.IFNA(MATCH(RAND(), _xlfn.POISSON.DIST({0,1,2,3,4,5,6,7,8,9},$P16, TRUE),1), 0) -> 3 | BV16: =_xlfn.IFNA(MATCH(RAND(), _xlfn.POISSON.DIST({0,1,2,3,4,5,6,7,8,9},$P16, TRUE),1), 0) -> 3 | BW16: =_xlfn.IFNA(MATCH(RAND(), _xlfn.POISSON.DIST({0,1,2,3,4,5,6,7,8,9},$P16, TRUE),1), 0) -> 6 | BX16: =_xlfn.IFNA(MATCH(RAND(), _xlfn.POISSON.DIST({0,1,2,3,4,5,6,7,8,9},$P16, TRUE),1), 0) -> 7 | BY16: =_xlfn.IFNA(MATCH(RAND(), _xlfn.POISSON.DIST({0,1,2,3,4,5,6,7,8,9},$P16, TRUE),1), 0) -> 1 | BZ16: =_xlfn.IFNA(MATCH(RAND(), _xlfn.POISSON.DIST({0,1,2,3,4,5,6,7,8,9},$P16, TRUE),1), 0) -> 3 | CA16: =_xlfn.IFNA(MATCH(RAND(), _xlfn.POISSON.DIST({0,1,2,3,4,5,6,7,8,9},$P16, TRUE),1), 0) -> 10 | CB16: =_xlfn.IFNA(MATCH(RAND(), _xlfn.POISSON.DIST({0,1,2,3,4,5,6,7,8,9},$P16, TRUE),1), 0) -> 3 | CC16: =_xlfn.IFNA(MATCH(RAND(), _xlfn.POISSON.DIST({0,1,2,3,4,5,6,7,8,9},$P16, TRUE),1), 0) -> 2 | CD16: =_xlfn.IFNA(MATCH(RAND(), _xlfn.POISSON.DIST({0,1,2,3,4,5,6,7,8,9},$P16, TRUE),1), 0) -> 7 | CE16: =_xlfn.IFNA(MATCH(RAND(), _xlfn.POISSON.DIST({0,1,2,3,4,5,6,7,8,9},$P16, TRUE),1), 0) -> 4 | CF16: =_xlfn.IFNA(MATCH(RAND(), _xlfn.POISSON.DIST({0,1,2,3,4,5,6,7,8,9},$P16, TRUE),1), 0) -> 4 | CG16: =_xlfn.IFNA(MATCH(RAND(), _xlfn.POISSON.DIST({0,1,2,3,4,5,6,7,8,9},$P16, TRUE),1), 0) -> 2 | CH16: =_xlfn.IFNA(MATCH(RAND(), _xlfn.POISSON.DIST({0,1,2,3,4,5,6,7,8,9},$P16, TRUE),1), 0) -> 1 | CI16: =_xlfn.IFNA(MATCH(RAND(), _xlfn.POISSON.DIST({0,1,2,3,4,5,6,7,8,9},$P16, TRUE),1), 0) -> 5 | CJ16: =_xlfn.IFNA(MATCH(RAND(), _xlfn.POISSON.DIST({0,1,2,3,4,5,6,7,8,9},$P16, TRUE),1), 0) -> 4 | CK16: =_xlfn.IFNA(MATCH(RAND(), _xlfn.POISSON.DIST({0,1,2,3,4,5,6,7,8,9},$P16, TRUE),1), 0) -> 7 | CL16: =_xlfn.IFNA(MATCH(RAND(), _xlfn.POISSON.DIST({0,1,2,3,4,5,6,7,8,9},$P16, TRUE),1), 0) -> 3 | CM16: =_xlfn.IFNA(MATCH(RAND(), _xlfn.POISSON.DIST({0,1,2,3,4,5,6,7,8,9},$P16, TRUE),1), 0) -> 4 | CN16: =_xlfn.IFNA(MATCH(RAND(), _xlfn.POISSON.DIST({0,1,2,3,4,5,6,7,8,9},$P16, TRUE),1), 0) -> 3 | CO16: =_xlfn.IFNA(MATCH(RAND(), _xlfn.POISSON.DIST({0,1,2,3,4,5,6,7,8,9},$P16, TRUE),1), 0) -> 4 | CP16: =_xlfn.IFNA(MATCH(RAND(), _xlfn.POISSON.DIST({0,1,2,3,4,5,6,7,8,9},$P16, TRUE),1), 0) -> 2 | CQ16: =_xlfn.IFNA(MATCH(RAND(), _xlfn.POISSON.DIST({0,1,2,3,4,5,6,7,8,9},$P16, TRUE),1), 0) -> 1 | CR16: =_xlfn.IFNA(MATCH(RAND(), _xlfn.POISSON.DIST({0,1,2,3,4,5,6,7,8,9},$P16, TRUE),1), 0) -> 2 | CS16: =_xlfn.IFNA(MATCH(RAND(), _xlfn.POISSON.DIST({0,1,2,3,4,5,6,7,8,9},$P16, TRUE),1), 0) -> 6 | CT16: =_xlfn.IFNA(MATCH(RAND(), _xlfn.POISSON.DIST({0,1,2,3,4,5,6,7,8,9},$P16, TRUE),1), 0) -> 8 | CU16: =_xlfn.IFNA(MATCH(RAND(), _xlfn.POISSON.DIST({0,1,2,3,4,5,6,7,8,9},$P16, TRUE),1), 0) -> 1 | CV16: =_xlfn.IFNA(MATCH(RAND(), _xlfn.POISSON.DIST({0,1,2,3,4,5,6,7,8,9},$P16, TRUE),1), 0) -> 6 | CW16: =_xlfn.IFNA(MATCH(RAND(), _xlfn.POISSON.DIST({0,1,2,3,4,5,6,7,8,9},$P16, TRUE),1), 0) -> 5 | CX16: =_xlfn.IFNA(MATCH(RAND(), _xlfn.POISSON.DIST({0,1,2,3,4,5,6,7,8,9},$P16, TRUE),1), 0) -> 3 | CY16: =_xlfn.IFNA(MATCH(RAND(), _xlfn.POISSON.DIST({0,1,2,3,4,5,6,7,8,9},$P16, TRUE),1), 0) -> 4 | CZ16: =_xlfn.IFNA(MATCH(RAND(), _xlfn.POISSON.DIST({0,1,2,3,4,5,6,7,8,9},$P16, TRUE),1), 0) -> 7 | DA16: =_xlfn.IFNA(MATCH(RAND(), _xlfn.POISSON.DIST({0,1,2,3,4,5,6,7,8,9},$P16, TRUE),1), 0) -> 2 | DB16: =_xlfn.IFNA(MATCH(RAND(), _xlfn.POISSON.DIST({0,1,2,3,4,5,6,7,8,9},$P16, TRUE),1), 0) -> 7 | DC16: =_xlfn.IFNA(MATCH(RAND(), _xlfn.POISSON.DIST({0,1,2,3,4,5,6,7,8,9},$P16, TRUE),1), 0) -> 2 | DD16: =_xlfn.IFNA(MATCH(RAND(), _xlfn.POISSON.DIST({0,1,2,3,4,5,6,7,8,9},$P16, TRUE),1), 0) -> 1 | DE16: =_xlfn.IFNA(MATCH(RAND(), _xlfn.POISSON.DIST({0,1,2,3,4,5,6,7,8,9},$P16, TRUE),1), 0) -> 3 | DF16: =_xlfn.IFNA(MATCH(RAND(), _xlfn.POISSON.DIST({0,1,2,3,4,5,6,7,8,9},$P16, TRUE),1), 0) -> 2 | DG16: =_xlfn.IFNA(MATCH(RAND(), _xlfn.POISSON.DIST({0,1,2,3,4,5,6,7,8,9},$P16, TRUE),1), 0) -> 2 | DH16: =_xlfn.IFNA(MATCH(RAND(), _xlfn.POISSON.DIST({0,1,2,3,4,5,6,7,8,9},$P16, TRUE),1), 0) -> 6 | DI16: =_xlfn.IFNA(MATCH(RAND(), _xlfn.POISSON.DIST({0,1,2,3,4,5,6,7,8,9},$P16, TRUE),1), 0) -> 5 | DJ16: =_xlfn.IFNA(MATCH(RAND(), _xlfn.POISSON.DIST({0,1,2,3,4,5,6,7,8,9},$P16, TRUE),1), 0) -> 3 | DK16: =_xlfn.IFNA(MATCH(RAND(), _xlfn.POISSON.DIST({0,1,2,3,4,5,6,7,8,9},$P16, TRUE),1), 0) -> 4 | DL16: =_xlfn.IFNA(MATCH(RAND(), _xlfn.POISSON.DIST({0,1,2,3,4,5,6,7,8,9},$P16, TRUE),1), 0) -> 3 | DM16: =_xlfn.IFNA(MATCH(RAND(), _xlfn.POISSON.DIST({0,1,2,3,4,5,6,7,8,9},$P16, TRUE),1), 0) -> 1
C17: 2019-06-11 | D17: F | E17: Verenigde Staten | F17: =(AVERAGE(Q17:BN17))*(1+INDEX('Voorspellingen groepsfase'!$C$4:$O$28, MATCH('De wedstrijden van dit seizoen'!E17,'Voorspellingen groepsfase'!$D$4:$D$28,0),3)) -> 3.34 | G17: Thailand | H17: =(AVERAGE(BP17:DM17))*(1+INDEX('Voorspellingen groepsfase'!$C$4:$O$28, MATCH('De wedstrijden van dit seizoen'!G17,'Voorspellingen groepsfase'!$D$4:$D$28,0),3)) -> 0.48 | I17: Verenigde Staten | L17: 3.34 | M17: 0.48 | N17: Verenigde Staten | O17: =(OFFSET('Bijlage 3 - Goals per groep'!$D$14,(INDEX('Bijlage 1 - Teamgegevens'!$C$13:$F$112,MATCH(G17,'Bijlage 1 - Teamgegevens'!$C$13:$C$112,0),4)/10),(INDEX('Bijlage 1 - Teamgegevens'!$C$13:$F$112,MATCH(E17,'Bijlage 1 - Teamgegevens'!$C$13:$C$112,0),4)/10))) -> 3.38 | P17: =OFFSET('Bijlage 3 - Goals per groep'!$D$14,(INDEX('Bijlage 1 - Teamgegevens'!$C$13:$F$112, MATCH(E17,'Bijlage 1 - Teamgegevens'!$C$13:$C$112,0),4)/10), (INDEX('Bijlage 1 - Teamgegevens'!$C$13:$F$112, MATCH(G17, 'Bijlage 1 - Teamgegevens'!$C$13:$C$112,0),4)/10)) -> 0.59 | Q17: =_xlfn.IFNA(MATCH(RAND(), _xlfn.POISSON.DIST({0,1,2,3,4,5,6,7,8,9},$O17, TRUE),1), 0) -> 4 | R17: =_xlfn.IFNA(MATCH(RAND(), _xlfn.POISSON.DIST({0,1,2,3,4,5,6,7,8,9},$O17, TRUE),1), 0) -> 2 | S17: =_xlfn.IFNA(MATCH(RAND(), _xlfn.POISSON.DIST({0,1,2,3,4,5,6,7,8,9},$O17, TRUE),1), 0) -> 3 | T17: =_xlfn.IFNA(MATCH(RAND(), _xlfn.POISSON.DIST({0,1,2,3,4,5,6,7,8,9},$O17, TRUE),1), 0) -> 3 | U17: =_xlfn.IFNA(MATCH(RAND(), _xlfn.POISSON.DIST({0,1,2,3,4,5,6,7,8,9},$O17, TRUE),1), 0) -> 4 | V17: =_xlfn.IFNA(MATCH(RAND(), _xlfn.POISSON.DIST({0,1,2,3,4,5,6,7,8,9},$O17, TRUE),1), 0) -> 2 | W17: =_xlfn.IFNA(MATCH(RAND(), _xlfn.POISSON.DIST({0,1,2,3,4,5,6,7,8,9},$O17, TRUE),1), 0) -> 2 | X17: =_xlfn.IFNA(MATCH(RAND(), _xlfn.POISSON.DIST({0,1,2,3,4,5,6,7,8,9},$O17, TRUE),1), 0) -> 3 | Y17: =_xlfn.IFNA(MATCH(RAND(), _xlfn.POISSON.DIST({0,1,2,3,4,5,6,7,8,9},$O17, TRUE),1), 0) -> 6 | Z17: =_xlfn.IFNA(MATCH(RAND(), _xlfn.POISSON.DIST({0,1,2,3,4,5,6,7,8,9},$O17, TRUE),1), 0) -> 1 | AA17: =_xlfn.IFNA(MATCH(RAND(), _xlfn.POISSON.DIST({0,1,2,3,4,5,6,7,8,9},$O17, TRUE),1), 0) -> 1 | AB17: =_xlfn.IFNA(MATCH(RAND(), _xlfn.POISSON.DIST({0,1,2,3,4,5,6,7,8,9},$O17, TRUE),1), 0) -> 4 | AC17: =_xlfn.IFNA(MATCH(RAND(), _xlfn.POISSON.DIST({0,1,2,3,4,5,6,7,8,9},$O17, TRUE),1), 0) -> 2 | AD17: =_xlfn.IFNA(MATCH(RAND(), _xlfn.POISSON.DIST({0,1,2,3,4,5,6,7,8,9},$O17, TRUE),1), 0) -> 4 | AE17: =_xlfn.IFNA(MATCH(RAND(), _xlfn.POISSON.DIST({0,1,2,3,4,5,6,7,8,9},$O17, TRUE),1), 0) -> 3 | AF17: =_xlfn.IFNA(MATCH(RAND(), _xlfn.POISSON.DIST({0,1,2,3,4,5,6,7,8,9},$O17, TRUE),1), 0) -> 4 | AG17: =_xlfn.IFNA(MATCH(RAND(), _xlfn.POISSON.DIST({0,1,2,3,4,5,6,7,8,9},$O17, TRUE),1), 0) -> 5 | AH17: =_xlfn.IFNA(MATCH(RAND(), _xlfn.POISSON.DIST({0,1,2,3,4,5,6,7,8,9},$O17, TRUE),1), 0) -> 1 | AI17: =_xlfn.IFNA(MATCH(RAND(), _xlfn.POISSON.DIST({0,1,2,3,4,5,6,7,8,9},$O17, TRUE),1), 0) -> 5 | AJ17: =_xlfn.IFNA(MATCH(RAND(), _xlfn.POISSON.DIST({0,1,2,3,4,5,6,7,8,9},$O17, TRUE),1), 0) -> 6 | AK17: =_xlfn.IFNA(MATCH(RAND(), _xlfn.POISSON.DIST({0,1,2,3,4,5,6,7,8,9},$O17, TRUE),1), 0) -> 3 | AL17: =_xlfn.IFNA(MATCH(RAND(), _xlfn.POISSON.DIST({0,1,2,3,4,5,6,7,8,9},$O17, TRUE),1), 0) -> 3 | AM17: =_xlfn.IFNA(MATCH(RAND(), _xlfn.POISSON.DIST({0,1,2,3,4,5,6,7,8,9},$O17, TRUE),1), 0) -> 5 | AN17: =_xlfn.IFNA(MATCH(RAND(), _xlfn.POISSON.DIST({0,1,2,3,4,5,6,7,8,9},$O17, TRUE),1), 0) -> 2 | AO17: =_xlfn.IFNA(MATCH(RAND(), _xlfn.POISSON.DIST({0,1,2,3,4,5,6,7,8,9},$O17, TRUE),1), 0) -> 2 | AP17: =_xlfn.IFNA(MATCH(RAND(), _xlfn.POISSON.DIST({0,1,2,3,4,5,6,7,8,9},$O17, TRUE),1), 0) -> 4 | AQ17: =_xlfn.IFNA(MATCH(RAND(), _xlfn.POISSON.DIST({0,1,2,3,4,5,6,7,8,9},$O17, TRUE),1), 0) -> 2 | AR17: =_xlfn.IFNA(MATCH(RAND(), _xlfn.POISSON.DIST({0,1,2,3,4,5,6,7,8,9},$O17, TRUE),1), 0) -> 4 | AS17: =_xlfn.IFNA(MATCH(RAND(), _xlfn.POISSON.DIST({0,1,2,3,4,5,6,7,8,9},$O17, TRUE),1), 0) -> 4 | AT17: =_xlfn.IFNA(MATCH(RAND(), _xlfn.POISSON.DIST({0,1,2,3,4,5,6,7,8,9},$O17, TRUE),1), 0) -> 2 | AU17: =_xlfn.IFNA(MATCH(RAND(), _xlfn.POISSON.DIST({0,1,2,3,4,5,6,7,8,9},$O17, TRUE),1), 0) -> 5 | AV17: =_xlfn.IFNA(MATCH(RAND(), _xlfn.POISSON.DIST({0,1,2,3,4,5,6,7,8,9},$O17, TRUE),1), 0) -> 3 | AW17: =_xlfn.IFNA(MATCH(RAND(), _xlfn.POISSON.DIST({0,1,2,3,4,5,6,7,8,9},$O17, TRUE),1), 0) -> 3 | AX17: =_xlfn.IFNA(MATCH(RAND(), _xlfn.POISSON.DIST({0,1,2,3,4,5,6,7,8,9},$O17, TRUE),1), 0) -> 4 | AY17: =_xlfn.IFNA(MATCH(RAND(), _xlfn.POISSON.DIST({0,1,2,3,4,5,6,7,8,9},$O17, TRUE),1), 0) -> 5 | AZ17: =_xlfn.IFNA(MATCH(RAND(), _xlfn.POISSON.DIST({0,1,2,3,4,5,6,7,8,9},$O17, TRUE),1), 0) -> 6 | BA17: =_xlfn.IFNA(MATCH(RAND(), _xlfn.POISSON.DIST({0,1,2,3,4,5,6,7,8,9},$O17, TRUE),1), 0) -> 2 | BB17: =_xlfn.IFNA(MATCH(RAND(), _xlfn.POISSON.DIST({0,1,2,3,4,5,6,7,8,9},$O17, TRUE),1), 0) -> 4 | BC17: =_xlfn.IFNA(MATCH(RAND(), _xlfn.POISSON.DIST({0,1,2,3,4,5,6,7,8,9},$O17, TRUE),1), 0) -> 3 | BD17: =_xlfn.IFNA(MATCH(RAND(), _xlfn.POISSON.DIST({0,1,2,3,4,5,6,7,8,9},$O17, TRUE),1), 0) -> 2 | BE17: =_xlfn.IFNA(MATCH(RAND(), _xlfn.POISSON.DIST({0,1,2,3,4,5,6,7,8,9},$O17, TRUE),1), 0) -> 1 | BF17: =_xlfn.IFNA(MATCH(RAND(), _xlfn.POISSON.DIST({0,1,2,3,4,5,6,7,8,9},$O17, TRUE),1), 0) -> 3 | BG17: =_xlfn.IFNA(MATCH(RAND(), _xlfn.POISSON.DIST({0,1,2,3,4,5,6,7,8,9},$O17, TRUE),1), 0) -> 6 | BH17: =_xlfn.IFNA(MATCH(RAND(), _xlfn.POISSON.DIST({0,1,2,3,4,5,6,7,8,9},$O17, TRUE),1), 0) -> 2 | BI17: =_xlfn.IFNA(MATCH(RAND(), _xlfn.POISSON.DIST({0,1,2,3,4,5,6,7,8,9},$O17, TRUE),1), 0) -> 7 | BJ17: =_xlfn.IFNA(MATCH(RAND(), _xlfn.POISSON.DIST({0,1,2,3,4,5,6,7,8,9},$O17, TRUE),1), 0) -> 1 | BK17: =_xlfn.IFNA(MATCH(RAND(), _xlfn.POISSON.DIST({0,1,2,3,4,5,6,7,8,9},$O17, TRUE),1), 0) -> 4 | BL17: =_xlfn.IFNA(MATCH(RAND(), _xlfn.POISSON.DIST({0,1,2,3,4,5,6,7,8,9},$O17, TRUE),1), 0) -> 5 | BM17: =_xlfn.IFNA(MATCH(RAND(), _xlfn.POISSON.DIST({0,1,2,3,4,5,6,7,8,9},$O17, TRUE),1), 0) -> 3 | BN17: =_xlfn.IFNA(MATCH(RAND(), _xlfn.POISSON.DIST({0,1,2,3,4,5,6,7,8,9},$O17, TRUE),1), 0) -> 2 | BP17: =_xlfn.IFNA(MATCH(RAND(), _xlfn.POISSON.DIST({0,1,2,3,4,5,6,7,8,9},$P17, TRUE),1), 0) -> 1 | BQ17: =_xlfn.IFNA(MATCH(RAND(), _xlfn.POISSON.DIST({0,1,2,3,4,5,6,7,8,9},$P17, TRUE),1), 0) -> 0 | BR17: =_xlfn.IFNA(MATCH(RAND(), _xlfn.POISSON.DIST({0,1,2,3,4,5,6,7,8,9},$P17, TRUE),1), 0) -> 2 | BS17: =_xlfn.IFNA(MATCH(RAND(), _xlfn.POISSON.DIST({0,1,2,3,4,5,6,7,8,9},$P17, TRUE),1), 0) -> 1 | BT17: =_xlfn.IFNA(MATCH(RAND(), _xlfn.POISSON.DIST({0,1,2,3,4,5,6,7,8,9},$P17, TRUE),1), 0) -> 0 | BU17: =_xlfn.IFNA(MATCH(RAND(), _xlfn.POISSON.DIST({0,1,2,3,4,5,6,7,8,9},$P17, TRUE),1), 0) -> 0 | BV17: =_xlfn.IFNA(MATCH(RAND(), _xlfn.POISSON.DIST({0,1,2,3,4,5,6,7,8,9},$P17, TRUE),1), 0) -> 0 | BW17: =_xlfn.IFNA(MATCH(RAND(), _xlfn.POISSON.DIST({0,1,2,3,4,5,6,7,8,9},$P17, TRUE),1), 0) -> 0 | BX17: =_xlfn.IFNA(MATCH(RAND(), _xlfn.POISSON.DIST({0,1,2,3,4,5,6,7,8,9},$P17, TRUE),1), 0) -> 0 | BY17: =_xlfn.IFNA(MATCH(RAND(), _xlfn.POISSON.DIST({0,1,2,3,4,5,6,7,8,9},$P17, TRUE),1), 0) -> 1 | BZ17: =_xlfn.IFNA(MATCH(RAND(), _xlfn.POISSON.DIST({0,1,2,3,4,5,6,7,8,9},$P17, TRUE),1), 0) -> 0 | CA17: =_xlfn.IFNA(MATCH(RAND(), _xlfn.POISSON.DIST({0,1,2,3,4,5,6,7,8,9},$P17, TRUE),1), 0) -> 0 | CB17: =_xlfn.IFNA(MATCH(RAND(), _xlfn.POISSON.DIST({0,1,2,3,4,5,6,7,8,9},$P17, TRUE),1), 0) -> 1 | CC17: =_xlfn.IFNA(MATCH(RAND(), _xlfn.POISSON.DIST({0,1,2,3,4,5,6,7,8,9},$P17, TRUE),1), 0) -> 1 | CD17: =_xlfn.IFNA(MATCH(RAND(), _xlfn.POISSON.DIST({0,1,2,3,4,5,6,7,8,9},$P17, TRUE),1), 0) -> 0 | CE17: =_xlfn.IFNA(MATCH(RAND(), _xlfn.POISSON.DIST({0,1,2,3,4,5,6,7,8,9},$P17, TRUE),1), 0) -> 0 | CF17: =_xlfn.IFNA(MATCH(RAND(), _xlfn.POISSON.DIST({0,1,2,3,4,5,6,7,8,9},$P17, TRUE),1), 0) -> 0 | CG17: =_xlfn.IFNA(MATCH(RAND(), _xlfn.POISSON.DIST({0,1,2,3,4,5,6,7,8,9},$P17, TRUE),1), 0) -> 1 | CH17: =_xlfn.IFNA(MATCH(RAND(), _xlfn.POISSON.DIST({0,1,2,3,4,5,6,7,8,9},$P17, TRUE),1), 0) -> 0 | CI17: =_xlfn.IFNA(MATCH(RAND(), _xlfn.POISSON.DIST({0,1,2,3,4,5,6,7,8,9},$P17, TRUE),1), 0) -> 0 | CJ17: =_xlfn.IFNA(MATCH(RAND(), _xlfn.POISSON.DIST({0,1,2,3,4,5,6,7,8,9},$P17, TRUE),1), 0) -> 0 | CK17: =_xlfn.IFNA(MATCH(RAND(), _xlfn.POISSON.DIST({0,1,2,3,4,5,6,7,8,9},$P17, TRUE),1), 0) -> 0 | CL17: =_xlfn.IFNA(MATCH(RAND(), _xlfn.POISSON.DIST({0,1,2,3,4,5,6,7,8,9},$P17, TRUE),1), 0) -> 2 | CM17: =_xlfn.IFNA(MATCH(RAND(), _xlfn.POISSON.DIST({0,1,2,3,4,5,6,7,8,9},$P17, TRUE),1), 0) -> 0 | CN17: =_xlfn.IFNA(MATCH(RAND(), _xlfn.POISSON.DIST({0,1,2,3,4,5,6,7,8,9},$P17, TRUE),1), 0) -> 0 | CO17: =_xlfn.IFNA(MATCH(RAND(), _xlfn.POISSON.DIST({0,1,2,3,4,5,6,7,8,9},$P17, TRUE),1), 0) -> 0 | CP17: =_xlfn.IFNA(MATCH(RAND(), _xlfn.POISSON.DIST({0,1,2,3,4,5,6,7,8,9},$P17, TRUE),1), 0) -> 0 | CQ17: =_xlfn.IFNA(MATCH(RAND(), _xlfn.POISSON.DIST({0,1,2,3,4,5,6,7,8,9},$P17, TRUE),1), 0) -> 0 | CR17: =_xlfn.IFNA(MATCH(RAND(), _xlfn.POISSON.DIST({0,1,2,3,4,5,6,7,8,9},$P17, TRUE),1), 0) -> 1 | CS17: =_xlfn.IFNA(MATCH(RAND(), _xlfn.POISSON.DIST({0,1,2,3,4,5,6,7,8,9},$P17, TRUE),1), 0) -> 0 | CT17: =_xlfn.IFNA(MATCH(RAND(), _xlfn.POISSON.DIST({0,1,2,3,4,5,6,7,8,9},$P17, TRUE),1), 0) -> 1 | CU17: =_xlfn.IFNA(MATCH(RAND(), _xlfn.POISSON.DIST({0,1,2,3,4,5,6,7,8,9},$P17, TRUE),1), 0) -> 0 | CV17: =_xlfn.IFNA(MATCH(RAND(), _xlfn.POISSON.DIST({0,1,2,3,4,5,6,7,8,9},$P17, TRUE),1), 0) -> 2 | CW17: =_xlfn.IFNA(MATCH(RAND(), _xlfn.POISSON.DIST({0,1,2,3,4,5,6,7,8,9},$P17, TRUE),1), 0) -> 1 | CX17: =_xlfn.IFNA(MATCH(RAND(), _xlfn.POISSON.DIST({0,1,2,3,4,5,6,7,8,9},$P17, TRUE),1), 0) -> 0 | CY17: =_xlfn.IFNA(MATCH(RAND(), _xlfn.POISSON.DIST({0,1,2,3,4,5,6,7,8,9},$P17, TRUE),1), 0) -> 0 | CZ17: =_xlfn.IFNA(MATCH(RAND(), _xlfn.POISSON.DIST({0,1,2,3,4,5,6,7,8,9},$P17, TRUE),1), 0) -> 1 | DA17: =_xlfn.IFNA(MATCH(RAND(), _xlfn.POISSON.DIST({0,1,2,3,4,5,6,7,8,9},$P17, TRUE),1), 0) -> 1 | DB17: =_xlfn.IFNA(MATCH(RAND(), _xlfn.POISSON.DIST({0,1,2,3,4,5,6,7,8,9},$P17, TRUE),1), 0) -> 0 | DC17: =_xlfn.IFNA(MATCH(RAND(), _xlfn.POISSON.DIST({0,1,2,3,4,5,6,7,8,9},$P17, TRUE),1), 0) -> 0 | DD17: =_xlfn.IFNA(MATCH(RAND(), _xlfn.POISSON.DIST({0,1,2,3,4,5,6,7,8,9},$P17, TRUE),1), 0) -> 0 | DE17: =_xlfn.IFNA(MATCH(RAND(), _xlfn.POISSON.DIST({0,1,2,3,4,5,6,7,8,9},$P17, TRUE),1), 0) -> 1 | DF17: =_xlfn.IFNA(MATCH(RAND(), _xlfn.POISSON.DIST({0,1,2,3,4,5,6,7,8,9},$P17, TRUE),1), 0) -> 0 | DG17: =_xlfn.IFNA(MATCH(RAND(), _xlfn.POISSON.DIST({0,1,2,3,4,5,6,7,8,9},$P17, TRUE),1), 0) -> 0 | DH17: =_xlfn.IFNA(MATCH(RAND(), _xlfn.POISSON.DIST({0,1,2,3,4,5,6,7,8,9},$P17, TRUE),1), 0) -> 0 | DI17: =_xlfn.IFNA(MATCH(RAND(), _xlfn.POISSON.DIST({0,1,2,3,4,5,6,7,8,9},$P17, TRUE),1), 0) -> 3 | DJ17: =_xlfn.IFNA(MATCH(RAND(), _xlfn.POISSON.DIST({0,1,2,3,4,5,6,7,8,9},$P17, TRUE),1), 0) -> 0 | DK17: =_xlfn.IFNA(MATCH(RAND(), _xlfn.POISSON.DIST({0,1,2,3,4,5,6,7,8,9},$P17, TRUE),1), 0) -> 1 | DL17: =_xlfn.IFNA(MATCH(RAND(), _xlfn.POISSON.DIST({0,1,2,3,4,5,6,7,8,9},$P17, TRUE),1), 0) -> 1 | DM17: =_xlfn.IFNA(MATCH(RAND(), _xlfn.POISSON.DIST({0,1,2,3,4,5,6,7,8,9},$P17, TRUE),1), 0) -> 1
C18: 2019-06-12 | D18: A | E18: Nigeria | F18: =(AVERAGE(Q18:BN18))*(1+INDEX('Voorspellingen groepsfase'!$C$4:$O$28, MATCH('De wedstrijden van dit seizoen'!E18,'Voorspellingen groepsfase'!$D$4:$D$28,0),3)) -> 0.52 | G18: Zuid-Korea | H18: =(AVERAGE(BP18:DM18))*(1+INDEX('Voorspellingen groepsfase'!$C$4:$O$28, MATCH('De wedstrijden van dit seizoen'!G18,'Voorspellingen groepsfase'!$D$4:$D$28,0),3)) -> 3.18 | I18: Zuid-Korea | L18: 0.52 | M18: 3.18 | N18: Zuid-Korea | O18: =(OFFSET('Bijlage 3 - Goals per groep'!$D$14,(INDEX('Bijlage 1 - Teamgegevens'!$C$13:$F$112,MATCH(G18,'Bijlage 1 - Teamgegevens'!$C$13:$C$112,0),4)/10),(INDEX('Bijlage 1 - Teamgegevens'!$C$13:$F$112,MATCH(E18,'Bijlage 1 - Teamgegevens'!$C$13:$C$112,0),4)/10))) -> 0.54 | P18: =OFFSET('Bijlage 3 - Goals per groep'!$D$14,(INDEX('Bijlage 1 - Teamgegevens'!$C$13:$F$112, MATCH(E18,'Bijlage 1 - Teamgegevens'!$C$13:$C$112,0),4)/10), (INDEX('Bijlage 1 - Teamgegevens'!$C$13:$F$112, MATCH(G18, 'Bijlage 1 - Teamgegevens'!$C$13:$C$112,0),4)/10)) -> 3.11 | Q18: =_xlfn.IFNA(MATCH(RAND(), _xlfn.POISSON.DIST({0,1,2,3,4,5,6,7,8,9},$O18, TRUE),1), 0) -> 1 | R18: =_xlfn.IFNA(MATCH(RAND(), _xlfn.POISSON.DIST({0,1,2,3,4,5,6,7,8,9},$O18, TRUE),1), 0) -> 0 | S18: =_xlfn.IFNA(MATCH(RAND(), _xlfn.POISSON.DIST({0,1,2,3,4,5,6,7,8,9},$O18, TRUE),1), 0) -> 1 | T18: =_xlfn.IFNA(MATCH(RAND(), _xlfn.POISSON.DIST({0,1,2,3,4,5,6,7,8,9},$O18, TRUE),1), 0) -> 0 | U18: =_xlfn.IFNA(MATCH(RAND(), _xlfn.POISSON.DIST({0,1,2,3,4,5,6,7,8,9},$O18, TRUE),1), 0) -> 0 | V18: =_xlfn.IFNA(MATCH(RAND(), _xlfn.POISSON.DIST({0,1,2,3,4,5,6,7,8,9},$O18, TRUE),1), 0) -> 0 | W18: =_xlfn.IFNA(MATCH(RAND(), _xlfn.POISSON.DIST({0,1,2,3,4,5,6,7,8,9},$O18, TRUE),1), 0) -> 0 | X18: =_xlfn.IFNA(MATCH(RAND(), _xlfn.POISSON.DIST({0,1,2,3,4,5,6,7,8,9},$O18, TRUE),1), 0) -> 0 | Y18: =_xlfn.IFNA(MATCH(RAND(), _xlfn.POISSON.DIST({0,1,2,3,4,5,6,7,8,9},$O18, TRUE),1), 0) -> 1 | Z18: =_xlfn.IFNA(MATCH(RAND(), _xlfn.POISSON.DIST({0,1,2,3,4,5,6,7,8,9},$O18, TRUE),1), 0) -> 2 | AA18: =_xlfn.IFNA(MATCH(RAND(), _xlfn.POISSON.DIST({0,1,2,3,4,5,6,7,8,9},$O18, TRUE),1), 0) -> 1 | AB18: =_xlfn.IFNA(MATCH(RAND(), _xlfn.POISSON.DIST({0,1,2,3,4,5,6,7,8,9},$O18, TRUE),1), 0) -> 0 | AC18: =_xlfn.IFNA(MATCH(RAND(), _xlfn.POISSON.DIST({0,1,2,3,4,5,6,7,8,9},$O18, TRUE),1), 0) -> 0 | AD18: =_xlfn.IFNA(MATCH(RAND(), _xlfn.POISSON.DIST({0,1,2,3,4,5,6,7,8,9},$O18, TRUE),1), 0) -> 1 | AE18: =_xlfn.IFNA(MATCH(RAND(), _xlfn.POISSON.DIST({0,1,2,3,4,5,6,7,8,9},$O18, TRUE),1), 0) -> 1 | AF18: =_xlfn.IFNA(MATCH(RAND(), _xlfn.POISSON.DIST({0,1,2,3,4,5,6,7,8,9},$O18, TRUE),1), 0) -> 1 | AG18: =_xlfn.IFNA(MATCH(RAND(), _xlfn.POISSON.DIST({0,1,2,3,4,5,6,7,8,9},$O18, TRUE),1), 0) -> 0 | AH18: =_xlfn.IFNA(MATCH(RAND(), _xlfn.POISSON.DIST({0,1,2,3,4,5,6,7,8,9},$O18, TRUE),1), 0) -> 0 | AI18: =_xlfn.IFNA(MATCH(RAND(), _xlfn.POISSON.DIST({0,1,2,3,4,5,6,7,8,9},$O18, TRUE),1), 0) -> 0 | AJ18: =_xlfn.IFNA(MATCH(RAND(), _xlfn.POISSON.DIST({0,1,2,3,4,5,6,7,8,9},$O18, TRUE),1), 0) -> 0 | AK18: =_xlfn.IFNA(MATCH(RAND(), _xlfn.POISSON.DIST({0,1,2,3,4,5,6,7,8,9},$O18, TRUE),1), 0) -> 0 | AL18: =_xlfn.IFNA(MATCH(RAND(), _xlfn.POISSON.DIST({0,1,2,3,4,5,6,7,8,9},$O18, TRUE),1), 0) -> 2 | AM18: =_xlfn.IFNA(MATCH(RAND(), _xlfn.POISSON.DIST({0,1,2,3,4,5,6,7,8,9},$O18, TRUE),1), 0) -> 2 | AN18: =_xlfn.IFNA(MATCH(RAND(), _xlfn.POISSON.DIST({0,1,2,3,4,5,6,7,8,9},$O18, TRUE),1), 0) -> 1 | AO18: =_xlfn.IFNA(MATCH(RAND(), _xlfn.POISSON.DIST({0,1,2,3,4,5,6,7,8,9},$O18, TRUE),1), 0) -> 2 | AP18: =_xlfn.IFNA(MATCH(RAND(), _xlfn.POISSON.DIST({0,1,2,3,4,5,6,7,8,9},$O18, TRUE),1), 0) -> 0 | AQ18: =_xlfn.IFNA(MATCH(RAND(), _xlfn.POISSON.DIST({0,1,2,3,4,5,6,7,8,9},$O18, TRUE),1), 0) -> 2 | AR18: =_xlfn.IFNA(MATCH(RAND(), _xlfn.POISSON.DIST({0,1,2,3,4,5,6,7,8,9},$O18, TRUE),1), 0) -> 0 | AS18: =_xlfn.IFNA(MATCH(RAND(), _xlfn.POISSON.DIST({0,1,2,3,4,5,6,7,8,9},$O18, TRUE),1), 0) -> 1 | AT18: =_xlfn.IFNA(MATCH(RAND(), _xlfn.POISSON.DIST({0,1,2,3,4,5,6,7,8,9},$O18, TRUE),1), 0) -> 0 | AU18: =_xlfn.IFNA(MATCH(RAND(), _xlfn.POISSON.DIST({0,1,2,3,4,5,6,7,8,9},$O18, TRUE),1), 0) -> 1 | AV18: =_xlfn.IFNA(MATCH(RAND(), _xlfn.POISSON.DIST({0,1,2,3,4,5,6,7,8,9},$O18, TRUE),1), 0) -> 0 | AW18: =_xlfn.IFNA(MATCH(RAND(), _xlfn.POISSON.DIST({0,1,2,3,4,5,6,7,8,9},$O18, TRUE),1), 0) -> 0 | AX18: =_xlfn.IFNA(MATCH(RAND(), _xlfn.POISSON.DIST({0,1,2,3,4,5,6,7,8,9},$O18, TRUE),1), 0) -> 0 | AY18: =_xlfn.IFNA(MATCH(RAND(), _xlfn.POISSON.DIST({0,1,2,3,4,5,6,7,8,9},$O18, TRUE),1), 0) -> 1 | AZ18: =_xlfn.IFNA(MATCH(RAND(), _xlfn.POISSON.DIST({0,1,2,3,4,5,6,7,8,9},$O18, TRUE),1), 0) -> 0 | BA18: =_xlfn.IFNA(MATCH(RAND(), _xlfn.POISSON.DIST({0,1,2,3,4,5,6,7,8,9},$O18, TRUE),1), 0) -> 2 | BB18: =_xlfn.IFNA(MATCH(RAND(), _xlfn.POISSON.DIST({0,1,2,3,4,5,6,7,8,9},$O18, TRUE),1), 0) -> 0 | BC18: =_xlfn.IFNA(MATCH(RAND(), _xlfn.POISSON.DIST({0,1,2,3,4,5,6,7,8,9},$O18, TRUE),1), 0) -> 0 | BD18: =_xlfn.IFNA(MATCH(RAND(), _xlfn.POISSON.DIST({0,1,2,3,4,5,6,7,8,9},$O18, TRUE),1), 0) -> 1 | BE18: =_xlfn.IFNA(MATCH(RAND(), _xlfn.POISSON.DIST({0,1,2,3,4,5,6,7,8,9},$O18, TRUE),1), 0) -> 0 | BF18: =_xlfn.IFNA(MATCH(RAND(), _xlfn.POISSON.DIST({0,1,2,3,4,5,6,7,8,9},$O18, TRUE),1), 0) -> 2 | BG18: =_xlfn.IFNA(MATCH(RAND(), _xlfn.POISSON.DIST({0,1,2,3,4,5,6,7,8,9},$O18, TRUE),1), 0) -> 0 | BH18: =_xlfn.IFNA(MATCH(RAND(), _xlfn.POISSON.DIST({0,1,2,3,4,5,6,7,8,9},$O18, TRUE),1), 0) -> 0 | BI18: =_xlfn.IFNA(MATCH(RAND(), _xlfn.POISSON.DIST({0,1,2,3,4,5,6,7,8,9},$O18, TRUE),1), 0) -> 0 | BJ18: =_xlfn.IFNA(MATCH(RAND(), _xlfn.POISSON.DIST({0,1,2,3,4,5,6,7,8,9},$O18, TRUE),1), 0) -> 0 | BK18: =_xlfn.IFNA(MATCH(RAND(), _xlfn.POISSON.DIST({0,1,2,3,4,5,6,7,8,9},$O18, TRUE),1), 0) -> 0 | BL18: =_xlfn.IFNA(MATCH(RAND(), _xlfn.POISSON.DIST({0,1,2,3,4,5,6,7,8,9},$O18, TRUE),1), 0) -> 0 | BM18: =_xlfn.IFNA(MATCH(RAND(), _xlfn.POISSON.DIST({0,1,2,3,4,5,6,7,8,9},$O18, TRUE),1), 0) -> 0 | BN18: =_xlfn.IFNA(MATCH(RAND(), _xlfn.POISSON.DIST({0,1,2,3,4,5,6,7,8,9},$O18, TRUE),1), 0) -> 0 | BP18: =_xlfn.IFNA(MATCH(RAND(), _xlfn.POISSON.DIST({0,1,2,3,4,5,6,7,8,9},$P18, TRUE),1), 0) -> 5 | BQ18: =_xlfn.IFNA(MATCH(RAND(), _xlfn.POISSON.DIST({0,1,2,3,4,5,6,7,8,9},$P18, TRUE),1), 0) -> 1 | BR18: =_xlfn.IFNA(MATCH(RAND(), _xlfn.POISSON.DIST({0,1,2,3,4,5,6,7,8,9},$P18, TRUE),1), 0) -> 2 | BS18: =_xlfn.IFNA(MATCH(RAND(), _xlfn.POISSON.DIST({0,1,2,3,4,5,6,7,8,9},$P18, TRUE),1), 0) -> 4 | BT18: =_xlfn.IFNA(MATCH(RAND(), _xlfn.POISSON.DIST({0,1,2,3,4,5,6,7,8,9},$P18, TRUE),1), 0) -> 3 | BU18: =_xlfn.IFNA(MATCH(RAND(), _xlfn.POISSON.DIST({0,1,2,3,4,5,6,7,8,9},$P18, TRUE),1), 0) -> 3 | BV18: =_xlfn.IFNA(MATCH(RAND(), _xlfn.POISSON.DIST({0,1,2,3,4,5,6,7,8,9},$P18, TRUE),1), 0) -> 5 | BW18: =_xlfn.IFNA(MATCH(RAND(), _xlfn.POISSON.DIST({0,1,2,3,4,5,6,7,8,9},$P18, TRUE),1), 0) -> 1 | BX18: =_xlfn.IFNA(MATCH(RAND(), _xlfn.POISSON.DIST({0,1,2,3,4,5,6,7,8,9},$P18, TRUE),1), 0) -> 1 | BY18: =_xlfn.IFNA(MATCH(RAND(), _xlfn.POISSON.DIST({0,1,2,3,4,5,6,7,8,9},$P18, TRUE),1), 0) -> 3 | BZ18: =_xlfn.IFNA(MATCH(RAND(), _xlfn.POISSON.DIST({0,1,2,3,4,5,6,7,8,9},$P18, TRUE),1), 0) -> 6 | CA18: =_xlfn.IFNA(MATCH(RAND(), _xlfn.POISSON.DIST({0,1,2,3,4,5,6,7,8,9},$P18, TRUE),1), 0) -> 5 | CB18: =_xlfn.IFNA(MATCH(RAND(), _xlfn.POISSON.DIST({0,1,2,3,4,5,6,7,8,9},$P18, TRUE),1), 0) -> 1 | CC18: =_xlfn.IFNA(MATCH(RAND(), _xlfn.POISSON.DIST({0,1,2,3,4,5,6,7,8,9},$P18, TRUE),1), 0) -> 5 | CD18: =_xlfn.IFNA(MATCH(RAND(), _xlfn.POISSON.DIST({0,1,2,3,4,5,6,7,8,9},$P18, TRUE),1), 0) -> 4 | CE18: =_xlfn.IFNA(MATCH(RAND(), _xlfn.POISSON.DIST({0,1,2,3,4,5,6,7,8,9},$P18, TRUE),1), 0) -> 1 | CF18: =_xlfn.IFNA(MATCH(RAND(), _xlfn.POISSON.DIST({0,1,2,3,4,5,6,7,8,9},$P18, TRUE),1), 0) -> 1 | CG18: =_xlfn.IFNA(MATCH(RAND(), _xlfn.POISSON.DIST({0,1,2,3,4,5,6,7,8,9},$P18, TRUE),1), 0) -> 1 | CH18: =_xlfn.IFNA(MATCH(RAND(), _xlfn.POISSON.DIST({0,1,2,3,4,5,6,7,8,9},$P18, TRUE),1), 0) -> 4 | CI18: =_xlfn.IFNA(MATCH(RAND(), _xlfn.POISSON.DIST({0,1,2,3,4,5,6,7,8,9},$P18, TRUE),1), 0) -> 3 | CJ18: =_xlfn.IFNA(MATCH(RAND(), _xlfn.POISSON.DIST({0,1,2,3,4,5,6,7,8,9},$P18, TRUE),1), 0) -> 5 | CK18: =_xlfn.IFNA(MATCH(RAND(), _xlfn.POISSON.DIST({0,1,2,3,4,5,6,7,8,9},$P18, TRUE),1), 0) -> 3 | CL18: =_xlfn.IFNA(MATCH(RAND(), _xlfn.POISSON.DIST({0,1,2,3,4,5,6,7,8,9},$P18, TRUE),1), 0) -> 5 | CM18: =_xlfn.IFNA(MATCH(RAND(), _xlfn.POISSON.DIST({0,1,2,3,4,5,6,7,8,9},$P18, TRUE),1), 0) -> 4 | CN18: =_xlfn.IFNA(MATCH(RAND(), _xlfn.POISSON.DIST({0,1,2,3,4,5,6,7,8,9},$P18, TRUE),1), 0) -> 1 | CO18: =_xlfn.IFNA(MATCH(RAND(), _xlfn.POISSON.DIST({0,1,2,3,4,5,6,7,8,9},$P18, TRUE),1), 0) -> 2 | CP18: =_xlfn.IFNA(MATCH(RAND(), _xlfn.POISSON.DIST({0,1,2,3,4,5,6,7,8,9},$P18, TRUE),1), 0) -> 8 | CQ18: =_xlfn.IFNA(MATCH(RAND(), _xlfn.POISSON.DIST({0,1,2,3,4,5,6,7,8,9},$P18, TRUE),1), 0) -> 4 | CR18: =_xlfn.IFNA(MATCH(RAND(), _xlfn.POISSON.DIST({0,1,2,3,4,5,6,7,8,9},$P18, TRUE),1), 0) -> 6 | CS18: =_xlfn.IFNA(MATCH(RAND(), _xlfn.POISSON.DIST({0,1,2,3,4,5,6,7,8,9},$P18, TRUE),1), 0) -> 1 | CT18: =_xlfn.IFNA(MATCH(RAND(), _xlfn.POISSON.DIST({0,1,2,3,4,5,6,7,8,9},$P18, TRUE),1), 0) -> 1 | CU18: =_xlfn.IFNA(MATCH(RAND(), _xlfn.POISSON.DIST({0,1,2,3,4,5,6,7,8,9},$P18, TRUE),1), 0) -> 3 | CV18: =_xlfn.IFNA(MATCH(RAND(), _xlfn.POISSON.DIST({0,1,2,3,4,5,6,7,8,9},$P18, TRUE),1), 0) -> 1 | CW18: =_xlfn.IFNA(MATCH(RAND(), _xlfn.POISSON.DIST({0,1,2,3,4,5,6,7,8,9},$P18, TRUE),1), 0) -> 4 | CX18: =_xlfn.IFNA(MATCH(RAND(), _xlfn.POISSON.DIST({0,1,2,3,4,5,6,7,8,9},$P18, TRUE),1), 0) -> 4 | CY18: =_xlfn.IFNA(MATCH(RAND(), _xlfn.POISSON.DIST({0,1,2,3,4,5,6,7,8,9},$P18, TRUE),1), 0) -> 4 | CZ18: =_xlfn.IFNA(MATCH(RAND(), _xlfn.POISSON.DIST({0,1,2,3,4,5,6,7,8,9},$P18, TRUE),1), 0) -> 3 | DA18: =_xlfn.IFNA(MATCH(RAND(), _xlfn.POISSON.DIST({0,1,2,3,4,5,6,7,8,9},$P18, TRUE),1), 0) -> 3 | DB18: =_xlfn.IFNA(MATCH(RAND(), _xlfn.POISSON.DIST({0,1,2,3,4,5,6,7,8,9},$P18, TRUE),1), 0) -> 2 | DC18: =_xlfn.IFNA(MATCH(RAND(), _xlfn.POISSON.DIST({0,1,2,3,4,5,6,7,8,9},$P18, TRUE),1), 0) -> 3 | DD18: =_xlfn.IFNA(MATCH(RAND(), _xlfn.POISSON.DIST({0,1,2,3,4,5,6,7,8,9},$P18, TRUE),1), 0) -> 2 | DE18: =_xlfn.IFNA(MATCH(RAND(), _xlfn.POISSON.DIST({0,1,2,3,4,5,6,7,8,9},$P18, TRUE),1), 0) -> 2 | DF18: =_xlfn.IFNA(MATCH(RAND(), _xlfn.POISSON.DIST({0,1,2,3,4,5,6,7,8,9},$P18, TRUE),1), 0) -> 5 | DG18: =_xlfn.IFNA(MATCH(RAND(), _xlfn.POISSON.DIST({0,1,2,3,4,5,6,7,8,9},$P18, TRUE),1), 0) -> 3 | DH18: =_xlfn.IFNA(MATCH(RAND(), _xlfn.POISSON.DIST({0,1,2,3,4,5,6,7,8,9},$P18, TRUE),1), 0) -> 5 | DI18: =_xlfn.IFNA(MATCH(RAND(), _xlfn.POISSON.DIST({0,1,2,3,4,5,6,7,8,9},$P18, TRUE),1), 0) -> 8 | DJ18: =_xlfn.IFNA(MATCH(RAND(), _xlfn.POISSON.DIST({0,1,2,3,4,5,6,7,8,9},$P18, TRUE),1), 0) -> 2 | DK18: =_xlfn.IFNA(MATCH(RAND(), _xlfn.POISSON.DIST({0,1,2,3,4,5,6,7,8,9},$P18, TRUE),1), 0) -> 3 | DL18: =_xlfn.IFNA(MATCH(RAND(), _xlfn.POISSON.DIST({0,1,2,3,4,5,6,7,8,9},$P18, TRUE),1), 0) -> 1 | DM18: =_xlfn.IFNA(MATCH(RAND(), _xlfn.POISSON.DIST({0,1,2,3,4,5,6,7,8,9},$P18, TRUE),1), 0) -> 2
C19: 2019-06-12 | D19: B | E19: Duitsland | F19: =(AVERAGE(Q19:BN19))*(1+INDEX('Voorspellingen groepsfase'!$C$4:$O$28, MATCH('De wedstrijden van dit seizoen'!E19,'Voorspellingen groepsfase'!$D$4:$D$28,0),3)) -> 1.90 | G19: Spanje | H19: =(AVERAGE(BP19:DM19))*(1+INDEX('Voorspellingen groepsfase'!$C$4:$O$28, MATCH('De wedstrijden van dit seizoen'!G19,'Voorspellingen groepsfase'!$D$4:$D$28,0),3)) -> 1.18 | I19: Duitsland | L19: 1.9 | M19: 1.18 | N19: Duitsland | O19: =(OFFSET('Bijlage 3 - Goals per groep'!$D$14,(INDEX('Bijlage 1 - Teamgegevens'!$C$13:$F$112,MATCH(G19,'Bijlage 1 - Teamgegevens'!$C$13:$C$112,0),4)/10),(INDEX('Bijlage 1 - Teamgegevens'!$C$13:$F$112,MATCH(E19,'Bijlage 1 - Teamgegevens'!$C$13:$C$112,0),4)/10))) -> 1.78 | P19: =OFFSET('Bijlage 3 - Goals per groep'!$D$14,(INDEX('Bijlage 1 - Teamgegevens'!$C$13:$F$112, MATCH(E19,'Bijlage 1 - Teamgegevens'!$C$13:$C$112,0),4)/10), (INDEX('Bijlage 1 - Teamgegevens'!$C$13:$F$112, MATCH(G19, 'Bijlage 1 - Teamgegevens'!$C$13:$C$112,0),4)/10)) -> 1.07 | Q19: =_xlfn.IFNA(MATCH(RAND(), _xlfn.POISSON.DIST({0,1,2,3,4,5,6,7,8,9},$O19, TRUE),1), 0) -> 2 | R19: =_xlfn.IFNA(MATCH(RAND(), _xlfn.POISSON.DIST({0,1,2,3,4,5,6,7,8,9},$O19, TRUE),1), 0) -> 0 | S19: =_xlfn.IFNA(MATCH(RAND(), _xlfn.POISSON.DIST({0,1,2,3,4,5,6,7,8,9},$O19, TRUE),1), 0) -> 1 | T19: =_xlfn.IFNA(MATCH(RAND(), _xlfn.POISSON.DIST({0,1,2,3,4,5,6,7,8,9},$O19, TRUE),1), 0) -> 2 | U19: =_xlfn.IFNA(MATCH(RAND(), _xlfn.POISSON.DIST({0,1,2,3,4,5,6,7,8,9},$O19, TRUE),1), 0) -> 1 | V19: =_xlfn.IFNA(MATCH(RAND(), _xlfn.POISSON.DIST({0,1,2,3,4,5,6,7,8,9},$O19, TRUE),1), 0) -> 2 | W19: =_xlfn.IFNA(MATCH(RAND(), _xlfn.POISSON.DIST({0,1,2,3,4,5,6,7,8,9},$O19, TRUE),1), 0) -> 5 | X19: =_xlfn.IFNA(MATCH(RAND(), _xlfn.POISSON.DIST({0,1,2,3,4,5,6,7,8,9},$O19, TRUE),1), 0) -> 2 | Y19: =_xlfn.IFNA(MATCH(RAND(), _xlfn.POISSON.DIST({0,1,2,3,4,5,6,7,8,9},$O19, TRUE),1), 0) -> 0 | Z19: =_xlfn.IFNA(MATCH(RAND(), _xlfn.POISSON.DIST({0,1,2,3,4,5,6,7,8,9},$O19, TRUE),1), 0) -> 3 | AA19: =_xlfn.IFNA(MATCH(RAND(), _xlfn.POISSON.DIST({0,1,2,3,4,5,6,7,8,9},$O19, TRUE),1), 0) -> 1 | AB19: =_xlfn.IFNA(MATCH(RAND(), _xlfn.POISSON.DIST({0,1,2,3,4,5,6,7,8,9},$O19, TRUE),1), 0) -> 1 | AC19: =_xlfn.IFNA(MATCH(RAND(), _xlfn.POISSON.DIST({0,1,2,3,4,5,6,7,8,9},$O19, TRUE),1), 0) -> 2 | AD19: =_xlfn.IFNA(MATCH(RAND(), _xlfn.POISSON.DIST({0,1,2,3,4,5,6,7,8,9},$O19, TRUE),1), 0) -> 4 | AE19: =_xlfn.IFNA(MATCH(RAND(), _xlfn.POISSON.DIST({0,1,2,3,4,5,6,7,8,9},$O19, TRUE),1), 0) -> 2 | AF19: =_xlfn.IFNA(MATCH(RAND(), _xlfn.POISSON.DIST({0,1,2,3,4,5,6,7,8,9},$O19, TRUE),1), 0) -> 2 | AG19: =_xlfn.IFNA(MATCH(RAND(), _xlfn.POISSON.DIST({0,1,2,3,4,5,6,7,8,9},$O19, TRUE),1), 0) -> 2 | AH19: =_xlfn.IFNA(MATCH(RAND(), _xlfn.POISSON.DIST({0,1,2,3,4,5,6,7,8,9},$O19, TRUE),1), 0) -> 3 | AI19: =_xlfn.IFNA(MATCH(RAND(), _xlfn.POISSON.DIST({0,1,2,3,4,5,6,7,8,9},$O19, TRUE),1), 0) -> 4 | AJ19: =_xlfn.IFNA(MATCH(RAND(), _xlfn.POISSON.DIST({0,1,2,3,4,5,6,7,8,9},$O19, TRUE),1), 0) -> 0 | AK19: =_xlfn.IFNA(MATCH(RAND(), _xlfn.POISSON.DIST({0,1,2,3,4,5,6,7,8,9},$O19, TRUE),1), 0) -> 4 | AL19: =_xlfn.IFNA(MATCH(RAND(), _xlfn.POISSON.DIST({0,1,2,3,4,5,6,7,8,9},$O19, TRUE),1), 0) -> 3 | AM19: =_xlfn.IFNA(MATCH(RAND(), _xlfn.POISSON.DIST({0,1,2,3,4,5,6,7,8,9},$O19, TRUE),1), 0) -> 0 | AN19: =_xlfn.IFNA(MATCH(RAND(), _xlfn.POISSON.DIST({0,1,2,3,4,5,6,7,8,9},$O19, TRUE),1), 0) -> 2 | AO19: =_xlfn.IFNA(MATCH(RAND(), _xlfn.POISSON.DIST({0,1,2,3,4,5,6,7,8,9},$O19, TRUE),1), 0) -> 4 | AP19: =_xlfn.IFNA(MATCH(RAND(), _xlfn.POISSON.DIST({0,1,2,3,4,5,6,7,8,9},$O19, TRUE),1), 0) -> 1 | AQ19: =_xlfn.IFNA(MATCH(RAND(), _xlfn.POISSON.DIST({0,1,2,3,4,5,6,7,8,9},$O19, TRUE),1), 0) -> 4 | AR19: =_xlfn.IFNA(MATCH(RAND(), _xlfn.POISSON.DIST({0,1,2,3,4,5,6,7,8,9},$O19, TRUE),1), 0) -> 1 | AS19: =_xlfn.IFNA(MATCH(RAND(), _xlfn.POISSON.DIST({0,1,2,3,4,5,6,7,8,9},$O19, TRUE),1), 0) -> 1 | AT19: =_xlfn.IFNA(MATCH(RAND(), _xlfn.POISSON.DIST({0,1,2,3,4,5,6,7,8,9},$O19, TRUE),1), 0) -> 2 | AU19: =_xlfn.IFNA(MATCH(RAND(), _xlfn.POISSON.DIST({0,1,2,3,4,5,6,7,8,9},$O19, TRUE),1), 0) -> 4 | AV19: =_xlfn.IFNA(MATCH(RAND(), _xlfn.POISSON.DIST({0,1,2,3,4,5,6,7,8,9},$O19, TRUE),1), 0) -> 1 | AW19: =_xlfn.IFNA(MATCH(RAND(), _xlfn.POISSON.DIST({0,1,2,3,4,5,6,7,8,9},$O19, TRUE),1), 0) -> 3 | AX19: =_xlfn.IFNA(MATCH(RAND(), _xlfn.POISSON.DIST({0,1,2,3,4,5,6,7,8,9},$O19, TRUE),1), 0) -> 0 | AY19: =_xlfn.IFNA(MATCH(RAND(), _xlfn.POISSON.DIST({0,1,2,3,4,5,6,7,8,9},$O19, TRUE),1), 0) -> 1 | AZ19: =_xlfn.IFNA(MATCH(RAND(), _xlfn.POISSON.DIST({0,1,2,3,4,5,6,7,8,9},$O19, TRUE),1), 0) -> 3 | BA19: =_xlfn.IFNA(MATCH(RAND(), _xlfn.POISSON.DIST({0,1,2,3,4,5,6,7,8,9},$O19, TRUE),1), 0) -> 2 | BB19: =_xlfn.IFNA(MATCH(RAND(), _xlfn.POISSON.DIST({0,1,2,3,4,5,6,7,8,9},$O19, TRUE),1), 0) -> 3 | BC19: =_xlfn.IFNA(MATCH(RAND(), _xlfn.POISSON.DIST({0,1,2,3,4,5,6,7,8,9},$O19, TRUE),1), 0) -> 0 | BD19: =_xlfn.IFNA(MATCH(RAND(), _xlfn.POISSON.DIST({0,1,2,3,4,5,6,7,8,9},$O19, TRUE),1), 0) -> 3 | BE19: =_xlfn.IFNA(MATCH(RAND(), _xlfn.POISSON.DIST({0,1,2,3,4,5,6,7,8,9},$O19, TRUE),1), 0) -> 0 | BF19: =_xlfn.IFNA(MATCH(RAND(), _xlfn.POISSON.DIST({0,1,2,3,4,5,6,7,8,9},$O19, TRUE),1), 0) -> 1 | BG19: =_xlfn.IFNA(MATCH(RAND(), _xlfn.POISSON.DIST({0,1,2,3,4,5,6,7,8,9},$O19, TRUE),1), 0) -> 3 | BH19: =_xlfn.IFNA(MATCH(RAND(), _xlfn.POISSON.DIST({0,1,2,3,4,5,6,7,8,9},$O19, TRUE),1), 0) -> 4 | BI19: =_xlfn.IFNA(MATCH(RAND(), _xlfn.POISSON.DIST({0,1,2,3,4,5,6,7,8,9},$O19, TRUE),1), 0) -> 2 | BJ19: =_xlfn.IFNA(MATCH(RAND(), _xlfn.POISSON.DIST({0,1,2,3,4,5,6,7,8,9},$O19, TRUE),1), 0) -> 0 | BK19: =_xlfn.IFNA(MATCH(RAND(), _xlfn.POISSON.DIST({0,1,2,3,4,5,6,7,8,9},$O19, TRUE),1), 0) -> 0 | BL19: =_xlfn.IFNA(MATCH(RAND(), _xlfn.POISSON.DIST({0,1,2,3,4,5,6,7,8,9},$O19, TRUE),1), 0) -> 3 | BM19: =_xlfn.IFNA(MATCH(RAND(), _xlfn.POISSON.DIST({0,1,2,3,4,5,6,7,8,9},$O19, TRUE),1), 0) -> 1 | BN19: =_xlfn.IFNA(MATCH(RAND(), _xlfn.POISSON.DIST({0,1,2,3,4,5,6,7,8,9},$O19, TRUE),1), 0) -> 0 | BP19: =_xlfn.IFNA(MATCH(RAND(), _xlfn.POISSON.DIST({0,1,2,3,4,5,6,7,8,9},$P19, TRUE),1), 0) -> 1 | BQ19: =_xlfn.IFNA(MATCH(RAND(), _xlfn.POISSON.DIST({0,1,2,3,4,5,6,7,8,9},$P19, TRUE),1), 0) -> 1 | BR19: =_xlfn.IFNA(MATCH(RAND(), _xlfn.POISSON.DIST({0,1,2,3,4,5,6,7,8,9},$P19, TRUE),1), 0) -> 1 | BS19: =_xlfn.IFNA(MATCH(RAND(), _xlfn.POISSON.DIST({0,1,2,3,4,5,6,7,8,9},$P19, TRUE),1), 0) -> 0 | BT19: =_xlfn.IFNA(MATCH(RAND(), _xlfn.POISSON.DIST({0,1,2,3,4,5,6,7,8,9},$P19, TRUE),1), 0) -> 0 | BU19: =_xlfn.IFNA(MATCH(RAND(), _xlfn.POISSON.DIST({0,1,2,3,4,5,6,7,8,9},$P19, TRUE),1), 0) -> 1 | BV19: =_xlfn.IFNA(MATCH(RAND(), _xlfn.POISSON.DIST({0,1,2,3,4,5,6,7,8,9},$P19, TRUE),1), 0) -> 1 | BW19: =_xlfn.IFNA(MATCH(RAND(), _xlfn.POISSON.DIST({0,1,2,3,4,5,6,7,8,9},$P19, TRUE),1), 0) -> 1 | BX19: =_xlfn.IFNA(MATCH(RAND(), _xlfn.POISSON.DIST({0,1,2,3,4,5,6,7,8,9},$P19, TRUE),1), 0) -> 0 | BY19: =_xlfn.IFNA(MATCH(RAND(), _xlfn.POISSON.DIST({0,1,2,3,4,5,6,7,8,9},$P19, TRUE),1), 0) -> 2 | BZ19: =_xlfn.IFNA(MATCH(RAND(), _xlfn.POISSON.DIST({0,1,2,3,4,5,6,7,8,9},$P19, TRUE),1), 0) -> 3 | CA19: =_xlfn.IFNA(MATCH(RAND(), _xlfn.POISSON.DIST({0,1,2,3,4,5,6,7,8,9},$P19, TRUE),1), 0) -> 2 | CB19: =_xlfn.IFNA(MATCH(RAND(), _xlfn.POISSON.DIST({0,1,2,3,4,5,6,7,8,9},$P19, TRUE),1), 0) -> 1 | CC19: =_xlfn.IFNA(MATCH(RAND(), _xlfn.POISSON.DIST({0,1,2,3,4,5,6,7,8,9},$P19, TRUE),1), 0) -> 0 | CD19: =_xlfn.IFNA(MATCH(RAND(), _xlfn.POISSON.DIST({0,1,2,3,4,5,6,7,8,9},$P19, TRUE),1), 0) -> 1 | CE19: =_xlfn.IFNA(MATCH(RAND(), _xlfn.POISSON.DIST({0,1,2,3,4,5,6,7,8,9},$P19, TRUE),1), 0) -> 0 | CF19: =_xlfn.IFNA(MATCH(RAND(), _xlfn.POISSON.DIST({0,1,2,3,4,5,6,7,8,9},$P19, TRUE),1), 0) -> 1 | CG19: =_xlfn.IFNA(MATCH(RAND(), _xlfn.POISSON.DIST({0,1,2,3,4,5,6,7,8,9},$P19, TRUE),1), 0) -> 3 | CH19: =_xlfn.IFNA(MATCH(RAND(), _xlfn.POISSON.DIST({0,1,2,3,4,5,6,7,8,9},$P19, TRUE),1), 0) -> 0 | CI19: =_xlfn.IFNA(MATCH(RAND(), _xlfn.POISSON.DIST({0,1,2,3,4,5,6,7,8,9},$P19, TRUE),1), 0) -> 2 | CJ19: =_xlfn.IFNA(MATCH(RAND(), _xlfn.POISSON.DIST({0,1,2,3,4,5,6,7,8,9},$P19, TRUE),1), 0) -> 3 | CK19: =_xlfn.IFNA(MATCH(RAND(), _xlfn.POISSON.DIST({0,1,2,3,4,5,6,7,8,9},$P19, TRUE),1), 0) -> 2 | CL19: =_xlfn.IFNA(MATCH(RAND(), _xlfn.POISSON.DIST({0,1,2,3,4,5,6,7,8,9},$P19, TRUE),1), 0) -> 2 | CM19: =_xlfn.IFNA(MATCH(RAND(), _xlfn.POISSON.DIST({0,1,2,3,4,5,6,7,8,9},$P19, TRUE),1), 0) -> 1 | CN19: =_xlfn.IFNA(MATCH(RAND(), _xlfn.POISSON.DIST({0,1,2,3,4,5,6,7,8,9},$P19, TRUE),1), 0) -> 3 | CO19: =_xlfn.IFNA(MATCH(RAND(), _xlfn.POISSON.DIST({0,1,2,3,4,5,6,7,8,9},$P19, TRUE),1), 0) -> 0 | CP19: =_xlfn.IFNA(MATCH(RAND(), _xlfn.POISSON.DIST({0,1,2,3,4,5,6,7,8,9},$P19, TRUE),1), 0) -> 0 | CQ19: =_xlfn.IFNA(MATCH(RAND(), _xlfn.POISSON.DIST({0,1,2,3,4,5,6,7,8,9},$P19, TRUE),1), 0) -> 1 | CR19: =_xlfn.IFNA(MATCH(RAND(), _xlfn.POISSON.DIST({0,1,2,3,4,5,6,7,8,9},$P19, TRUE),1), 0) -> 0 | CS19: =_xlfn.IFNA(MATCH(RAND(), _xlfn.POISSON.DIST({0,1,2,3,4,5,6,7,8,9},$P19, TRUE),1), 0) -> 1 | CT19: =_xlfn.IFNA(MATCH(RAND(), _xlfn.POISSON.DIST({0,1,2,3,4,5,6,7,8,9},$P19, TRUE),1), 0) -> 1 | CU19: =_xlfn.IFNA(MATCH(RAND(), _xlfn.POISSON.DIST({0,1,2,3,4,5,6,7,8,9},$P19, TRUE),1), 0) -> 0 | CV19: =_xlfn.IFNA(MATCH(RAND(), _xlfn.POISSON.DIST({0,1,2,3,4,5,6,7,8,9},$P19, TRUE),1), 0) -> 0 | CW19: =_xlfn.IFNA(MATCH(RAND(), _xlfn.POISSON.DIST({0,1,2,3,4,5,6,7,8,9},$P19, TRUE),1), 0) -> 3 | CX19: =_xlfn.IFNA(MATCH(RAND(), _xlfn.POISSON.DIST({0,1,2,3,4,5,6,7,8,9},$P19, TRUE),1), 0) -> 1 | CY19: =_xlfn.IFNA(MATCH(RAND(), _xlfn.POISSON.DIST({0,1,2,3,4,5,6,7,8,9},$P19, TRUE),1), 0) -> 0 | CZ19: =_xlfn.IFNA(MATCH(RAND(), _xlfn.POISSON.DIST({0,1,2,3,4,5,6,7,8,9},$P19, TRUE),1), 0) -> 1 | DA19: =_xlfn.IFNA(MATCH(RAND(), _xlfn.POISSON.DIST({0,1,2,3,4,5,6,7,8,9},$P19, TRUE),1), 0) -> 2 | DB19: =_xlfn.IFNA(MATCH(RAND(), _xlfn.POISSON.DIST({0,1,2,3,4,5,6,7,8,9},$P19, TRUE),1), 0) -> 1 | DC19: =_xlfn.IFNA(MATCH(RAND(), _xlfn.POISSON.DIST({0,1,2,3,4,5,6,7,8,9},$P19, TRUE),1), 0) -> 3 | DD19: =_xlfn.IFNA(MATCH(RAND(), _xlfn.POISSON.DIST({0,1,2,3,4,5,6,7,8,9},$P19, TRUE),1), 0) -> 0 | DE19: =_xlfn.IFNA(MATCH(RAND(), _xlfn.POISSON.DIST({0,1,2,3,4,5,6,7,8,9},$P19, TRUE),1), 0) -> 2 | DF19: =_xlfn.IFNA(MATCH(RAND(), _xlfn.POISSON.DIST({0,1,2,3,4,5,6,7,8,9},$P19, TRUE),1), 0) -> 0 | DG19: =_xlfn.IFNA(MATCH(RAND(), _xlfn.POISSON.DIST({0,1,2,3,4,5,6,7,8,9},$P19, TRUE),1), 0) -> 0 | DH19: =_xlfn.IFNA(MATCH(RAND(), _xlfn.POISSON.DIST({0,1,2,3,4,5,6,7,8,9},$P19, TRUE),1), 0) -> 2 | DI19: =_xlfn.IFNA(MATCH(RAND(), _xlfn.POISSON.DIST({0,1,2,3,4,5,6,7,8,9},$P19, TRUE),1), 0) -> 4 | DJ19: =_xlfn.IFNA(MATCH(RAND(), _xlfn.POISSON.DIST({0,1,2,3,4,5,6,7,8,9},$P19, TRUE),1), 0) -> 0 | DK19: =_xlfn.IFNA(MATCH(RAND(), _xlfn.POISSON.DIST({0,1,2,3,4,5,6,7,8,9},$P19, TRUE),1), 0) -> 1 | DL19: =_xlfn.IFNA(MATCH(RAND(), _xlfn.POISSON.DIST({0,1,2,3,4,5,6,7,8,9},$P19, TRUE),1), 0) -> 1 | DM19: =_xlfn.IFNA(MATCH(RAND(), _xlfn.POISSON.DIST({0,1,2,3,4,5,6,7,8,9},$P19, TRUE),1), 0) -> 3
C20: 2019-06-12 | D20: A | E20: Frankrijk | F20: =(AVERAGE(Q20:BN20))*(1+INDEX('Voorspellingen groepsfase'!$C$4:$O$28, MATCH('De wedstrijden van dit seizoen'!E20,'Voorspellingen groepsfase'!$D$4:$D$28,0),3)) -> 1.80 | G20: Noorwegen | H20: =(AVERAGE(BP20:DM20))*(1+INDEX('Voorspellingen groepsfase'!$C$4:$O$28, MATCH('De wedstrijden van dit seizoen'!G20,'Voorspellingen groepsfase'!$D$4:$D$28,0),3)) -> 1.14 | I20: Frankrijk | L20: 1.8 | M20: 1.14 | N20: Frankrijk | O20: =(OFFSET('Bijlage 3 - Goals per groep'!$D$14,(INDEX('Bijlage 1 - Teamgegevens'!$C$13:$F$112,MATCH(G20,'Bijlage 1 - Teamgegevens'!$C$13:$C$112,0),4)/10),(INDEX('Bijlage 1 - Teamgegevens'!$C$13:$F$112,MATCH(E20,'Bijlage 1 - Teamgegevens'!$C$13:$C$112,0),4)/10))) -> 1.78 | P20: =OFFSET('Bijlage 3 - Goals per groep'!$D$14,(INDEX('Bijlage 1 - Teamgegevens'!$C$13:$F$112, MATCH(E20,'Bijlage 1 - Teamgegevens'!$C$13:$C$112,0),4)/10), (INDEX('Bijlage 1 - Teamgegevens'!$C$13:$F$112, MATCH(G20, 'Bijlage 1 - Teamgegevens'!$C$13:$C$112,0),4)/10)) -> 1.07 | Q20: =_xlfn.IFNA(MATCH(RAND(), _xlfn.POISSON.DIST({0,1,2,3,4,5,6,7,8,9},$O20, TRUE),1), 0) -> 1 | R20: =_xlfn.IFNA(MATCH(RAND(), _xlfn.POISSON.DIST({0,1,2,3,4,5,6,7,8,9},$O20, TRUE),1), 0) -> 2 | S20: =_xlfn.IFNA(MATCH(RAND(), _xlfn.POISSON.DIST({0,1,2,3,4,5,6,7,8,9},$O20, TRUE),1), 0) -> 3 | T20: =_xlfn.IFNA(MATCH(RAND(), _xlfn.POISSON.DIST({0,1,2,3,4,5,6,7,8,9},$O20, TRUE),1), 0) -> 1 | U20: =_xlfn.IFNA(MATCH(RAND(), _xlfn.POISSON.DIST({0,1,2,3,4,5,6,7,8,9},$O20, TRUE),1), 0) -> 0 | V20: =_xlfn.IFNA(MATCH(RAND(), _xlfn.POISSON.DIST({0,1,2,3,4,5,6,7,8,9},$O20, TRUE),1), 0) -> 1 | W20: =_xlfn.IFNA(MATCH(RAND(), _xlfn.POISSON.DIST({0,1,2,3,4,5,6,7,8,9},$O20, TRUE),1), 0) -> 2 | X20: =_xlfn.IFNA(MATCH(RAND(), _xlfn.POISSON.DIST({0,1,2,3,4,5,6,7,8,9},$O20, TRUE),1), 0) -> 0 | Y20: =_xlfn.IFNA(MATCH(RAND(), _xlfn.POISSON.DIST({0,1,2,3,4,5,6,7,8,9},$O20, TRUE),1), 0) -> 0 | Z20: =_xlfn.IFNA(MATCH(RAND(), _xlfn.POISSON.DIST({0,1,2,3,4,5,6,7,8,9},$O20, TRUE),1), 0) -> 3 | AA20: =_xlfn.IFNA(MATCH(RAND(), _xlfn.POISSON.DIST({0,1,2,3,4,5,6,7,8,9},$O20, TRUE),1), 0) -> 1 | AB20: =_xlfn.IFNA(MATCH(RAND(), _xlfn.POISSON.DIST({0,1,2,3,4,5,6,7,8,9},$O20, TRUE),1), 0) -> 1 | AC20: =_xlfn.IFNA(MATCH(RAND(), _xlfn.POISSON.DIST({0,1,2,3,4,5,6,7,8,9},$O20, TRUE),1), 0) -> 4 | AD20: =_xlfn.IFNA(MATCH(RAND(), _xlfn.POISSON.DIST({0,1,2,3,4,5,6,7,8,9},$O20, TRUE),1), 0) -> 1 | AE20: =_xlfn.IFNA(MATCH(RAND(), _xlfn.POISSON.DIST({0,1,2,3,4,5,6,7,8,9},$O20, TRUE),1), 0) -> 1 | AF20: =_xlfn.IFNA(MATCH(RAND(), _xlfn.POISSON.DIST({0,1,2,3,4,5,6,7,8,9},$O20, TRUE),1), 0) -> 0 | AG20: =_xlfn.IFNA(MATCH(RAND(), _xlfn.POISSON.DIST({0,1,2,3,4,5,6,7,8,9},$O20, TRUE),1), 0) -> 0 | AH20: =_xlfn.IFNA(MATCH(RAND(), _xlfn.POISSON.DIST({0,1,2,3,4,5,6,7,8,9},$O20, TRUE),1), 0) -> 3 | AI20: =_xlfn.IFNA(MATCH(RAND(), _xlfn.POISSON.DIST({0,1,2,3,4,5,6,7,8,9},$O20, TRUE),1), 0) -> 2 | AJ20: =_xlfn.IFNA(MATCH(RAND(), _xlfn.POISSON.DIST({0,1,2,3,4,5,6,7,8,9},$O20, TRUE),1), 0) -> 2 | AK20: =_xlfn.IFNA(MATCH(RAND(), _xlfn.POISSON.DIST({0,1,2,3,4,5,6,7,8,9},$O20, TRUE),1), 0) -> 2 | AL20: =_xlfn.IFNA(MATCH(RAND(), _xlfn.POISSON.DIST({0,1,2,3,4,5,6,7,8,9},$O20, TRUE),1), 0) -> 2 | AM20: =_xlfn.IFNA(MATCH(RAND(), _xlfn.POISSON.DIST({0,1,2,3,4,5,6,7,8,9},$O20, TRUE),1), 0) -> 0 | AN20: =_xlfn.IFNA(MATCH(RAND(), _xlfn.POISSON.DIST({0,1,2,3,4,5,6,7,8,9},$O20, TRUE),1), 0) -> 0 | AO20: =_xlfn.IFNA(MATCH(RAND(), _xlfn.POISSON.DIST({0,1,2,3,4,5,6,7,8,9},$O20, TRUE),1), 0) -> 0 | AP20: =_xlfn.IFNA(MATCH(RAND(), _xlfn.POISSON.DIST({0,1,2,3,4,5,6,7,8,9},$O20, TRUE),1), 0) -> 2 | AQ20: =_xlfn.IFNA(MATCH(RAND(), _xlfn.POISSON.DIST({0,1,2,3,4,5,6,7,8,9},$O20, TRUE),1), 0) -> 6 | AR20: =_xlfn.IFNA(MATCH(RAND(), _xlfn.POISSON.DIST({0,1,2,3,4,5,6,7,8,9},$O20, TRUE),1), 0) -> 4 | AS20: =_xlfn.IFNA(MATCH(RAND(), _xlfn.POISSON.DIST({0,1,2,3,4,5,6,7,8,9},$O20, TRUE),1), 0) -> 1 | AT20: =_xlfn.IFNA(MATCH(RAND(), _xlfn.POISSON.DIST({0,1,2,3,4,5,6,7,8,9},$O20, TRUE),1), 0) -> 5 | AU20: =_xlfn.IFNA(MATCH(RAND(), _xlfn.POISSON.DIST({0,1,2,3,4,5,6,7,8,9},$O20, TRUE),1), 0) -> 2 | AV20: =_xlfn.IFNA(MATCH(RAND(), _xlfn.POISSON.DIST({0,1,2,3,4,5,6,7,8,9},$O20, TRUE),1), 0) -> 2 | AW20: =_xlfn.IFNA(MATCH(RAND(), _xlfn.POISSON.DIST({0,1,2,3,4,5,6,7,8,9},$O20, TRUE),1), 0) -> 4 | AX20: =_xlfn.IFNA(MATCH(RAND(), _xlfn.POISSON.DIST({0,1,2,3,4,5,6,7,8,9},$O20, TRUE),1), 0) -> 2 | AY20: =_xlfn.IFNA(MATCH(RAND(), _xlfn.POISSON.DIST({0,1,2,3,4,5,6,7,8,9},$O20, TRUE),1), 0) -> 4 | AZ20: =_xlfn.IFNA(MATCH(RAND(), _xlfn.POISSON.DIST({0,1,2,3,4,5,6,7,8,9},$O20, TRUE),1), 0) -> 2 | BA20: =_xlfn.IFNA(MATCH(RAND(), _xlfn.POISSON.DIST({0,1,2,3,4,5,6,7,8,9},$O20, TRUE),1), 0) -> 3 | BB20: =_xlfn.IFNA(MATCH(RAND(), _xlfn.POISSON.DIST({0,1,2,3,4,5,6,7,8,9},$O20, TRUE),1), 0) -> 2 | BC20: =_xlfn.IFNA(MATCH(RAND(), _xlfn.POISSON.DIST({0,1,2,3,4,5,6,7,8,9},$O20, TRUE),1), 0) -> 1 | BD20: =_xlfn.IFNA(MATCH(RAND(), _xlfn.POISSON.DIST({0,1,2,3,4,5,6,7,8,9},$O20, TRUE),1), 0) -> 0 | BE20: =_xlfn.IFNA(MATCH(RAND(), _xlfn.POISSON.DIST({0,1,2,3,4,5,6,7,8,9},$O20, TRUE),1), 0) -> 1 | BF20: =_xlfn.IFNA(MATCH(RAND(), _xlfn.POISSON.DIST({0,1,2,3,4,5,6,7,8,9},$O20, TRUE),1), 0) -> 1 | BG20: =_xlfn.IFNA(MATCH(RAND(), _xlfn.POISSON.DIST({0,1,2,3,4,5,6,7,8,9},$O20, TRUE),1), 0) -> 0 | BH20: =_xlfn.IFNA(MATCH(RAND(), _xlfn.POISSON.DIST({0,1,2,3,4,5,6,7,8,9},$O20, TRUE),1), 0) -> 2 | BI20: =_xlfn.IFNA(MATCH(RAND(), _xlfn.POISSON.DIST({0,1,2,3,4,5,6,7,8,9},$O20, TRUE),1), 0) -> 1 | BJ20: =_xlfn.IFNA(MATCH(RAND(), _xlfn.POISSON.DIST({0,1,2,3,4,5,6,7,8,9},$O20, TRUE),1), 0) -> 2 | BK20: =_xlfn.IFNA(MATCH(RAND(), _xlfn.POISSON.DIST({0,1,2,3,4,5,6,7,8,9},$O20, TRUE),1), 0) -> 1 | BL20: =_xlfn.IFNA(MATCH(RAND(), _xlfn.POISSON.DIST({0,1,2,3,4,5,6,7,8,9},$O20, TRUE),1), 0) -> 7 | BM20: =_xlfn.IFNA(MATCH(RAND(), _xlfn.POISSON.DIST({0,1,2,3,4,5,6,7,8,9},$O20, TRUE),1), 0) -> 0 | BN20: =_xlfn.IFNA(MATCH(RAND(), _xlfn.POISSON.DIST({0,1,2,3,4,5,6,7,8,9},$O20, TRUE),1), 0) -> 3 | BP20: =_xlfn.IFNA(MATCH(RAND(), _xlfn.POISSON.DIST({0,1,2,3,4,5,6,7,8,9},$P20, TRUE),1), 0) -> 3 | BQ20: =_xlfn.IFNA(MATCH(RAND(), _xlfn.POISSON.DIST({0,1,2,3,4,5,6,7,8,9},$P20, TRUE),1), 0) -> 1 | BR20: =_xlfn.IFNA(MATCH(RAND(), _xlfn.POISSON.DIST({0,1,2,3,4,5,6,7,8,9},$P20, TRUE),1), 0) -> 1 | BS20: =_xlfn.IFNA(MATCH(RAND(), _xlfn.POISSON.DIST({0,1,2,3,4,5,6,7,8,9},$P20, TRUE),1), 0) -> 2 | BT20: =_xlfn.IFNA(MATCH(RAND(), _xlfn.POISSON.DIST({0,1,2,3,4,5,6,7,8,9},$P20, TRUE),1), 0) -> 2 | BU20: =_xlfn.IFNA(MATCH(RAND(), _xlfn.POISSON.DIST({0,1,2,3,4,5,6,7,8,9},$P20, TRUE),1), 0) -> 0 | BV20: =_xlfn.IFNA(MATCH(RAND(), _xlfn.POISSON.DIST({0,1,2,3,4,5,6,7,8,9},$P20, TRUE),1), 0) -> 2 | BW20: =_xlfn.IFNA(MATCH(RAND(), _xlfn.POISSON.DIST({0,1,2,3,4,5,6,7,8,9},$P20, TRUE),1), 0) -> 3 | BX20: =_xlfn.IFNA(MATCH(RAND(), _xlfn.POISSON.DIST({0,1,2,3,4,5,6,7,8,9},$P20, TRUE),1), 0) -> 0 | BY20: =_xlfn.IFNA(MATCH(RAND(), _xlfn.POISSON.DIST({0,1,2,3,4,5,6,7,8,9},$P20, TRUE),1), 0) -> 0 | BZ20: =_xlfn.IFNA(MATCH(RAND(), _xlfn.POISSON.DIST({0,1,2,3,4,5,6,7,8,9},$P20, TRUE),1), 0) -> 0 | CA20: =_xlfn.IFNA(MATCH(RAND(), _xlfn.POISSON.DIST({0,1,2,3,4,5,6,7,8,9},$P20, TRUE),1), 0) -> 2 | CB20: =_xlfn.IFNA(MATCH(RAND(), _xlfn.POISSON.DIST({0,1,2,3,4,5,6,7,8,9},$P20, TRUE),1), 0) -> 2 | CC20: =_xlfn.IFNA(MATCH(RAND(), _xlfn.POISSON.DIST({0,1,2,3,4,5,6,7,8,9},$P20, TRUE),1), 0) -> 1 | CD20: =_xlfn.IFNA(MATCH(RAND(), _xlfn.POISSON.DIST({0,1,2,3,4,5,6,7,8,9},$P20, TRUE),1), 0) -> 0 | CE20: =_xlfn.IFNA(MATCH(RAND(), _xlfn.POISSON.DIST({0,1,2,3,4,5,6,7,8,9},$P20, TRUE),1), 0) -> 2 | CF20: =_xlfn.IFNA(MATCH(RAND(), _xlfn.POISSON.DIST({0,1,2,3,4,5,6,7,8,9},$P20, TRUE),1), 0) -> 2 | CG20: =_xlfn.IFNA(MATCH(RAND(), _xlfn.POISSON.DIST({0,1,2,3,4,5,6,7,8,9},$P20, TRUE),1), 0) -> 2 | CH20: =_xlfn.IFNA(MATCH(RAND(), _xlfn.POISSON.DIST({0,1,2,3,4,5,6,7,8,9},$P20, TRUE),1), 0) -> 0 | CI20: =_xlfn.IFNA(MATCH(RAND(), _xlfn.POISSON.DIST({0,1,2,3,4,5,6,7,8,9},$P20, TRUE),1), 0) -> 0 | CJ20: =_xlfn.IFNA(MATCH(RAND(), _xlfn.POISSON.DIST({0,1,2,3,4,5,6,7,8,9},$P20, TRUE),1), 0) -> 1 | CK20: =_xlfn.IFNA(MATCH(RAND(), _xlfn.POISSON.DIST({0,1,2,3,4,5,6,7,8,9},$P20, TRUE),1), 0) -> 2 | CL20: =_xlfn.IFNA(MATCH(RAND(), _xlfn.POISSON.DIST({0,1,2,3,4,5,6,7,8,9},$P20, TRUE),1), 0) -> 0 | CM20: =_xlfn.IFNA(MATCH(RAND(), _xlfn.POISSON.DIST({0,1,2,3,4,5,6,7,8,9},$P20, TRUE),1), 0) -> 1 | CN20: =_xlfn.IFNA(MATCH(RAND(), _xlfn.POISSON.DIST({0,1,2,3,4,5,6,7,8,9},$P20, TRUE),1), 0) -> 0 | CO20: =_xlfn.IFNA(MATCH(RAND(), _xlfn.POISSON.DIST({0,1,2,3,4,5,6,7,8,9},$P20, TRUE),1), 0) -> 1 | CP20: =_xlfn.IFNA(MATCH(RAND(), _xlfn.POISSON.DIST({0,1,2,3,4,5,6,7,8,9},$P20, TRUE),1), 0) -> 1 | CQ20: =_xlfn.IFNA(MATCH(RAND(), _xlfn.POISSON.DIST({0,1,2,3,4,5,6,7,8,9},$P20, TRUE),1), 0) -> 1 | CR20: =_xlfn.IFNA(MATCH(RAND(), _xlfn.POISSON.DIST({0,1,2,3,4,5,6,7,8,9},$P20, TRUE),1), 0) -> 1 | CS20: =_xlfn.IFNA(MATCH(RAND(), _xlfn.POISSON.DIST({0,1,2,3,4,5,6,7,8,9},$P20, TRUE),1), 0) -> 1 | CT20: =_xlfn.IFNA(MATCH(RAND(), _xlfn.POISSON.DIST({0,1,2,3,4,5,6,7,8,9},$P20, TRUE),1), 0) -> 0 | CU20: =_xlfn.IFNA(MATCH(RAND(), _xlfn.POISSON.DIST({0,1,2,3,4,5,6,7,8,9},$P20, TRUE),1), 0) -> 1 | CV20: =_xlfn.IFNA(MATCH(RAND(), _xlfn.POISSON.DIST({0,1,2,3,4,5,6,7,8,9},$P20, TRUE),1), 0) -> 1 | CW20: =_xlfn.IFNA(MATCH(RAND(), _xlfn.POISSON.DIST({0,1,2,3,4,5,6,7,8,9},$P20, TRUE),1), 0) -> 1 | CX20: =_xlfn.IFNA(MATCH(RAND(), _xlfn.POISSON.DIST({0,1,2,3,4,5,6,7,8,9},$P20, TRUE),1), 0) -> 1 | CY20: =_xlfn.IFNA(MATCH(RAND(), _xlfn.POISSON.DIST({0,1,2,3,4,5,6,7,8,9},$P20, TRUE),1), 0) -> 2 | CZ20: =_xlfn.IFNA(MATCH(RAND(), _xlfn.POISSON.DIST({0,1,2,3,4,5,6,7,8,9},$P20, TRUE),1), 0) -> 0 | DA20: =_xlfn.IFNA(MATCH(RAND(), _xlfn.POISSON.DIST({0,1,2,3,4,5,6,7,8,9},$P20, TRUE),1), 0) -> 0 | DB20: =_xlfn.IFNA(MATCH(RAND(), _xlfn.POISSON.DIST({0,1,2,3,4,5,6,7,8,9},$P20, TRUE),1), 0) -> 1 | DC20: =_xlfn.IFNA(MATCH(RAND(), _xlfn.POISSON.DIST({0,1,2,3,4,5,6,7,8,9},$P20, TRUE),1), 0) -> 0 | DD20: =_xlfn.IFNA(MATCH(RAND(), _xlfn.POISSON.DIST({0,1,2,3,4,5,6,7,8,9},$P20, TRUE),1), 0) -> 1 | DE20: =_xlfn.IFNA(MATCH(RAND(), _xlfn.POISSON.DIST({0,1,2,3,4,5,6,7,8,9},$P20, TRUE),1), 0) -> 0 | DF20: =_xlfn.IFNA(MATCH(RAND(), _xlfn.POISSON.DIST({0,1,2,3,4,5,6,7,8,9},$P20, TRUE),1), 0) -> 3 | DG20: =_xlfn.IFNA(MATCH(RAND(), _xlfn.POISSON.DIST({0,1,2,3,4,5,6,7,8,9},$P20, TRUE),1), 0) -> 1 | DH20: =_xlfn.IFNA(MATCH(RAND(), _xlfn.POISSON.DIST({0,1,2,3,4,5,6,7,8,9},$P20, TRUE),1), 0) -> 3 | DI20: =_xlfn.IFNA(MATCH(RAND(), _xlfn.POISSON.DIST({0,1,2,3,4,5,6,7,8,9},$P20, TRUE),1), 0) -> 1 | DJ20: =_xlfn.IFNA(MATCH(RAND(), _xlfn.POISSON.DIST({0,1,2,3,4,5,6,7,8,9},$P20, TRUE),1), 0) -> 1 | DK20: =_xlfn.IFNA(MATCH(RAND(), _xlfn.POISSON.DIST({0,1,2,3,4,5,6,7,8,9},$P20, TRUE),1), 0) -> 2 | DL20: =_xlfn.IFNA(MATCH(RAND(), _xlfn.POISSON.DIST({0,1,2,3,4,5,6,7,8,9},$P20, TRUE),1), 0) -> 2 | DM20: =_xlfn.IFNA(MATCH(RAND(), _xlfn.POISSON.DIST({0,1,2,3,4,5,6,7,8,9},$P20, TRUE),1), 0) -> 2
C21: 2019-06-13 | D21: C | E21: Australië | F21: =(AVERAGE(Q21:BN21))*(1+INDEX('Voorspellingen groepsfase'!$C$4:$O$28, MATCH('De wedstrijden van dit seizoen'!E21,'Voorspellingen groepsfase'!$D$4:$D$28,0),3)) -> 1.46 | G21: Brazilië | H21: =(AVERAGE(BP21:DM21))*(1+INDEX('Voorspellingen groepsfase'!$C$4:$O$28, MATCH('De wedstrijden van dit seizoen'!G21,'Voorspellingen groepsfase'!$D$4:$D$28,0),3)) -> 1.20 | I21: Australië | L21: 1.46 | M21: 1.2 | N21: Australië | O21: =(OFFSET('Bijlage 3 - Goals per groep'!$D$14,(INDEX('Bijlage 1 - Teamgegevens'!$C$13:$F$112,MATCH(G21,'Bijlage 1 - Teamgegevens'!$C$13:$C$112,0),4)/10),(INDEX('Bijlage 1 - Teamgegevens'!$C$13:$F$112,MATCH(E21,'Bijlage 1 - Teamgegevens'!$C$13:$C$112,0),4)/10))) -> 1.50 | P21: =OFFSET('Bijlage 3 - Goals per groep'!$D$14,(INDEX('Bijlage 1 - Teamgegevens'!$C$13:$F$112, MATCH(E21,'Bijlage 1 - Teamgegevens'!$C$13:$C$112,0),4)/10), (INDEX('Bijlage 1 - Teamgegevens'!$C$13:$F$112, MATCH(G21, 'Bijlage 1 - Teamgegevens'!$C$13:$C$112,0),4)/10)) -> 1.50 | Q21: =_xlfn.IFNA(MATCH(RAND(), _xlfn.POISSON.DIST({0,1,2,3,4,5,6,7,8,9},$O21, TRUE),1), 0) -> 2 | R21: =_xlfn.IFNA(MATCH(RAND(), _xlfn.POISSON.DIST({0,1,2,3,4,5,6,7,8,9},$O21, TRUE),1), 0) -> 0 | S21: =_xlfn.IFNA(MATCH(RAND(), _xlfn.POISSON.DIST({0,1,2,3,4,5,6,7,8,9},$O21, TRUE),1), 0) -> 1 | T21: =_xlfn.IFNA(MATCH(RAND(), _xlfn.POISSON.DIST({0,1,2,3,4,5,6,7,8,9},$O21, TRUE),1), 0) -> 0 | U21: =_xlfn.IFNA(MATCH(RAND(), _xlfn.POISSON.DIST({0,1,2,3,4,5,6,7,8,9},$O21, TRUE),1), 0) -> 0 | V21: =_xlfn.IFNA(MATCH(RAND(), _xlfn.POISSON.DIST({0,1,2,3,4,5,6,7,8,9},$O21, TRUE),1), 0) -> 1 | W21: =_xlfn.IFNA(MATCH(RAND(), _xlfn.POISSON.DIST({0,1,2,3,4,5,6,7,8,9},$O21, TRUE),1), 0) -> 1 | X21: =_xlfn.IFNA(MATCH(RAND(), _xlfn.POISSON.DIST({0,1,2,3,4,5,6,7,8,9},$O21, TRUE),1), 0) -> 1 | Y21: =_xlfn.IFNA(MATCH(RAND(), _xlfn.POISSON.DIST({0,1,2,3,4,5,6,7,8,9},$O21, TRUE),1), 0) -> 2 | Z21: =_xlfn.IFNA(MATCH(RAND(), _xlfn.POISSON.DIST({0,1,2,3,4,5,6,7,8,9},$O21, TRUE),1), 0) -> 3 | AA21: =_xlfn.IFNA(MATCH(RAND(), _xlfn.POISSON.DIST({0,1,2,3,4,5,6,7,8,9},$O21, TRUE),1), 0) -> 2 | AB21: =_xlfn.IFNA(MATCH(RAND(), _xlfn.POISSON.DIST({0,1,2,3,4,5,6,7,8,9},$O21, TRUE),1), 0) -> 2 | AC21: =_xlfn.IFNA(MATCH(RAND(), _xlfn.POISSON.DIST({0,1,2,3,4,5,6,7,8,9},$O21, TRUE),1), 0) -> 0 | AD21: =_xlfn.IFNA(MATCH(RAND(), _xlfn.POISSON.DIST({0,1,2,3,4,5,6,7,8,9},$O21, TRUE),1), 0) -> 5 | AE21: =_xlfn.IFNA(MATCH(RAND(), _xlfn.POISSON.DIST({0,1,2,3,4,5,6,7,8,9},$O21, TRUE),1), 0) -> 1 | AF21: =_xlfn.IFNA(MATCH(RAND(), _xlfn.POISSON.DIST({0,1,2,3,4,5,6,7,8,9},$O21, TRUE),1), 0) -> 1 | AG21: =_xlfn.IFNA(MATCH(RAND(), _xlfn.POISSON.DIST({0,1,2,3,4,5,6,7,8,9},$O21, TRUE),1), 0) -> 0 | AH21: =_xlfn.IFNA(MATCH(RAND(), _xlfn.POISSON.DIST({0,1,2,3,4,5,6,7,8,9},$O21, TRUE),1), 0) -> 3 | AI21: =_xlfn.IFNA(MATCH(RAND(), _xlfn.POISSON.DIST({0,1,2,3,4,5,6,7,8,9},$O21, TRUE),1), 0) -> 0 | AJ21: =_xlfn.IFNA(MATCH(RAND(), _xlfn.POISSON.DIST({0,1,2,3,4,5,6,7,8,9},$O21, TRUE),1), 0) -> 0 | AK21: =_xlfn.IFNA(MATCH(RAND(), _xlfn.POISSON.DIST({0,1,2,3,4,5,6,7,8,9},$O21, TRUE),1), 0) -> 2 | AL21: =_xlfn.IFNA(MATCH(RAND(), _xlfn.POISSON.DIST({0,1,2,3,4,5,6,7,8,9},$O21, TRUE),1), 0) -> 0 | AM21: =_xlfn.IFNA(MATCH(RAND(), _xlfn.POISSON.DIST({0,1,2,3,4,5,6,7,8,9},$O21, TRUE),1), 0) -> 2 | AN21: =_xlfn.IFNA(MATCH(RAND(), _xlfn.POISSON.DIST({0,1,2,3,4,5,6,7,8,9},$O21, TRUE),1), 0) -> 1 | AO21: =_xlfn.IFNA(MATCH(RAND(), _xlfn.POISSON.DIST({0,1,2,3,4,5,6,7,8,9},$O21, TRUE),1), 0) -> 0 | AP21: =_xlfn.IFNA(MATCH(RAND(), _xlfn.POISSON.DIST({0,1,2,3,4,5,6,7,8,9},$O21, TRUE),1), 0) -> 0 | AQ21: =_xlfn.IFNA(MATCH(RAND(), _xlfn.POISSON.DIST({0,1,2,3,4,5,6,7,8,9},$O21, TRUE),1), 0) -> 2 | AR21: =_xlfn.IFNA(MATCH(RAND(), _xlfn.POISSON.DIST({0,1,2,3,4,5,6,7,8,9},$O21, TRUE),1), 0) -> 0 | AS21: =_xlfn.IFNA(MATCH(RAND(), _xlfn.POISSON.DIST({0,1,2,3,4,5,6,7,8,9},$O21, TRUE),1), 0) -> 1 | AT21: =_xlfn.IFNA(MATCH(RAND(), _xlfn.POISSON.DIST({0,1,2,3,4,5,6,7,8,9},$O21, TRUE),1), 0) -> 2 | AU21: =_xlfn.IFNA(MATCH(RAND(), _xlfn.POISSON.DIST({0,1,2,3,4,5,6,7,8,9},$O21, TRUE),1), 0) -> 3 | AV21: =_xlfn.IFNA(MATCH(RAND(), _xlfn.POISSON.DIST({0,1,2,3,4,5,6,7,8,9},$O21, TRUE),1), 0) -> 1 | AW21: =_xlfn.IFNA(MATCH(RAND(), _xlfn.POISSON.DIST({0,1,2,3,4,5,6,7,8,9},$O21, TRUE),1), 0) -> 1 | AX21: =_xlfn.IFNA(MATCH(RAND(), _xlfn.POISSON.DIST({0,1,2,3,4,5,6,7,8,9},$O21, TRUE),1), 0) -> 1 | AY21: =_xlfn.IFNA(MATCH(RAND(), _xlfn.POISSON.DIST({0,1,2,3,4,5,6,7,8,9},$O21, TRUE),1), 0) -> 2 | AZ21: =_xlfn.IFNA(MATCH(RAND(), _xlfn.POISSON.DIST({0,1,2,3,4,5,6,7,8,9},$O21, TRUE),1), 0) -> 2 | BA21: =_xlfn.IFNA(MATCH(RAND(), _xlfn.POISSON.DIST({0,1,2,3,4,5,6,7,8,9},$O21, TRUE),1), 0) -> 2 | BB21: =_xlfn.IFNA(MATCH(RAND(), _xlfn.POISSON.DIST({0,1,2,3,4,5,6,7,8,9},$O21, TRUE),1), 0) -> 0 | BC21: =_xlfn.IFNA(MATCH(RAND(), _xlfn.POISSON.DIST({0,1,2,3,4,5,6,7,8,9},$O21, TRUE),1), 0) -> 2 | BD21: =_xlfn.IFNA(MATCH(RAND(), _xlfn.POISSON.DIST({0,1,2,3,4,5,6,7,8,9},$O21, TRUE),1), 0) -> 2 | BE21: =_xlfn.IFNA(MATCH(RAND(), _xlfn.POISSON.DIST({0,1,2,3,4,5,6,7,8,9},$O21, TRUE),1), 0) -> 0 | BF21: =_xlfn.IFNA(MATCH(RAND(), _xlfn.POISSON.DIST({0,1,2,3,4,5,6,7,8,9},$O21, TRUE),1), 0) -> 5 | BG21: =_xlfn.IFNA(MATCH(RAND(), _xlfn.POISSON.DIST({0,1,2,3,4,5,6,7,8,9},$O21, TRUE),1), 0) -> 4 | BH21: =_xlfn.IFNA(MATCH(RAND(), _xlfn.POISSON.DIST({0,1,2,3,4,5,6,7,8,9},$O21, TRUE),1), 0) -> 0 | BI21: =_xlfn.IFNA(MATCH(RAND(), _xlfn.POISSON.DIST({0,1,2,3,4,5,6,7,8,9},$O21, TRUE),1), 0) -> 3 | BJ21: =_xlfn.IFNA(MATCH(RAND(), _xlfn.POISSON.DIST({0,1,2,3,4,5,6,7,8,9},$O21, TRUE),1), 0) -> 4 | BK21: =_xlfn.IFNA(MATCH(RAND(), _xlfn.POISSON.DIST({0,1,2,3,4,5,6,7,8,9},$O21, TRUE),1), 0) -> 0 | BL21: =_xlfn.IFNA(MATCH(RAND(), _xlfn.POISSON.DIST({0,1,2,3,4,5,6,7,8,9},$O21, TRUE),1), 0) -> 1 | BM21: =_xlfn.IFNA(MATCH(RAND(), _xlfn.POISSON.DIST({0,1,2,3,4,5,6,7,8,9},$O21, TRUE),1), 0) -> 2 | BN21: =_xlfn.IFNA(MATCH(RAND(), _xlfn.POISSON.DIST({0,1,2,3,4,5,6,7,8,9},$O21, TRUE),1), 0) -> 3 | BP21: =_xlfn.IFNA(MATCH(RAND(), _xlfn.POISSON.DIST({0,1,2,3,4,5,6,7,8,9},$P21, TRUE),1), 0) -> 1 | BQ21: =_xlfn.IFNA(MATCH(RAND(), _xlfn.POISSON.DIST({0,1,2,3,4,5,6,7,8,9},$P21, TRUE),1), 0) -> 1 | BR21: =_xlfn.IFNA(MATCH(RAND(), _xlfn.POISSON.DIST({0,1,2,3,4,5,6,7,8,9},$P21, TRUE),1), 0) -> 2 | BS21: =_xlfn.IFNA(MATCH(RAND(), _xlfn.POISSON.DIST({0,1,2,3,4,5,6,7,8,9},$P21, TRUE),1), 0) -> 0 | BT21: =_xlfn.IFNA(MATCH(RAND(), _xlfn.POISSON.DIST({0,1,2,3,4,5,6,7,8,9},$P21, TRUE),1), 0) -> 0 | BU21: =_xlfn.IFNA(MATCH(RAND(), _xlfn.POISSON.DIST({0,1,2,3,4,5,6,7,8,9},$P21, TRUE),1), 0) -> 3 | BV21: =_xlfn.IFNA(MATCH(RAND(), _xlfn.POISSON.DIST({0,1,2,3,4,5,6,7,8,9},$P21, TRUE),1), 0) -> 2 | BW21: =_xlfn.IFNA(MATCH(RAND(), _xlfn.POISSON.DIST({0,1,2,3,4,5,6,7,8,9},$P21, TRUE),1), 0) -> 2 | BX21: =_xlfn.IFNA(MATCH(RAND(), _xlfn.POISSON.DIST({0,1,2,3,4,5,6,7,8,9},$P21, TRUE),1), 0) -> 0 | BY21: =_xlfn.IFNA(MATCH(RAND(), _xlfn.POISSON.DIST({0,1,2,3,4,5,6,7,8,9},$P21, TRUE),1), 0) -> 1 | BZ21: =_xlfn.IFNA(MATCH(RAND(), _xlfn.POISSON.DIST({0,1,2,3,4,5,6,7,8,9},$P21, TRUE),1), 0) -> 3 | CA21: =_xlfn.IFNA(MATCH(RAND(), _xlfn.POISSON.DIST({0,1,2,3,4,5,6,7,8,9},$P21, TRUE),1), 0) -> 1 | CB21: =_xlfn.IFNA(MATCH(RAND(), _xlfn.POISSON.DIST({0,1,2,3,4,5,6,7,8,9},$P21, TRUE),1), 0) -> 1 | CC21: =_xlfn.IFNA(MATCH(RAND(), _xlfn.POISSON.DIST({0,1,2,3,4,5,6,7,8,9},$P21, TRUE),1), 0) -> 1 | CD21: =_xlfn.IFNA(MATCH(RAND(), _xlfn.POISSON.DIST({0,1,2,3,4,5,6,7,8,9},$P21, TRUE),1), 0) -> 0 | CE21: =_xlfn.IFNA(MATCH(RAND(), _xlfn.POISSON.DIST({0,1,2,3,4,5,6,7,8,9},$P21, TRUE),1), 0) -> 0 | CF21: =_xlfn.IFNA(MATCH(RAND(), _xlfn.POISSON.DIST({0,1,2,3,4,5,6,7,8,9},$P21, TRUE),1), 0) -> 0 | CG21: =_xlfn.IFNA(MATCH(RAND(), _xlfn.POISSON.DIST({0,1,2,3,4,5,6,7,8,9},$P21, TRUE),1), 0) -> 1 | CH21: =_xlfn.IFNA(MATCH(RAND(), _xlfn.POISSON.DIST({0,1,2,3,4,5,6,7,8,9},$P21, TRUE),1), 0) -> 1 | CI21: =_xlfn.IFNA(MATCH(RAND(), _xlfn.POISSON.DIST({0,1,2,3,4,5,6,7,8,9},$P21, TRUE),1), 0) -> 0 | CJ21: =_xlfn.IFNA(MATCH(RAND(), _xlfn.POISSON.DIST({0,1,2,3,4,5,6,7,8,9},$P21, TRUE),1), 0) -> 1 | CK21: =_xlfn.IFNA(MATCH(RAND(), _xlfn.POISSON.DIST({0,1,2,3,4,5,6,7,8,9},$P21, TRUE),1), 0) -> 1 | CL21: =_xlfn.IFNA(MATCH(RAND(), _xlfn.POISSON.DIST({0,1,2,3,4,5,6,7,8,9},$P21, TRUE),1), 0) -> 1 | CM21: =_xlfn.IFNA(MATCH(RAND(), _xlfn.POISSON.DIST({0,1,2,3,4,5,6,7,8,9},$P21, TRUE),1), 0) -> 2 | CN21: =_xlfn.IFNA(MATCH(RAND(), _xlfn.POISSON.DIST({0,1,2,3,4,5,6,7,8,9},$P21, TRUE),1), 0) -> 1 | CO21: =_xlfn.IFNA(MATCH(RAND(), _xlfn.POISSON.DIST({0,1,2,3,4,5,6,7,8,9},$P21, TRUE),1), 0) -> 0 | CP21: =_xlfn.IFNA(MATCH(RAND(), _xlfn.POISSON.DIST({0,1,2,3,4,5,6,7,8,9},$P21, TRUE),1), 0) -> 1 | CQ21: =_xlfn.IFNA(MATCH(RAND(), _xlfn.POISSON.DIST({0,1,2,3,4,5,6,7,8,9},$P21, TRUE),1), 0) -> 1 | CR21: =_xlfn.IFNA(MATCH(RAND(), _xlfn.POISSON.DIST({0,1,2,3,4,5,6,7,8,9},$P21, TRUE),1), 0) -> 1 | CS21: =_xlfn.IFNA(MATCH(RAND(), _xlfn.POISSON.DIST({0,1,2,3,4,5,6,7,8,9},$P21, TRUE),1), 0) -> 0 | CT21: =_xlfn.IFNA(MATCH(RAND(), _xlfn.POISSON.DIST({0,1,2,3,4,5,6,7,8,9},$P21, TRUE),1), 0) -> 1 | CU21: =_xlfn.IFNA(MATCH(RAND(), _xlfn.POISSON.DIST({0,1,2,3,4,5,6,7,8,9},$P21, TRUE),1), 0) -> 1 | CV21: =_xlfn.IFNA(MATCH(RAND(), _xlfn.POISSON.DIST({0,1,2,3,4,5,6,7,8,9},$P21, TRUE),1), 0) -> 1 | CW21: =_xlfn.IFNA(MATCH(RAND(), _xlfn.POISSON.DIST({0,1,2,3,4,5,6,7,8,9},$P21, TRUE),1), 0) -> 1 | CX21: =_xlfn.IFNA(MATCH(RAND(), _xlfn.POISSON.DIST({0,1,2,3,4,5,6,7,8,9},$P21, TRUE),1), 0) -> 0 | CY21: =_xlfn.IFNA(MATCH(RAND(), _xlfn.POISSON.DIST({0,1,2,3,4,5,6,7,8,9},$P21, TRUE),1), 0) -> 5 | CZ21: =_xlfn.IFNA(MATCH(RAND(), _xlfn.POISSON.DIST({0,1,2,3,4,5,6,7,8,9},$P21, TRUE),1), 0) -> 2 | DA21: =_xlfn.IFNA(MATCH(RAND(), _xlfn.POISSON.DIST({0,1,2,3,4,5,6,7,8,9},$P21, TRUE),1), 0) -> 2 | DB21: =_xlfn.IFNA(MATCH(RAND(), _xlfn.POISSON.DIST({0,1,2,3,4,5,6,7,8,9},$P21, TRUE),1), 0) -> 1 | DC21: =_xlfn.IFNA(MATCH(RAND(), _xlfn.POISSON.DIST({0,1,2,3,4,5,6,7,8,9},$P21, TRUE),1), 0) -> 2 | DD21: =_xlfn.IFNA(MATCH(RAND(), _xlfn.POISSON.DIST({0,1,2,3,4,5,6,7,8,9},$P21, TRUE),1), 0) -> 1 | DE21: =_xlfn.IFNA(MATCH(RAND(), _xlfn.POISSON.DIST({0,1,2,3,4,5,6,7,8,9},$P21, TRUE),1), 0) -> 2 | DF21: =_xlfn.IFNA(MATCH(RAND(), _xlfn.POISSON.DIST({0,1,2,3,4,5,6,7,8,9},$P21, TRUE),1), 0) -> 1 | DG21: =_xlfn.IFNA(MATCH(RAND(), _xlfn.POISSON.DIST({0,1,2,3,4,5,6,7,8,9},$P21, TRUE),1), 0) -> 0 | DH21: =_xlfn.IFNA(MATCH(RAND(), _xlfn.POISSON.DIST({0,1,2,3,4,5,6,7,8,9},$P21, TRUE),1), 0) -> 0 | DI21: =_xlfn.IFNA(MATCH(RAND(), _xlfn.POISSON.DIST({0,1,2,3,4,5,6,7,8,9},$P21, TRUE),1), 0) -> 3 | DJ21: =_xlfn.IFNA(MATCH(RAND(), _xlfn.POISSON.DIST({0,1,2,3,4,5,6,7,8,9},$P21, TRUE),1), 0) -> 2 | DK21: =_xlfn.IFNA(MATCH(RAND(), _xlfn.POISSON.DIST({0,1,2,3,4,5,6,7,8,9},$P21, TRUE),1), 0) -> 3 | DL21: =_xlfn.IFNA(MATCH(RAND(), _xlfn.POISSON.DIST({0,1,2,3,4,5,6,7,8,9},$P21, TRUE),1), 0) -> 1 | DM21: =_xlfn.IFNA(MATCH(RAND(), _xlfn.POISSON.DIST({0,1,2,3,4,5,6,7,8,9},$P21, TRUE),1), 0) -> 2
C22: 2019-06-13 | D22: B | E22: Zuid-Afrika | F22: =(AVERAGE(Q22:BN22))*(1+INDEX('Voorspellingen groepsfase'!$C$4:$O$28, MATCH('De wedstrijden van dit seizoen'!E22,'Voorspellingen groepsfase'!$D$4:$D$28,0),3)) -> 0.40 | G22: Volksrepubliek China | H22: =(AVERAGE(BP22:DM22))*(1+INDEX('Voorspellingen groepsfase'!$C$4:$O$28, MATCH('De wedstrijden van dit seizoen'!G22,'Voorspellingen groepsfase'!$D$4:$D$28,0),3)) -> 3.28 | I22: Volksrepubliek China | L22: 0.4 | M22: 3.28 | N22: Volksrepubliek China | O22: =(OFFSET('Bijlage 3 - Goals per groep'!$D$14,(INDEX('Bijlage 1 - Teamgegevens'!$C$13:$F$112,MATCH(G22,'Bijlage 1 - Teamgegevens'!$C$13:$C$112,0),4)/10),(INDEX('Bijlage 1 - Teamgegevens'!$C$13:$F$112,MATCH(E22,'Bijlage 1 - Teamgegevens'!$C$13:$C$112,0),4)/10))) -> 0.38 | P22: =OFFSET('Bijlage 3 - Goals per groep'!$D$14,(INDEX('Bijlage 1 - Teamgegevens'!$C$13:$F$112, MATCH(E22,'Bijlage 1 - Teamgegevens'!$C$13:$C$112,0),4)/10), (INDEX('Bijlage 1 - Teamgegevens'!$C$13:$F$112, MATCH(G22, 'Bijlage 1 - Teamgegevens'!$C$13:$C$112,0),4)/10)) -> 2.94 | Q22: =_xlfn.IFNA(MATCH(RAND(), _xlfn.POISSON.DIST({0,1,2,3,4,5,6,7,8,9},$O22, TRUE),1), 0) -> 0 | R22: =_xlfn.IFNA(MATCH(RAND(), _xlfn.POISSON.DIST({0,1,2,3,4,5,6,7,8,9},$O22, TRUE),1), 0) -> 0 | S22: =_xlfn.IFNA(MATCH(RAND(), _xlfn.POISSON.DIST({0,1,2,3,4,5,6,7,8,9},$O22, TRUE),1), 0) -> 0 | T22: =_xlfn.IFNA(MATCH(RAND(), _xlfn.POISSON.DIST({0,1,2,3,4,5,6,7,8,9},$O22, TRUE),1), 0) -> 0 | U22: =_xlfn.IFNA(MATCH(RAND(), _xlfn.POISSON.DIST({0,1,2,3,4,5,6,7,8,9},$O22, TRUE),1), 0) -> 0 | V22: =_xlfn.IFNA(MATCH(RAND(), _xlfn.POISSON.DIST({0,1,2,3,4,5,6,7,8,9},$O22, TRUE),1), 0) -> 2 | W22: =_xlfn.IFNA(MATCH(RAND(), _xlfn.POISSON.DIST({0,1,2,3,4,5,6,7,8,9},$O22, TRUE),1), 0) -> 1 | X22: =_xlfn.IFNA(MATCH(RAND(), _xlfn.POISSON.DIST({0,1,2,3,4,5,6,7,8,9},$O22, TRUE),1), 0) -> 0 | Y22: =_xlfn.IFNA(MATCH(RAND(), _xlfn.POISSON.DIST({0,1,2,3,4,5,6,7,8,9},$O22, TRUE),1), 0) -> 1 | Z22: =_xlfn.IFNA(MATCH(RAND(), _xlfn.POISSON.DIST({0,1,2,3,4,5,6,7,8,9},$O22, TRUE),1), 0) -> 0 | AA22: =_xlfn.IFNA(MATCH(RAND(), _xlfn.POISSON.DIST({0,1,2,3,4,5,6,7,8,9},$O22, TRUE),1), 0) -> 0 | AB22: =_xlfn.IFNA(MATCH(RAND(), _xlfn.POISSON.DIST({0,1,2,3,4,5,6,7,8,9},$O22, TRUE),1), 0) -> 2 | AC22: =_xlfn.IFNA(MATCH(RAND(), _xlfn.POISSON.DIST({0,1,2,3,4,5,6,7,8,9},$O22, TRUE),1), 0) -> 0 | AD22: =_xlfn.IFNA(MATCH(RAND(), _xlfn.POISSON.DIST({0,1,2,3,4,5,6,7,8,9},$O22, TRUE),1), 0) -> 1 | AE22: =_xlfn.IFNA(MATCH(RAND(), _xlfn.POISSON.DIST({0,1,2,3,4,5,6,7,8,9},$O22, TRUE),1), 0) -> 0 | AF22: =_xlfn.IFNA(MATCH(RAND(), _xlfn.POISSON.DIST({0,1,2,3,4,5,6,7,8,9},$O22, TRUE),1), 0) -> 0 | AG22: =_xlfn.IFNA(MATCH(RAND(), _xlfn.POISSON.DIST({0,1,2,3,4,5,6,7,8,9},$O22, TRUE),1), 0) -> 0 | AH22: =_xlfn.IFNA(MATCH(RAND(), _xlfn.POISSON.DIST({0,1,2,3,4,5,6,7,8,9},$O22, TRUE),1), 0) -> 0 | AI22: =_xlfn.IFNA(MATCH(RAND(), _xlfn.POISSON.DIST({0,1,2,3,4,5,6,7,8,9},$O22, TRUE),1), 0) -> 0 | AJ22: =_xlfn.IFNA(MATCH(RAND(), _xlfn.POISSON.DIST({0,1,2,3,4,5,6,7,8,9},$O22, TRUE),1), 0) -> 0 | AK22: =_xlfn.IFNA(MATCH(RAND(), _xlfn.POISSON.DIST({0,1,2,3,4,5,6,7,8,9},$O22, TRUE),1), 0) -> 0 | AL22: =_xlfn.IFNA(MATCH(RAND(), _xlfn.POISSON.DIST({0,1,2,3,4,5,6,7,8,9},$O22, TRUE),1), 0) -> 1 | AM22: =_xlfn.IFNA(MATCH(RAND(), _xlfn.POISSON.DIST({0,1,2,3,4,5,6,7,8,9},$O22, TRUE),1), 0) -> 0 | AN22: =_xlfn.IFNA(MATCH(RAND(), _xlfn.POISSON.DIST({0,1,2,3,4,5,6,7,8,9},$O22, TRUE),1), 0) -> 0 | AO22: =_xlfn.IFNA(MATCH(RAND(), _xlfn.POISSON.DIST({0,1,2,3,4,5,6,7,8,9},$O22, TRUE),1), 0) -> 0 | AP22: =_xlfn.IFNA(MATCH(RAND(), _xlfn.POISSON.DIST({0,1,2,3,4,5,6,7,8,9},$O22, TRUE),1), 0) -> 1 | AQ22: =_xlfn.IFNA(MATCH(RAND(), _xlfn.POISSON.DIST({0,1,2,3,4,5,6,7,8,9},$O22, TRUE),1), 0) -> 0 | AR22: =_xlfn.IFNA(MATCH(RAND(), _xlfn.POISSON.DIST({0,1,2,3,4,5,6,7,8,9},$O22, TRUE),1), 0) -> 0 | AS22: =_xlfn.IFNA(MATCH(RAND(), _xlfn.POISSON.DIST({0,1,2,3,4,5,6,7,8,9},$O22, TRUE),1), 0) -> 0 | AT22: =_xlfn.IFNA(MATCH(RAND(), _xlfn.POISSON.DIST({0,1,2,3,4,5,6,7,8,9},$O22, TRUE),1), 0) -> 1 | AU22: =_xlfn.IFNA(MATCH(RAND(), _xlfn.POISSON.DIST({0,1,2,3,4,5,6,7,8,9},$O22, TRUE),1), 0) -> 0 | AV22: =_xlfn.IFNA(MATCH(RAND(), _xlfn.POISSON.DIST({0,1,2,3,4,5,6,7,8,9},$O22, TRUE),1), 0) -> 1 | AW22: =_xlfn.IFNA(MATCH(RAND(), _xlfn.POISSON.DIST({0,1,2,3,4,5,6,7,8,9},$O22, TRUE),1), 0) -> 0 | AX22: =_xlfn.IFNA(MATCH(RAND(), _xlfn.POISSON.DIST({0,1,2,3,4,5,6,7,8,9},$O22, TRUE),1), 0) -> 0 | AY22: =_xlfn.IFNA(MATCH(RAND(), _xlfn.POISSON.DIST({0,1,2,3,4,5,6,7,8,9},$O22, TRUE),1), 0) -> 1 | AZ22: =_xlfn.IFNA(MATCH(RAND(), _xlfn.POISSON.DIST({0,1,2,3,4,5,6,7,8,9},$O22, TRUE),1), 0) -> 2 | BA22: =_xlfn.IFNA(MATCH(RAND(), _xlfn.POISSON.DIST({0,1,2,3,4,5,6,7,8,9},$O22, TRUE),1), 0) -> 0 | BB22: =_xlfn.IFNA(MATCH(RAND(), _xlfn.POISSON.DIST({0,1,2,3,4,5,6,7,8,9},$O22, TRUE),1), 0) -> 1 | BC22: =_xlfn.IFNA(MATCH(RAND(), _xlfn.POISSON.DIST({0,1,2,3,4,5,6,7,8,9},$O22, TRUE),1), 0) -> 0 | BD22: =_xlfn.IFNA(MATCH(RAND(), _xlfn.POISSON.DIST({0,1,2,3,4,5,6,7,8,9},$O22, TRUE),1), 0) -> 1 | BE22: =_xlfn.IFNA(MATCH(RAND(), _xlfn.POISSON.DIST({0,1,2,3,4,5,6,7,8,9},$O22, TRUE),1), 0) -> 0 | BF22: =_xlfn.IFNA(MATCH(RAND(), _xlfn.POISSON.DIST({0,1,2,3,4,5,6,7,8,9},$O22, TRUE),1), 0) -> 2 | BG22: =_xlfn.IFNA(MATCH(RAND(), _xlfn.POISSON.DIST({0,1,2,3,4,5,6,7,8,9},$O22, TRUE),1), 0) -> 1 | BH22: =_xlfn.IFNA(MATCH(RAND(), _xlfn.POISSON.DIST({0,1,2,3,4,5,6,7,8,9},$O22, TRUE),1), 0) -> 0 | BI22: =_xlfn.IFNA(MATCH(RAND(), _xlfn.POISSON.DIST({0,1,2,3,4,5,6,7,8,9},$O22, TRUE),1), 0) -> 0 | BJ22: =_xlfn.IFNA(MATCH(RAND(), _xlfn.POISSON.DIST({0,1,2,3,4,5,6,7,8,9},$O22, TRUE),1), 0) -> 0 | BK22: =_xlfn.IFNA(MATCH(RAND(), _xlfn.POISSON.DIST({0,1,2,3,4,5,6,7,8,9},$O22, TRUE),1), 0) -> 0 | BL22: =_xlfn.IFNA(MATCH(RAND(), _xlfn.POISSON.DIST({0,1,2,3,4,5,6,7,8,9},$O22, TRUE),1), 0) -> 1 | BM22: =_xlfn.IFNA(MATCH(RAND(), _xlfn.POISSON.DIST({0,1,2,3,4,5,6,7,8,9},$O22, TRUE),1), 0) -> 0 | BN22: =_xlfn.IFNA(MATCH(RAND(), _xlfn.POISSON.DIST({0,1,2,3,4,5,6,7,8,9},$O22, TRUE),1), 0) -> 0 | BP22: =_xlfn.IFNA(MATCH(RAND(), _xlfn.POISSON.DIST({0,1,2,3,4,5,6,7,8,9},$P22, TRUE),1), 0) -> 2 | BQ22: =_xlfn.IFNA(MATCH(RAND(), _xlfn.POISSON.DIST({0,1,2,3,4,5,6,7,8,9},$P22, TRUE),1), 0) -> 2 | BR22: =_xlfn.IFNA(MATCH(RAND(), _xlfn.POISSON.DIST({0,1,2,3,4,5,6,7,8,9},$P22, TRUE),1), 0) -> 1 | BS22: =_xlfn.IFNA(MATCH(RAND(), _xlfn.POISSON.DIST({0,1,2,3,4,5,6,7,8,9},$P22, TRUE),1), 0) -> 6 | BT22: =_xlfn.IFNA(MATCH(RAND(), _xlfn.POISSON.DIST({0,1,2,3,4,5,6,7,8,9},$P22, TRUE),1), 0) -> 3 | BU22: =_xlfn.IFNA(MATCH(RAND(), _xlfn.POISSON.DIST({0,1,2,3,4,5,6,7,8,9},$P22, TRUE),1), 0) -> 2 | BV22: =_xlfn.IFNA(MATCH(RAND(), _xlfn.POISSON.DIST({0,1,2,3,4,5,6,7,8,9},$P22, TRUE),1), 0) -> 1 | BW22: =_xlfn.IFNA(MATCH(RAND(), _xlfn.POISSON.DIST({0,1,2,3,4,5,6,7,8,9},$P22, TRUE),1), 0) -> 4 | BX22: =_xlfn.IFNA(MATCH(RAND(), _xlfn.POISSON.DIST({0,1,2,3,4,5,6,7,8,9},$P22, TRUE),1), 0) -> 7 | BY22: =_xlfn.IFNA(MATCH(RAND(), _xlfn.POISSON.DIST({0,1,2,3,4,5,6,7,8,9},$P22, TRUE),1), 0) -> 3 | BZ22: =_xlfn.IFNA(MATCH(RAND(), _xlfn.POISSON.DIST({0,1,2,3,4,5,6,7,8,9},$P22, TRUE),1), 0) -> 2 | CA22: =_xlfn.IFNA(MATCH(RAND(), _xlfn.POISSON.DIST({0,1,2,3,4,5,6,7,8,9},$P22, TRUE),1), 0) -> 3 | CB22: =_xlfn.IFNA(MATCH(RAND(), _xlfn.POISSON.DIST({0,1,2,3,4,5,6,7,8,9},$P22, TRUE),1), 0) -> 0 | CC22: =_xlfn.IFNA(MATCH(RAND(), _xlfn.POISSON.DIST({0,1,2,3,4,5,6,7,8,9},$P22, TRUE),1), 0) -> 4 | CD22: =_xlfn.IFNA(MATCH(RAND(), _xlfn.POISSON.DIST({0,1,2,3,4,5,6,7,8,9},$P22, TRUE),1), 0) -> 1 | CE22: =_xlfn.IFNA(MATCH(RAND(), _xlfn.POISSON.DIST({0,1,2,3,4,5,6,7,8,9},$P22, TRUE),1), 0) -> 2 | CF22: =_xlfn.IFNA(MATCH(RAND(), _xlfn.POISSON.DIST({0,1,2,3,4,5,6,7,8,9},$P22, TRUE),1), 0) -> 4 | CG22: =_xlfn.IFNA(MATCH(RAND(), _xlfn.POISSON.DIST({0,1,2,3,4,5,6,7,8,9},$P22, TRUE),1), 0) -> 4 | CH22: =_xlfn.IFNA(MATCH(RAND(), _xlfn.POISSON.DIST({0,1,2,3,4,5,6,7,8,9},$P22, TRUE),1), 0) -> 4 | CI22: =_xlfn.IFNA(MATCH(RAND(), _xlfn.POISSON.DIST({0,1,2,3,4,5,6,7,8,9},$P22, TRUE),1), 0) -> 5 | CJ22: =_xlfn.IFNA(MATCH(RAND(), _xlfn.POISSON.DIST({0,1,2,3,4,5,6,7,8,9},$P22, TRUE),1), 0) -> 6 | CK22: =_xlfn.IFNA(MATCH(RAND(), _xlfn.POISSON.DIST({0,1,2,3,4,5,6,7,8,9},$P22, TRUE),1), 0) -> 3 | CL22: =_xlfn.IFNA(MATCH(RAND(), _xlfn.POISSON.DIST({0,1,2,3,4,5,6,7,8,9},$P22, TRUE),1), 0) -> 2 | CM22: =_xlfn.IFNA(MATCH(RAND(), _xlfn.POISSON.DIST({0,1,2,3,4,5,6,7,8,9},$P22, TRUE),1), 0) -> 5 | CN22: =_xlfn.IFNA(MATCH(RAND(), _xlfn.POISSON.DIST({0,1,2,3,4,5,6,7,8,9},$P22, TRUE),1), 0) -> 2 | CO22: =_xlfn.IFNA(MATCH(RAND(), _xlfn.POISSON.DIST({0,1,2,3,4,5,6,7,8,9},$P22, TRUE),1), 0) -> 3 | CP22: =_xlfn.IFNA(MATCH(RAND(), _xlfn.POISSON.DIST({0,1,2,3,4,5,6,7,8,9},$P22, TRUE),1), 0) -> 3 | CQ22: =_xlfn.IFNA(MATCH(RAND(), _xlfn.POISSON.DIST({0,1,2,3,4,5,6,7,8,9},$P22, TRUE),1), 0) -> 5 | CR22: =_xlfn.IFNA(MATCH(RAND(), _xlfn.POISSON.DIST({0,1,2,3,4,5,6,7,8,9},$P22, TRUE),1), 0) -> 6 | CS22: =_xlfn.IFNA(MATCH(RAND(), _xlfn.POISSON.DIST({0,1,2,3,4,5,6,7,8,9},$P22, TRUE),1), 0) -> 4 | CT22: =_xlfn.IFNA(MATCH(RAND(), _xlfn.POISSON.DIST({0,1,2,3,4,5,6,7,8,9},$P22, TRUE),1), 0) -> 0 | CU22: =_xlfn.IFNA(MATCH(RAND(), _xlfn.POISSON.DIST({0,1,2,3,4,5,6,7,8,9},$P22, TRUE),1), 0) -> 4 | CV22: =_xlfn.IFNA(MATCH(RAND(), _xlfn.POISSON.DIST({0,1,2,3,4,5,6,7,8,9},$P22, TRUE),1), 0) -> 5 | CW22: =_xlfn.IFNA(MATCH(RAND(), _xlfn.POISSON.DIST({0,1,2,3,4,5,6,7,8,9},$P22, TRUE),1), 0) -> 5 | CX22: =_xlfn.IFNA(MATCH(RAND(), _xlfn.POISSON.DIST({0,1,2,3,4,5,6,7,8,9},$P22, TRUE),1), 0) -> 2 | CY22: =_xlfn.IFNA(MATCH(RAND(), _xlfn.POISSON.DIST({0,1,2,3,4,5,6,7,8,9},$P22, TRUE),1), 0) -> 3 | CZ22: =_xlfn.IFNA(MATCH(RAND(), _xlfn.POISSON.DIST({0,1,2,3,4,5,6,7,8,9},$P22, TRUE),1), 0) -> 7 | DA22: =_xlfn.IFNA(MATCH(RAND(), _xlfn.POISSON.DIST({0,1,2,3,4,5,6,7,8,9},$P22, TRUE),1), 0) -> 4 | DB22: =_xlfn.IFNA(MATCH(RAND(), _xlfn.POISSON.DIST({0,1,2,3,4,5,6,7,8,9},$P22, TRUE),1), 0) -> 2 | DC22: =_xlfn.IFNA(MATCH(RAND(), _xlfn.POISSON.DIST({0,1,2,3,4,5,6,7,8,9},$P22, TRUE),1), 0) -> 3 | DD22: =_xlfn.IFNA(MATCH(RAND(), _xlfn.POISSON.DIST({0,1,2,3,4,5,6,7,8,9},$P22, TRUE),1), 0) -> 2 | DE22: =_xlfn.IFNA(MATCH(RAND(), _xlfn.POISSON.DIST({0,1,2,3,4,5,6,7,8,9},$P22, TRUE),1), 0) -> 4 | DF22: =_xlfn.IFNA(MATCH(RAND(), _xlfn.POISSON.DIST({0,1,2,3,4,5,6,7,8,9},$P22, TRUE),1), 0) -> 6 | DG22: =_xlfn.IFNA(MATCH(RAND(), _xlfn.POISSON.DIST({0,1,2,3,4,5,6,7,8,9},$P22, TRUE),1), 0) -> 2 | DH22: =_xlfn.IFNA(MATCH(RAND(), _xlfn.POISSON.DIST({0,1,2,3,4,5,6,7,8,9},$P22, TRUE),1), 0) -> 2 | DI22: =_xlfn.IFNA(MATCH(RAND(), _xlfn.POISSON.DIST({0,1,2,3,4,5,6,7,8,9},$P22, TRUE),1), 0) -> 3 | DJ22: =_xlfn.IFNA(MATCH(RAND(), _xlfn.POISSON.DIST({0,1,2,3,4,5,6,7,8,9},$P22, TRUE),1), 0) -> 3 | DK22: =_xlfn.IFNA(MATCH(RAND(), _xlfn.POISSON.DIST({0,1,2,3,4,5,6,7,8,9},$P22, TRUE),1), 0) -> 3 | DL22: =_xlfn.IFNA(MATCH(RAND(), _xlfn.POISSON.DIST({0,1,2,3,4,5,6,7,8,9},$P22, TRUE),1), 0) -> 1 | DM22: =_xlfn.IFNA(MATCH(RAND(), _xlfn.POISSON.DIST({0,1,2,3,4,5,6,7,8,9},$P22, TRUE),1), 0) -> 4
C23: 2019-06-14 | D23: D | E23: Japan | F23: =(AVERAGE(Q23:BN23))*(1+INDEX('Voorspellingen groepsfase'!$C$4:$O$28, MATCH('De wedstrijden van dit seizoen'!E23,'Voorspellingen groepsfase'!$D$4:$D$28,0),3)) -> 1.90 | G23: Schotland | H23: =(AVERAGE(BP23:DM23))*(1+INDEX('Voorspellingen groepsfase'!$C$4:$O$28, MATCH('De wedstrijden van dit seizoen'!G23,'Voorspellingen groepsfase'!$D$4:$D$28,0),3)) -> 1.42 | I23: Japan | L23: 1.9 | M23: 1.42 | N23: Japan | O23: =(OFFSET('Bijlage 3 - Goals per groep'!$D$14,(INDEX('Bijlage 1 - Teamgegevens'!$C$13:$F$112,MATCH(G23,'Bijlage 1 - Teamgegevens'!$C$13:$C$112,0),4)/10),(INDEX('Bijlage 1 - Teamgegevens'!$C$13:$F$112,MATCH(E23,'Bijlage 1 - Teamgegevens'!$C$13:$C$112,0),4)/10))) -> 1.78 | P23: =OFFSET('Bijlage 3 - Goals per groep'!$D$14,(INDEX('Bijlage 1 - Teamgegevens'!$C$13:$F$112, MATCH(E23,'Bijlage 1 - Teamgegevens'!$C$13:$C$112,0),4)/10), (INDEX('Bijlage 1 - Teamgegevens'!$C$13:$F$112, MATCH(G23, 'Bijlage 1 - Teamgegevens'!$C$13:$C$112,0),4)/10)) -> 1.07 | Q23: =_xlfn.IFNA(MATCH(RAND(), _xlfn.POISSON.DIST({0,1,2,3,4,5,6,7,8,9},$O23, TRUE),1), 0) -> 1 | R23: =_xlfn.IFNA(MATCH(RAND(), _xlfn.POISSON.DIST({0,1,2,3,4,5,6,7,8,9},$O23, TRUE),1), 0) -> 1 | S23: =_xlfn.IFNA(MATCH(RAND(), _xlfn.POISSON.DIST({0,1,2,3,4,5,6,7,8,9},$O23, TRUE),1), 0) -> 2 | T23: =_xlfn.IFNA(MATCH(RAND(), _xlfn.POISSON.DIST({0,1,2,3,4,5,6,7,8,9},$O23, TRUE),1), 0) -> 3 | U23: =_xlfn.IFNA(MATCH(RAND(), _xlfn.POISSON.DIST({0,1,2,3,4,5,6,7,8,9},$O23, TRUE),1), 0) -> 1 | V23: =_xlfn.IFNA(MATCH(RAND(), _xlfn.POISSON.DIST({0,1,2,3,4,5,6,7,8,9},$O23, TRUE),1), 0) -> 1 | W23: =_xlfn.IFNA(MATCH(RAND(), _xlfn.POISSON.DIST({0,1,2,3,4,5,6,7,8,9},$O23, TRUE),1), 0) -> 4 | X23: =_xlfn.IFNA(MATCH(RAND(), _xlfn.POISSON.DIST({0,1,2,3,4,5,6,7,8,9},$O23, TRUE),1), 0) -> 3 | Y23: =_xlfn.IFNA(MATCH(RAND(), _xlfn.POISSON.DIST({0,1,2,3,4,5,6,7,8,9},$O23, TRUE),1), 0) -> 1 | Z23: =_xlfn.IFNA(MATCH(RAND(), _xlfn.POISSON.DIST({0,1,2,3,4,5,6,7,8,9},$O23, TRUE),1), 0) -> 3 | AA23: =_xlfn.IFNA(MATCH(RAND(), _xlfn.POISSON.DIST({0,1,2,3,4,5,6,7,8,9},$O23, TRUE),1), 0) -> 3 | AB23: =_xlfn.IFNA(MATCH(RAND(), _xlfn.POISSON.DIST({0,1,2,3,4,5,6,7,8,9},$O23, TRUE),1), 0) -> 2 | AC23: =_xlfn.IFNA(MATCH(RAND(), _xlfn.POISSON.DIST({0,1,2,3,4,5,6,7,8,9},$O23, TRUE),1), 0) -> 0 | AD23: =_xlfn.IFNA(MATCH(RAND(), _xlfn.POISSON.DIST({0,1,2,3,4,5,6,7,8,9},$O23, TRUE),1), 0) -> 0 | AE23: =_xlfn.IFNA(MATCH(RAND(), _xlfn.POISSON.DIST({0,1,2,3,4,5,6,7,8,9},$O23, TRUE),1), 0) -> 2 | AF23: =_xlfn.IFNA(MATCH(RAND(), _xlfn.POISSON.DIST({0,1,2,3,4,5,6,7,8,9},$O23, TRUE),1), 0) -> 0 | AG23: =_xlfn.IFNA(MATCH(RAND(), _xlfn.POISSON.DIST({0,1,2,3,4,5,6,7,8,9},$O23, TRUE),1), 0) -> 4 | AH23: =_xlfn.IFNA(MATCH(RAND(), _xlfn.POISSON.DIST({0,1,2,3,4,5,6,7,8,9},$O23, TRUE),1), 0) -> 2 | AI23: =_xlfn.IFNA(MATCH(RAND(), _xlfn.POISSON.DIST({0,1,2,3,4,5,6,7,8,9},$O23, TRUE),1), 0) -> 3 | AJ23: =_xlfn.IFNA(MATCH(RAND(), _xlfn.POISSON.DIST({0,1,2,3,4,5,6,7,8,9},$O23, TRUE),1), 0) -> 1 | AK23: =_xlfn.IFNA(MATCH(RAND(), _xlfn.POISSON.DIST({0,1,2,3,4,5,6,7,8,9},$O23, TRUE),1), 0) -> 2 | AL23: =_xlfn.IFNA(MATCH(RAND(), _xlfn.POISSON.DIST({0,1,2,3,4,5,6,7,8,9},$O23, TRUE),1), 0) -> 1 | AM23: =_xlfn.IFNA(MATCH(RAND(), _xlfn.POISSON.DIST({0,1,2,3,4,5,6,7,8,9},$O23, TRUE),1), 0) -> 3 | AN23: =_xlfn.IFNA(MATCH(RAND(), _xlfn.POISSON.DIST({0,1,2,3,4,5,6,7,8,9},$O23, TRUE),1), 0) -> 1 | AO23: =_xlfn.IFNA(MATCH(RAND(), _xlfn.POISSON.DIST({0,1,2,3,4,5,6,7,8,9},$O23, TRUE),1), 0) -> 3 | AP23: =_xlfn.IFNA(MATCH(RAND(), _xlfn.POISSON.DIST({0,1,2,3,4,5,6,7,8,9},$O23, TRUE),1), 0) -> 2 | AQ23: =_xlfn.IFNA(MATCH(RAND(), _xlfn.POISSON.DIST({0,1,2,3,4,5,6,7,8,9},$O23, TRUE),1), 0) -> 4 | AR23: =_xlfn.IFNA(MATCH(RAND(), _xlfn.POISSON.DIST({0,1,2,3,4,5,6,7,8,9},$O23, TRUE),1), 0) -> 5 | AS23: =_xlfn.IFNA(MATCH(RAND(), _xlfn.POISSON.DIST({0,1,2,3,4,5,6,7,8,9},$O23, TRUE),1), 0) -> 2 | AT23: =_xlfn.IFNA(MATCH(RAND(), _xlfn.POISSON.DIST({0,1,2,3,4,5,6,7,8,9},$O23, TRUE),1), 0) -> 1 | AU23: =_xlfn.IFNA(MATCH(RAND(), _xlfn.POISSON.DIST({0,1,2,3,4,5,6,7,8,9},$O23, TRUE),1), 0) -> 2 | AV23: =_xlfn.IFNA(MATCH(RAND(), _xlfn.POISSON.DIST({0,1,2,3,4,5,6,7,8,9},$O23, TRUE),1), 0) -> 2 | AW23: =_xlfn.IFNA(MATCH(RAND(), _xlfn.POISSON.DIST({0,1,2,3,4,5,6,7,8,9},$O23, TRUE),1), 0) -> 2 | AX23: =_xlfn.IFNA(MATCH(RAND(), _xlfn.POISSON.DIST({0,1,2,3,4,5,6,7,8,9},$O23, TRUE),1), 0) -> 1 | AY23: =_xlfn.IFNA(MATCH(RAND(), _xlfn.POISSON.DIST({0,1,2,3,4,5,6,7,8,9},$O23, TRUE),1), 0) -> 2 | AZ23: =_xlfn.IFNA(MATCH(RAND(), _xlfn.POISSON.DIST({0,1,2,3,4,5,6,7,8,9},$O23, TRUE),1), 0) -> 2 | BA23: =_xlfn.IFNA(MATCH(RAND(), _xlfn.POISSON.DIST({0,1,2,3,4,5,6,7,8,9},$O23, TRUE),1), 0) -> 1 | BB23: =_xlfn.IFNA(MATCH(RAND(), _xlfn.POISSON.DIST({0,1,2,3,4,5,6,7,8,9},$O23, TRUE),1), 0) -> 0 | BC23: =_xlfn.IFNA(MATCH(RAND(), _xlfn.POISSON.DIST({0,1,2,3,4,5,6,7,8,9},$O23, TRUE),1), 0) -> 1 | BD23: =_xlfn.IFNA(MATCH(RAND(), _xlfn.POISSON.DIST({0,1,2,3,4,5,6,7,8,9},$O23, TRUE),1), 0) -> 0 | BE23: =_xlfn.IFNA(MATCH(RAND(), _xlfn.POISSON.DIST({0,1,2,3,4,5,6,7,8,9},$O23, TRUE),1), 0) -> 3 | BF23: =_xlfn.IFNA(MATCH(RAND(), _xlfn.POISSON.DIST({0,1,2,3,4,5,6,7,8,9},$O23, TRUE),1), 0) -> 1 | BG23: =_xlfn.IFNA(MATCH(RAND(), _xlfn.POISSON.DIST({0,1,2,3,4,5,6,7,8,9},$O23, TRUE),1), 0) -> 4 | BH23: =_xlfn.IFNA(MATCH(RAND(), _xlfn.POISSON.DIST({0,1,2,3,4,5,6,7,8,9},$O23, TRUE),1), 0) -> 0 | BI23: =_xlfn.IFNA(MATCH(RAND(), _xlfn.POISSON.DIST({0,1,2,3,4,5,6,7,8,9},$O23, TRUE),1), 0) -> 1 | BJ23: =_xlfn.IFNA(MATCH(RAND(), _xlfn.POISSON.DIST({0,1,2,3,4,5,6,7,8,9},$O23, TRUE),1), 0) -> 4 | BK23: =_xlfn.IFNA(MATCH(RAND(), _xlfn.POISSON.DIST({0,1,2,3,4,5,6,7,8,9},$O23, TRUE),1), 0) -> 3 | BL23: =_xlfn.IFNA(MATCH(RAND(), _xlfn.POISSON.DIST({0,1,2,3,4,5,6,7,8,9},$O23, TRUE),1), 0) -> 1 | BM23: =_xlfn.IFNA(MATCH(RAND(), _xlfn.POISSON.DIST({0,1,2,3,4,5,6,7,8,9},$O23, TRUE),1), 0) -> 3 | BN23: =_xlfn.IFNA(MATCH(RAND(), _xlfn.POISSON.DIST({0,1,2,3,4,5,6,7,8,9},$O23, TRUE),1), 0) -> 1 | BP23: =_xlfn.IFNA(MATCH(RAND(), _xlfn.POISSON.DIST({0,1,2,3,4,5,6,7,8,9},$P23, TRUE),1), 0) -> 2 | BQ23: =_xlfn.IFNA(MATCH(RAND(), _xlfn.POISSON.DIST({0,1,2,3,4,5,6,7,8,9},$P23, TRUE),1), 0) -> 2 | BR23: =_xlfn.IFNA(MATCH(RAND(), _xlfn.POISSON.DIST({0,1,2,3,4,5,6,7,8,9},$P23, TRUE),1), 0) -> 1 | BS23: =_xlfn.IFNA(MATCH(RAND(), _xlfn.POISSON.DIST({0,1,2,3,4,5,6,7,8,9},$P23, TRUE),1), 0) -> 1 | BT23: =_xlfn.IFNA(MATCH(RAND(), _xlfn.POISSON.DIST({0,1,2,3,4,5,6,7,8,9},$P23, TRUE),1), 0) -> 2 | BU23: =_xlfn.IFNA(MATCH(RAND(), _xlfn.POISSON.DIST({0,1,2,3,4,5,6,7,8,9},$P23, TRUE),1), 0) -> 0 | BV23: =_xlfn.IFNA(MATCH(RAND(), _xlfn.POISSON.DIST({0,1,2,3,4,5,6,7,8,9},$P23, TRUE),1), 0) -> 2 | BW23: =_xlfn.IFNA(MATCH(RAND(), _xlfn.POISSON.DIST({0,1,2,3,4,5,6,7,8,9},$P23, TRUE),1), 0) -> 1 | BX23: =_xlfn.IFNA(MATCH(RAND(), _xlfn.POISSON.DIST({0,1,2,3,4,5,6,7,8,9},$P23, TRUE),1), 0) -> 1 | BY23: =_xlfn.IFNA(MATCH(RAND(), _xlfn.POISSON.DIST({0,1,2,3,4,5,6,7,8,9},$P23, TRUE),1), 0) -> 1 | BZ23: =_xlfn.IFNA(MATCH(RAND(), _xlfn.POISSON.DIST({0,1,2,3,4,5,6,7,8,9},$P23, TRUE),1), 0) -> 2 | CA23: =_xlfn.IFNA(MATCH(RAND(), _xlfn.POISSON.DIST({0,1,2,3,4,5,6,7,8,9},$P23, TRUE),1), 0) -> 2 | CB23: =_xlfn.IFNA(MATCH(RAND(), _xlfn.POISSON.DIST({0,1,2,3,4,5,6,7,8,9},$P23, TRUE),1), 0) -> 1 | CC23: =_xlfn.IFNA(MATCH(RAND(), _xlfn.POISSON.DIST({0,1,2,3,4,5,6,7,8,9},$P23, TRUE),1), 0) -> 2 | CD23: =_xlfn.IFNA(MATCH(RAND(), _xlfn.POISSON.DIST({0,1,2,3,4,5,6,7,8,9},$P23, TRUE),1), 0) -> 2 | CE23: =_xlfn.IFNA(MATCH(RAND(), _xlfn.POISSON.DIST({0,1,2,3,4,5,6,7,8,9},$P23, TRUE),1), 0) -> 1 | CF23: =_xlfn.IFNA(MATCH(RAND(), _xlfn.POISSON.DIST({0,1,2,3,4,5,6,7,8,9},$P23, TRUE),1), 0) -> 5 | CG23: =_xlfn.IFNA(MATCH(RAND(), _xlfn.POISSON.DIST({0,1,2,3,4,5,6,7,8,9},$P23, TRUE),1), 0) -> 1 | CH23: =_xlfn.IFNA(MATCH(RAND(), _xlfn.POISSON.DIST({0,1,2,3,4,5,6,7,8,9},$P23, TRUE),1), 0) -> 0 | CI23: =_xlfn.IFNA(MATCH(RAND(), _xlfn.POISSON.DIST({0,1,2,3,4,5,6,7,8,9},$P23, TRUE),1), 0) -> 2 | CJ23: =_xlfn.IFNA(MATCH(RAND(), _xlfn.POISSON.DIST({0,1,2,3,4,5,6,7,8,9},$P23, TRUE),1), 0) -> 5 | CK23: =_xlfn.IFNA(MATCH(RAND(), _xlfn.POISSON.DIST({0,1,2,3,4,5,6,7,8,9},$P23, TRUE),1), 0) -> 1 | CL23: =_xlfn.IFNA(MATCH(RAND(), _xlfn.POISSON.DIST({0,1,2,3,4,5,6,7,8,9},$P23, TRUE),1), 0) -> 0 | CM23: =_xlfn.IFNA(MATCH(RAND(), _xlfn.POISSON.DIST({0,1,2,3,4,5,6,7,8,9},$P23, TRUE),1), 0) -> 1 | CN23: =_xlfn.IFNA(MATCH(RAND(), _xlfn.POISSON.DIST({0,1,2,3,4,5,6,7,8,9},$P23, TRUE),1), 0) -> 2 | CO23: =_xlfn.IFNA(MATCH(RAND(), _xlfn.POISSON.DIST({0,1,2,3,4,5,6,7,8,9},$P23, TRUE),1), 0) -> 0 | CP23: =_xlfn.IFNA(MATCH(RAND(), _xlfn.POISSON.DIST({0,1,2,3,4,5,6,7,8,9},$P23, TRUE),1), 0) -> 2 | CQ23: =_xlfn.IFNA(MATCH(RAND(), _xlfn.POISSON.DIST({0,1,2,3,4,5,6,7,8,9},$P23, TRUE),1), 0) -> 1 | CR23: =_xlfn.IFNA(MATCH(RAND(), _xlfn.POISSON.DIST({0,1,2,3,4,5,6,7,8,9},$P23, TRUE),1), 0) -> 1 | CS23: =_xlfn.IFNA(MATCH(RAND(), _xlfn.POISSON.DIST({0,1,2,3,4,5,6,7,8,9},$P23, TRUE),1), 0) -> 2 | CT23: =_xlfn.IFNA(MATCH(RAND(), _xlfn.POISSON.DIST({0,1,2,3,4,5,6,7,8,9},$P23, TRUE),1), 0) -> 2 | CU23: =_xlfn.IFNA(MATCH(RAND(), _xlfn.POISSON.DIST({0,1,2,3,4,5,6,7,8,9},$P23, TRUE),1), 0) -> 0 | CV23: =_xlfn.IFNA(MATCH(RAND(), _xlfn.POISSON.DIST({0,1,2,3,4,5,6,7,8,9},$P23, TRUE),1), 0) -> 1 | CW23: =_xlfn.IFNA(MATCH(RAND(), _xlfn.POISSON.DIST({0,1,2,3,4,5,6,7,8,9},$P23, TRUE),1), 0) -> 2 | CX23: =_xlfn.IFNA(MATCH(RAND(), _xlfn.POISSON.DIST({0,1,2,3,4,5,6,7,8,9},$P23, TRUE),1), 0) -> 1 | CY23: =_xlfn.IFNA(MATCH(RAND(), _xlfn.POISSON.DIST({0,1,2,3,4,5,6,7,8,9},$P23, TRUE),1), 0) -> 0 | CZ23: =_xlfn.IFNA(MATCH(RAND(), _xlfn.POISSON.DIST({0,1,2,3,4,5,6,7,8,9},$P23, TRUE),1), 0) -> 0 | DA23: =_xlfn.IFNA(MATCH(RAND(), _xlfn.POISSON.DIST({0,1,2,3,4,5,6,7,8,9},$P23, TRUE),1), 0) -> 1 | DB23: =_xlfn.IFNA(MATCH(RAND(), _xlfn.POISSON.DIST({0,1,2,3,4,5,6,7,8,9},$P23, TRUE),1), 0) -> 1 | DC23: =_xlfn.IFNA(MATCH(RAND(), _xlfn.POISSON.DIST({0,1,2,3,4,5,6,7,8,9},$P23, TRUE),1), 0) -> 1 | DD23: =_xlfn.IFNA(MATCH(RAND(), _xlfn.POISSON.DIST({0,1,2,3,4,5,6,7,8,9},$P23, TRUE),1), 0) -> 2 | DE23: =_xlfn.IFNA(MATCH(RAND(), _xlfn.POISSON.DIST({0,1,2,3,4,5,6,7,8,9},$P23, TRUE),1), 0) -> 2 | DF23: =_xlfn.IFNA(MATCH(RAND(), _xlfn.POISSON.DIST({0,1,2,3,4,5,6,7,8,9},$P23, TRUE),1), 0) -> 1 | DG23: =_xlfn.IFNA(MATCH(RAND(), _xlfn.POISSON.DIST({0,1,2,3,4,5,6,7,8,9},$P23, TRUE),1), 0) -> 1 | DH23: =_xlfn.IFNA(MATCH(RAND(), _xlfn.POISSON.DIST({0,1,2,3,4,5,6,7,8,9},$P23, TRUE),1), 0) -> 1 | DI23: =_xlfn.IFNA(MATCH(RAND(), _xlfn.POISSON.DIST({0,1,2,3,4,5,6,7,8,9},$P23, TRUE),1), 0) -> 0 | DJ23: =_xlfn.IFNA(MATCH(RAND(), _xlfn.POISSON.DIST({0,1,2,3,4,5,6,7,8,9},$P23, TRUE),1), 0) -> 1 | DK23: =_xlfn.IFNA(MATCH(RAND(), _xlfn.POISSON.DIST({0,1,2,3,4,5,6,7,8,9},$P23, TRUE),1), 0) -> 6 | DL23: =_xlfn.IFNA(MATCH(RAND(), _xlfn.POISSON.DIST({0,1,2,3,4,5,6,7,8,9},$P23, TRUE),1), 0) -> 0 | DM23: =_xlfn.IFNA(MATCH(RAND(), _xlfn.POISSON.DIST({0,1,2,3,4,5,6,7,8,9},$P23, TRUE),1), 0) -> 2
C24: 2019-06-14 | D24: C | E24: Jamaica | F24: =(AVERAGE(Q24:BN24))*(1+INDEX('Voorspellingen groepsfase'!$C$4:$O$28, MATCH('De wedstrijden van dit seizoen'!E24,'Voorspellingen groepsfase'!$D$4:$D$28,0),3)) -> 1.34 | G24: Italië | H24: =(AVERAGE(BP24:DM24))*(1+INDEX('Voorspellingen groepsfase'!$C$4:$O$28, MATCH('De wedstrijden van dit seizoen'!G24,'Voorspellingen groepsfase'!$D$4:$D$28,0),3)) -> 1.50 | I24: Italië | L24: 1.34 | M24: 1.5 | N24: Italië | O24: =(OFFSET('Bijlage 3 - Goals per groep'!$D$14,(INDEX('Bijlage 1 - Teamgegevens'!$C$13:$F$112,MATCH(G24,'Bijlage 1 - Teamgegevens'!$C$13:$C$112,0),4)/10),(INDEX('Bijlage 1 - Teamgegevens'!$C$13:$F$112,MATCH(E24,'Bijlage 1 - Teamgegevens'!$C$13:$C$112,0),4)/10))) -> 1.50 | P24: =OFFSET('Bijlage 3 - Goals per groep'!$D$14,(INDEX('Bijlage 1 - Teamgegevens'!$C$13:$F$112, MATCH(E24,'Bijlage 1 - Teamgegevens'!$C$13:$C$112,0),4)/10), (INDEX('Bijlage 1 - Teamgegevens'!$C$13:$F$112, MATCH(G24, 'Bijlage 1 - Teamgegevens'!$C$13:$C$112,0),4)/10)) -> 1.50 | Q24: =_xlfn.IFNA(MATCH(RAND(), _xlfn.POISSON.DIST({0,1,2,3,4,5,6,7,8,9},$O24, TRUE),1), 0) -> 2 | R24: =_xlfn.IFNA(MATCH(RAND(), _xlfn.POISSON.DIST({0,1,2,3,4,5,6,7,8,9},$O24, TRUE),1), 0) -> 3 | S24: =_xlfn.IFNA(MATCH(RAND(), _xlfn.POISSON.DIST({0,1,2,3,4,5,6,7,8,9},$O24, TRUE),1), 0) -> 2 | T24: =_xlfn.IFNA(MATCH(RAND(), _xlfn.POISSON.DIST({0,1,2,3,4,5,6,7,8,9},$O24, TRUE),1), 0) -> 1 | U24: =_xlfn.IFNA(MATCH(RAND(), _xlfn.POISSON.DIST({0,1,2,3,4,5,6,7,8,9},$O24, TRUE),1), 0) -> 0 | V24: =_xlfn.IFNA(MATCH(RAND(), _xlfn.POISSON.DIST({0,1,2,3,4,5,6,7,8,9},$O24, TRUE),1), 0) -> 2 | W24: =_xlfn.IFNA(MATCH(RAND(), _xlfn.POISSON.DIST({0,1,2,3,4,5,6,7,8,9},$O24, TRUE),1), 0) -> 2 | X24: =_xlfn.IFNA(MATCH(RAND(), _xlfn.POISSON.DIST({0,1,2,3,4,5,6,7,8,9},$O24, TRUE),1), 0) -> 0 | Y24: =_xlfn.IFNA(MATCH(RAND(), _xlfn.POISSON.DIST({0,1,2,3,4,5,6,7,8,9},$O24, TRUE),1), 0) -> 3 | Z24: =_xlfn.IFNA(MATCH(RAND(), _xlfn.POISSON.DIST({0,1,2,3,4,5,6,7,8,9},$O24, TRUE),1), 0) -> 2 | AA24: =_xlfn.IFNA(MATCH(RAND(), _xlfn.POISSON.DIST({0,1,2,3,4,5,6,7,8,9},$O24, TRUE),1), 0) -> 3 | AB24: =_xlfn.IFNA(MATCH(RAND(), _xlfn.POISSON.DIST({0,1,2,3,4,5,6,7,8,9},$O24, TRUE),1), 0) -> 1 | AC24: =_xlfn.IFNA(MATCH(RAND(), _xlfn.POISSON.DIST({0,1,2,3,4,5,6,7,8,9},$O24, TRUE),1), 0) -> 1 | AD24: =_xlfn.IFNA(MATCH(RAND(), _xlfn.POISSON.DIST({0,1,2,3,4,5,6,7,8,9},$O24, TRUE),1), 0) -> 0 | AE24: =_xlfn.IFNA(MATCH(RAND(), _xlfn.POISSON.DIST({0,1,2,3,4,5,6,7,8,9},$O24, TRUE),1), 0) -> 1 | AF24: =_xlfn.IFNA(MATCH(RAND(), _xlfn.POISSON.DIST({0,1,2,3,4,5,6,7,8,9},$O24, TRUE),1), 0) -> 1 | AG24: =_xlfn.IFNA(MATCH(RAND(), _xlfn.POISSON.DIST({0,1,2,3,4,5,6,7,8,9},$O24, TRUE),1), 0) -> 0 | AH24: =_xlfn.IFNA(MATCH(RAND(), _xlfn.POISSON.DIST({0,1,2,3,4,5,6,7,8,9},$O24, TRUE),1), 0) -> 0 | AI24: =_xlfn.IFNA(MATCH(RAND(), _xlfn.POISSON.DIST({0,1,2,3,4,5,6,7,8,9},$O24, TRUE),1), 0) -> 3 | AJ24: =_xlfn.IFNA(MATCH(RAND(), _xlfn.POISSON.DIST({0,1,2,3,4,5,6,7,8,9},$O24, TRUE),1), 0) -> 0 | AK24: =_xlfn.IFNA(MATCH(RAND(), _xlfn.POISSON.DIST({0,1,2,3,4,5,6,7,8,9},$O24, TRUE),1), 0) -> 2 | AL24: =_xlfn.IFNA(MATCH(RAND(), _xlfn.POISSON.DIST({0,1,2,3,4,5,6,7,8,9},$O24, TRUE),1), 0) -> 0 | AM24: =_xlfn.IFNA(MATCH(RAND(), _xlfn.POISSON.DIST({0,1,2,3,4,5,6,7,8,9},$O24, TRUE),1), 0) -> 2 | AN24: =_xlfn.IFNA(MATCH(RAND(), _xlfn.POISSON.DIST({0,1,2,3,4,5,6,7,8,9},$O24, TRUE),1), 0) -> 1 | AO24: =_xlfn.IFNA(MATCH(RAND(), _xlfn.POISSON.DIST({0,1,2,3,4,5,6,7,8,9},$O24, TRUE),1), 0) -> 1 | AP24: =_xlfn.IFNA(MATCH(RAND(), _xlfn.POISSON.DIST({0,1,2,3,4,5,6,7,8,9},$O24, TRUE),1), 0) -> 2 | AQ24: =_xlfn.IFNA(MATCH(RAND(), _xlfn.POISSON.DIST({0,1,2,3,4,5,6,7,8,9},$O24, TRUE),1), 0) -> 1 | AR24: =_xlfn.IFNA(MATCH(RAND(), _xlfn.POISSON.DIST({0,1,2,3,4,5,6,7,8,9},$O24, TRUE),1), 0) -> 1 | AS24: =_xlfn.IFNA(MATCH(RAND(), _xlfn.POISSON.DIST({0,1,2,3,4,5,6,7,8,9},$O24, TRUE),1), 0) -> 0 | AT24: =_xlfn.IFNA(MATCH(RAND(), _xlfn.POISSON.DIST({0,1,2,3,4,5,6,7,8,9},$O24, TRUE),1), 0) -> 4 | AU24: =_xlfn.IFNA(MATCH(RAND(), _xlfn.POISSON.DIST({0,1,2,3,4,5,6,7,8,9},$O24, TRUE),1), 0) -> 3 | AV24: =_xlfn.IFNA(MATCH(RAND(), _xlfn.POISSON.DIST({0,1,2,3,4,5,6,7,8,9},$O24, TRUE),1), 0) -> 1 | AW24: =_xlfn.IFNA(MATCH(RAND(), _xlfn.POISSON.DIST({0,1,2,3,4,5,6,7,8,9},$O24, TRUE),1), 0) -> 0 | AX24: =_xlfn.IFNA(MATCH(RAND(), _xlfn.POISSON.DIST({0,1,2,3,4,5,6,7,8,9},$O24, TRUE),1), 0) -> 2 | AY24: =_xlfn.IFNA(MATCH(RAND(), _xlfn.POISSON.DIST({0,1,2,3,4,5,6,7,8,9},$O24, TRUE),1), 0) -> 3 | AZ24: =_xlfn.IFNA(MATCH(RAND(), _xlfn.POISSON.DIST({0,1,2,3,4,5,6,7,8,9},$O24, TRUE),1), 0) -> 4 | BA24: =_xlfn.IFNA(MATCH(RAND(), _xlfn.POISSON.DIST({0,1,2,3,4,5,6,7,8,9},$O24, TRUE),1), 0) -> 2 | BB24: =_xlfn.IFNA(MATCH(RAND(), _xlfn.POISSON.DIST({0,1,2,3,4,5,6,7,8,9},$O24, TRUE),1), 0) -> 0 | BC24: =_xlfn.IFNA(MATCH(RAND(), _xlfn.POISSON.DIST({0,1,2,3,4,5,6,7,8,9},$O24, TRUE),1), 0) -> 0 | BD24: =_xlfn.IFNA(MATCH(RAND(), _xlfn.POISSON.DIST({0,1,2,3,4,5,6,7,8,9},$O24, TRUE),1), 0) -> 0 | BE24: =_xlfn.IFNA(MATCH(RAND(), _xlfn.POISSON.DIST({0,1,2,3,4,5,6,7,8,9},$O24, TRUE),1), 0) -> 1 | BF24: =_xlfn.IFNA(MATCH(RAND(), _xlfn.POISSON.DIST({0,1,2,3,4,5,6,7,8,9},$O24, TRUE),1), 0) -> 2 | BG24: =_xlfn.IFNA(MATCH(RAND(), _xlfn.POISSON.DIST({0,1,2,3,4,5,6,7,8,9},$O24, TRUE),1), 0) -> 1 | BH24: =_xlfn.IFNA(MATCH(RAND(), _xlfn.POISSON.DIST({0,1,2,3,4,5,6,7,8,9},$O24, TRUE),1), 0) -> 0 | BI24: =_xlfn.IFNA(MATCH(RAND(), _xlfn.POISSON.DIST({0,1,2,3,4,5,6,7,8,9},$O24, TRUE),1), 0) -> 0 | BJ24: =_xlfn.IFNA(MATCH(RAND(), _xlfn.POISSON.DIST({0,1,2,3,4,5,6,7,8,9},$O24, TRUE),1), 0) -> 1 | BK24: =_xlfn.IFNA(MATCH(RAND(), _xlfn.POISSON.DIST({0,1,2,3,4,5,6,7,8,9},$O24, TRUE),1), 0) -> 1 | BL24: =_xlfn.IFNA(MATCH(RAND(), _xlfn.POISSON.DIST({0,1,2,3,4,5,6,7,8,9},$O24, TRUE),1), 0) -> 4 | BM24: =_xlfn.IFNA(MATCH(RAND(), _xlfn.POISSON.DIST({0,1,2,3,4,5,6,7,8,9},$O24, TRUE),1), 0) -> 1 | BN24: =_xlfn.IFNA(MATCH(RAND(), _xlfn.POISSON.DIST({0,1,2,3,4,5,6,7,8,9},$O24, TRUE),1), 0) -> 0 | BP24: =_xlfn.IFNA(MATCH(RAND(), _xlfn.POISSON.DIST({0,1,2,3,4,5,6,7,8,9},$P24, TRUE),1), 0) -> 2 | BQ24: =_xlfn.IFNA(MATCH(RAND(), _xlfn.POISSON.DIST({0,1,2,3,4,5,6,7,8,9},$P24, TRUE),1), 0) -> 1 | BR24: =_xlfn.IFNA(MATCH(RAND(), _xlfn.POISSON.DIST({0,1,2,3,4,5,6,7,8,9},$P24, TRUE),1), 0) -> 1 | BS24: =_xlfn.IFNA(MATCH(RAND(), _xlfn.POISSON.DIST({0,1,2,3,4,5,6,7,8,9},$P24, TRUE),1), 0) -> 1 | BT24: =_xlfn.IFNA(MATCH(RAND(), _xlfn.POISSON.DIST({0,1,2,3,4,5,6,7,8,9},$P24, TRUE),1), 0) -> 2 | BU24: =_xlfn.IFNA(MATCH(RAND(), _xlfn.POISSON.DIST({0,1,2,3,4,5,6,7,8,9},$P24, TRUE),1), 0) -> 2 | BV24: =_xlfn.IFNA(MATCH(RAND(), _xlfn.POISSON.DIST({0,1,2,3,4,5,6,7,8,9},$P24, TRUE),1), 0) -> 1 | BW24: =_xlfn.IFNA(MATCH(RAND(), _xlfn.POISSON.DIST({0,1,2,3,4,5,6,7,8,9},$P24, TRUE),1), 0) -> 2 | BX24: =_xlfn.IFNA(MATCH(RAND(), _xlfn.POISSON.DIST({0,1,2,3,4,5,6,7,8,9},$P24, TRUE),1), 0) -> 2 | BY24: =_xlfn.IFNA(MATCH(RAND(), _xlfn.POISSON.DIST({0,1,2,3,4,5,6,7,8,9},$P24, TRUE),1), 0) -> 0 | BZ24: =_xlfn.IFNA(MATCH(RAND(), _xlfn.POISSON.DIST({0,1,2,3,4,5,6,7,8,9},$P24, TRUE),1), 0) -> 2 | CA24: =_xlfn.IFNA(MATCH(RAND(), _xlfn.POISSON.DIST({0,1,2,3,4,5,6,7,8,9},$P24, TRUE),1), 0) -> 1 | CB24: =_xlfn.IFNA(MATCH(RAND(), _xlfn.POISSON.DIST({0,1,2,3,4,5,6,7,8,9},$P24, TRUE),1), 0) -> 4 | CC24: =_xlfn.IFNA(MATCH(RAND(), _xlfn.POISSON.DIST({0,1,2,3,4,5,6,7,8,9},$P24, TRUE),1), 0) -> 2 | CD24: =_xlfn.IFNA(MATCH(RAND(), _xlfn.POISSON.DIST({0,1,2,3,4,5,6,7,8,9},$P24, TRUE),1), 0) -> 3 | CE24: =_xlfn.IFNA(MATCH(RAND(), _xlfn.POISSON.DIST({0,1,2,3,4,5,6,7,8,9},$P24, TRUE),1), 0) -> 3 | CF24: =_xlfn.IFNA(MATCH(RAND(), _xlfn.POISSON.DIST({0,1,2,3,4,5,6,7,8,9},$P24, TRUE),1), 0) -> 0 | CG24: =_xlfn.IFNA(MATCH(RAND(), _xlfn.POISSON.DIST({0,1,2,3,4,5,6,7,8,9},$P24, TRUE),1), 0) -> 3 | CH24: =_xlfn.IFNA(MATCH(RAND(), _xlfn.POISSON.DIST({0,1,2,3,4,5,6,7,8,9},$P24, TRUE),1), 0) -> 1 | CI24: =_xlfn.IFNA(MATCH(RAND(), _xlfn.POISSON.DIST({0,1,2,3,4,5,6,7,8,9},$P24, TRUE),1), 0) -> 0 | CJ24: =_xlfn.IFNA(MATCH(RAND(), _xlfn.POISSON.DIST({0,1,2,3,4,5,6,7,8,9},$P24, TRUE),1), 0) -> 1 | CK24: =_xlfn.IFNA(MATCH(RAND(), _xlfn.POISSON.DIST({0,1,2,3,4,5,6,7,8,9},$P24, TRUE),1), 0) -> 1 | CL24: =_xlfn.IFNA(MATCH(RAND(), _xlfn.POISSON.DIST({0,1,2,3,4,5,6,7,8,9},$P24, TRUE),1), 0) -> 2 | CM24: =_xlfn.IFNA(MATCH(RAND(), _xlfn.POISSON.DIST({0,1,2,3,4,5,6,7,8,9},$P24, TRUE),1), 0) -> 2 | CN24: =_xlfn.IFNA(MATCH(RAND(), _xlfn.POISSON.DIST({0,1,2,3,4,5,6,7,8,9},$P24, TRUE),1), 0) -> 0 | CO24: =_xlfn.IFNA(MATCH(RAND(), _xlfn.POISSON.DIST({0,1,2,3,4,5,6,7,8,9},$P24, TRUE),1), 0) -> 1 | CP24: =_xlfn.IFNA(MATCH(RAND(), _xlfn.POISSON.DIST({0,1,2,3,4,5,6,7,8,9},$P24, TRUE),1), 0) -> 0 | CQ24: =_xlfn.IFNA(MATCH(RAND(), _xlfn.POISSON.DIST({0,1,2,3,4,5,6,7,8,9},$P24, TRUE),1), 0) -> 2 | CR24: =_xlfn.IFNA(MATCH(RAND(), _xlfn.POISSON.DIST({0,1,2,3,4,5,6,7,8,9},$P24, TRUE),1), 0) -> 2 | CS24: =_xlfn.IFNA(MATCH(RAND(), _xlfn.POISSON.DIST({0,1,2,3,4,5,6,7,8,9},$P24, TRUE),1), 0) -> 0 | CT24: =_xlfn.IFNA(MATCH(RAND(), _xlfn.POISSON.DIST({0,1,2,3,4,5,6,7,8,9},$P24, TRUE),1), 0) -> 1 | CU24: =_xlfn.IFNA(MATCH(RAND(), _xlfn.POISSON.DIST({0,1,2,3,4,5,6,7,8,9},$P24, TRUE),1), 0) -> 2 | CV24: =_xlfn.IFNA(MATCH(RAND(), _xlfn.POISSON.DIST({0,1,2,3,4,5,6,7,8,9},$P24, TRUE),1), 0) -> 2 | CW24: =_xlfn.IFNA(MATCH(RAND(), _xlfn.POISSON.DIST({0,1,2,3,4,5,6,7,8,9},$P24, TRUE),1), 0) -> 1 | CX24: =_xlfn.IFNA(MATCH(RAND(), _xlfn.POISSON.DIST({0,1,2,3,4,5,6,7,8,9},$P24, TRUE),1), 0) -> 0 | CY24: =_xlfn.IFNA(MATCH(RAND(), _xlfn.POISSON.DIST({0,1,2,3,4,5,6,7,8,9},$P24, TRUE),1), 0) -> 1 | CZ24: =_xlfn.IFNA(MATCH(RAND(), _xlfn.POISSON.DIST({0,1,2,3,4,5,6,7,8,9},$P24, TRUE),1), 0) -> 0 | DA24: =_xlfn.IFNA(MATCH(RAND(), _xlfn.POISSON.DIST({0,1,2,3,4,5,6,7,8,9},$P24, TRUE),1), 0) -> 2 | DB24: =_xlfn.IFNA(MATCH(RAND(), _xlfn.POISSON.DIST({0,1,2,3,4,5,6,7,8,9},$P24, TRUE),1), 0) -> 2 | DC24: =_xlfn.IFNA(MATCH(RAND(), _xlfn.POISSON.DIST({0,1,2,3,4,5,6,7,8,9},$P24, TRUE),1), 0) -> 2 | DD24: =_xlfn.IFNA(MATCH(RAND(), _xlfn.POISSON.DIST({0,1,2,3,4,5,6,7,8,9},$P24, TRUE),1), 0) -> 4 | DE24: =_xlfn.IFNA(MATCH(RAND(), _xlfn.POISSON.DIST({0,1,2,3,4,5,6,7,8,9},$P24, TRUE),1), 0) -> 3 | DF24: =_xlfn.IFNA(MATCH(RAND(), _xlfn.POISSON.DIST({0,1,2,3,4,5,6,7,8,9},$P24, TRUE),1), 0) -> 0 | DG24: =_xlfn.IFNA(MATCH(RAND(), _xlfn.POISSON.DIST({0,1,2,3,4,5,6,7,8,9},$P24, TRUE),1), 0) -> 2 | DH24: =_xlfn.IFNA(MATCH(RAND(), _xlfn.POISSON.DIST({0,1,2,3,4,5,6,7,8,9},$P24, TRUE),1), 0) -> 0 | DI24: =_xlfn.IFNA(MATCH(RAND(), _xlfn.POISSON.DIST({0,1,2,3,4,5,6,7,8,9},$P24, TRUE),1), 0) -> 2 | DJ24: =_xlfn.IFNA(MATCH(RAND(), _xlfn.POISSON.DIST({0,1,2,3,4,5,6,7,8,9},$P24, TRUE),1), 0) -> 1 | DK24: =_xlfn.IFNA(MATCH(RAND(), _xlfn.POISSON.DIST({0,1,2,3,4,5,6,7,8,9},$P24, TRUE),1), 0) -> 4 | DL24: =_xlfn.IFNA(MATCH(RAND(), _xlfn.POISSON.DIST({0,1,2,3,4,5,6,7,8,9},$P24, TRUE),1), 0) -> 1 | DM24: =_xlfn.IFNA(MATCH(RAND(), _xlfn.POISSON.DIST({0,1,2,3,4,5,6,7,8,9},$P24, TRUE),1), 0) -> 1
C25: 2019-06-14 | D25: D | E25: Verenigd Koninkrijk | F25: =(AVERAGE(Q25:BN25))*(1+INDEX('Voorspellingen groepsfase'!$C$4:$O$28, MATCH('De wedstrijden van dit seizoen'!E25,'Voorspellingen groepsfase'!$D$4:$D$28,0),3)) -> 3.00 | G25: Argentinië | H25: =(AVERAGE(BP25:DM25))*(1+INDEX('Voorspellingen groepsfase'!$C$4:$O$28, MATCH('De wedstrijden van dit seizoen'!G25,'Voorspellingen groepsfase'!$D$4:$D$28,0),3)) -> 0.68 | I25: Verenigd Koninkrijk | L25: 3 | M25: 0.68 | N25: Verenigd Koninkrijk | O25: =(OFFSET('Bijlage 3 - Goals per groep'!$D$14,(INDEX('Bijlage 1 - Teamgegevens'!$C$13:$F$112,MATCH(G25,'Bijlage 1 - Teamgegevens'!$C$13:$C$112,0),4)/10),(INDEX('Bijlage 1 - Teamgegevens'!$C$13:$F$112,MATCH(E25,'Bijlage 1 - Teamgegevens'!$C$13:$C$112,0),4)/10))) -> 3.38 | P25: =OFFSET('Bijlage 3 - Goals per groep'!$D$14,(INDEX('Bijlage 1 - Teamgegevens'!$C$13:$F$112, MATCH(E25,'Bijlage 1 - Teamgegevens'!$C$13:$C$112,0),4)/10), (INDEX('Bijlage 1 - Teamgegevens'!$C$13:$F$112, MATCH(G25, 'Bijlage 1 - Teamgegevens'!$C$13:$C$112,0),4)/10)) -> 0.59 | Q25: =_xlfn.IFNA(MATCH(RAND(), _xlfn.POISSON.DIST({0,1,2,3,4,5,6,7,8,9},$O25, TRUE),1), 0) -> 5 | R25: =_xlfn.IFNA(MATCH(RAND(), _xlfn.POISSON.DIST({0,1,2,3,4,5,6,7,8,9},$O25, TRUE),1), 0) -> 1 | S25: =_xlfn.IFNA(MATCH(RAND(), _xlfn.POISSON.DIST({0,1,2,3,4,5,6,7,8,9},$O25, TRUE),1), 0) -> 2 | T25: =_xlfn.IFNA(MATCH(RAND(), _xlfn.POISSON.DIST({0,1,2,3,4,5,6,7,8,9},$O25, TRUE),1), 0) -> 3 | U25: =_xlfn.IFNA(MATCH(RAND(), _xlfn.POISSON.DIST({0,1,2,3,4,5,6,7,8,9},$O25, TRUE),1), 0) -> 2 | V25: =_xlfn.IFNA(MATCH(RAND(), _xlfn.POISSON.DIST({0,1,2,3,4,5,6,7,8,9},$O25, TRUE),1), 0) -> 2 | W25: =_xlfn.IFNA(MATCH(RAND(), _xlfn.POISSON.DIST({0,1,2,3,4,5,6,7,8,9},$O25, TRUE),1), 0) -> 4 | X25: =_xlfn.IFNA(MATCH(RAND(), _xlfn.POISSON.DIST({0,1,2,3,4,5,6,7,8,9},$O25, TRUE),1), 0) -> 7 | Y25: =_xlfn.IFNA(MATCH(RAND(), _xlfn.POISSON.DIST({0,1,2,3,4,5,6,7,8,9},$O25, TRUE),1), 0) -> 3 | Z25: =_xlfn.IFNA(MATCH(RAND(), _xlfn.POISSON.DIST({0,1,2,3,4,5,6,7,8,9},$O25, TRUE),1), 0) -> 2 | AA25: =_xlfn.IFNA(MATCH(RAND(), _xlfn.POISSON.DIST({0,1,2,3,4,5,6,7,8,9},$O25, TRUE),1), 0) -> 1 | AB25: =_xlfn.IFNA(MATCH(RAND(), _xlfn.POISSON.DIST({0,1,2,3,4,5,6,7,8,9},$O25, TRUE),1), 0) -> 4 | AC25: =_xlfn.IFNA(MATCH(RAND(), _xlfn.POISSON.DIST({0,1,2,3,4,5,6,7,8,9},$O25, TRUE),1), 0) -> 2 | AD25: =_xlfn.IFNA(MATCH(RAND(), _xlfn.POISSON.DIST({0,1,2,3,4,5,6,7,8,9},$O25, TRUE),1), 0) -> 5 | AE25: =_xlfn.IFNA(MATCH(RAND(), _xlfn.POISSON.DIST({0,1,2,3,4,5,6,7,8,9},$O25, TRUE),1), 0) -> 2 | AF25: =_xlfn.IFNA(MATCH(RAND(), _xlfn.POISSON.DIST({0,1,2,3,4,5,6,7,8,9},$O25, TRUE),1), 0) -> 4 | AG25: =_xlfn.IFNA(MATCH(RAND(), _xlfn.POISSON.DIST({0,1,2,3,4,5,6,7,8,9},$O25, TRUE),1), 0) -> 4 | AH25: =_xlfn.IFNA(MATCH(RAND(), _xlfn.POISSON.DIST({0,1,2,3,4,5,6,7,8,9},$O25, TRUE),1), 0) -> 3 | AI25: =_xlfn.IFNA(MATCH(RAND(), _xlfn.POISSON.DIST({0,1,2,3,4,5,6,7,8,9},$O25, TRUE),1), 0) -> 3 | AJ25: =_xlfn.IFNA(MATCH(RAND(), _xlfn.POISSON.DIST({0,1,2,3,4,5,6,7,8,9},$O25, TRUE),1), 0) -> 2 | AK25: =_xlfn.IFNA(MATCH(RAND(), _xlfn.POISSON.DIST({0,1,2,3,4,5,6,7,8,9},$O25, TRUE),1), 0) -> 2 | AL25: =_xlfn.IFNA(MATCH(RAND(), _xlfn.POISSON.DIST({0,1,2,3,4,5,6,7,8,9},$O25, TRUE),1), 0) -> 5 | AM25: =_xlfn.IFNA(MATCH(RAND(), _xlfn.POISSON.DIST({0,1,2,3,4,5,6,7,8,9},$O25, TRUE),1), 0) -> 3 | AN25: =_xlfn.IFNA(MATCH(RAND(), _xlfn.POISSON.DIST({0,1,2,3,4,5,6,7,8,9},$O25, TRUE),1), 0) -> 2 | AO25: =_xlfn.IFNA(MATCH(RAND(), _xlfn.POISSON.DIST({0,1,2,3,4,5,6,7,8,9},$O25, TRUE),1), 0) -> 5 | AP25: =_xlfn.IFNA(MATCH(RAND(), _xlfn.POISSON.DIST({0,1,2,3,4,5,6,7,8,9},$O25, TRUE),1), 0) -> 0 | AQ25: =_xlfn.IFNA(MATCH(RAND(), _xlfn.POISSON.DIST({0,1,2,3,4,5,6,7,8,9},$O25, TRUE),1), 0) -> 5 | AR25: =_xlfn.IFNA(MATCH(RAND(), _xlfn.POISSON.DIST({0,1,2,3,4,5,6,7,8,9},$O25, TRUE),1), 0) -> 4 | AS25: =_xlfn.IFNA(MATCH(RAND(), _xlfn.POISSON.DIST({0,1,2,3,4,5,6,7,8,9},$O25, TRUE),1), 0) -> 4 | AT25: =_xlfn.IFNA(MATCH(RAND(), _xlfn.POISSON.DIST({0,1,2,3,4,5,6,7,8,9},$O25, TRUE),1), 0) -> 4 | AU25: =_xlfn.IFNA(MATCH(RAND(), _xlfn.POISSON.DIST({0,1,2,3,4,5,6,7,8,9},$O25, TRUE),1), 0) -> 3 | AV25: =_xlfn.IFNA(MATCH(RAND(), _xlfn.POISSON.DIST({0,1,2,3,4,5,6,7,8,9},$O25, TRUE),1), 0) -> 6 | AW25: =_xlfn.IFNA(MATCH(RAND(), _xlfn.POISSON.DIST({0,1,2,3,4,5,6,7,8,9},$O25, TRUE),1), 0) -> 0 | AX25: =_xlfn.IFNA(MATCH(RAND(), _xlfn.POISSON.DIST({0,1,2,3,4,5,6,7,8,9},$O25, TRUE),1), 0) -> 3 | AY25: =_xlfn.IFNA(MATCH(RAND(), _xlfn.POISSON.DIST({0,1,2,3,4,5,6,7,8,9},$O25, TRUE),1), 0) -> 3 | AZ25: =_xlfn.IFNA(MATCH(RAND(), _xlfn.POISSON.DIST({0,1,2,3,4,5,6,7,8,9},$O25, TRUE),1), 0) -> 2 | BA25: =_xlfn.IFNA(MATCH(RAND(), _xlfn.POISSON.DIST({0,1,2,3,4,5,6,7,8,9},$O25, TRUE),1), 0) -> 3 | BB25: =_xlfn.IFNA(MATCH(RAND(), _xlfn.POISSON.DIST({0,1,2,3,4,5,6,7,8,9},$O25, TRUE),1), 0) -> 8 | BC25: =_xlfn.IFNA(MATCH(RAND(), _xlfn.POISSON.DIST({0,1,2,3,4,5,6,7,8,9},$O25, TRUE),1), 0) -> 0 | BD25: =_xlfn.IFNA(MATCH(RAND(), _xlfn.POISSON.DIST({0,1,2,3,4,5,6,7,8,9},$O25, TRUE),1), 0) -> 3 | BE25: =_xlfn.IFNA(MATCH(RAND(), _xlfn.POISSON.DIST({0,1,2,3,4,5,6,7,8,9},$O25, TRUE),1), 0) -> 5 | BF25: =_xlfn.IFNA(MATCH(RAND(), _xlfn.POISSON.DIST({0,1,2,3,4,5,6,7,8,9},$O25, TRUE),1), 0) -> 3 | BG25: =_xlfn.IFNA(MATCH(RAND(), _xlfn.POISSON.DIST({0,1,2,3,4,5,6,7,8,9},$O25, TRUE),1), 0) -> 2 | BH25: =_xlfn.IFNA(MATCH(RAND(), _xlfn.POISSON.DIST({0,1,2,3,4,5,6,7,8,9},$O25, TRUE),1), 0) -> 2 | BI25: =_xlfn.IFNA(MATCH(RAND(), _xlfn.POISSON.DIST({0,1,2,3,4,5,6,7,8,9},$O25, TRUE),1), 0) -> 1 | BJ25: =_xlfn.IFNA(MATCH(RAND(), _xlfn.POISSON.DIST({0,1,2,3,4,5,6,7,8,9},$O25, TRUE),1), 0) -> 2 | BK25: =_xlfn.IFNA(MATCH(RAND(), _xlfn.POISSON.DIST({0,1,2,3,4,5,6,7,8,9},$O25, TRUE),1), 0) -> 5 | BL25: =_xlfn.IFNA(MATCH(RAND(), _xlfn.POISSON.DIST({0,1,2,3,4,5,6,7,8,9},$O25, TRUE),1), 0) -> 0 | BM25: =_xlfn.IFNA(MATCH(RAND(), _xlfn.POISSON.DIST({0,1,2,3,4,5,6,7,8,9},$O25, TRUE),1), 0) -> 2 | BN25: =_xlfn.IFNA(MATCH(RAND(), _xlfn.POISSON.DIST({0,1,2,3,4,5,6,7,8,9},$O25, TRUE),1), 0) -> 2 | BP25: =_xlfn.IFNA(MATCH(RAND(), _xlfn.POISSON.DIST({0,1,2,3,4,5,6,7,8,9},$P25, TRUE),1), 0) -> 0 | BQ25: =_xlfn.IFNA(MATCH(RAND(), _xlfn.POISSON.DIST({0,1,2,3,4,5,6,7,8,9},$P25, TRUE),1), 0) -> 1 | BR25: =_xlfn.IFNA(MATCH(RAND(), _xlfn.POISSON.DIST({0,1,2,3,4,5,6,7,8,9},$P25, TRUE),1), 0) -> 1 | BS25: =_xlfn.IFNA(MATCH(RAND(), _xlfn.POISSON.DIST({0,1,2,3,4,5,6,7,8,9},$P25, TRUE),1), 0) -> 0 | BT25: =_xlfn.IFNA(MATCH(RAND(), _xlfn.POISSON.DIST({0,1,2,3,4,5,6,7,8,9},$P25, TRUE),1), 0) -> 0 | BU25: =_xlfn.IFNA(MATCH(RAND(), _xlfn.POISSON.DIST({0,1,2,3,4,5,6,7,8,9},$P25, TRUE),1), 0) -> 0 | BV25: =_xlfn.IFNA(MATCH(RAND(), _xlfn.POISSON.DIST({0,1,2,3,4,5,6,7,8,9},$P25, TRUE),1), 0) -> 0 | BW25: =_xlfn.IFNA(MATCH(RAND(), _xlfn.POISSON.DIST({0,1,2,3,4,5,6,7,8,9},$P25, TRUE),1), 0) -> 2 | BX25: =_xlfn.IFNA(MATCH(RAND(), _xlfn.POISSON.DIST({0,1,2,3,4,5,6,7,8,9},$P25, TRUE),1), 0) -> 1 | BY25: =_xlfn.IFNA(MATCH(RAND(), _xlfn.POISSON.DIST({0,1,2,3,4,5,6,7,8,9},$P25, TRUE),1), 0) -> 1 | BZ25: =_xlfn.IFNA(MATCH(RAND(), _xlfn.POISSON.DIST({0,1,2,3,4,5,6,7,8,9},$P25, TRUE),1), 0) -> 0 | CA25: =_xlfn.IFNA(MATCH(RAND(), _xlfn.POISSON.DIST({0,1,2,3,4,5,6,7,8,9},$P25, TRUE),1), 0) -> 1 | CB25: =_xlfn.IFNA(MATCH(RAND(), _xlfn.POISSON.DIST({0,1,2,3,4,5,6,7,8,9},$P25, TRUE),1), 0) -> 2 | CC25: =_xlfn.IFNA(MATCH(RAND(), _xlfn.POISSON.DIST({0,1,2,3,4,5,6,7,8,9},$P25, TRUE),1), 0) -> 1 | CD25: =_xlfn.IFNA(MATCH(RAND(), _xlfn.POISSON.DIST({0,1,2,3,4,5,6,7,8,9},$P25, TRUE),1), 0) -> 0 | CE25: =_xlfn.IFNA(MATCH(RAND(), _xlfn.POISSON.DIST({0,1,2,3,4,5,6,7,8,9},$P25, TRUE),1), 0) -> 0 | CF25: =_xlfn.IFNA(MATCH(RAND(), _xlfn.POISSON.DIST({0,1,2,3,4,5,6,7,8,9},$P25, TRUE),1), 0) -> 1 | CG25: =_xlfn.IFNA(MATCH(RAND(), _xlfn.POISSON.DIST({0,1,2,3,4,5,6,7,8,9},$P25, TRUE),1), 0) -> 0 | CH25: =_xlfn.IFNA(MATCH(RAND(), _xlfn.POISSON.DIST({0,1,2,3,4,5,6,7,8,9},$P25, TRUE),1), 0) -> 1 | CI25: =_xlfn.IFNA(MATCH(RAND(), _xlfn.POISSON.DIST({0,1,2,3,4,5,6,7,8,9},$P25, TRUE),1), 0) -> 0 | CJ25: =_xlfn.IFNA(MATCH(RAND(), _xlfn.POISSON.DIST({0,1,2,3,4,5,6,7,8,9},$P25, TRUE),1), 0) -> 2 | CK25: =_xlfn.IFNA(MATCH(RAND(), _xlfn.POISSON.DIST({0,1,2,3,4,5,6,7,8,9},$P25, TRUE),1), 0) -> 0 | CL25: =_xlfn.IFNA(MATCH(RAND(), _xlfn.POISSON.DIST({0,1,2,3,4,5,6,7,8,9},$P25, TRUE),1), 0) -> 0 | CM25: =_xlfn.IFNA(MATCH(RAND(), _xlfn.POISSON.DIST({0,1,2,3,4,5,6,7,8,9},$P25, TRUE),1), 0) -> 1 | CN25: =_xlfn.IFNA(MATCH(RAND(), _xlfn.POISSON.DIST({0,1,2,3,4,5,6,7,8,9},$P25, TRUE),1), 0) -> 2 | CO25: =_xlfn.IFNA(MATCH(RAND(), _xlfn.POISSON.DIST({0,1,2,3,4,5,6,7,8,9},$P25, TRUE),1), 0) -> 0 | CP25: =_xlfn.IFNA(MATCH(RAND(), _xlfn.POISSON.DIST({0,1,2,3,4,5,6,7,8,9},$P25, TRUE),1), 0) -> 1 | CQ25: =_xlfn.IFNA(MATCH(RAND(), _xlfn.POISSON.DIST({0,1,2,3,4,5,6,7,8,9},$P25, TRUE),1), 0) -> 0 | CR25: =_xlfn.IFNA(MATCH(RAND(), _xlfn.POISSON.DIST({0,1,2,3,4,5,6,7,8,9},$P25, TRUE),1), 0) -> 0 | CS25: =_xlfn.IFNA(MATCH(RAND(), _xlfn.POISSON.DIST({0,1,2,3,4,5,6,7,8,9},$P25, TRUE),1), 0) -> 1 | CT25: =_xlfn.IFNA(MATCH(RAND(), _xlfn.POISSON.DIST({0,1,2,3,4,5,6,7,8,9},$P25, TRUE),1), 0) -> 0 | CU25: =_xlfn.IFNA(MATCH(RAND(), _xlfn.POISSON.DIST({0,1,2,3,4,5,6,7,8,9},$P25, TRUE),1), 0) -> 0 | CV25: =_xlfn.IFNA(MATCH(RAND(), _xlfn.POISSON.DIST({0,1,2,3,4,5,6,7,8,9},$P25, TRUE),1), 0) -> 0 | CW25: =_xlfn.IFNA(MATCH(RAND(), _xlfn.POISSON.DIST({0,1,2,3,4,5,6,7,8,9},$P25, TRUE),1), 0) -> 3 | CX25: =_xlfn.IFNA(MATCH(RAND(), _xlfn.POISSON.DIST({0,1,2,3,4,5,6,7,8,9},$P25, TRUE),1), 0) -> 0 | CY25: =_xlfn.IFNA(MATCH(RAND(), _xlfn.POISSON.DIST({0,1,2,3,4,5,6,7,8,9},$P25, TRUE),1), 0) -> 3 | CZ25: =_xlfn.IFNA(MATCH(RAND(), _xlfn.POISSON.DIST({0,1,2,3,4,5,6,7,8,9},$P25, TRUE),1), 0) -> 0 | DA25: =_xlfn.IFNA(MATCH(RAND(), _xlfn.POISSON.DIST({0,1,2,3,4,5,6,7,8,9},$P25, TRUE),1), 0) -> 2 | DB25: =_xlfn.IFNA(MATCH(RAND(), _xlfn.POISSON.DIST({0,1,2,3,4,5,6,7,8,9},$P25, TRUE),1), 0) -> 1 | DC25: =_xlfn.IFNA(MATCH(RAND(), _xlfn.POISSON.DIST({0,1,2,3,4,5,6,7,8,9},$P25, TRUE),1), 0) -> 2 | DD25: =_xlfn.IFNA(MATCH(RAND(), _xlfn.POISSON.DIST({0,1,2,3,4,5,6,7,8,9},$P25, TRUE),1), 0) -> 1 | DE25: =_xlfn.IFNA(MATCH(RAND(), _xlfn.POISSON.DIST({0,1,2,3,4,5,6,7,8,9},$P25, TRUE),1), 0) -> 0 | DF25: =_xlfn.IFNA(MATCH(RAND(), _xlfn.POISSON.DIST({0,1,2,3,4,5,6,7,8,9},$P25, TRUE),1), 0) -> 0 | DG25: =_xlfn.IFNA(MATCH(RAND(), _xlfn.POISSON.DIST({0,1,2,3,4,5,6,7,8,9},$P25, TRUE),1), 0) -> 0 | DH25: =_xlfn.IFNA(MATCH(RAND(), _xlfn.POISSON.DIST({0,1,2,3,4,5,6,7,8,9},$P25, TRUE),1), 0) -> 0 | DI25: =_xlfn.IFNA(MATCH(RAND(), _xlfn.POISSON.DIST({0,1,2,3,4,5,6,7,8,9},$P25, TRUE),1), 0) -> 1 | DJ25: =_xlfn.IFNA(MATCH(RAND(), _xlfn.POISSON.DIST({0,1,2,3,4,5,6,7,8,9},$P25, TRUE),1), 0) -> 0 | DK25: =_xlfn.IFNA(MATCH(RAND(), _xlfn.POISSON.DIST({0,1,2,3,4,5,6,7,8,9},$P25, TRUE),1), 0) -> 0 | DL25: =_xlfn.IFNA(MATCH(RAND(), _xlfn.POISSON.DIST({0,1,2,3,4,5,6,7,8,9},$P25, TRUE),1), 0) -> 1 | DM25: =_xlfn.IFNA(MATCH(RAND(), _xlfn.POISSON.DIST({0,1,2,3,4,5,6,7,8,9},$P25, TRUE),1), 0) -> 1
C26: 2019-06-15 | D26: E | E26: Nederland | F26: =(AVERAGE(Q26:BN26))*(1+INDEX('Voorspellingen groepsfase'!$C$4:$O$28, MATCH('De wedstrijden van dit seizoen'!E26,'Voorspellingen groepsfase'!$D$4:$D$28,0),3)) -> 2.54 | G26: Kameroen | H26: =(AVERAGE(BP26:DM26))*(1+INDEX('Voorspellingen groepsfase'!$C$4:$O$28, MATCH('De wedstrijden van dit seizoen'!G26,'Voorspellingen groepsfase'!$D$4:$D$28,0),3)) -> 0.42 | I26: Nederland | L26: 2.54 | M26: 0.42 | N26: Nederland | O26: =(OFFSET('Bijlage 3 - Goals per groep'!$D$14,(INDEX('Bijlage 1 - Teamgegevens'!$C$13:$F$112,MATCH(G26,'Bijlage 1 - Teamgegevens'!$C$13:$C$112,0),4)/10),(INDEX('Bijlage 1 - Teamgegevens'!$C$13:$F$112,MATCH(E26,'Bijlage 1 - Teamgegevens'!$C$13:$C$112,0),4)/10))) -> 2.46 | P26: =OFFSET('Bijlage 3 - Goals per groep'!$D$14,(INDEX('Bijlage 1 - Teamgegevens'!$C$13:$F$112, MATCH(E26,'Bijlage 1 - Teamgegevens'!$C$13:$C$112,0),4)/10), (INDEX('Bijlage 1 - Teamgegevens'!$C$13:$F$112, MATCH(G26, 'Bijlage 1 - Teamgegevens'!$C$13:$C$112,0),4)/10)) -> 0.38 | Q26: =_xlfn.IFNA(MATCH(RAND(), _xlfn.POISSON.DIST({0,1,2,3,4,5,6,7,8,9},$O26, TRUE),1), 0) -> 5 | R26: =_xlfn.IFNA(MATCH(RAND(), _xlfn.POISSON.DIST({0,1,2,3,4,5,6,7,8,9},$O26, TRUE),1), 0) -> 2 | S26: =_xlfn.IFNA(MATCH(RAND(), _xlfn.POISSON.DIST({0,1,2,3,4,5,6,7,8,9},$O26, TRUE),1), 0) -> 1 | T26: =_xlfn.IFNA(MATCH(RAND(), _xlfn.POISSON.DIST({0,1,2,3,4,5,6,7,8,9},$O26, TRUE),1), 0) -> 0 | U26: =_xlfn.IFNA(MATCH(RAND(), _xlfn.POISSON.DIST({0,1,2,3,4,5,6,7,8,9},$O26, TRUE),1), 0) -> 4 | V26: =_xlfn.IFNA(MATCH(RAND(), _xlfn.POISSON.DIST({0,1,2,3,4,5,6,7,8,9},$O26, TRUE),1), 0) -> 2 | W26: =_xlfn.IFNA(MATCH(RAND(), _xlfn.POISSON.DIST({0,1,2,3,4,5,6,7,8,9},$O26, TRUE),1), 0) -> 1 | X26: =_xlfn.IFNA(MATCH(RAND(), _xlfn.POISSON.DIST({0,1,2,3,4,5,6,7,8,9},$O26, TRUE),1), 0) -> 5 | Y26: =_xlfn.IFNA(MATCH(RAND(), _xlfn.POISSON.DIST({0,1,2,3,4,5,6,7,8,9},$O26, TRUE),1), 0) -> 3 | Z26: =_xlfn.IFNA(MATCH(RAND(), _xlfn.POISSON.DIST({0,1,2,3,4,5,6,7,8,9},$O26, TRUE),1), 0) -> 1 | AA26: =_xlfn.IFNA(MATCH(RAND(), _xlfn.POISSON.DIST({0,1,2,3,4,5,6,7,8,9},$O26, TRUE),1), 0) -> 3 | AB26: =_xlfn.IFNA(MATCH(RAND(), _xlfn.POISSON.DIST({0,1,2,3,4,5,6,7,8,9},$O26, TRUE),1), 0) -> 1 | AC26: =_xlfn.IFNA(MATCH(RAND(), _xlfn.POISSON.DIST({0,1,2,3,4,5,6,7,8,9},$O26, TRUE),1), 0) -> 3 | AD26: =_xlfn.IFNA(MATCH(RAND(), _xlfn.POISSON.DIST({0,1,2,3,4,5,6,7,8,9},$O26, TRUE),1), 0) -> 2 | AE26: =_xlfn.IFNA(MATCH(RAND(), _xlfn.POISSON.DIST({0,1,2,3,4,5,6,7,8,9},$O26, TRUE),1), 0) -> 0 | AF26: =_xlfn.IFNA(MATCH(RAND(), _xlfn.POISSON.DIST({0,1,2,3,4,5,6,7,8,9},$O26, TRUE),1), 0) -> 4 | AG26: =_xlfn.IFNA(MATCH(RAND(), _xlfn.POISSON.DIST({0,1,2,3,4,5,6,7,8,9},$O26, TRUE),1), 0) -> 3 | AH26: =_xlfn.IFNA(MATCH(RAND(), _xlfn.POISSON.DIST({0,1,2,3,4,5,6,7,8,9},$O26, TRUE),1), 0) -> 2 | AI26: =_xlfn.IFNA(MATCH(RAND(), _xlfn.POISSON.DIST({0,1,2,3,4,5,6,7,8,9},$O26, TRUE),1), 0) -> 3 | AJ26: =_xlfn.IFNA(MATCH(RAND(), _xlfn.POISSON.DIST({0,1,2,3,4,5,6,7,8,9},$O26, TRUE),1), 0) -> 3 | AK26: =_xlfn.IFNA(MATCH(RAND(), _xlfn.POISSON.DIST({0,1,2,3,4,5,6,7,8,9},$O26, TRUE),1), 0) -> 1 | AL26: =_xlfn.IFNA(MATCH(RAND(), _xlfn.POISSON.DIST({0,1,2,3,4,5,6,7,8,9},$O26, TRUE),1), 0) -> 5 | AM26: =_xlfn.IFNA(MATCH(RAND(), _xlfn.POISSON.DIST({0,1,2,3,4,5,6,7,8,9},$O26, TRUE),1), 0) -> 5 | AN26: =_xlfn.IFNA(MATCH(RAND(), _xlfn.POISSON.DIST({0,1,2,3,4,5,6,7,8,9},$O26, TRUE),1), 0) -> 0 | AO26: =_xlfn.IFNA(MATCH(RAND(), _xlfn.POISSON.DIST({0,1,2,3,4,5,6,7,8,9},$O26, TRUE),1), 0) -> 3 | AP26: =_xlfn.IFNA(MATCH(RAND(), _xlfn.POISSON.DIST({0,1,2,3,4,5,6,7,8,9},$O26, TRUE),1), 0) -> 4 | AQ26: =_xlfn.IFNA(MATCH(RAND(), _xlfn.POISSON.DIST({0,1,2,3,4,5,6,7,8,9},$O26, TRUE),1), 0) -> 5 | AR26: =_xlfn.IFNA(MATCH(RAND(), _xlfn.POISSON.DIST({0,1,2,3,4,5,6,7,8,9},$O26, TRUE),1), 0) -> 3 | AS26: =_xlfn.IFNA(MATCH(RAND(), _xlfn.POISSON.DIST({0,1,2,3,4,5,6,7,8,9},$O26, TRUE),1), 0) -> 2 | AT26: =_xlfn.IFNA(MATCH(RAND(), _xlfn.POISSON.DIST({0,1,2,3,4,5,6,7,8,9},$O26, TRUE),1), 0) -> 0 | AU26: =_xlfn.IFNA(MATCH(RAND(), _xlfn.POISSON.DIST({0,1,2,3,4,5,6,7,8,9},$O26, TRUE),1), 0) -> 1 | AV26: =_xlfn.IFNA(MATCH(RAND(), _xlfn.POISSON.DIST({0,1,2,3,4,5,6,7,8,9},$O26, TRUE),1), 0) -> 1 | AW26: =_xlfn.IFNA(MATCH(RAND(), _xlfn.POISSON.DIST({0,1,2,3,4,5,6,7,8,9},$O26, TRUE),1), 0) -> 1 | AX26: =_xlfn.IFNA(MATCH(RAND(), _xlfn.POISSON.DIST({0,1,2,3,4,5,6,7,8,9},$O26, TRUE),1), 0) -> 3 | AY26: =_xlfn.IFNA(MATCH(RAND(), _xlfn.POISSON.DIST({0,1,2,3,4,5,6,7,8,9},$O26, TRUE),1), 0) -> 1 | AZ26: =_xlfn.IFNA(MATCH(RAND(), _xlfn.POISSON.DIST({0,1,2,3,4,5,6,7,8,9},$O26, TRUE),1), 0) -> 5 | BA26: =_xlfn.IFNA(MATCH(RAND(), _xlfn.POISSON.DIST({0,1,2,3,4,5,6,7,8,9},$O26, TRUE),1), 0) -> 3 | BB26: =_xlfn.IFNA(MATCH(RAND(), _xlfn.POISSON.DIST({0,1,2,3,4,5,6,7,8,9},$O26, TRUE),1), 0) -> 3 | BC26: =_xlfn.IFNA(MATCH(RAND(), _xlfn.POISSON.DIST({0,1,2,3,4,5,6,7,8,9},$O26, TRUE),1), 0) -> 6 | BD26: =_xlfn.IFNA(MATCH(RAND(), _xlfn.POISSON.DIST({0,1,2,3,4,5,6,7,8,9},$O26, TRUE),1), 0) -> 2 | BE26: =_xlfn.IFNA(MATCH(RAND(), _xlfn.POISSON.DIST({0,1,2,3,4,5,6,7,8,9},$O26, TRUE),1), 0) -> 2 | BF26: =_xlfn.IFNA(MATCH(RAND(), _xlfn.POISSON.DIST({0,1,2,3,4,5,6,7,8,9},$O26, TRUE),1), 0) -> 2 | BG26: =_xlfn.IFNA(MATCH(RAND(), _xlfn.POISSON.DIST({0,1,2,3,4,5,6,7,8,9},$O26, TRUE),1), 0) -> 7 | BH26: =_xlfn.IFNA(MATCH(RAND(), _xlfn.POISSON.DIST({0,1,2,3,4,5,6,7,8,9},$O26, TRUE),1), 0) -> 1 | BI26: =_xlfn.IFNA(MATCH(RAND(), _xlfn.POISSON.DIST({0,1,2,3,4,5,6,7,8,9},$O26, TRUE),1), 0) -> 1 | BJ26: =_xlfn.IFNA(MATCH(RAND(), _xlfn.POISSON.DIST({0,1,2,3,4,5,6,7,8,9},$O26, TRUE),1), 0) -> 3 | BK26: =_xlfn.IFNA(MATCH(RAND(), _xlfn.POISSON.DIST({0,1,2,3,4,5,6,7,8,9},$O26, TRUE),1), 0) -> 1 | BL26: =_xlfn.IFNA(MATCH(RAND(), _xlfn.POISSON.DIST({0,1,2,3,4,5,6,7,8,9},$O26, TRUE),1), 0) -> 3 | BM26: =_xlfn.IFNA(MATCH(RAND(), _xlfn.POISSON.DIST({0,1,2,3,4,5,6,7,8,9},$O26, TRUE),1), 0) -> 3 | BN26: =_xlfn.IFNA(MATCH(RAND(), _xlfn.POISSON.DIST({0,1,2,3,4,5,6,7,8,9},$O26, TRUE),1), 0) -> 2 | BP26: =_xlfn.IFNA(MATCH(RAND(), _xlfn.POISSON.DIST({0,1,2,3,4,5,6,7,8,9},$P26, TRUE),1), 0) -> 1 | BQ26: =_xlfn.IFNA(MATCH(RAND(), _xlfn.POISSON.DIST({0,1,2,3,4,5,6,7,8,9},$P26, TRUE),1), 0) -> 1 | BR26: =_xlfn.IFNA(MATCH(RAND(), _xlfn.POISSON.DIST({0,1,2,3,4,5,6,7,8,9},$P26, TRUE),1), 0) -> 0 | BS26: =_xlfn.IFNA(MATCH(RAND(), _xlfn.POISSON.DIST({0,1,2,3,4,5,6,7,8,9},$P26, TRUE),1), 0) -> 0 | BT26: =_xlfn.IFNA(MATCH(RAND(), _xlfn.POISSON.DIST({0,1,2,3,4,5,6,7,8,9},$P26, TRUE),1), 0) -> 0 | BU26: =_xlfn.IFNA(MATCH(RAND(), _xlfn.POISSON.DIST({0,1,2,3,4,5,6,7,8,9},$P26, TRUE),1), 0) -> 0 | BV26: =_xlfn.IFNA(MATCH(RAND(), _xlfn.POISSON.DIST({0,1,2,3,4,5,6,7,8,9},$P26, TRUE),1), 0) -> 0 | BW26: =_xlfn.IFNA(MATCH(RAND(), _xlfn.POISSON.DIST({0,1,2,3,4,5,6,7,8,9},$P26, TRUE),1), 0) -> 1 | BX26: =_xlfn.IFNA(MATCH(RAND(), _xlfn.POISSON.DIST({0,1,2,3,4,5,6,7,8,9},$P26, TRUE),1), 0) -> 0 | BY26: =_xlfn.IFNA(MATCH(RAND(), _xlfn.POISSON.DIST({0,1,2,3,4,5,6,7,8,9},$P26, TRUE),1), 0) -> 1 | BZ26: =_xlfn.IFNA(MATCH(RAND(), _xlfn.POISSON.DIST({0,1,2,3,4,5,6,7,8,9},$P26, TRUE),1), 0) -> 0 | CA26: =_xlfn.IFNA(MATCH(RAND(), _xlfn.POISSON.DIST({0,1,2,3,4,5,6,7,8,9},$P26, TRUE),1), 0) -> 1 | CB26: =_xlfn.IFNA(MATCH(RAND(), _xlfn.POISSON.DIST({0,1,2,3,4,5,6,7,8,9},$P26, TRUE),1), 0) -> 0 | CC26: =_xlfn.IFNA(MATCH(RAND(), _xlfn.POISSON.DIST({0,1,2,3,4,5,6,7,8,9},$P26, TRUE),1), 0) -> 1 | CD26: =_xlfn.IFNA(MATCH(RAND(), _xlfn.POISSON.DIST({0,1,2,3,4,5,6,7,8,9},$P26, TRUE),1), 0) -> 1 | CE26: =_xlfn.IFNA(MATCH(RAND(), _xlfn.POISSON.DIST({0,1,2,3,4,5,6,7,8,9},$P26, TRUE),1), 0) -> 1 | CF26: =_xlfn.IFNA(MATCH(RAND(), _xlfn.POISSON.DIST({0,1,2,3,4,5,6,7,8,9},$P26, TRUE),1), 0) -> 1 | CG26: =_xlfn.IFNA(MATCH(RAND(), _xlfn.POISSON.DIST({0,1,2,3,4,5,6,7,8,9},$P26, TRUE),1), 0) -> 0 | CH26: =_xlfn.IFNA(MATCH(RAND(), _xlfn.POISSON.DIST({0,1,2,3,4,5,6,7,8,9},$P26, TRUE),1), 0) -> 0 | CI26: =_xlfn.IFNA(MATCH(RAND(), _xlfn.POISSON.DIST({0,1,2,3,4,5,6,7,8,9},$P26, TRUE),1), 0) -> 0 | CJ26: =_xlfn.IFNA(MATCH(RAND(), _xlfn.POISSON.DIST({0,1,2,3,4,5,6,7,8,9},$P26, TRUE),1), 0) -> 0 | CK26: =_xlfn.IFNA(MATCH(RAND(), _xlfn.POISSON.DIST({0,1,2,3,4,5,6,7,8,9},$P26, TRUE),1), 0) -> 0 | CL26: =_xlfn.IFNA(MATCH(RAND(), _xlfn.POISSON.DIST({0,1,2,3,4,5,6,7,8,9},$P26, TRUE),1), 0) -> 1 | CM26: =_xlfn.IFNA(MATCH(RAND(), _xlfn.POISSON.DIST({0,1,2,3,4,5,6,7,8,9},$P26, TRUE),1), 0) -> 0 | CN26: =_xlfn.IFNA(MATCH(RAND(), _xlfn.POISSON.DIST({0,1,2,3,4,5,6,7,8,9},$P26, TRUE),1), 0) -> 1 | CO26: =_xlfn.IFNA(MATCH(RAND(), _xlfn.POISSON.DIST({0,1,2,3,4,5,6,7,8,9},$P26, TRUE),1), 0) -> 1 | CP26: =_xlfn.IFNA(MATCH(RAND(), _xlfn.POISSON.DIST({0,1,2,3,4,5,6,7,8,9},$P26, TRUE),1), 0) -> 0 | CQ26: =_xlfn.IFNA(MATCH(RAND(), _xlfn.POISSON.DIST({0,1,2,3,4,5,6,7,8,9},$P26, TRUE),1), 0) -> 0 | CR26: =_xlfn.IFNA(MATCH(RAND(), _xlfn.POISSON.DIST({0,1,2,3,4,5,6,7,8,9},$P26, TRUE),1), 0) -> 1 | CS26: =_xlfn.IFNA(MATCH(RAND(), _xlfn.POISSON.DIST({0,1,2,3,4,5,6,7,8,9},$P26, TRUE),1), 0) -> 0 | CT26: =_xlfn.IFNA(MATCH(RAND(), _xlfn.POISSON.DIST({0,1,2,3,4,5,6,7,8,9},$P26, TRUE),1), 0) -> 0 | CU26: =_xlfn.IFNA(MATCH(RAND(), _xlfn.POISSON.DIST({0,1,2,3,4,5,6,7,8,9},$P26, TRUE),1), 0) -> 0 | CV26: =_xlfn.IFNA(MATCH(RAND(), _xlfn.POISSON.DIST({0,1,2,3,4,5,6,7,8,9},$P26, TRUE),1), 0) -> 0 | CW26: =_xlfn.IFNA(MATCH(RAND(), _xlfn.POISSON.DIST({0,1,2,3,4,5,6,7,8,9},$P26, TRUE),1), 0) -> 0 | CX26: =_xlfn.IFNA(MATCH(RAND(), _xlfn.POISSON.DIST({0,1,2,3,4,5,6,7,8,9},$P26, TRUE),1), 0) -> 2 | CY26: =_xlfn.IFNA(MATCH(RAND(), _xlfn.POISSON.DIST({0,1,2,3,4,5,6,7,8,9},$P26, TRUE),1), 0) -> 1 | CZ26: =_xlfn.IFNA(MATCH(RAND(), _xlfn.POISSON.DIST({0,1,2,3,4,5,6,7,8,9},$P26, TRUE),1), 0) -> 1 | DA26: =_xlfn.IFNA(MATCH(RAND(), _xlfn.POISSON.DIST({0,1,2,3,4,5,6,7,8,9},$P26, TRUE),1), 0) -> 1 | DB26: =_xlfn.IFNA(MATCH(RAND(), _xlfn.POISSON.DIST({0,1,2,3,4,5,6,7,8,9},$P26, TRUE),1), 0) -> 0 | DC26: =_xlfn.IFNA(MATCH(RAND(), _xlfn.POISSON.DIST({0,1,2,3,4,5,6,7,8,9},$P26, TRUE),1), 0) -> 0 | DD26: =_xlfn.IFNA(MATCH(RAND(), _xlfn.POISSON.DIST({0,1,2,3,4,5,6,7,8,9},$P26, TRUE),1), 0) -> 0 | DE26: =_xlfn.IFNA(MATCH(RAND(), _xlfn.POISSON.DIST({0,1,2,3,4,5,6,7,8,9},$P26, TRUE),1), 0) -> 1 | DF26: =_xlfn.IFNA(MATCH(RAND(), _xlfn.POISSON.DIST({0,1,2,3,4,5,6,7,8,9},$P26, TRUE),1), 0) -> 0 | DG26: =_xlfn.IFNA(MATCH(RAND(), _xlfn.POISSON.DIST({0,1,2,3,4,5,6,7,8,9},$P26, TRUE),1), 0) -> 0 | DH26: =_xlfn.IFNA(MATCH(RAND(), _xlfn.POISSON.DIST({0,1,2,3,4,5,6,7,8,9},$P26, TRUE),1), 0) -> 0 | DI26: =_xlfn.IFNA(MATCH(RAND(), _xlfn.POISSON.DIST({0,1,2,3,4,5,6,7,8,9},$P26, TRUE),1), 0) -> 0 | DJ26: =_xlfn.IFNA(MATCH(RAND(), _xlfn.POISSON.DIST({0,1,2,3,4,5,6,7,8,9},$P26, TRUE),1), 0) -> 0 | DK26: =_xlfn.IFNA(MATCH(RAND(), _xlfn.POISSON.DIST({0,1,2,3,4,5,6,7,8,9},$P26, TRUE),1), 0) -> 0 | DL26: =_xlfn.IFNA(MATCH(RAND(), _xlfn.POISSON.DIST({0,1,2,3,4,5,6,7,8,9},$P26, TRUE),1), 0) -> 2 | DM26: =_xlfn.IFNA(MATCH(RAND(), _xlfn.POISSON.DIST({0,1,2,3,4,5,6,7,8,9},$P26, TRUE),1), 0) -> 0
C27: 2019-06-15 | D27: E | E27: Canada | F27: =(AVERAGE(Q27:BN27))*(1+INDEX('Voorspellingen groepsfase'!$C$4:$O$28, MATCH('De wedstrijden van dit seizoen'!E27,'Voorspellingen groepsfase'!$D$4:$D$28,0),3)) -> 1.34 | G27: Nieuw-Zeeland | H27: =(AVERAGE(BP27:DM27))*(1+INDEX('Voorspellingen groepsfase'!$C$4:$O$28, MATCH('De wedstrijden van dit seizoen'!G27,'Voorspellingen groepsfase'!$D$4:$D$28,0),3)) -> 1.04 | I27: Canada | L27: 1.34 | M27: 1.04 | N27: Canada | O27: =(OFFSET('Bijlage 3 - Goals per groep'!$D$14,(INDEX('Bijlage 1 - Teamgegevens'!$C$13:$F$112,MATCH(G27,'Bijlage 1 - Teamgegevens'!$C$13:$C$112,0),4)/10),(INDEX('Bijlage 1 - Teamgegevens'!$C$13:$F$112,MATCH(E27,'Bijlage 1 - Teamgegevens'!$C$13:$C$112,0),4)/10))) -> 1.78 | P27: =OFFSET('Bijlage 3 - Goals per groep'!$D$14,(INDEX('Bijlage 1 - Teamgegevens'!$C$13:$F$112, MATCH(E27,'Bijlage 1 - Teamgegevens'!$C$13:$C$112,0),4)/10), (INDEX('Bijlage 1 - Teamgegevens'!$C$13:$F$112, MATCH(G27, 'Bijlage 1 - Teamgegevens'!$C$13:$C$112,0),4)/10)) -> 1.07 | Q27: =_xlfn.IFNA(MATCH(RAND(), _xlfn.POISSON.DIST({0,1,2,3,4,5,6,7,8,9},$O27, TRUE),1), 0) -> 1 | R27: =_xlfn.IFNA(MATCH(RAND(), _xlfn.POISSON.DIST({0,1,2,3,4,5,6,7,8,9},$O27, TRUE),1), 0) -> 1 | S27: =_xlfn.IFNA(MATCH(RAND(), _xlfn.POISSON.DIST({0,1,2,3,4,5,6,7,8,9},$O27, TRUE),1), 0) -> 2 | T27: =_xlfn.IFNA(MATCH(RAND(), _xlfn.POISSON.DIST({0,1,2,3,4,5,6,7,8,9},$O27, TRUE),1), 0) -> 2 | U27: =_xlfn.IFNA(MATCH(RAND(), _xlfn.POISSON.DIST({0,1,2,3,4,5,6,7,8,9},$O27, TRUE),1), 0) -> 1 | V27: =_xlfn.IFNA(MATCH(RAND(), _xlfn.POISSON.DIST({0,1,2,3,4,5,6,7,8,9},$O27, TRUE),1), 0) -> 2 | W27: =_xlfn.IFNA(MATCH(RAND(), _xlfn.POISSON.DIST({0,1,2,3,4,5,6,7,8,9},$O27, TRUE),1), 0) -> 3 | X27: =_xlfn.IFNA(MATCH(RAND(), _xlfn.POISSON.DIST({0,1,2,3,4,5,6,7,8,9},$O27, TRUE),1), 0) -> 0 | Y27: =_xlfn.IFNA(MATCH(RAND(), _xlfn.POISSON.DIST({0,1,2,3,4,5,6,7,8,9},$O27, TRUE),1), 0) -> 1 | Z27: =_xlfn.IFNA(MATCH(RAND(), _xlfn.POISSON.DIST({0,1,2,3,4,5,6,7,8,9},$O27, TRUE),1), 0) -> 1 | AA27: =_xlfn.IFNA(MATCH(RAND(), _xlfn.POISSON.DIST({0,1,2,3,4,5,6,7,8,9},$O27, TRUE),1), 0) -> 2 | AB27: =_xlfn.IFNA(MATCH(RAND(), _xlfn.POISSON.DIST({0,1,2,3,4,5,6,7,8,9},$O27, TRUE),1), 0) -> 1 | AC27: =_xlfn.IFNA(MATCH(RAND(), _xlfn.POISSON.DIST({0,1,2,3,4,5,6,7,8,9},$O27, TRUE),1), 0) -> 1 | AD27: =_xlfn.IFNA(MATCH(RAND(), _xlfn.POISSON.DIST({0,1,2,3,4,5,6,7,8,9},$O27, TRUE),1), 0) -> 1 | AE27: =_xlfn.IFNA(MATCH(RAND(), _xlfn.POISSON.DIST({0,1,2,3,4,5,6,7,8,9},$O27, TRUE),1), 0) -> 2 | AF27: =_xlfn.IFNA(MATCH(RAND(), _xlfn.POISSON.DIST({0,1,2,3,4,5,6,7,8,9},$O27, TRUE),1), 0) -> 3 | AG27: =_xlfn.IFNA(MATCH(RAND(), _xlfn.POISSON.DIST({0,1,2,3,4,5,6,7,8,9},$O27, TRUE),1), 0) -> 3 | AH27: =_xlfn.IFNA(MATCH(RAND(), _xlfn.POISSON.DIST({0,1,2,3,4,5,6,7,8,9},$O27, TRUE),1), 0) -> 2 | AI27: =_xlfn.IFNA(MATCH(RAND(), _xlfn.POISSON.DIST({0,1,2,3,4,5,6,7,8,9},$O27, TRUE),1), 0) -> 2 | AJ27: =_xlfn.IFNA(MATCH(RAND(), _xlfn.POISSON.DIST({0,1,2,3,4,5,6,7,8,9},$O27, TRUE),1), 0) -> 1 | AK27: =_xlfn.IFNA(MATCH(RAND(), _xlfn.POISSON.DIST({0,1,2,3,4,5,6,7,8,9},$O27, TRUE),1), 0) -> 0 | AL27: =_xlfn.IFNA(MATCH(RAND(), _xlfn.POISSON.DIST({0,1,2,3,4,5,6,7,8,9},$O27, TRUE),1), 0) -> 0 | AM27: =_xlfn.IFNA(MATCH(RAND(), _xlfn.POISSON.DIST({0,1,2,3,4,5,6,7,8,9},$O27, TRUE),1), 0) -> 3 | AN27: =_xlfn.IFNA(MATCH(RAND(), _xlfn.POISSON.DIST({0,1,2,3,4,5,6,7,8,9},$O27, TRUE),1), 0) -> 0 | AO27: =_xlfn.IFNA(MATCH(RAND(), _xlfn.POISSON.DIST({0,1,2,3,4,5,6,7,8,9},$O27, TRUE),1), 0) -> 1 | AP27: =_xlfn.IFNA(MATCH(RAND(), _xlfn.POISSON.DIST({0,1,2,3,4,5,6,7,8,9},$O27, TRUE),1), 0) -> 0 | AQ27: =_xlfn.IFNA(MATCH(RAND(), _xlfn.POISSON.DIST({0,1,2,3,4,5,6,7,8,9},$O27, TRUE),1), 0) -> 3 | AR27: =_xlfn.IFNA(MATCH(RAND(), _xlfn.POISSON.DIST({0,1,2,3,4,5,6,7,8,9},$O27, TRUE),1), 0) -> 1 | AS27: =_xlfn.IFNA(MATCH(RAND(), _xlfn.POISSON.DIST({0,1,2,3,4,5,6,7,8,9},$O27, TRUE),1), 0) -> 0 | AT27: =_xlfn.IFNA(MATCH(RAND(), _xlfn.POISSON.DIST({0,1,2,3,4,5,6,7,8,9},$O27, TRUE),1), 0) -> 0 | AU27: =_xlfn.IFNA(MATCH(RAND(), _xlfn.POISSON.DIST({0,1,2,3,4,5,6,7,8,9},$O27, TRUE),1), 0) -> 1 | AV27: =_xlfn.IFNA(MATCH(RAND(), _xlfn.POISSON.DIST({0,1,2,3,4,5,6,7,8,9},$O27, TRUE),1), 0) -> 2 | AW27: =_xlfn.IFNA(MATCH(RAND(), _xlfn.POISSON.DIST({0,1,2,3,4,5,6,7,8,9},$O27, TRUE),1), 0) -> 1 | AX27: =_xlfn.IFNA(MATCH(RAND(), _xlfn.POISSON.DIST({0,1,2,3,4,5,6,7,8,9},$O27, TRUE),1), 0) -> 0 | AY27: =_xlfn.IFNA(MATCH(RAND(), _xlfn.POISSON.DIST({0,1,2,3,4,5,6,7,8,9},$O27, TRUE),1), 0) -> 1 | AZ27: =_xlfn.IFNA(MATCH(RAND(), _xlfn.POISSON.DIST({0,1,2,3,4,5,6,7,8,9},$O27, TRUE),1), 0) -> 1 | BA27: =_xlfn.IFNA(MATCH(RAND(), _xlfn.POISSON.DIST({0,1,2,3,4,5,6,7,8,9},$O27, TRUE),1), 0) -> 3 | BB27: =_xlfn.IFNA(MATCH(RAND(), _xlfn.POISSON.DIST({0,1,2,3,4,5,6,7,8,9},$O27, TRUE),1), 0) -> 2 | BC27: =_xlfn.IFNA(MATCH(RAND(), _xlfn.POISSON.DIST({0,1,2,3,4,5,6,7,8,9},$O27, TRUE),1), 0) -> 2 | BD27: =_xlfn.IFNA(MATCH(RAND(), _xlfn.POISSON.DIST({0,1,2,3,4,5,6,7,8,9},$O27, TRUE),1), 0) -> 2 | BE27: =_xlfn.IFNA(MATCH(RAND(), _xlfn.POISSON.DIST({0,1,2,3,4,5,6,7,8,9},$O27, TRUE),1), 0) -> 3 | BF27: =_xlfn.IFNA(MATCH(RAND(), _xlfn.POISSON.DIST({0,1,2,3,4,5,6,7,8,9},$O27, TRUE),1), 0) -> 1 | BG27: =_xlfn.IFNA(MATCH(RAND(), _xlfn.POISSON.DIST({0,1,2,3,4,5,6,7,8,9},$O27, TRUE),1), 0) -> 0 | BH27: =_xlfn.IFNA(MATCH(RAND(), _xlfn.POISSON.DIST({0,1,2,3,4,5,6,7,8,9},$O27, TRUE),1), 0) -> 1 | BI27: =_xlfn.IFNA(MATCH(RAND(), _xlfn.POISSON.DIST({0,1,2,3,4,5,6,7,8,9},$O27, TRUE),1), 0) -> 0 | BJ27: =_xlfn.IFNA(MATCH(RAND(), _xlfn.POISSON.DIST({0,1,2,3,4,5,6,7,8,9},$O27, TRUE),1), 0) -> 1 | BK27: =_xlfn.IFNA(MATCH(RAND(), _xlfn.POISSON.DIST({0,1,2,3,4,5,6,7,8,9},$O27, TRUE),1), 0) -> 1 | BL27: =_xlfn.IFNA(MATCH(RAND(), _xlfn.POISSON.DIST({0,1,2,3,4,5,6,7,8,9},$O27, TRUE),1), 0) -> 2 | BM27: =_xlfn.IFNA(MATCH(RAND(), _xlfn.POISSON.DIST({0,1,2,3,4,5,6,7,8,9},$O27, TRUE),1), 0) -> 2 | BN27: =_xlfn.IFNA(MATCH(RAND(), _xlfn.POISSON.DIST({0,1,2,3,4,5,6,7,8,9},$O27, TRUE),1), 0) -> 1 | BP27: =_xlfn.IFNA(MATCH(RAND(), _xlfn.POISSON.DIST({0,1,2,3,4,5,6,7,8,9},$P27, TRUE),1), 0) -> 4 | BQ27: =_xlfn.IFNA(MATCH(RAND(), _xlfn.POISSON.DIST({0,1,2,3,4,5,6,7,8,9},$P27, TRUE),1), 0) -> 2 | BR27: =_xlfn.IFNA(MATCH(RAND(), _xlfn.POISSON.DIST({0,1,2,3,4,5,6,7,8,9},$P27, TRUE),1), 0) -> 1 | BS27: =_xlfn.IFNA(MATCH(RAND(), _xlfn.POISSON.DIST({0,1,2,3,4,5,6,7,8,9},$P27, TRUE),1), 0) -> 0 | BT27: =_xlfn.IFNA(MATCH(RAND(), _xlfn.POISSON.DIST({0,1,2,3,4,5,6,7,8,9},$P27, TRUE),1), 0) -> 1 | BU27: =_xlfn.IFNA(MATCH(RAND(), _xlfn.POISSON.DIST({0,1,2,3,4,5,6,7,8,9},$P27, TRUE),1), 0) -> 0 | BV27: =_xlfn.IFNA(MATCH(RAND(), _xlfn.POISSON.DIST({0,1,2,3,4,5,6,7,8,9},$P27, TRUE),1), 0) -> 2 | BW27: =_xlfn.IFNA(MATCH(RAND(), _xlfn.POISSON.DIST({0,1,2,3,4,5,6,7,8,9},$P27, TRUE),1), 0) -> 1 | BX27: =_xlfn.IFNA(MATCH(RAND(), _xlfn.POISSON.DIST({0,1,2,3,4,5,6,7,8,9},$P27, TRUE),1), 0) -> 1 | BY27: =_xlfn.IFNA(MATCH(RAND(), _xlfn.POISSON.DIST({0,1,2,3,4,5,6,7,8,9},$P27, TRUE),1), 0) -> 0 | BZ27: =_xlfn.IFNA(MATCH(RAND(), _xlfn.POISSON.DIST({0,1,2,3,4,5,6,7,8,9},$P27, TRUE),1), 0) -> 1 | CA27: =_xlfn.IFNA(MATCH(RAND(), _xlfn.POISSON.DIST({0,1,2,3,4,5,6,7,8,9},$P27, TRUE),1), 0) -> 2 | CB27: =_xlfn.IFNA(MATCH(RAND(), _xlfn.POISSON.DIST({0,1,2,3,4,5,6,7,8,9},$P27, TRUE),1), 0) -> 1 | CC27: =_xlfn.IFNA(MATCH(RAND(), _xlfn.POISSON.DIST({0,1,2,3,4,5,6,7,8,9},$P27, TRUE),1), 0) -> 0 | CD27: =_xlfn.IFNA(MATCH(RAND(), _xlfn.POISSON.DIST({0,1,2,3,4,5,6,7,8,9},$P27, TRUE),1), 0) -> 1 | CE27: =_xlfn.IFNA(MATCH(RAND(), _xlfn.POISSON.DIST({0,1,2,3,4,5,6,7,8,9},$P27, TRUE),1), 0) -> 0 | CF27: =_xlfn.IFNA(MATCH(RAND(), _xlfn.POISSON.DIST({0,1,2,3,4,5,6,7,8,9},$P27, TRUE),1), 0) -> 2 | CG27: =_xlfn.IFNA(MATCH(RAND(), _xlfn.POISSON.DIST({0,1,2,3,4,5,6,7,8,9},$P27, TRUE),1), 0) -> 0 | CH27: =_xlfn.IFNA(MATCH(RAND(), _xlfn.POISSON.DIST({0,1,2,3,4,5,6,7,8,9},$P27, TRUE),1), 0) -> 1 | CI27: =_xlfn.IFNA(MATCH(RAND(), _xlfn.POISSON.DIST({0,1,2,3,4,5,6,7,8,9},$P27, TRUE),1), 0) -> 0 | CJ27: =_xlfn.IFNA(MATCH(RAND(), _xlfn.POISSON.DIST({0,1,2,3,4,5,6,7,8,9},$P27, TRUE),1), 0) -> 0 | CK27: =_xlfn.IFNA(MATCH(RAND(), _xlfn.POISSON.DIST({0,1,2,3,4,5,6,7,8,9},$P27, TRUE),1), 0) -> 0 | CL27: =_xlfn.IFNA(MATCH(RAND(), _xlfn.POISSON.DIST({0,1,2,3,4,5,6,7,8,9},$P27, TRUE),1), 0) -> 2 | CM27: =_xlfn.IFNA(MATCH(RAND(), _xlfn.POISSON.DIST({0,1,2,3,4,5,6,7,8,9},$P27, TRUE),1), 0) -> 0 | CN27: =_xlfn.IFNA(MATCH(RAND(), _xlfn.POISSON.DIST({0,1,2,3,4,5,6,7,8,9},$P27, TRUE),1), 0) -> 1 | CO27: =_xlfn.IFNA(MATCH(RAND(), _xlfn.POISSON.DIST({0,1,2,3,4,5,6,7,8,9},$P27, TRUE),1), 0) -> 0 | CP27: =_xlfn.IFNA(MATCH(RAND(), _xlfn.POISSON.DIST({0,1,2,3,4,5,6,7,8,9},$P27, TRUE),1), 0) -> 1 | CQ27: =_xlfn.IFNA(MATCH(RAND(), _xlfn.POISSON.DIST({0,1,2,3,4,5,6,7,8,9},$P27, TRUE),1), 0) -> 2 | CR27: =_xlfn.IFNA(MATCH(RAND(), _xlfn.POISSON.DIST({0,1,2,3,4,5,6,7,8,9},$P27, TRUE),1), 0) -> 0 | CS27: =_xlfn.IFNA(MATCH(RAND(), _xlfn.POISSON.DIST({0,1,2,3,4,5,6,7,8,9},$P27, TRUE),1), 0) -> 2 | CT27: =_xlfn.IFNA(MATCH(RAND(), _xlfn.POISSON.DIST({0,1,2,3,4,5,6,7,8,9},$P27, TRUE),1), 0) -> 1 | CU27: =_xlfn.IFNA(MATCH(RAND(), _xlfn.POISSON.DIST({0,1,2,3,4,5,6,7,8,9},$P27, TRUE),1), 0) -> 1 | CV27: =_xlfn.IFNA(MATCH(RAND(), _xlfn.POISSON.DIST({0,1,2,3,4,5,6,7,8,9},$P27, TRUE),1), 0) -> 0 | CW27: =_xlfn.IFNA(MATCH(RAND(), _xlfn.POISSON.DIST({0,1,2,3,4,5,6,7,8,9},$P27, TRUE),1), 0) -> 0 | CX27: =_xlfn.IFNA(MATCH(RAND(), _xlfn.POISSON.DIST({0,1,2,3,4,5,6,7,8,9},$P27, TRUE),1), 0) -> 1 | CY27: =_xlfn.IFNA(MATCH(RAND(), _xlfn.POISSON.DIST({0,1,2,3,4,5,6,7,8,9},$P27, TRUE),1), 0) -> 1 | CZ27: =_xlfn.IFNA(MATCH(RAND(), _xlfn.POISSON.DIST({0,1,2,3,4,5,6,7,8,9},$P27, TRUE),1), 0) -> 0 | DA27: =_xlfn.IFNA(MATCH(RAND(), _xlfn.POISSON.DIST({0,1,2,3,4,5,6,7,8,9},$P27, TRUE),1), 0) -> 2 | DB27: =_xlfn.IFNA(MATCH(RAND(), _xlfn.POISSON.DIST({0,1,2,3,4,5,6,7,8,9},$P27, TRUE),1), 0) -> 5 | DC27: =_xlfn.IFNA(MATCH(RAND(), _xlfn.POISSON.DIST({0,1,2,3,4,5,6,7,8,9},$P27, TRUE),1), 0) -> 0 | DD27: =_xlfn.IFNA(MATCH(RAND(), _xlfn.POISSON.DIST({0,1,2,3,4,5,6,7,8,9},$P27, TRUE),1), 0) -> 2 | DE27: =_xlfn.IFNA(MATCH(RAND(), _xlfn.POISSON.DIST({0,1,2,3,4,5,6,7,8,9},$P27, TRUE),1), 0) -> 0 | DF27: =_xlfn.IFNA(MATCH(RAND(), _xlfn.POISSON.DIST({0,1,2,3,4,5,6,7,8,9},$P27, TRUE),1), 0) -> 1 | DG27: =_xlfn.IFNA(MATCH(RAND(), _xlfn.POISSON.DIST({0,1,2,3,4,5,6,7,8,9},$P27, TRUE),1), 0) -> 2 | DH27: =_xlfn.IFNA(MATCH(RAND(), _xlfn.POISSON.DIST({0,1,2,3,4,5,6,7,8,9},$P27, TRUE),1), 0) -> 1 | DI27: =_xlfn.IFNA(MATCH(RAND(), _xlfn.POISSON.DIST({0,1,2,3,4,5,6,7,8,9},$P27, TRUE),1), 0) -> 1 | DJ27: =_xlfn.IFNA(MATCH(RAND(), _xlfn.POISSON.DIST({0,1,2,3,4,5,6,7,8,9},$P27, TRUE),1), 0) -> 1 | DK27: =_xlfn.IFNA(MATCH(RAND(), _xlfn.POISSON.DIST({0,1,2,3,4,5,6,7,8,9},$P27, TRUE),1), 0) -> 1 | DL27: =_xlfn.IFNA(MATCH(RAND(), _xlfn.POISSON.DIST({0,1,2,3,4,5,6,7,8,9},$P27, TRUE),1), 0) -> 1 | DM27: =_xlfn.IFNA(MATCH(RAND(), _xlfn.POISSON.DIST({0,1,2,3,4,5,6,7,8,9},$P27, TRUE),1), 0) -> 3
C28: 2019-06-16 | D28: F | E28: Zweden | F28: =(AVERAGE(Q28:BN28))*(1+INDEX('Voorspellingen groepsfase'!$C$4:$O$28, MATCH('De wedstrijden van dit seizoen'!E28,'Voorspellingen groepsfase'!$D$4:$D$28,0),3)) -> 3.16 | G28: Thailand | H28: =(AVERAGE(BP28:DM28))*(1+INDEX('Voorspellingen groepsfase'!$C$4:$O$28, MATCH('De wedstrijden van dit seizoen'!G28,'Voorspellingen groepsfase'!$D$4:$D$28,0),3)) -> 0.52 | I28: Zweden | L28: 3.16 | M28: 0.52 | N28: Zweden | O28: =(OFFSET('Bijlage 3 - Goals per groep'!$D$14,(INDEX('Bijlage 1 - Teamgegevens'!$C$13:$F$112,MATCH(G28,'Bijlage 1 - Teamgegevens'!$C$13:$C$112,0),4)/10),(INDEX('Bijlage 1 - Teamgegevens'!$C$13:$F$112,MATCH(E28,'Bijlage 1 - Teamgegevens'!$C$13:$C$112,0),4)/10))) -> 3.38 | P28: =OFFSET('Bijlage 3 - Goals per groep'!$D$14,(INDEX('Bijlage 1 - Teamgegevens'!$C$13:$F$112, MATCH(E28,'Bijlage 1 - Teamgegevens'!$C$13:$C$112,0),4)/10), (INDEX('Bijlage 1 - Teamgegevens'!$C$13:$F$112, MATCH(G28, 'Bijlage 1 - Teamgegevens'!$C$13:$C$112,0),4)/10)) -> 0.59 | Q28: =_xlfn.IFNA(MATCH(RAND(), _xlfn.POISSON.DIST({0,1,2,3,4,5,6,7,8,9},$O28, TRUE),1), 0) -> 2 | R28: =_xlfn.IFNA(MATCH(RAND(), _xlfn.POISSON.DIST({0,1,2,3,4,5,6,7,8,9},$O28, TRUE),1), 0) -> 5 | S28: =_xlfn.IFNA(MATCH(RAND(), _xlfn.POISSON.DIST({0,1,2,3,4,5,6,7,8,9},$O28, TRUE),1), 0) -> 2 | T28: =_xlfn.IFNA(MATCH(RAND(), _xlfn.POISSON.DIST({0,1,2,3,4,5,6,7,8,9},$O28, TRUE),1), 0) -> 3 | U28: =_xlfn.IFNA(MATCH(RAND(), _xlfn.POISSON.DIST({0,1,2,3,4,5,6,7,8,9},$O28, TRUE),1), 0) -> 7 | V28: =_xlfn.IFNA(MATCH(RAND(), _xlfn.POISSON.DIST({0,1,2,3,4,5,6,7,8,9},$O28, TRUE),1), 0) -> 4 | W28: =_xlfn.IFNA(MATCH(RAND(), _xlfn.POISSON.DIST({0,1,2,3,4,5,6,7,8,9},$O28, TRUE),1), 0) -> 1 | X28: =_xlfn.IFNA(MATCH(RAND(), _xlfn.POISSON.DIST({0,1,2,3,4,5,6,7,8,9},$O28, TRUE),1), 0) -> 3 | Y28: =_xlfn.IFNA(MATCH(RAND(), _xlfn.POISSON.DIST({0,1,2,3,4,5,6,7,8,9},$O28, TRUE),1), 0) -> 2 | Z28: =_xlfn.IFNA(MATCH(RAND(), _xlfn.POISSON.DIST({0,1,2,3,4,5,6,7,8,9},$O28, TRUE),1), 0) -> 3 | AA28: =_xlfn.IFNA(MATCH(RAND(), _xlfn.POISSON.DIST({0,1,2,3,4,5,6,7,8,9},$O28, TRUE),1), 0) -> 6 | AB28: =_xlfn.IFNA(MATCH(RAND(), _xlfn.POISSON.DIST({0,1,2,3,4,5,6,7,8,9},$O28, TRUE),1), 0) -> 4 | AC28: =_xlfn.IFNA(MATCH(RAND(), _xlfn.POISSON.DIST({0,1,2,3,4,5,6,7,8,9},$O28, TRUE),1), 0) -> 2 | AD28: =_xlfn.IFNA(MATCH(RAND(), _xlfn.POISSON.DIST({0,1,2,3,4,5,6,7,8,9},$O28, TRUE),1), 0) -> 3 | AE28: =_xlfn.IFNA(MATCH(RAND(), _xlfn.POISSON.DIST({0,1,2,3,4,5,6,7,8,9},$O28, TRUE),1), 0) -> 3 | AF28: =_xlfn.IFNA(MATCH(RAND(), _xlfn.POISSON.DIST({0,1,2,3,4,5,6,7,8,9},$O28, TRUE),1), 0) -> 3 | AG28: =_xlfn.IFNA(MATCH(RAND(), _xlfn.POISSON.DIST({0,1,2,3,4,5,6,7,8,9},$O28, TRUE),1), 0) -> 3 | AH28: =_xlfn.IFNA(MATCH(RAND(), _xlfn.POISSON.DIST({0,1,2,3,4,5,6,7,8,9},$O28, TRUE),1), 0) -> 1 | AI28: =_xlfn.IFNA(MATCH(RAND(), _xlfn.POISSON.DIST({0,1,2,3,4,5,6,7,8,9},$O28, TRUE),1), 0) -> 7 | AJ28: =_xlfn.IFNA(MATCH(RAND(), _xlfn.POISSON.DIST({0,1,2,3,4,5,6,7,8,9},$O28, TRUE),1), 0) -> 2 | AK28: =_xlfn.IFNA(MATCH(RAND(), _xlfn.POISSON.DIST({0,1,2,3,4,5,6,7,8,9},$O28, TRUE),1), 0) -> 3 | AL28: =_xlfn.IFNA(MATCH(RAND(), _xlfn.POISSON.DIST({0,1,2,3,4,5,6,7,8,9},$O28, TRUE),1), 0) -> 4 | AM28: =_xlfn.IFNA(MATCH(RAND(), _xlfn.POISSON.DIST({0,1,2,3,4,5,6,7,8,9},$O28, TRUE),1), 0) -> 2 | AN28: =_xlfn.IFNA(MATCH(RAND(), _xlfn.POISSON.DIST({0,1,2,3,4,5,6,7,8,9},$O28, TRUE),1), 0) -> 5 | AO28: =_xlfn.IFNA(MATCH(RAND(), _xlfn.POISSON.DIST({0,1,2,3,4,5,6,7,8,9},$O28, TRUE),1), 0) -> 5 | AP28: =_xlfn.IFNA(MATCH(RAND(), _xlfn.POISSON.DIST({0,1,2,3,4,5,6,7,8,9},$O28, TRUE),1), 0) -> 3 | AQ28: =_xlfn.IFNA(MATCH(RAND(), _xlfn.POISSON.DIST({0,1,2,3,4,5,6,7,8,9},$O28, TRUE),1), 0) -> 1 | AR28: =_xlfn.IFNA(MATCH(RAND(), _xlfn.POISSON.DIST({0,1,2,3,4,5,6,7,8,9},$O28, TRUE),1), 0) -> 2 | AS28: =_xlfn.IFNA(MATCH(RAND(), _xlfn.POISSON.DIST({0,1,2,3,4,5,6,7,8,9},$O28, TRUE),1), 0) -> 3 | AT28: =_xlfn.IFNA(MATCH(RAND(), _xlfn.POISSON.DIST({0,1,2,3,4,5,6,7,8,9},$O28, TRUE),1), 0) -> 1 | AU28: =_xlfn.IFNA(MATCH(RAND(), _xlfn.POISSON.DIST({0,1,2,3,4,5,6,7,8,9},$O28, TRUE),1), 0) -> 5 | AV28: =_xlfn.IFNA(MATCH(RAND(), _xlfn.POISSON.DIST({0,1,2,3,4,5,6,7,8,9},$O28, TRUE),1), 0) -> 3 | AW28: =_xlfn.IFNA(MATCH(RAND(), _xlfn.POISSON.DIST({0,1,2,3,4,5,6,7,8,9},$O28, TRUE),1), 0) -> 1 | AX28: =_xlfn.IFNA(MATCH(RAND(), _xlfn.POISSON.DIST({0,1,2,3,4,5,6,7,8,9},$O28, TRUE),1), 0) -> 3 | AY28: =_xlfn.IFNA(MATCH(RAND(), _xlfn.POISSON.DIST({0,1,2,3,4,5,6,7,8,9},$O28, TRUE),1), 0) -> 4 | AZ28: =_xlfn.IFNA(MATCH(RAND(), _xlfn.POISSON.DIST({0,1,2,3,4,5,6,7,8,9},$O28, TRUE),1), 0) -> 2 | BA28: =_xlfn.IFNA(MATCH(RAND(), _xlfn.POISSON.DIST({0,1,2,3,4,5,6,7,8,9},$O28, TRUE),1), 0) -> 4 | BB28: =_xlfn.IFNA(MATCH(RAND(), _xlfn.POISSON.DIST({0,1,2,3,4,5,6,7,8,9},$O28, TRUE),1), 0) -> 3 | BC28: =_xlfn.IFNA(MATCH(RAND(), _xlfn.POISSON.DIST({0,1,2,3,4,5,6,7,8,9},$O28, TRUE),1), 0) -> 1 | BD28: =_xlfn.IFNA(MATCH(RAND(), _xlfn.POISSON.DIST({0,1,2,3,4,5,6,7,8,9},$O28, TRUE),1), 0) -> 3 | BE28: =_xlfn.IFNA(MATCH(RAND(), _xlfn.POISSON.DIST({0,1,2,3,4,5,6,7,8,9},$O28, TRUE),1), 0) -> 1 | BF28: =_xlfn.IFNA(MATCH(RAND(), _xlfn.POISSON.DIST({0,1,2,3,4,5,6,7,8,9},$O28, TRUE),1), 0) -> 5 | BG28: =_xlfn.IFNA(MATCH(RAND(), _xlfn.POISSON.DIST({0,1,2,3,4,5,6,7,8,9},$O28, TRUE),1), 0) -> 1 | BH28: =_xlfn.IFNA(MATCH(RAND(), _xlfn.POISSON.DIST({0,1,2,3,4,5,6,7,8,9},$O28, TRUE),1), 0) -> 3 | BI28: =_xlfn.IFNA(MATCH(RAND(), _xlfn.POISSON.DIST({0,1,2,3,4,5,6,7,8,9},$O28, TRUE),1), 0) -> 3 | BJ28: =_xlfn.IFNA(MATCH(RAND(), _xlfn.POISSON.DIST({0,1,2,3,4,5,6,7,8,9},$O28, TRUE),1), 0) -> 6 | BK28: =_xlfn.IFNA(MATCH(RAND(), _xlfn.POISSON.DIST({0,1,2,3,4,5,6,7,8,9},$O28, TRUE),1), 0) -> 4 | BL28: =_xlfn.IFNA(MATCH(RAND(), _xlfn.POISSON.DIST({0,1,2,3,4,5,6,7,8,9},$O28, TRUE),1), 0) -> 5 | BM28: =_xlfn.IFNA(MATCH(RAND(), _xlfn.POISSON.DIST({0,1,2,3,4,5,6,7,8,9},$O28, TRUE),1), 0) -> 1 | BN28: =_xlfn.IFNA(MATCH(RAND(), _xlfn.POISSON.DIST({0,1,2,3,4,5,6,7,8,9},$O28, TRUE),1), 0) -> 5 | BP28: =_xlfn.IFNA(MATCH(RAND(), _xlfn.POISSON.DIST({0,1,2,3,4,5,6,7,8,9},$P28, TRUE),1), 0) -> 0 | BQ28: =_xlfn.IFNA(MATCH(RAND(), _xlfn.POISSON.DIST({0,1,2,3,4,5,6,7,8,9},$P28, TRUE),1), 0) -> 0 | BR28: =_xlfn.IFNA(MATCH(RAND(), _xlfn.POISSON.DIST({0,1,2,3,4,5,6,7,8,9},$P28, TRUE),1), 0) -> 1 | BS28: =_xlfn.IFNA(MATCH(RAND(), _xlfn.POISSON.DIST({0,1,2,3,4,5,6,7,8,9},$P28, TRUE),1), 0) -> 0 | BT28: =_xlfn.IFNA(MATCH(RAND(), _xlfn.POISSON.DIST({0,1,2,3,4,5,6,7,8,9},$P28, TRUE),1), 0) -> 0 | BU28: =_xlfn.IFNA(MATCH(RAND(), _xlfn.POISSON.DIST({0,1,2,3,4,5,6,7,8,9},$P28, TRUE),1), 0) -> 0 | BV28: =_xlfn.IFNA(MATCH(RAND(), _xlfn.POISSON.DIST({0,1,2,3,4,5,6,7,8,9},$P28, TRUE),1), 0) -> 0 | BW28: =_xlfn.IFNA(MATCH(RAND(), _xlfn.POISSON.DIST({0,1,2,3,4,5,6,7,8,9},$P28, TRUE),1), 0) -> 2 | BX28: =_xlfn.IFNA(MATCH(RAND(), _xlfn.POISSON.DIST({0,1,2,3,4,5,6,7,8,9},$P28, TRUE),1), 0) -> 2 | BY28: =_xlfn.IFNA(MATCH(RAND(), _xlfn.POISSON.DIST({0,1,2,3,4,5,6,7,8,9},$P28, TRUE),1), 0) -> 2 | BZ28: =_xlfn.IFNA(MATCH(RAND(), _xlfn.POISSON.DIST({0,1,2,3,4,5,6,7,8,9},$P28, TRUE),1), 0) -> 2 | CA28: =_xlfn.IFNA(MATCH(RAND(), _xlfn.POISSON.DIST({0,1,2,3,4,5,6,7,8,9},$P28, TRUE),1), 0) -> 0 | CB28: =_xlfn.IFNA(MATCH(RAND(), _xlfn.POISSON.DIST({0,1,2,3,4,5,6,7,8,9},$P28, TRUE),1), 0) -> 1 | CC28: =_xlfn.IFNA(MATCH(RAND(), _xlfn.POISSON.DIST({0,1,2,3,4,5,6,7,8,9},$P28, TRUE),1), 0) -> 0 | CD28: =_xlfn.IFNA(MATCH(RAND(), _xlfn.POISSON.DIST({0,1,2,3,4,5,6,7,8,9},$P28, TRUE),1), 0) -> 0 | CE28: =_xlfn.IFNA(MATCH(RAND(), _xlfn.POISSON.DIST({0,1,2,3,4,5,6,7,8,9},$P28, TRUE),1), 0) -> 1 | CF28: =_xlfn.IFNA(MATCH(RAND(), _xlfn.POISSON.DIST({0,1,2,3,4,5,6,7,8,9},$P28, TRUE),1), 0) -> 0 | CG28: =_xlfn.IFNA(MATCH(RAND(), _xlfn.POISSON.DIST({0,1,2,3,4,5,6,7,8,9},$P28, TRUE),1), 0) -> 2 | CH28: =_xlfn.IFNA(MATCH(RAND(), _xlfn.POISSON.DIST({0,1,2,3,4,5,6,7,8,9},$P28, TRUE),1), 0) -> 0 | CI28: =_xlfn.IFNA(MATCH(RAND(), _xlfn.POISSON.DIST({0,1,2,3,4,5,6,7,8,9},$P28, TRUE),1), 0) -> 1 | CJ28: =_xlfn.IFNA(MATCH(RAND(), _xlfn.POISSON.DIST({0,1,2,3,4,5,6,7,8,9},$P28, TRUE),1), 0) -> 0 | CK28: =_xlfn.IFNA(MATCH(RAND(), _xlfn.POISSON.DIST({0,1,2,3,4,5,6,7,8,9},$P28, TRUE),1), 0) -> 0 | CL28: =_xlfn.IFNA(MATCH(RAND(), _xlfn.POISSON.DIST({0,1,2,3,4,5,6,7,8,9},$P28, TRUE),1), 0) -> 0 | CM28: =_xlfn.IFNA(MATCH(RAND(), _xlfn.POISSON.DIST({0,1,2,3,4,5,6,7,8,9},$P28, TRUE),1), 0) -> 0 | CN28: =_xlfn.IFNA(MATCH(RAND(), _xlfn.POISSON.DIST({0,1,2,3,4,5,6,7,8,9},$P28, TRUE),1), 0) -> 1 | CO28: =_xlfn.IFNA(MATCH(RAND(), _xlfn.POISSON.DIST({0,1,2,3,4,5,6,7,8,9},$P28, TRUE),1), 0) -> 0 | CP28: =_xlfn.IFNA(MATCH(RAND(), _xlfn.POISSON.DIST({0,1,2,3,4,5,6,7,8,9},$P28, TRUE),1), 0) -> 0 | CQ28: =_xlfn.IFNA(MATCH(RAND(), _xlfn.POISSON.DIST({0,1,2,3,4,5,6,7,8,9},$P28, TRUE),1), 0) -> 1 | CR28: =_xlfn.IFNA(MATCH(RAND(), _xlfn.POISSON.DIST({0,1,2,3,4,5,6,7,8,9},$P28, TRUE),1), 0) -> 1 | CS28: =_xlfn.IFNA(MATCH(RAND(), _xlfn.POISSON.DIST({0,1,2,3,4,5,6,7,8,9},$P28, TRUE),1), 0) -> 0 | CT28: =_xlfn.IFNA(MATCH(RAND(), _xlfn.POISSON.DIST({0,1,2,3,4,5,6,7,8,9},$P28, TRUE),1), 0) -> 0 | CU28: =_xlfn.IFNA(MATCH(RAND(), _xlfn.POISSON.DIST({0,1,2,3,4,5,6,7,8,9},$P28, TRUE),1), 0) -> 0 | CV28: =_xlfn.IFNA(MATCH(RAND(), _xlfn.POISSON.DIST({0,1,2,3,4,5,6,7,8,9},$P28, TRUE),1), 0) -> 0 | CW28: =_xlfn.IFNA(MATCH(RAND(), _xlfn.POISSON.DIST({0,1,2,3,4,5,6,7,8,9},$P28, TRUE),1), 0) -> 0 | CX28: =_xlfn.IFNA(MATCH(RAND(), _xlfn.POISSON.DIST({0,1,2,3,4,5,6,7,8,9},$P28, TRUE),1), 0) -> 2 | CY28: =_xlfn.IFNA(MATCH(RAND(), _xlfn.POISSON.DIST({0,1,2,3,4,5,6,7,8,9},$P28, TRUE),1), 0) -> 1 | CZ28: =_xlfn.IFNA(MATCH(RAND(), _xlfn.POISSON.DIST({0,1,2,3,4,5,6,7,8,9},$P28, TRUE),1), 0) -> 1 | DA28: =_xlfn.IFNA(MATCH(RAND(), _xlfn.POISSON.DIST({0,1,2,3,4,5,6,7,8,9},$P28, TRUE),1), 0) -> 0 | DB28: =_xlfn.IFNA(MATCH(RAND(), _xlfn.POISSON.DIST({0,1,2,3,4,5,6,7,8,9},$P28, TRUE),1), 0) -> 0 | DC28: =_xlfn.IFNA(MATCH(RAND(), _xlfn.POISSON.DIST({0,1,2,3,4,5,6,7,8,9},$P28, TRUE),1), 0) -> 1 | DD28: =_xlfn.IFNA(MATCH(RAND(), _xlfn.POISSON.DIST({0,1,2,3,4,5,6,7,8,9},$P28, TRUE),1), 0) -> 1 | DE28: =_xlfn.IFNA(MATCH(RAND(), _xlfn.POISSON.DIST({0,1,2,3,4,5,6,7,8,9},$P28, TRUE),1), 0) -> 0 | DF28: =_xlfn.IFNA(MATCH(RAND(), _xlfn.POISSON.DIST({0,1,2,3,4,5,6,7,8,9},$P28, TRUE),1), 0) -> 0 | DG28: =_xlfn.IFNA(MATCH(RAND(), _xlfn.POISSON.DIST({0,1,2,3,4,5,6,7,8,9},$P28, TRUE),1), 0) -> 0 | DH28: =_xlfn.IFNA(MATCH(RAND(), _xlfn.POISSON.DIST({0,1,2,3,4,5,6,7,8,9},$P28, TRUE),1), 0) -> 1 | DI28: =_xlfn.IFNA(MATCH(RAND(), _xlfn.POISSON.DIST({0,1,2,3,4,5,6,7,8,9},$P28, TRUE),1), 0) -> 0 | DJ28: =_xlfn.IFNA(MATCH(RAND(), _xlfn.POISSON.DIST({0,1,2,3,4,5,6,7,8,9},$P28, TRUE),1), 0) -> 1 | DK28: =_xlfn.IFNA(MATCH(RAND(), _xlfn.POISSON.DIST({0,1,2,3,4,5,6,7,8,9},$P28, TRUE),1), 0) -> 0 | DL28: =_xlfn.IFNA(MATCH(RAND(), _xlfn.POISSON.DIST({0,1,2,3,4,5,6,7,8,9},$P28, TRUE),1), 0) -> 0 | DM28: =_xlfn.IFNA(MATCH(RAND(), _xlfn.POISSON.DIST({0,1,2,3,4,5,6,7,8,9},$P28, TRUE),1), 0) -> 1
C29: 2019-06-16 | D29: F | E29: Verenigde Staten | F29: =(AVERAGE(Q29:BN29))*(1+INDEX('Voorspellingen groepsfase'!$C$4:$O$28, MATCH('De wedstrijden van dit seizoen'!E29,'Voorspellingen groepsfase'!$D$4:$D$28,0),3)) -> 3.28 | G29: Chili | H29: =(AVERAGE(BP29:DM29))*(1+INDEX('Voorspellingen groepsfase'!$C$4:$O$28, MATCH('De wedstrijden van dit seizoen'!G29,'Voorspellingen groepsfase'!$D$4:$D$28,0),3)) -> 0.78 | I29: Verenigde Staten | L29: 3.28 | M29: 0.78 | N29: Verenigde Staten | O29: =(OFFSET('Bijlage 3 - Goals per groep'!$D$14,(INDEX('Bijlage 1 - Teamgegevens'!$C$13:$F$112,MATCH(G29,'Bijlage 1 - Teamgegevens'!$C$13:$C$112,0),4)/10),(INDEX('Bijlage 1 - Teamgegevens'!$C$13:$F$112,MATCH(E29,'Bijlage 1 - Teamgegevens'!$C$13:$C$112,0),4)/10))) -> 3.38 | P29: =OFFSET('Bijlage 3 - Goals per groep'!$D$14,(INDEX('Bijlage 1 - Teamgegevens'!$C$13:$F$112, MATCH(E29,'Bijlage 1 - Teamgegevens'!$C$13:$C$112,0),4)/10), (INDEX('Bijlage 1 - Teamgegevens'!$C$13:$F$112, MATCH(G29, 'Bijlage 1 - Teamgegevens'!$C$13:$C$112,0),4)/10)) -> 0.59 | Q29: =_xlfn.IFNA(MATCH(RAND(), _xlfn.POISSON.DIST({0,1,2,3,4,5,6,7,8,9},$O29, TRUE),1), 0) -> 3 | R29: =_xlfn.IFNA(MATCH(RAND(), _xlfn.POISSON.DIST({0,1,2,3,4,5,6,7,8,9},$O29, TRUE),1), 0) -> 5 | S29: =_xlfn.IFNA(MATCH(RAND(), _xlfn.POISSON.DIST({0,1,2,3,4,5,6,7,8,9},$O29, TRUE),1), 0) -> 3 | T29: =_xlfn.IFNA(MATCH(RAND(), _xlfn.POISSON.DIST({0,1,2,3,4,5,6,7,8,9},$O29, TRUE),1), 0) -> 3 | U29: =_xlfn.IFNA(MATCH(RAND(), _xlfn.POISSON.DIST({0,1,2,3,4,5,6,7,8,9},$O29, TRUE),1), 0) -> 1 | V29: =_xlfn.IFNA(MATCH(RAND(), _xlfn.POISSON.DIST({0,1,2,3,4,5,6,7,8,9},$O29, TRUE),1), 0) -> 3 | W29: =_xlfn.IFNA(MATCH(RAND(), _xlfn.POISSON.DIST({0,1,2,3,4,5,6,7,8,9},$O29, TRUE),1), 0) -> 3 | X29: =_xlfn.IFNA(MATCH(RAND(), _xlfn.POISSON.DIST({0,1,2,3,4,5,6,7,8,9},$O29, TRUE),1), 0) -> 4 | Y29: =_xlfn.IFNA(MATCH(RAND(), _xlfn.POISSON.DIST({0,1,2,3,4,5,6,7,8,9},$O29, TRUE),1), 0) -> 1 | Z29: =_xlfn.IFNA(MATCH(RAND(), _xlfn.POISSON.DIST({0,1,2,3,4,5,6,7,8,9},$O29, TRUE),1), 0) -> 2 | AA29: =_xlfn.IFNA(MATCH(RAND(), _xlfn.POISSON.DIST({0,1,2,3,4,5,6,7,8,9},$O29, TRUE),1), 0) -> 6 | AB29: =_xlfn.IFNA(MATCH(RAND(), _xlfn.POISSON.DIST({0,1,2,3,4,5,6,7,8,9},$O29, TRUE),1), 0) -> 4 | AC29: =_xlfn.IFNA(MATCH(RAND(), _xlfn.POISSON.DIST({0,1,2,3,4,5,6,7,8,9},$O29, TRUE),1), 0) -> 2 | AD29: =_xlfn.IFNA(MATCH(RAND(), _xlfn.POISSON.DIST({0,1,2,3,4,5,6,7,8,9},$O29, TRUE),1), 0) -> 8 | AE29: =_xlfn.IFNA(MATCH(RAND(), _xlfn.POISSON.DIST({0,1,2,3,4,5,6,7,8,9},$O29, TRUE),1), 0) -> 4 | AF29: =_xlfn.IFNA(MATCH(RAND(), _xlfn.POISSON.DIST({0,1,2,3,4,5,6,7,8,9},$O29, TRUE),1), 0) -> 2 | AG29: =_xlfn.IFNA(MATCH(RAND(), _xlfn.POISSON.DIST({0,1,2,3,4,5,6,7,8,9},$O29, TRUE),1), 0) -> 5 | AH29: =_xlfn.IFNA(MATCH(RAND(), _xlfn.POISSON.DIST({0,1,2,3,4,5,6,7,8,9},$O29, TRUE),1), 0) -> 9 | AI29: =_xlfn.IFNA(MATCH(RAND(), _xlfn.POISSON.DIST({0,1,2,3,4,5,6,7,8,9},$O29, TRUE),1), 0) -> 2 | AJ29: =_xlfn.IFNA(MATCH(RAND(), _xlfn.POISSON.DIST({0,1,2,3,4,5,6,7,8,9},$O29, TRUE),1), 0) -> 2 | AK29: =_xlfn.IFNA(MATCH(RAND(), _xlfn.POISSON.DIST({0,1,2,3,4,5,6,7,8,9},$O29, TRUE),1), 0) -> 2 | AL29: =_xlfn.IFNA(MATCH(RAND(), _xlfn.POISSON.DIST({0,1,2,3,4,5,6,7,8,9},$O29, TRUE),1), 0) -> 7 | AM29: =_xlfn.IFNA(MATCH(RAND(), _xlfn.POISSON.DIST({0,1,2,3,4,5,6,7,8,9},$O29, TRUE),1), 0) -> 2 | AN29: =_xlfn.IFNA(MATCH(RAND(), _xlfn.POISSON.DIST({0,1,2,3,4,5,6,7,8,9},$O29, TRUE),1), 0) -> 3 | AO29: =_xlfn.IFNA(MATCH(RAND(), _xlfn.POISSON.DIST({0,1,2,3,4,5,6,7,8,9},$O29, TRUE),1), 0) -> 0 | AP29: =_xlfn.IFNA(MATCH(RAND(), _xlfn.POISSON.DIST({0,1,2,3,4,5,6,7,8,9},$O29, TRUE),1), 0) -> 1 | AQ29: =_xlfn.IFNA(MATCH(RAND(), _xlfn.POISSON.DIST({0,1,2,3,4,5,6,7,8,9},$O29, TRUE),1), 0) -> 6 | AR29: =_xlfn.IFNA(MATCH(RAND(), _xlfn.POISSON.DIST({0,1,2,3,4,5,6,7,8,9},$O29, TRUE),1), 0) -> 5 | AS29: =_xlfn.IFNA(MATCH(RAND(), _xlfn.POISSON.DIST({0,1,2,3,4,5,6,7,8,9},$O29, TRUE),1), 0) -> 5 | AT29: =_xlfn.IFNA(MATCH(RAND(), _xlfn.POISSON.DIST({0,1,2,3,4,5,6,7,8,9},$O29, TRUE),1), 0) -> 2 | AU29: =_xlfn.IFNA(MATCH(RAND(), _xlfn.POISSON.DIST({0,1,2,3,4,5,6,7,8,9},$O29, TRUE),1), 0) -> 3 | AV29: =_xlfn.IFNA(MATCH(RAND(), _xlfn.POISSON.DIST({0,1,2,3,4,5,6,7,8,9},$O29, TRUE),1), 0) -> 7 | AW29: =_xlfn.IFNA(MATCH(RAND(), _xlfn.POISSON.DIST({0,1,2,3,4,5,6,7,8,9},$O29, TRUE),1), 0) -> 1 | AX29: =_xlfn.IFNA(MATCH(RAND(), _xlfn.POISSON.DIST({0,1,2,3,4,5,6,7,8,9},$O29, TRUE),1), 0) -> 7 | AY29: =_xlfn.IFNA(MATCH(RAND(), _xlfn.POISSON.DIST({0,1,2,3,4,5,6,7,8,9},$O29, TRUE),1), 0) -> 3 | AZ29: =_xlfn.IFNA(MATCH(RAND(), _xlfn.POISSON.DIST({0,1,2,3,4,5,6,7,8,9},$O29, TRUE),1), 0) -> 1 | BA29: =_xlfn.IFNA(MATCH(RAND(), _xlfn.POISSON.DIST({0,1,2,3,4,5,6,7,8,9},$O29, TRUE),1), 0) -> 0 | BB29: =_xlfn.IFNA(MATCH(RAND(), _xlfn.POISSON.DIST({0,1,2,3,4,5,6,7,8,9},$O29, TRUE),1), 0) -> 2 | BC29: =_xlfn.IFNA(MATCH(RAND(), _xlfn.POISSON.DIST({0,1,2,3,4,5,6,7,8,9},$O29, TRUE),1), 0) -> 0 | BD29: =_xlfn.IFNA(MATCH(RAND(), _xlfn.POISSON.DIST({0,1,2,3,4,5,6,7,8,9},$O29, TRUE),1), 0) -> 3 | BE29: =_xlfn.IFNA(MATCH(RAND(), _xlfn.POISSON.DIST({0,1,2,3,4,5,6,7,8,9},$O29, TRUE),1), 0) -> 4 | BF29: =_xlfn.IFNA(MATCH(RAND(), _xlfn.POISSON.DIST({0,1,2,3,4,5,6,7,8,9},$O29, TRUE),1), 0) -> 3 | BG29: =_xlfn.IFNA(MATCH(RAND(), _xlfn.POISSON.DIST({0,1,2,3,4,5,6,7,8,9},$O29, TRUE),1), 0) -> 2 | BH29: =_xlfn.IFNA(MATCH(RAND(), _xlfn.POISSON.DIST({0,1,2,3,4,5,6,7,8,9},$O29, TRUE),1), 0) -> 0 | BI29: =_xlfn.IFNA(MATCH(RAND(), _xlfn.POISSON.DIST({0,1,2,3,4,5,6,7,8,9},$O29, TRUE),1), 0) -> 2 | BJ29: =_xlfn.IFNA(MATCH(RAND(), _xlfn.POISSON.DIST({0,1,2,3,4,5,6,7,8,9},$O29, TRUE),1), 0) -> 5 | BK29: =_xlfn.IFNA(MATCH(RAND(), _xlfn.POISSON.DIST({0,1,2,3,4,5,6,7,8,9},$O29, TRUE),1), 0) -> 4 | BL29: =_xlfn.IFNA(MATCH(RAND(), _xlfn.POISSON.DIST({0,1,2,3,4,5,6,7,8,9},$O29, TRUE),1), 0) -> 2 | BM29: =_xlfn.IFNA(MATCH(RAND(), _xlfn.POISSON.DIST({0,1,2,3,4,5,6,7,8,9},$O29, TRUE),1), 0) -> 3 | BN29: =_xlfn.IFNA(MATCH(RAND(), _xlfn.POISSON.DIST({0,1,2,3,4,5,6,7,8,9},$O29, TRUE),1), 0) -> 7 | BP29: =_xlfn.IFNA(MATCH(RAND(), _xlfn.POISSON.DIST({0,1,2,3,4,5,6,7,8,9},$P29, TRUE),1), 0) -> 0 | BQ29: =_xlfn.IFNA(MATCH(RAND(), _xlfn.POISSON.DIST({0,1,2,3,4,5,6,7,8,9},$P29, TRUE),1), 0) -> 1 | BR29: =_xlfn.IFNA(MATCH(RAND(), _xlfn.POISSON.DIST({0,1,2,3,4,5,6,7,8,9},$P29, TRUE),1), 0) -> 0 | BS29: =_xlfn.IFNA(MATCH(RAND(), _xlfn.POISSON.DIST({0,1,2,3,4,5,6,7,8,9},$P29, TRUE),1), 0) -> 0 | BT29: =_xlfn.IFNA(MATCH(RAND(), _xlfn.POISSON.DIST({0,1,2,3,4,5,6,7,8,9},$P29, TRUE),1), 0) -> 0 | BU29: =_xlfn.IFNA(MATCH(RAND(), _xlfn.POISSON.DIST({0,1,2,3,4,5,6,7,8,9},$P29, TRUE),1), 0) -> 0 | BV29: =_xlfn.IFNA(MATCH(RAND(), _xlfn.POISSON.DIST({0,1,2,3,4,5,6,7,8,9},$P29, TRUE),1), 0) -> 1 | BW29: =_xlfn.IFNA(MATCH(RAND(), _xlfn.POISSON.DIST({0,1,2,3,4,5,6,7,8,9},$P29, TRUE),1), 0) -> 1 | BX29: =_xlfn.IFNA(MATCH(RAND(), _xlfn.POISSON.DIST({0,1,2,3,4,5,6,7,8,9},$P29, TRUE),1), 0) -> 1 | BY29: =_xlfn.IFNA(MATCH(RAND(), _xlfn.POISSON.DIST({0,1,2,3,4,5,6,7,8,9},$P29, TRUE),1), 0) -> 0 | BZ29: =_xlfn.IFNA(MATCH(RAND(), _xlfn.POISSON.DIST({0,1,2,3,4,5,6,7,8,9},$P29, TRUE),1), 0) -> 0 | CA29: =_xlfn.IFNA(MATCH(RAND(), _xlfn.POISSON.DIST({0,1,2,3,4,5,6,7,8,9},$P29, TRUE),1), 0) -> 0 | CB29: =_xlfn.IFNA(MATCH(RAND(), _xlfn.POISSON.DIST({0,1,2,3,4,5,6,7,8,9},$P29, TRUE),1), 0) -> 0 | CC29: =_xlfn.IFNA(MATCH(RAND(), _xlfn.POISSON.DIST({0,1,2,3,4,5,6,7,8,9},$P29, TRUE),1), 0) -> 2 | CD29: =_xlfn.IFNA(MATCH(RAND(), _xlfn.POISSON.DIST({0,1,2,3,4,5,6,7,8,9},$P29, TRUE),1), 0) -> 2 | CE29: =_xlfn.IFNA(MATCH(RAND(), _xlfn.POISSON.DIST({0,1,2,3,4,5,6,7,8,9},$P29, TRUE),1), 0) -> 0 | CF29: =_xlfn.IFNA(MATCH(RAND(), _xlfn.POISSON.DIST({0,1,2,3,4,5,6,7,8,9},$P29, TRUE),1), 0) -> 0 | CG29: =_xlfn.IFNA(MATCH(RAND(), _xlfn.POISSON.DIST({0,1,2,3,4,5,6,7,8,9},$P29, TRUE),1), 0) -> 1 | CH29: =_xlfn.IFNA(MATCH(RAND(), _xlfn.POISSON.DIST({0,1,2,3,4,5,6,7,8,9},$P29, TRUE),1), 0) -> 0 | CI29: =_xlfn.IFNA(MATCH(RAND(), _xlfn.POISSON.DIST({0,1,2,3,4,5,6,7,8,9},$P29, TRUE),1), 0) -> 0 | CJ29: =_xlfn.IFNA(MATCH(RAND(), _xlfn.POISSON.DIST({0,1,2,3,4,5,6,7,8,9},$P29, TRUE),1), 0) -> 1 | CK29: =_xlfn.IFNA(MATCH(RAND(), _xlfn.POISSON.DIST({0,1,2,3,4,5,6,7,8,9},$P29, TRUE),1), 0) -> 0 | CL29: =_xlfn.IFNA(MATCH(RAND(), _xlfn.POISSON.DIST({0,1,2,3,4,5,6,7,8,9},$P29, TRUE),1), 0) -> 3 | CM29: =_xlfn.IFNA(MATCH(RAND(), _xlfn.POISSON.DIST({0,1,2,3,4,5,6,7,8,9},$P29, TRUE),1), 0) -> 1 | CN29: =_xlfn.IFNA(MATCH(RAND(), _xlfn.POISSON.DIST({0,1,2,3,4,5,6,7,8,9},$P29, TRUE),1), 0) -> 2 | CO29: =_xlfn.IFNA(MATCH(RAND(), _xlfn.POISSON.DIST({0,1,2,3,4,5,6,7,8,9},$P29, TRUE),1), 0) -> 1 | CP29: =_xlfn.IFNA(MATCH(RAND(), _xlfn.POISSON.DIST({0,1,2,3,4,5,6,7,8,9},$P29, TRUE),1), 0) -> 1 | CQ29: =_xlfn.IFNA(MATCH(RAND(), _xlfn.POISSON.DIST({0,1,2,3,4,5,6,7,8,9},$P29, TRUE),1), 0) -> 1 | CR29: =_xlfn.IFNA(MATCH(RAND(), _xlfn.POISSON.DIST({0,1,2,3,4,5,6,7,8,9},$P29, TRUE),1), 0) -> 0 | CS29: =_xlfn.IFNA(MATCH(RAND(), _xlfn.POISSON.DIST({0,1,2,3,4,5,6,7,8,9},$P29, TRUE),1), 0) -> 1 | CT29: =_xlfn.IFNA(MATCH(RAND(), _xlfn.POISSON.DIST({0,1,2,3,4,5,6,7,8,9},$P29, TRUE),1), 0) -> 3 | CU29: =_xlfn.IFNA(MATCH(RAND(), _xlfn.POISSON.DIST({0,1,2,3,4,5,6,7,8,9},$P29, TRUE),1), 0) -> 1 | CV29: =_xlfn.IFNA(MATCH(RAND(), _xlfn.POISSON.DIST({0,1,2,3,4,5,6,7,8,9},$P29, TRUE),1), 0) -> 1 | CW29: =_xlfn.IFNA(MATCH(RAND(), _xlfn.POISSON.DIST({0,1,2,3,4,5,6,7,8,9},$P29, TRUE),1), 0) -> 1 | CX29: =_xlfn.IFNA(MATCH(RAND(), _xlfn.POISSON.DIST({0,1,2,3,4,5,6,7,8,9},$P29, TRUE),1), 0) -> 1 | CY29: =_xlfn.IFNA(MATCH(RAND(), _xlfn.POISSON.DIST({0,1,2,3,4,5,6,7,8,9},$P29, TRUE),1), 0) -> 1 | CZ29: =_xlfn.IFNA(MATCH(RAND(), _xlfn.POISSON.DIST({0,1,2,3,4,5,6,7,8,9},$P29, TRUE),1), 0) -> 1 | DA29: =_xlfn.IFNA(MATCH(RAND(), _xlfn.POISSON.DIST({0,1,2,3,4,5,6,7,8,9},$P29, TRUE),1), 0) -> 0 | DB29: =_xlfn.IFNA(MATCH(RAND(), _xlfn.POISSON.DIST({0,1,2,3,4,5,6,7,8,9},$P29, TRUE),1), 0) -> 2 | DC29: =_xlfn.IFNA(MATCH(RAND(), _xlfn.POISSON.DIST({0,1,2,3,4,5,6,7,8,9},$P29, TRUE),1), 0) -> 0 | DD29: =_xlfn.IFNA(MATCH(RAND(), _xlfn.POISSON.DIST({0,1,2,3,4,5,6,7,8,9},$P29, TRUE),1), 0) -> 0 | DE29: =_xlfn.IFNA(MATCH(RAND(), _xlfn.POISSON.DIST({0,1,2,3,4,5,6,7,8,9},$P29, TRUE),1), 0) -> 0 | DF29: =_xlfn.IFNA(MATCH(RAND(), _xlfn.POISSON.DIST({0,1,2,3,4,5,6,7,8,9},$P29, TRUE),1), 0) -> 1 | DG29: =_xlfn.IFNA(MATCH(RAND(), _xlfn.POISSON.DIST({0,1,2,3,4,5,6,7,8,9},$P29, TRUE),1), 0) -> 2 | DH29: =_xlfn.IFNA(MATCH(RAND(), _xlfn.POISSON.DIST({0,1,2,3,4,5,6,7,8,9},$P29, TRUE),1), 0) -> 0 | DI29: =_xlfn.IFNA(MATCH(RAND(), _xlfn.POISSON.DIST({0,1,2,3,4,5,6,7,8,9},$P29, TRUE),1), 0) -> 0 | DJ29: =_xlfn.IFNA(MATCH(RAND(), _xlfn.POISSON.DIST({0,1,2,3,4,5,6,7,8,9},$P29, TRUE),1), 0) -> 1 | DK29: =_xlfn.IFNA(MATCH(RAND(), _xlfn.POISSON.DIST({0,1,2,3,4,5,6,7,8,9},$P29, TRUE),1), 0) -> 2 | DL29: =_xlfn.IFNA(MATCH(RAND(), _xlfn.POISSON.DIST({0,1,2,3,4,5,6,7,8,9},$P29, TRUE),1), 0) -> 2 | DM29: =_xlfn.IFNA(MATCH(RAND(), _xlfn.POISSON.DIST({0,1,2,3,4,5,6,7,8,9},$P29, TRUE),1), 0) -> 0
C30: 2019-06-17 | D30: B | E30: Volksrepubliek China | F30: =(AVERAGE(Q30:BN30))*(1+INDEX('Voorspellingen groepsfase'!$C$4:$O$28, MATCH('De wedstrijden van dit seizoen'!E30,'Voorspellingen groepsfase'!$D$4:$D$28,0),3)) -> 1.22 | G30: Spanje | H30: =(AVERAGE(BP30:DM30))*(1+INDEX('Voorspellingen groepsfase'!$C$4:$O$28, MATCH('De wedstrijden van dit seizoen'!G30,'Voorspellingen groepsfase'!$D$4:$D$28,0),3)) -> 1.42 | I30: Spanje | L30: 1.22 | M30: 1.42 | N30: Spanje | O30: =(OFFSET('Bijlage 3 - Goals per groep'!$D$14,(INDEX('Bijlage 1 - Teamgegevens'!$C$13:$F$112,MATCH(G30,'Bijlage 1 - Teamgegevens'!$C$13:$C$112,0),4)/10),(INDEX('Bijlage 1 - Teamgegevens'!$C$13:$F$112,MATCH(E30,'Bijlage 1 - Teamgegevens'!$C$13:$C$112,0),4)/10))) -> 1.37 | P30: =OFFSET('Bijlage 3 - Goals per groep'!$D$14,(INDEX('Bijlage 1 - Teamgegevens'!$C$13:$F$112, MATCH(E30,'Bijlage 1 - Teamgegevens'!$C$13:$C$112,0),4)/10), (INDEX('Bijlage 1 - Teamgegevens'!$C$13:$F$112, MATCH(G30, 'Bijlage 1 - Teamgegevens'!$C$13:$C$112,0),4)/10)) -> 1.37 | Q30: =_xlfn.IFNA(MATCH(RAND(), _xlfn.POISSON.DIST({0,1,2,3,4,5,6,7,8,9},$O30, TRUE),1), 0) -> 0 | R30: =_xlfn.IFNA(MATCH(RAND(), _xlfn.POISSON.DIST({0,1,2,3,4,5,6,7,8,9},$O30, TRUE),1), 0) -> 1 | S30: =_xlfn.IFNA(MATCH(RAND(), _xlfn.POISSON.DIST({0,1,2,3,4,5,6,7,8,9},$O30, TRUE),1), 0) -> 2 | T30: =_xlfn.IFNA(MATCH(RAND(), _xlfn.POISSON.DIST({0,1,2,3,4,5,6,7,8,9},$O30, TRUE),1), 0) -> 1 | U30: =_xlfn.IFNA(MATCH(RAND(), _xlfn.POISSON.DIST({0,1,2,3,4,5,6,7,8,9},$O30, TRUE),1), 0) -> 1 | V30: =_xlfn.IFNA(MATCH(RAND(), _xlfn.POISSON.DIST({0,1,2,3,4,5,6,7,8,9},$O30, TRUE),1), 0) -> 0 | W30: =_xlfn.IFNA(MATCH(RAND(), _xlfn.POISSON.DIST({0,1,2,3,4,5,6,7,8,9},$O30, TRUE),1), 0) -> 1 | X30: =_xlfn.IFNA(MATCH(RAND(), _xlfn.POISSON.DIST({0,1,2,3,4,5,6,7,8,9},$O30, TRUE),1), 0) -> 0 | Y30: =_xlfn.IFNA(MATCH(RAND(), _xlfn.POISSON.DIST({0,1,2,3,4,5,6,7,8,9},$O30, TRUE),1), 0) -> 5 | Z30: =_xlfn.IFNA(MATCH(RAND(), _xlfn.POISSON.DIST({0,1,2,3,4,5,6,7,8,9},$O30, TRUE),1), 0) -> 1 | AA30: =_xlfn.IFNA(MATCH(RAND(), _xlfn.POISSON.DIST({0,1,2,3,4,5,6,7,8,9},$O30, TRUE),1), 0) -> 2 | AB30: =_xlfn.IFNA(MATCH(RAND(), _xlfn.POISSON.DIST({0,1,2,3,4,5,6,7,8,9},$O30, TRUE),1), 0) -> 2 | AC30: =_xlfn.IFNA(MATCH(RAND(), _xlfn.POISSON.DIST({0,1,2,3,4,5,6,7,8,9},$O30, TRUE),1), 0) -> 2 | AD30: =_xlfn.IFNA(MATCH(RAND(), _xlfn.POISSON.DIST({0,1,2,3,4,5,6,7,8,9},$O30, TRUE),1), 0) -> 1 | AE30: =_xlfn.IFNA(MATCH(RAND(), _xlfn.POISSON.DIST({0,1,2,3,4,5,6,7,8,9},$O30, TRUE),1), 0) -> 3 | AF30: =_xlfn.IFNA(MATCH(RAND(), _xlfn.POISSON.DIST({0,1,2,3,4,5,6,7,8,9},$O30, TRUE),1), 0) -> 1 | AG30: =_xlfn.IFNA(MATCH(RAND(), _xlfn.POISSON.DIST({0,1,2,3,4,5,6,7,8,9},$O30, TRUE),1), 0) -> 3 | AH30: =_xlfn.IFNA(MATCH(RAND(), _xlfn.POISSON.DIST({0,1,2,3,4,5,6,7,8,9},$O30, TRUE),1), 0) -> 3 | AI30: =_xlfn.IFNA(MATCH(RAND(), _xlfn.POISSON.DIST({0,1,2,3,4,5,6,7,8,9},$O30, TRUE),1), 0) -> 0 | AJ30: =_xlfn.IFNA(MATCH(RAND(), _xlfn.POISSON.DIST({0,1,2,3,4,5,6,7,8,9},$O30, TRUE),1), 0) -> 0 | AK30: =_xlfn.IFNA(MATCH(RAND(), _xlfn.POISSON.DIST({0,1,2,3,4,5,6,7,8,9},$O30, TRUE),1), 0) -> 1 | AL30: =_xlfn.IFNA(MATCH(RAND(), _xlfn.POISSON.DIST({0,1,2,3,4,5,6,7,8,9},$O30, TRUE),1), 0) -> 1 | AM30: =_xlfn.IFNA(MATCH(RAND(), _xlfn.POISSON.DIST({0,1,2,3,4,5,6,7,8,9},$O30, TRUE),1), 0) -> 0 | AN30: =_xlfn.IFNA(MATCH(RAND(), _xlfn.POISSON.DIST({0,1,2,3,4,5,6,7,8,9},$O30, TRUE),1), 0) -> 1 | AO30: =_xlfn.IFNA(MATCH(RAND(), _xlfn.POISSON.DIST({0,1,2,3,4,5,6,7,8,9},$O30, TRUE),1), 0) -> 3 | AP30: =_xlfn.IFNA(MATCH(RAND(), _xlfn.POISSON.DIST({0,1,2,3,4,5,6,7,8,9},$O30, TRUE),1), 0) -> 1 | AQ30: =_xlfn.IFNA(MATCH(RAND(), _xlfn.POISSON.DIST({0,1,2,3,4,5,6,7,8,9},$O30, TRUE),1), 0) -> 0 | AR30: =_xlfn.IFNA(MATCH(RAND(), _xlfn.POISSON.DIST({0,1,2,3,4,5,6,7,8,9},$O30, TRUE),1), 0) -> 4 | AS30: =_xlfn.IFNA(MATCH(RAND(), _xlfn.POISSON.DIST({0,1,2,3,4,5,6,7,8,9},$O30, TRUE),1), 0) -> 2 | AT30: =_xlfn.IFNA(MATCH(RAND(), _xlfn.POISSON.DIST({0,1,2,3,4,5,6,7,8,9},$O30, TRUE),1), 0) -> 2 | AU30: =_xlfn.IFNA(MATCH(RAND(), _xlfn.POISSON.DIST({0,1,2,3,4,5,6,7,8,9},$O30, TRUE),1), 0) -> 2 | AV30: =_xlfn.IFNA(MATCH(RAND(), _xlfn.POISSON.DIST({0,1,2,3,4,5,6,7,8,9},$O30, TRUE),1), 0) -> 1 | AW30: =_xlfn.IFNA(MATCH(RAND(), _xlfn.POISSON.DIST({0,1,2,3,4,5,6,7,8,9},$O30, TRUE),1), 0) -> 1 | AX30: =_xlfn.IFNA(MATCH(RAND(), _xlfn.POISSON.DIST({0,1,2,3,4,5,6,7,8,9},$O30, TRUE),1), 0) -> 0 | AY30: =_xlfn.IFNA(MATCH(RAND(), _xlfn.POISSON.DIST({0,1,2,3,4,5,6,7,8,9},$O30, TRUE),1), 0) -> 1 | AZ30: =_xlfn.IFNA(MATCH(RAND(), _xlfn.POISSON.DIST({0,1,2,3,4,5,6,7,8,9},$O30, TRUE),1), 0) -> 0 | BA30: =_xlfn.IFNA(MATCH(RAND(), _xlfn.POISSON.DIST({0,1,2,3,4,5,6,7,8,9},$O30, TRUE),1), 0) -> 0 | BB30: =_xlfn.IFNA(MATCH(RAND(), _xlfn.POISSON.DIST({0,1,2,3,4,5,6,7,8,9},$O30, TRUE),1), 0) -> 0 | BC30: =_xlfn.IFNA(MATCH(RAND(), _xlfn.POISSON.DIST({0,1,2,3,4,5,6,7,8,9},$O30, TRUE),1), 0) -> 0 | BD30: =_xlfn.IFNA(MATCH(RAND(), _xlfn.POISSON.DIST({0,1,2,3,4,5,6,7,8,9},$O30, TRUE),1), 0) -> 0 | BE30: =_xlfn.IFNA(MATCH(RAND(), _xlfn.POISSON.DIST({0,1,2,3,4,5,6,7,8,9},$O30, TRUE),1), 0) -> 1 | BF30: =_xlfn.IFNA(MATCH(RAND(), _xlfn.POISSON.DIST({0,1,2,3,4,5,6,7,8,9},$O30, TRUE),1), 0) -> 4 | BG30: =_xlfn.IFNA(MATCH(RAND(), _xlfn.POISSON.DIST({0,1,2,3,4,5,6,7,8,9},$O30, TRUE),1), 0) -> 1 | BH30: =_xlfn.IFNA(MATCH(RAND(), _xlfn.POISSON.DIST({0,1,2,3,4,5,6,7,8,9},$O30, TRUE),1), 0) -> 0 | BI30: =_xlfn.IFNA(MATCH(RAND(), _xlfn.POISSON.DIST({0,1,2,3,4,5,6,7,8,9},$O30, TRUE),1), 0) -> 0 | BJ30: =_xlfn.IFNA(MATCH(RAND(), _xlfn.POISSON.DIST({0,1,2,3,4,5,6,7,8,9},$O30, TRUE),1), 0) -> 1 | BK30: =_xlfn.IFNA(MATCH(RAND(), _xlfn.POISSON.DIST({0,1,2,3,4,5,6,7,8,9},$O30, TRUE),1), 0) -> 0 | BL30: =_xlfn.IFNA(MATCH(RAND(), _xlfn.POISSON.DIST({0,1,2,3,4,5,6,7,8,9},$O30, TRUE),1), 0) -> 3 | BM30: =_xlfn.IFNA(MATCH(RAND(), _xlfn.POISSON.DIST({0,1,2,3,4,5,6,7,8,9},$O30, TRUE),1), 0) -> 1 | BN30: =_xlfn.IFNA(MATCH(RAND(), _xlfn.POISSON.DIST({0,1,2,3,4,5,6,7,8,9},$O30, TRUE),1), 0) -> 1 | BP30: =_xlfn.IFNA(MATCH(RAND(), _xlfn.POISSON.DIST({0,1,2,3,4,5,6,7,8,9},$P30, TRUE),1), 0) -> 0 | BQ30: =_xlfn.IFNA(MATCH(RAND(), _xlfn.POISSON.DIST({0,1,2,3,4,5,6,7,8,9},$P30, TRUE),1), 0) -> 1 | BR30: =_xlfn.IFNA(MATCH(RAND(), _xlfn.POISSON.DIST({0,1,2,3,4,5,6,7,8,9},$P30, TRUE),1), 0) -> 0 | BS30: =_xlfn.IFNA(MATCH(RAND(), _xlfn.POISSON.DIST({0,1,2,3,4,5,6,7,8,9},$P30, TRUE),1), 0) -> 3 | BT30: =_xlfn.IFNA(MATCH(RAND(), _xlfn.POISSON.DIST({0,1,2,3,4,5,6,7,8,9},$P30, TRUE),1), 0) -> 1 | BU30: =_xlfn.IFNA(MATCH(RAND(), _xlfn.POISSON.DIST({0,1,2,3,4,5,6,7,8,9},$P30, TRUE),1), 0) -> 0 | BV30: =_xlfn.IFNA(MATCH(RAND(), _xlfn.POISSON.DIST({0,1,2,3,4,5,6,7,8,9},$P30, TRUE),1), 0) -> 2 | BW30: =_xlfn.IFNA(MATCH(RAND(), _xlfn.POISSON.DIST({0,1,2,3,4,5,6,7,8,9},$P30, TRUE),1), 0) -> 1 | BX30: =_xlfn.IFNA(MATCH(RAND(), _xlfn.POISSON.DIST({0,1,2,3,4,5,6,7,8,9},$P30, TRUE),1), 0) -> 3 | BY30: =_xlfn.IFNA(MATCH(RAND(), _xlfn.POISSON.DIST({0,1,2,3,4,5,6,7,8,9},$P30, TRUE),1), 0) -> 2 | BZ30: =_xlfn.IFNA(MATCH(RAND(), _xlfn.POISSON.DIST({0,1,2,3,4,5,6,7,8,9},$P30, TRUE),1), 0) -> 2 | CA30: =_xlfn.IFNA(MATCH(RAND(), _xlfn.POISSON.DIST({0,1,2,3,4,5,6,7,8,9},$P30, TRUE),1), 0) -> 2 | CB30: =_xlfn.IFNA(MATCH(RAND(), _xlfn.POISSON.DIST({0,1,2,3,4,5,6,7,8,9},$P30, TRUE),1), 0) -> 1 | CC30: =_xlfn.IFNA(MATCH(RAND(), _xlfn.POISSON.DIST({0,1,2,3,4,5,6,7,8,9},$P30, TRUE),1), 0) -> 3 | CD30: =_xlfn.IFNA(MATCH(RAND(), _xlfn.POISSON.DIST({0,1,2,3,4,5,6,7,8,9},$P30, TRUE),1), 0) -> 2 | CE30: =_xlfn.IFNA(MATCH(RAND(), _xlfn.POISSON.DIST({0,1,2,3,4,5,6,7,8,9},$P30, TRUE),1), 0) -> 2 | CF30: =_xlfn.IFNA(MATCH(RAND(), _xlfn.POISSON.DIST({0,1,2,3,4,5,6,7,8,9},$P30, TRUE),1), 0) -> 0 | CG30: =_xlfn.IFNA(MATCH(RAND(), _xlfn.POISSON.DIST({0,1,2,3,4,5,6,7,8,9},$P30, TRUE),1), 0) -> 0 | CH30: =_xlfn.IFNA(MATCH(RAND(), _xlfn.POISSON.DIST({0,1,2,3,4,5,6,7,8,9},$P30, TRUE),1), 0) -> 2 | CI30: =_xlfn.IFNA(MATCH(RAND(), _xlfn.POISSON.DIST({0,1,2,3,4,5,6,7,8,9},$P30, TRUE),1), 0) -> 2 | CJ30: =_xlfn.IFNA(MATCH(RAND(), _xlfn.POISSON.DIST({0,1,2,3,4,5,6,7,8,9},$P30, TRUE),1), 0) -> 1 | CK30: =_xlfn.IFNA(MATCH(RAND(), _xlfn.POISSON.DIST({0,1,2,3,4,5,6,7,8,9},$P30, TRUE),1), 0) -> 0 | CL30: =_xlfn.IFNA(MATCH(RAND(), _xlfn.POISSON.DIST({0,1,2,3,4,5,6,7,8,9},$P30, TRUE),1), 0) -> 0 | CM30: =_xlfn.IFNA(MATCH(RAND(), _xlfn.POISSON.DIST({0,1,2,3,4,5,6,7,8,9},$P30, TRUE),1), 0) -> 1 | CN30: =_xlfn.IFNA(MATCH(RAND(), _xlfn.POISSON.DIST({0,1,2,3,4,5,6,7,8,9},$P30, TRUE),1), 0) -> 1 | CO30: =_xlfn.IFNA(MATCH(RAND(), _xlfn.POISSON.DIST({0,1,2,3,4,5,6,7,8,9},$P30, TRUE),1), 0) -> 1 | CP30: =_xlfn.IFNA(MATCH(RAND(), _xlfn.POISSON.DIST({0,1,2,3,4,5,6,7,8,9},$P30, TRUE),1), 0) -> 2 | CQ30: =_xlfn.IFNA(MATCH(RAND(), _xlfn.POISSON.DIST({0,1,2,3,4,5,6,7,8,9},$P30, TRUE),1), 0) -> 0 | CR30: =_xlfn.IFNA(MATCH(RAND(), _xlfn.POISSON.DIST({0,1,2,3,4,5,6,7,8,9},$P30, TRUE),1), 0) -> 0 | CS30: =_xlfn.IFNA(MATCH(RAND(), _xlfn.POISSON.DIST({0,1,2,3,4,5,6,7,8,9},$P30, TRUE),1), 0) -> 3 | CT30: =_xlfn.IFNA(MATCH(RAND(), _xlfn.POISSON.DIST({0,1,2,3,4,5,6,7,8,9},$P30, TRUE),1), 0) -> 3 | CU30: =_xlfn.IFNA(MATCH(RAND(), _xlfn.POISSON.DIST({0,1,2,3,4,5,6,7,8,9},$P30, TRUE),1), 0) -> 1 | CV30: =_xlfn.IFNA(MATCH(RAND(), _xlfn.POISSON.DIST({0,1,2,3,4,5,6,7,8,9},$P30, TRUE),1), 0) -> 2 | CW30: =_xlfn.IFNA(MATCH(RAND(), _xlfn.POISSON.DIST({0,1,2,3,4,5,6,7,8,9},$P30, TRUE),1), 0) -> 2 | CX30: =_xlfn.IFNA(MATCH(RAND(), _xlfn.POISSON.DIST({0,1,2,3,4,5,6,7,8,9},$P30, TRUE),1), 0) -> 1 | CY30: =_xlfn.IFNA(MATCH(RAND(), _xlfn.POISSON.DIST({0,1,2,3,4,5,6,7,8,9},$P30, TRUE),1), 0) -> 3 | CZ30: =_xlfn.IFNA(MATCH(RAND(), _xlfn.POISSON.DIST({0,1,2,3,4,5,6,7,8,9},$P30, TRUE),1), 0) -> 2 | DA30: =_xlfn.IFNA(MATCH(RAND(), _xlfn.POISSON.DIST({0,1,2,3,4,5,6,7,8,9},$P30, TRUE),1), 0) -> 2 | DB30: =_xlfn.IFNA(MATCH(RAND(), _xlfn.POISSON.DIST({0,1,2,3,4,5,6,7,8,9},$P30, TRUE),1), 0) -> 1 | DC30: =_xlfn.IFNA(MATCH(RAND(), _xlfn.POISSON.DIST({0,1,2,3,4,5,6,7,8,9},$P30, TRUE),1), 0) -> 0 | DD30: =_xlfn.IFNA(MATCH(RAND(), _xlfn.POISSON.DIST({0,1,2,3,4,5,6,7,8,9},$P30, TRUE),1), 0) -> 2 | DE30: =_xlfn.IFNA(MATCH(RAND(), _xlfn.POISSON.DIST({0,1,2,3,4,5,6,7,8,9},$P30, TRUE),1), 0) -> 3 | DF30: =_xlfn.IFNA(MATCH(RAND(), _xlfn.POISSON.DIST({0,1,2,3,4,5,6,7,8,9},$P30, TRUE),1), 0) -> 1 | DG30: =_xlfn.IFNA(MATCH(RAND(), _xlfn.POISSON.DIST({0,1,2,3,4,5,6,7,8,9},$P30, TRUE),1), 0) -> 1 | DH30: =_xlfn.IFNA(MATCH(RAND(), _xlfn.POISSON.DIST({0,1,2,3,4,5,6,7,8,9},$P30, TRUE),1), 0) -> 0 | DI30: =_xlfn.IFNA(MATCH(RAND(), _xlfn.POISSON.DIST({0,1,2,3,4,5,6,7,8,9},$P30, TRUE),1), 0) -> 0 | DJ30: =_xlfn.IFNA(MATCH(RAND(), _xlfn.POISSON.DIST({0,1,2,3,4,5,6,7,8,9},$P30, TRUE),1), 0) -> 2 | DK30: =_xlfn.IFNA(MATCH(RAND(), _xlfn.POISSON.DIST({0,1,2,3,4,5,6,7,8,9},$P30, TRUE),1), 0) -> 6 | DL30: =_xlfn.IFNA(MATCH(RAND(), _xlfn.POISSON.DIST({0,1,2,3,4,5,6,7,8,9},$P30, TRUE),1), 0) -> 0 | DM30: =_xlfn.IFNA(MATCH(RAND(), _xlfn.POISSON.DIST({0,1,2,3,4,5,6,7,8,9},$P30, TRUE),1), 0) -> 1
